{"text_format":"1","workbook":"xlsx","n_sheets":2,"sheets":["FORMULACIÓN ","LISTAS"],"not_rendered":{"charts":0,"images":1,"macros":1,"external_links":1,"defined_names":53,"comments":0,"pivot_tables":0},"unopened":[],"bounds":{"document_bytes":16777216,"sheet_cells":100000,"rows_first":2000,"rows_last":500,"rows_between":2000,"halvings":0,"cell_chars":16384,"cell_head_chars":4096},"cells_cut":0,"cells_raw":0,"read":"whole","date_system":"1900"}

{"sheet":"FORMULACIÓN ","index":0,"n_rows":1001,"n_cols":22,"rows_kept":1001,"cut":false,"hidden":false,"merged":[[1,5,3,16],[1,1,3,4],[17,11,19,11],[13,1,14,1],[9,13,9,17],[7,13,7,17],[11,1,12,3],[13,5,14,5],[13,6,14,8],[11,15,11,17],[13,12,14,12],[13,2,14,3],[13,13,14,13],[11,5,12,8],[11,10,11,13],[7,1,9,3],[5,13,5,17],[5,1,5,3],[15,2,16,3],[15,1,16,1],[15,5,16,5],[15,6,16,8],[7,4,9,8],[13,11,14,11],[13,10,14,10],[5,10,5,12],[7,10,7,12],[9,10,9,12],[5,4,5,7],[21,1,21,17],[15,11,16,11],[15,12,16,12],[15,13,16,13],[15,10,16,10],[17,12,19,12],[17,13,19,13],[17,1,19,1],[17,2,19,3],[17,5,19,5],[17,6,19,8],[17,10,19,10]]}
[]
[null,null,null,null,null,"FORMULACIÓN PLAN DE ACCIÓN ",null,null,null,null,null,null,null,null,null,null,null,"Código:              DE01-F03"]
[null,null,null,null,null,null,null,null,null,null,null,null,null,null,null,null,null,"Versión:                  15"]
[null,null,null,null,null,null,null,null,null,null,null,null,null,null,null,null,null,"Fecha:              2022-12-12"]
[]
[null,"VIGENCIA:",null,null,2023,null,null,null,null,null,"ÁREA:"]
[]
[null,"∑ PART. % PRODUCTOS ",null,null,{"$f":"SUMIF(B24:B402,\"Producto \",L24:L402)","v":0},null,null,null,null,null,"ÁREA Y/O DEPENDENCIA RESPONSABLE:"]
[]
[null,null,null,null,null,null,null,null,null,null,"FICHA:",null,null,{"$f":"IF(ISERROR(VLOOKUP(N8,LISTAS!$A$15:$B$50,2,0)),\"\",VLOOKUP(N8,LISTAS!$A$15:$B$50,2,0))","v":""}]
[]
[null,"Vo.Bo. REVISIÓN OAP",null,null,null,"APROBACIÓN JEFE OFICINA DE PLANEACIÓN",null,null,null,null,"FIRMAS ÁREAS/DEPENDENCIAS  RESPONSABLES DE LA FICHA",null,null,null,null,"AUTORIZACION OTRAS DEPENDENCIAS RESPONSABLES DE LA EJECUCIÓN DE  ACTIVIDADES"]
[null,null,null,null,null,null,null,null,null,null,null," 1° Nivel","2° Nivel","3° Nivel",null,"DEPENDENCIA","NOMBRE ","FIRMA"]
[null,"Nombre:",null,null,null,"Nombre:",null,null,null,null,"Nombre:"]
[]
[null,"Firma:",null,null,null,"Firma:",null,null,null,null,"Firma:"]
[]
[null,"Cargo:",null,null,null,"Fecha Aprobación:",null,null,null,null,"Cargo:"]
[]
[]
[]
[null,"IMPORTANTE: Este formato debe ser diligenciado en archivo Excel. Las instrucciones de diligenciamiento se habilitan al ubicar el cursor en cada una de las celdas del encabezado.  Para su diligenciamiento se sugiere consultar también el procedimiento DE01-P01 \"FORMULACIÓN DE LA PLANEACIÓN INSTITUCIONAL\"."]
[null,"Ident. Fila","Código","Categoría","Estrategia","Insumo de planeación del que se extrajo el producto","¿Es producto compartido con otras áreas?","Fuente de Financiación","Política(s) MIPG","Asociación a planes ","Producto o Actividad","Part. %\n","Meta","Unidad de medida (Meta)","Fórmula para determinar % de Avance ","Fecha Inicio","Fecha Final","Áreas/\nDependencias responsables de la ejecución de actividades"]
[null,null,{"$f":"_xlfn.IFS(B24=\"Producto \",$N$10&\"-\"&T25,B24=\"Actividad Propia\",$N$10&\"-\"&T24&\"-\"&V24,B24=\"Actividad sin participación\",$N$10&\"-\"&T24&\"-\"&V24,B24=\"\",\"\")","v":""},null,null,null,null,null,null,null,null,null,null,null,null,null,null,null,null,{"$f":"IF(B24=\"Producto \",1)","v":false}]
[null,null,{"$f":"_xlfn.IFS(B25=\"Producto \",$N$10&\"-\"&T26,B25=\"Actividad Propia\",$N$10&\"-\"&T25&\"-\"&V25,B25=\"Actividad sin participación\",$N$10&\"-\"&T25&\"-\"&V25,B25=\"\",\"\")","v":""},null,null,null,null,null,null,null,null,null,null,null,null,null,null,null,null,{"$f":"COUNTIFS($B$24:B25,\"Producto \")","v":0},{"$f":"IF(B24=\"Producto \",C24&\"-\"&V25)","v":false},{"$f":"IF(B24=\"Producto \",1,V24+1)","v":1}]
[null,null,{"$f":"_xlfn.IFS(B26=\"Producto \",$N$10&\"-\"&T27,B26=\"Actividad Propia\",$N$10&\"-\"&T26&\"-\"&V26,B26=\"Actividad sin participación\",$N$10&\"-\"&T26&\"-\"&V26,B26=\"\",\"\")","v":""},null,null,null,null,null,null,null,null,null,null,null,null,null,null,null,null,{"$f":"COUNTIFS($B$24:B26,\"Producto \")","v":0},false,2]
[null,null,{"$f":"_xlfn.IFS(B27=\"Producto \",$N$10&\"-\"&T28,B27=\"Actividad Propia\",$N$10&\"-\"&T27&\"-\"&V27,B27=\"Actividad sin participación\",$N$10&\"-\"&T27&\"-\"&V27,B27=\"\",\"\")","v":""},null,null,null,null,null,null,null,null,null,null,null,null,null,null,null,null,{"$f":"COUNTIFS($B$24:B27,\"Producto \")","v":0},false,3]
[null,null,{"$f":"_xlfn.IFS(B28=\"Producto \",$N$10&\"-\"&T29,B28=\"Actividad Propia\",$N$10&\"-\"&T28&\"-\"&V28,B28=\"Actividad sin participación\",$N$10&\"-\"&T28&\"-\"&V28,B28=\"\",\"\")","v":""},null,null,null,null,null,null,null,null,null,null,null,null,null,null,null,null,{"$f":"COUNTIFS($B$24:B28,\"Producto \")","v":0},false,4]
[null,null,{"$f":"_xlfn.IFS(B29=\"Producto \",$N$10&\"-\"&T30,B29=\"Actividad Propia\",$N$10&\"-\"&T29&\"-\"&V29,B29=\"Actividad sin participación\",$N$10&\"-\"&T29&\"-\"&V29,B29=\"\",\"\")","v":""},null,null,null,null,null,null,null,null,null,null,null,null,null,null,null,null,{"$f":"COUNTIFS($B$24:B29,\"Producto \")","v":0},false,5]
[null,null,{"$f":"_xlfn.IFS(B30=\"Producto \",$N$10&\"-\"&T31,B30=\"Actividad Propia\",$N$10&\"-\"&T30&\"-\"&V30,B30=\"Actividad sin participación\",$N$10&\"-\"&T30&\"-\"&V30,B30=\"\",\"\")","v":""},null,null,null,null,null,null,null,null,null,null,null,null,null,null,null,null,{"$f":"COUNTIFS($B$24:B30,\"Producto \")","v":0},false,6]
[null,null,{"$f":"_xlfn.IFS(B31=\"Producto \",$N$10&\"-\"&T32,B31=\"Actividad Propia\",$N$10&\"-\"&T31&\"-\"&V31,B31=\"Actividad sin participación\",$N$10&\"-\"&T31&\"-\"&V31,B31=\"\",\"\")","v":""},null,null,null,null,null,null,null,null,null,null,null,null,null,null,null,null,{"$f":"COUNTIFS($B$24:B31,\"Producto \")","v":0},false,7]
[null,null,{"$f":"_xlfn.IFS(B32=\"Producto \",$N$10&\"-\"&T33,B32=\"Actividad Propia\",$N$10&\"-\"&T32&\"-\"&V32,B32=\"Actividad sin participación\",$N$10&\"-\"&T32&\"-\"&V32,B32=\"\",\"\")","v":""},null,null,null,null,null,null,null,null,null,null,null,null,null,null,null,null,{"$f":"COUNTIFS($B$24:B32,\"Producto \")","v":0},false,8]
[null,null,{"$f":"_xlfn.IFS(B33=\"Producto \",$N$10&\"-\"&T34,B33=\"Actividad Propia\",$N$10&\"-\"&T33&\"-\"&V33,B33=\"Actividad sin participación\",$N$10&\"-\"&T33&\"-\"&V33,B33=\"\",\"\")","v":""},null,null,null,null,null,null,null,null,null,null,null,null,null,null,null,null,{"$f":"COUNTIFS($B$24:B33,\"Producto \")","v":0},false,9]
[null,null,{"$f":"_xlfn.IFS(B34=\"Producto \",$N$10&\"-\"&T35,B34=\"Actividad Propia\",$N$10&\"-\"&T34&\"-\"&V34,B34=\"Actividad sin participación\",$N$10&\"-\"&T34&\"-\"&V34,B34=\"\",\"\")","v":""},null,null,null,null,null,null,null,null,null,null,null,null,null,null,null,null,{"$f":"COUNTIFS($B$24:B34,\"Producto \")","v":0},false,10]
[null,null,{"$f":"_xlfn.IFS(B35=\"Producto \",$N$10&\"-\"&T36,B35=\"Actividad Propia\",$N$10&\"-\"&T35&\"-\"&V35,B35=\"Actividad sin participación\",$N$10&\"-\"&T35&\"-\"&V35,B35=\"\",\"\")","v":""},null,null,null,null,null,null,null,null,null,null,null,null,null,null,null,null,{"$f":"COUNTIFS($B$24:B35,\"Producto \")","v":0},false,11]
[null,null,{"$f":"_xlfn.IFS(B36=\"Producto \",$N$10&\"-\"&T37,B36=\"Actividad Propia\",$N$10&\"-\"&T36&\"-\"&V36,B36=\"Actividad sin participación\",$N$10&\"-\"&T36&\"-\"&V36,B36=\"\",\"\")","v":""},null,null,null,null,null,null,null,null,null,null,null,null,null,null,null,null,{"$f":"COUNTIFS($B$24:B36,\"Producto \")","v":0},false,12]
[null,null,{"$f":"_xlfn.IFS(B37=\"Producto \",$N$10&\"-\"&T38,B37=\"Actividad Propia\",$N$10&\"-\"&T37&\"-\"&V37,B37=\"Actividad sin participación\",$N$10&\"-\"&T37&\"-\"&V37,B37=\"\",\"\")","v":""},null,null,null,null,null,null,null,null,null,null,null,null,null,null,null,null,{"$f":"COUNTIFS($B$24:B37,\"Producto \")","v":0},false,13]
[null,null,{"$f":"_xlfn.IFS(B38=\"Producto \",$N$10&\"-\"&T39,B38=\"Actividad Propia\",$N$10&\"-\"&T38&\"-\"&V38,B38=\"Actividad sin participación\",$N$10&\"-\"&T38&\"-\"&V38,B38=\"\",\"\")","v":""},null,null,null,null,null,null,null,null,null,null,null,null,null,null,null,null,{"$f":"COUNTIFS($B$24:B38,\"Producto \")","v":0},false,14]
[null,null,{"$f":"_xlfn.IFS(B39=\"Producto \",$N$10&\"-\"&T40,B39=\"Actividad Propia\",$N$10&\"-\"&T39&\"-\"&V39,B39=\"Actividad sin participación\",$N$10&\"-\"&T39&\"-\"&V39,B39=\"\",\"\")","v":""},null,null,null,null,null,null,null,null,null,null,null,null,null,null,null,null,{"$f":"COUNTIFS($B$24:B39,\"Producto \")","v":0},false,15]
[null,null,{"$f":"_xlfn.IFS(B40=\"Producto \",$N$10&\"-\"&T41,B40=\"Actividad Propia\",$N$10&\"-\"&T40&\"-\"&V40,B40=\"Actividad sin participación\",$N$10&\"-\"&T40&\"-\"&V40,B40=\"\",\"\")","v":""},null,null,null,null,null,null,null,null,null,null,null,null,null,null,null,null,{"$f":"COUNTIFS($B$24:B40,\"Producto \")","v":0},false,16]
[null,null,{"$f":"_xlfn.IFS(B41=\"Producto \",$N$10&\"-\"&T42,B41=\"Actividad Propia\",$N$10&\"-\"&T41&\"-\"&V41,B41=\"Actividad sin participación\",$N$10&\"-\"&T41&\"-\"&V41,B41=\"\",\"\")","v":""},null,null,null,null,null,null,null,null,null,null,null,null,null,null,null,null,{"$f":"COUNTIFS($B$24:B41,\"Producto \")","v":0},false,17]
[null,null,{"$f":"_xlfn.IFS(B42=\"Producto \",$N$10&\"-\"&T43,B42=\"Actividad Propia\",$N$10&\"-\"&T42&\"-\"&V42,B42=\"Actividad sin participación\",$N$10&\"-\"&T42&\"-\"&V42,B42=\"\",\"\")","v":""},null,null,null,null,null,null,null,null,null,null,null,null,null,null,null,null,{"$f":"COUNTIFS($B$24:B42,\"Producto \")","v":0},false,18]
[null,null,{"$f":"_xlfn.IFS(B43=\"Producto \",$N$10&\"-\"&T44,B43=\"Actividad Propia\",$N$10&\"-\"&T43&\"-\"&V43,B43=\"Actividad sin participación\",$N$10&\"-\"&T43&\"-\"&V43,B43=\"\",\"\")","v":""},null,null,null,null,null,null,null,null,null,null,null,null,null,null,null,null,{"$f":"COUNTIFS($B$24:B43,\"Producto \")","v":0},false,19]
[null,null,{"$f":"_xlfn.IFS(B44=\"Producto \",$N$10&\"-\"&T45,B44=\"Actividad Propia\",$N$10&\"-\"&T44&\"-\"&V44,B44=\"Actividad sin participación\",$N$10&\"-\"&T44&\"-\"&V44,B44=\"\",\"\")","v":""},null,null,null,null,null,null,null,null,null,null,null,null,null,null,null,null,{"$f":"COUNTIFS($B$24:B44,\"Producto \")","v":0},false,20]
[null,null,{"$f":"_xlfn.IFS(B45=\"Producto \",$N$10&\"-\"&T46,B45=\"Actividad Propia\",$N$10&\"-\"&T45&\"-\"&V45,B45=\"Actividad sin participación\",$N$10&\"-\"&T45&\"-\"&V45,B45=\"\",\"\")","v":""},null,null,null,null,null,null,null,null,null,null,null,null,null,null,null,null,{"$f":"COUNTIFS($B$24:B45,\"Producto \")","v":0},false,21]
[null,null,{"$f":"_xlfn.IFS(B46=\"Producto \",$N$10&\"-\"&T47,B46=\"Actividad Propia\",$N$10&\"-\"&T46&\"-\"&V46,B46=\"Actividad sin participación\",$N$10&\"-\"&T46&\"-\"&V46,B46=\"\",\"\")","v":""},null,null,null,null,null,null,null,null,null,null,null,null,null,null,null,null,{"$f":"COUNTIFS($B$24:B46,\"Producto \")","v":0},false,22]
[null,null,{"$f":"_xlfn.IFS(B47=\"Producto \",$N$10&\"-\"&T48,B47=\"Actividad Propia\",$N$10&\"-\"&T47&\"-\"&V47,B47=\"Actividad sin participación\",$N$10&\"-\"&T47&\"-\"&V47,B47=\"\",\"\")","v":""},null,null,null,null,null,null,null,null,null,null,null,null,null,null,null,null,{"$f":"COUNTIFS($B$24:B47,\"Producto \")","v":0},false,23]
[null,null,{"$f":"_xlfn.IFS(B48=\"Producto \",$N$10&\"-\"&T49,B48=\"Actividad Propia\",$N$10&\"-\"&T48&\"-\"&V48,B48=\"Actividad sin participación\",$N$10&\"-\"&T48&\"-\"&V48,B48=\"\",\"\")","v":""},null,null,null,null,null,null,null,null,null,null,null,null,null,null,null,null,{"$f":"COUNTIFS($B$24:B48,\"Producto \")","v":0},false,24]
[null,null,{"$f":"_xlfn.IFS(B49=\"Producto \",$N$10&\"-\"&T50,B49=\"Actividad Propia\",$N$10&\"-\"&T49&\"-\"&V49,B49=\"Actividad sin participación\",$N$10&\"-\"&T49&\"-\"&V49,B49=\"\",\"\")","v":""},null,null,null,null,null,null,null,null,null,null,null,null,null,null,null,null,{"$f":"COUNTIFS($B$24:B49,\"Producto \")","v":0},false,25]
[null,null,{"$f":"_xlfn.IFS(B50=\"Producto \",$N$10&\"-\"&T51,B50=\"Actividad Propia\",$N$10&\"-\"&T50&\"-\"&V50,B50=\"Actividad sin participación\",$N$10&\"-\"&T50&\"-\"&V50,B50=\"\",\"\")","v":""},null,null,null,null,null,null,null,null,null,null,null,null,null,null,null,null,{"$f":"COUNTIFS($B$24:B50,\"Producto \")","v":0},false,26]
[null,null,{"$f":"_xlfn.IFS(B51=\"Producto \",$N$10&\"-\"&T52,B51=\"Actividad Propia\",$N$10&\"-\"&T51&\"-\"&V51,B51=\"Actividad sin participación\",$N$10&\"-\"&T51&\"-\"&V51,B51=\"\",\"\")","v":""},null,null,null,null,null,null,null,null,null,null,null,null,null,null,null,null,{"$f":"COUNTIFS($B$24:B51,\"Producto \")","v":0},false,27]
[null,null,{"$f":"_xlfn.IFS(B52=\"Producto \",$N$10&\"-\"&T53,B52=\"Actividad Propia\",$N$10&\"-\"&T52&\"-\"&V52,B52=\"Actividad sin participación\",$N$10&\"-\"&T52&\"-\"&V52,B52=\"\",\"\")","v":""},null,null,null,null,null,null,null,null,null,null,null,null,null,null,null,null,{"$f":"COUNTIFS($B$24:B52,\"Producto \")","v":0},false,28]
[null,null,{"$f":"_xlfn.IFS(B53=\"Producto \",$N$10&\"-\"&T54,B53=\"Actividad Propia\",$N$10&\"-\"&T53&\"-\"&V53,B53=\"Actividad sin participación\",$N$10&\"-\"&T53&\"-\"&V53,B53=\"\",\"\")","v":""},null,null,null,null,null,null,null,null,null,null,null,null,null,null,null,null,{"$f":"COUNTIFS($B$24:B53,\"Producto \")","v":0},false,29]
[null,null,{"$f":"_xlfn.IFS(B54=\"Producto \",$N$10&\"-\"&T55,B54=\"Actividad Propia\",$N$10&\"-\"&T54&\"-\"&V54,B54=\"Actividad sin participación\",$N$10&\"-\"&T54&\"-\"&V54,B54=\"\",\"\")","v":""},null,null,null,null,null,null,null,null,null,null,null,null,null,null,null,null,{"$f":"COUNTIFS($B$24:B54,\"Producto \")","v":0},false,30]
[null,null,{"$f":"_xlfn.IFS(B55=\"Producto \",$N$10&\"-\"&T56,B55=\"Actividad Propia\",$N$10&\"-\"&T55&\"-\"&V55,B55=\"Actividad sin participación\",$N$10&\"-\"&T55&\"-\"&V55,B55=\"\",\"\")","v":""},null,null,null,null,null,null,null,null,null,null,null,null,null,null,null,null,{"$f":"COUNTIFS($B$24:B55,\"Producto \")","v":0},false,31]
[null,null,{"$f":"_xlfn.IFS(B56=\"Producto \",$N$10&\"-\"&T57,B56=\"Actividad Propia\",$N$10&\"-\"&T56&\"-\"&V56,B56=\"Actividad sin participación\",$N$10&\"-\"&T56&\"-\"&V56,B56=\"\",\"\")","v":""},null,null,null,null,null,null,null,null,null,null,null,null,null,null,null,null,{"$f":"COUNTIFS($B$24:B56,\"Producto \")","v":0},false,32]
[null,null,{"$f":"_xlfn.IFS(B57=\"Producto \",$N$10&\"-\"&T58,B57=\"Actividad Propia\",$N$10&\"-\"&T57&\"-\"&V57,B57=\"Actividad sin participación\",$N$10&\"-\"&T57&\"-\"&V57,B57=\"\",\"\")","v":""},null,null,null,null,null,null,null,null,null,null,null,null,null,null,null,null,{"$f":"COUNTIFS($B$24:B57,\"Producto \")","v":0},false,33]
[null,null,{"$f":"_xlfn.IFS(B58=\"Producto \",$N$10&\"-\"&T59,B58=\"Actividad Propia\",$N$10&\"-\"&T58&\"-\"&V58,B58=\"Actividad sin participación\",$N$10&\"-\"&T58&\"-\"&V58,B58=\"\",\"\")","v":""},null,null,null,null,null,null,null,null,null,null,null,null,null,null,null,null,{"$f":"COUNTIFS($B$24:B58,\"Producto \")","v":0},false,34]
[null,null,{"$f":"_xlfn.IFS(B59=\"Producto \",$N$10&\"-\"&T60,B59=\"Actividad Propia\",$N$10&\"-\"&T59&\"-\"&V59,B59=\"Actividad sin participación\",$N$10&\"-\"&T59&\"-\"&V59,B59=\"\",\"\")","v":""},null,null,null,null,null,null,null,null,null,null,null,null,null,null,null,null,{"$f":"COUNTIFS($B$24:B59,\"Producto \")","v":0},false,35]
[null,null,{"$f":"_xlfn.IFS(B60=\"Producto \",$N$10&\"-\"&T61,B60=\"Actividad Propia\",$N$10&\"-\"&T60&\"-\"&V60,B60=\"Actividad sin participación\",$N$10&\"-\"&T60&\"-\"&V60,B60=\"\",\"\")","v":""},null,null,null,null,null,null,null,null,null,null,null,null,null,null,null,null,{"$f":"COUNTIFS($B$24:B60,\"Producto \")","v":0},false,36]
[null,null,{"$f":"_xlfn.IFS(B61=\"Producto \",$N$10&\"-\"&T62,B61=\"Actividad Propia\",$N$10&\"-\"&T61&\"-\"&V61,B61=\"Actividad sin participación\",$N$10&\"-\"&T61&\"-\"&V61,B61=\"\",\"\")","v":""},null,null,null,null,null,null,null,null,null,null,null,null,null,null,null,null,{"$f":"COUNTIFS($B$24:B61,\"Producto \")","v":0},false,37]
[null,null,{"$f":"_xlfn.IFS(B62=\"Producto \",$N$10&\"-\"&T63,B62=\"Actividad Propia\",$N$10&\"-\"&T62&\"-\"&V62,B62=\"Actividad sin participación\",$N$10&\"-\"&T62&\"-\"&V62,B62=\"\",\"\")","v":""},null,null,null,null,null,null,null,null,null,null,null,null,null,null,null,null,{"$f":"COUNTIFS($B$24:B62,\"Producto \")","v":0},false,38]
[null,null,{"$f":"_xlfn.IFS(B63=\"Producto \",$N$10&\"-\"&T64,B63=\"Actividad Propia\",$N$10&\"-\"&T63&\"-\"&V63,B63=\"Actividad sin participación\",$N$10&\"-\"&T63&\"-\"&V63,B63=\"\",\"\")","v":""},null,null,null,null,null,null,null,null,null,null,null,null,null,null,null,null,{"$f":"COUNTIFS($B$24:B63,\"Producto \")","v":0},false,39]
[null,null,{"$f":"_xlfn.IFS(B64=\"Producto \",$N$10&\"-\"&T65,B64=\"Actividad Propia\",$N$10&\"-\"&T64&\"-\"&V64,B64=\"Actividad sin participación\",$N$10&\"-\"&T64&\"-\"&V64,B64=\"\",\"\")","v":""},null,null,null,null,null,null,null,null,null,null,null,null,null,null,null,null,{"$f":"COUNTIFS($B$24:B64,\"Producto \")","v":0},false,40]
[null,null,{"$f":"_xlfn.IFS(B65=\"Producto \",$N$10&\"-\"&T66,B65=\"Actividad Propia\",$N$10&\"-\"&T65&\"-\"&V65,B65=\"Actividad sin participación\",$N$10&\"-\"&T65&\"-\"&V65,B65=\"\",\"\")","v":""},null,null,null,null,null,null,null,null,null,null,null,null,null,null,null,null,{"$f":"COUNTIFS($B$24:B65,\"Producto \")","v":0},false,41]
[null,null,{"$f":"_xlfn.IFS(B66=\"Producto \",$N$10&\"-\"&T67,B66=\"Actividad Propia\",$N$10&\"-\"&T66&\"-\"&V66,B66=\"Actividad sin participación\",$N$10&\"-\"&T66&\"-\"&V66,B66=\"\",\"\")","v":""},null,null,null,null,null,null,null,null,null,null,null,null,null,null,null,null,{"$f":"COUNTIFS($B$24:B66,\"Producto \")","v":0},false,42]
[null,null,{"$f":"_xlfn.IFS(B67=\"Producto \",$N$10&\"-\"&T68,B67=\"Actividad Propia\",$N$10&\"-\"&T67&\"-\"&V67,B67=\"Actividad sin participación\",$N$10&\"-\"&T67&\"-\"&V67,B67=\"\",\"\")","v":""},null,null,null,null,null,null,null,null,null,null,null,null,null,null,null,null,{"$f":"COUNTIFS($B$24:B67,\"Producto \")","v":0},false,43]
[null,null,{"$f":"_xlfn.IFS(B68=\"Producto \",$N$10&\"-\"&T69,B68=\"Actividad Propia\",$N$10&\"-\"&T68&\"-\"&V68,B68=\"Actividad sin participación\",$N$10&\"-\"&T68&\"-\"&V68,B68=\"\",\"\")","v":""},null,null,null,null,null,null,null,null,null,null,null,null,null,null,null,null,{"$f":"COUNTIFS($B$24:B68,\"Producto \")","v":0},false,44]
[null,null,{"$f":"_xlfn.IFS(B69=\"Producto \",$N$10&\"-\"&T70,B69=\"Actividad Propia\",$N$10&\"-\"&T69&\"-\"&V69,B69=\"Actividad sin participación\",$N$10&\"-\"&T69&\"-\"&V69,B69=\"\",\"\")","v":""},null,null,null,null,null,null,null,null,null,null,null,null,null,null,null,null,{"$f":"COUNTIFS($B$24:B69,\"Producto \")","v":0},false,45]
[null,null,{"$f":"_xlfn.IFS(B70=\"Producto \",$N$10&\"-\"&T71,B70=\"Actividad Propia\",$N$10&\"-\"&T70&\"-\"&V70,B70=\"Actividad sin participación\",$N$10&\"-\"&T70&\"-\"&V70,B70=\"\",\"\")","v":""},null,null,null,null,null,null,null,null,null,null,null,null,null,null,null,null,{"$f":"COUNTIFS($B$24:B70,\"Producto \")","v":0},false,46]
[null,null,{"$f":"_xlfn.IFS(B71=\"Producto \",$N$10&\"-\"&T72,B71=\"Actividad Propia\",$N$10&\"-\"&T71&\"-\"&V71,B71=\"Actividad sin participación\",$N$10&\"-\"&T71&\"-\"&V71,B71=\"\",\"\")","v":""},null,null,null,null,null,null,null,null,null,null,null,null,null,null,null,null,{"$f":"COUNTIFS($B$24:B71,\"Producto \")","v":0},false,47]
[null,null,{"$f":"_xlfn.IFS(B72=\"Producto \",$N$10&\"-\"&T73,B72=\"Actividad Propia\",$N$10&\"-\"&T72&\"-\"&V72,B72=\"Actividad sin participación\",$N$10&\"-\"&T72&\"-\"&V72,B72=\"\",\"\")","v":""},null,null,null,null,null,null,null,null,null,null,null,null,null,null,null,null,{"$f":"COUNTIFS($B$24:B72,\"Producto \")","v":0},false,48]
[null,null,{"$f":"_xlfn.IFS(B73=\"Producto \",$N$10&\"-\"&T74,B73=\"Actividad Propia\",$N$10&\"-\"&T73&\"-\"&V73,B73=\"Actividad sin participación\",$N$10&\"-\"&T73&\"-\"&V73,B73=\"\",\"\")","v":""},null,null,null,null,null,null,null,null,null,null,null,null,null,null,null,null,{"$f":"COUNTIFS($B$24:B73,\"Producto \")","v":0},false,49]
[null,null,{"$f":"_xlfn.IFS(B74=\"Producto \",$N$10&\"-\"&T75,B74=\"Actividad Propia\",$N$10&\"-\"&T74&\"-\"&V74,B74=\"Actividad sin participación\",$N$10&\"-\"&T74&\"-\"&V74,B74=\"\",\"\")","v":""},null,null,null,null,null,null,null,null,null,null,null,null,null,null,null,null,{"$f":"COUNTIFS($B$24:B74,\"Producto \")","v":0},false,50]
[null,null,{"$f":"_xlfn.IFS(B75=\"Producto \",$N$10&\"-\"&T76,B75=\"Actividad Propia\",$N$10&\"-\"&T75&\"-\"&V75,B75=\"Actividad sin participación\",$N$10&\"-\"&T75&\"-\"&V75,B75=\"\",\"\")","v":""},null,null,null,null,null,null,null,null,null,null,null,null,null,null,null,null,{"$f":"COUNTIFS($B$24:B75,\"Producto \")","v":0},false,51]
[null,null,{"$f":"_xlfn.IFS(B76=\"Producto \",$N$10&\"-\"&T77,B76=\"Actividad Propia\",$N$10&\"-\"&T76&\"-\"&V76,B76=\"Actividad sin participación\",$N$10&\"-\"&T76&\"-\"&V76,B76=\"\",\"\")","v":""},null,null,null,null,null,null,null,null,null,null,null,null,null,null,null,null,{"$f":"COUNTIFS($B$24:B76,\"Producto \")","v":0},false,52]
[null,null,{"$f":"_xlfn.IFS(B77=\"Producto \",$N$10&\"-\"&T78,B77=\"Actividad Propia\",$N$10&\"-\"&T77&\"-\"&V77,B77=\"Actividad sin participación\",$N$10&\"-\"&T77&\"-\"&V77,B77=\"\",\"\")","v":""},null,null,null,null,null,null,null,null,null,null,null,null,null,null,null,null,{"$f":"COUNTIFS($B$24:B77,\"Producto \")","v":0},false,53]
[null,null,{"$f":"_xlfn.IFS(B78=\"Producto \",$N$10&\"-\"&T79,B78=\"Actividad Propia\",$N$10&\"-\"&T78&\"-\"&V78,B78=\"Actividad sin participación\",$N$10&\"-\"&T78&\"-\"&V78,B78=\"\",\"\")","v":""},null,null,null,null,null,null,null,null,null,null,null,null,null,null,null,null,{"$f":"COUNTIFS($B$24:B78,\"Producto \")","v":0},false,54]
[null,null,{"$f":"_xlfn.IFS(B79=\"Producto \",$N$10&\"-\"&T80,B79=\"Actividad Propia\",$N$10&\"-\"&T79&\"-\"&V79,B79=\"Actividad sin participación\",$N$10&\"-\"&T79&\"-\"&V79,B79=\"\",\"\")","v":""},null,null,null,null,null,null,null,null,null,null,null,null,null,null,null,null,{"$f":"COUNTIFS($B$24:B79,\"Producto \")","v":0},false,55]
[null,null,{"$f":"_xlfn.IFS(B80=\"Producto \",$N$10&\"-\"&T81,B80=\"Actividad Propia\",$N$10&\"-\"&T80&\"-\"&V80,B80=\"Actividad sin participación\",$N$10&\"-\"&T80&\"-\"&V80,B80=\"\",\"\")","v":""},null,null,null,null,null,null,null,null,null,null,null,null,null,null,null,null,{"$f":"COUNTIFS($B$24:B80,\"Producto \")","v":0},false,56]
[null,null,{"$f":"_xlfn.IFS(B81=\"Producto \",$N$10&\"-\"&T82,B81=\"Actividad Propia\",$N$10&\"-\"&T81&\"-\"&V81,B81=\"Actividad sin participación\",$N$10&\"-\"&T81&\"-\"&V81,B81=\"\",\"\")","v":""},null,null,null,null,null,null,null,null,null,null,null,null,null,null,null,null,{"$f":"COUNTIFS($B$24:B81,\"Producto \")","v":0},false,57]
[null,null,{"$f":"_xlfn.IFS(B82=\"Producto \",$N$10&\"-\"&T83,B82=\"Actividad Propia\",$N$10&\"-\"&T82&\"-\"&V82,B82=\"Actividad sin participación\",$N$10&\"-\"&T82&\"-\"&V82,B82=\"\",\"\")","v":""},null,null,null,null,null,null,null,null,null,null,null,null,null,null,null,null,{"$f":"COUNTIFS($B$24:B82,\"Producto \")","v":0},false,58]
[null,null,{"$f":"_xlfn.IFS(B83=\"Producto \",$N$10&\"-\"&T84,B83=\"Actividad Propia\",$N$10&\"-\"&T83&\"-\"&V83,B83=\"Actividad sin participación\",$N$10&\"-\"&T83&\"-\"&V83,B83=\"\",\"\")","v":""},null,null,null,null,null,null,null,null,null,null,null,null,null,null,null,null,{"$f":"COUNTIFS($B$24:B83,\"Producto \")","v":0},false,59]
[null,null,{"$f":"_xlfn.IFS(B84=\"Producto \",$N$10&\"-\"&T85,B84=\"Actividad Propia\",$N$10&\"-\"&T84&\"-\"&V84,B84=\"Actividad sin participación\",$N$10&\"-\"&T84&\"-\"&V84,B84=\"\",\"\")","v":""},null,null,null,null,null,null,null,null,null,null,null,null,null,null,null,null,{"$f":"COUNTIFS($B$24:B84,\"Producto \")","v":0},false,60]
[null,null,{"$f":"_xlfn.IFS(B85=\"Producto \",$N$10&\"-\"&T86,B85=\"Actividad Propia\",$N$10&\"-\"&T85&\"-\"&V85,B85=\"Actividad sin participación\",$N$10&\"-\"&T85&\"-\"&V85,B85=\"\",\"\")","v":""},null,null,null,null,null,null,null,null,null,null,null,null,null,null,null,null,{"$f":"COUNTIFS($B$24:B85,\"Producto \")","v":0},false,61]
[null,null,{"$f":"_xlfn.IFS(B86=\"Producto \",$N$10&\"-\"&T87,B86=\"Actividad Propia\",$N$10&\"-\"&T86&\"-\"&V86,B86=\"Actividad sin participación\",$N$10&\"-\"&T86&\"-\"&V86,B86=\"\",\"\")","v":""},null,null,null,null,null,null,null,null,null,null,null,null,null,null,null,null,{"$f":"COUNTIFS($B$24:B86,\"Producto \")","v":0},false,62]
[null,null,{"$f":"_xlfn.IFS(B87=\"Producto \",$N$10&\"-\"&T88,B87=\"Actividad Propia\",$N$10&\"-\"&T87&\"-\"&V87,B87=\"Actividad sin participación\",$N$10&\"-\"&T87&\"-\"&V87,B87=\"\",\"\")","v":""},null,null,null,null,null,null,null,null,null,null,null,null,null,null,null,null,{"$f":"COUNTIFS($B$24:B87,\"Producto \")","v":0},false,63]
[null,null,{"$f":"_xlfn.IFS(B88=\"Producto \",$N$10&\"-\"&T89,B88=\"Actividad Propia\",$N$10&\"-\"&T88&\"-\"&V88,B88=\"Actividad sin participación\",$N$10&\"-\"&T88&\"-\"&V88,B88=\"\",\"\")","v":""},null,null,null,null,null,null,null,null,null,null,null,null,null,null,null,null,{"$f":"COUNTIFS($B$24:B88,\"Producto \")","v":0},false,64]
[null,null,{"$f":"_xlfn.IFS(B89=\"Producto \",$N$10&\"-\"&T90,B89=\"Actividad Propia\",$N$10&\"-\"&T89&\"-\"&V89,B89=\"Actividad sin participación\",$N$10&\"-\"&T89&\"-\"&V89,B89=\"\",\"\")","v":""},null,null,null,null,null,null,null,null,null,null,null,null,null,null,null,null,{"$f":"COUNTIFS($B$24:B89,\"Producto \")","v":0},{"$f":"IF(B88=\"Producto \",C88&\"-\"&V89)","v":false},{"$f":"IF(B88=\"Producto \",1,V88+1)","v":65}]
[null,null,{"$f":"_xlfn.IFS(B90=\"Producto \",$N$10&\"-\"&T91,B90=\"Actividad Propia\",$N$10&\"-\"&T90&\"-\"&V90,B90=\"Actividad sin participación\",$N$10&\"-\"&T90&\"-\"&V90,B90=\"\",\"\")","v":""},null,null,null,null,null,null,null,null,null,null,null,null,null,null,null,null,{"$f":"COUNTIFS($B$24:B90,\"Producto \")","v":0},false,66]
[null,null,{"$f":"_xlfn.IFS(B91=\"Producto \",$N$10&\"-\"&T92,B91=\"Actividad Propia\",$N$10&\"-\"&T91&\"-\"&V91,B91=\"Actividad sin participación\",$N$10&\"-\"&T91&\"-\"&V91,B91=\"\",\"\")","v":""},null,null,null,null,null,null,null,null,null,null,null,null,null,null,null,null,{"$f":"COUNTIFS($B$24:B91,\"Producto \")","v":0},false,67]
[null,null,{"$f":"_xlfn.IFS(B92=\"Producto \",$N$10&\"-\"&T93,B92=\"Actividad Propia\",$N$10&\"-\"&T92&\"-\"&V92,B92=\"Actividad sin participación\",$N$10&\"-\"&T92&\"-\"&V92,B92=\"\",\"\")","v":""},null,null,null,null,null,null,null,null,null,null,null,null,null,null,null,null,{"$f":"COUNTIFS($B$24:B92,\"Producto \")","v":0},false,68]
[null,null,{"$f":"_xlfn.IFS(B93=\"Producto \",$N$10&\"-\"&T94,B93=\"Actividad Propia\",$N$10&\"-\"&T93&\"-\"&V93,B93=\"Actividad sin participación\",$N$10&\"-\"&T93&\"-\"&V93,B93=\"\",\"\")","v":""},null,null,null,null,null,null,null,null,null,null,null,null,null,null,null,null,{"$f":"COUNTIFS($B$24:B93,\"Producto \")","v":0},false,69]
[null,null,{"$f":"_xlfn.IFS(B94=\"Producto \",$N$10&\"-\"&T95,B94=\"Actividad Propia\",$N$10&\"-\"&T94&\"-\"&V94,B94=\"Actividad sin participación\",$N$10&\"-\"&T94&\"-\"&V94,B94=\"\",\"\")","v":""},null,null,null,null,null,null,null,null,null,null,null,null,null,null,null,null,{"$f":"COUNTIFS($B$24:B94,\"Producto \")","v":0},false,70]
[null,null,{"$f":"_xlfn.IFS(B95=\"Producto \",$N$10&\"-\"&T96,B95=\"Actividad Propia\",$N$10&\"-\"&T95&\"-\"&V95,B95=\"Actividad sin participación\",$N$10&\"-\"&T95&\"-\"&V95,B95=\"\",\"\")","v":""},null,null,null,null,null,null,null,null,null,null,null,null,null,null,null,null,{"$f":"COUNTIFS($B$24:B95,\"Producto \")","v":0},false,71]
[null,null,{"$f":"_xlfn.IFS(B96=\"Producto \",$N$10&\"-\"&T97,B96=\"Actividad Propia\",$N$10&\"-\"&T96&\"-\"&V96,B96=\"Actividad sin participación\",$N$10&\"-\"&T96&\"-\"&V96,B96=\"\",\"\")","v":""},null,null,null,null,null,null,null,null,null,null,null,null,null,null,null,null,{"$f":"COUNTIFS($B$24:B96,\"Producto \")","v":0},false,72]
[null,null,{"$f":"_xlfn.IFS(B97=\"Producto \",$N$10&\"-\"&T98,B97=\"Actividad Propia\",$N$10&\"-\"&T97&\"-\"&V97,B97=\"Actividad sin participación\",$N$10&\"-\"&T97&\"-\"&V97,B97=\"\",\"\")","v":""},null,null,null,null,null,null,null,null,null,null,null,null,null,null,null,null,{"$f":"COUNTIFS($B$24:B97,\"Producto \")","v":0},false,73]
[null,null,{"$f":"_xlfn.IFS(B98=\"Producto \",$N$10&\"-\"&T99,B98=\"Actividad Propia\",$N$10&\"-\"&T98&\"-\"&V98,B98=\"Actividad sin participación\",$N$10&\"-\"&T98&\"-\"&V98,B98=\"\",\"\")","v":""},null,null,null,null,null,null,null,null,null,null,null,null,null,null,null,null,{"$f":"COUNTIFS($B$24:B98,\"Producto \")","v":0},false,74]
[null,null,{"$f":"_xlfn.IFS(B99=\"Producto \",$N$10&\"-\"&T100,B99=\"Actividad Propia\",$N$10&\"-\"&T99&\"-\"&V99,B99=\"Actividad sin participación\",$N$10&\"-\"&T99&\"-\"&V99,B99=\"\",\"\")","v":""},null,null,null,null,null,null,null,null,null,null,null,null,null,null,null,null,{"$f":"COUNTIFS($B$24:B99,\"Producto \")","v":0},false,75]
[null,null,{"$f":"_xlfn.IFS(B100=\"Producto \",$N$10&\"-\"&T101,B100=\"Actividad Propia\",$N$10&\"-\"&T100&\"-\"&V100,B100=\"Actividad sin participación\",$N$10&\"-\"&T100&\"-\"&V100,B100=\"\",\"\")","v":""},null,null,null,null,null,null,null,null,null,null,null,null,null,null,null,null,{"$f":"COUNTIFS($B$24:B100,\"Producto \")","v":0},false,76]
[null,null,{"$f":"_xlfn.IFS(B101=\"Producto \",$N$10&\"-\"&T102,B101=\"Actividad Propia\",$N$10&\"-\"&T101&\"-\"&V101,B101=\"Actividad sin participación\",$N$10&\"-\"&T101&\"-\"&V101,B101=\"\",\"\")","v":""},null,null,null,null,null,null,null,null,null,null,null,null,null,null,null,null,{"$f":"COUNTIFS($B$24:B101,\"Producto \")","v":0},false,77]
[null,null,{"$f":"_xlfn.IFS(B102=\"Producto \",$N$10&\"-\"&T103,B102=\"Actividad Propia\",$N$10&\"-\"&T102&\"-\"&V102,B102=\"Actividad sin participación\",$N$10&\"-\"&T102&\"-\"&V102,B102=\"\",\"\")","v":""},null,null,null,null,null,null,null,null,null,null,null,null,null,null,null,null,{"$f":"COUNTIFS($B$24:B102,\"Producto \")","v":0},false,78]
[null,null,{"$f":"_xlfn.IFS(B103=\"Producto \",$N$10&\"-\"&T104,B103=\"Actividad Propia\",$N$10&\"-\"&T103&\"-\"&V103,B103=\"Actividad sin participación\",$N$10&\"-\"&T103&\"-\"&V103,B103=\"\",\"\")","v":""},null,null,null,null,null,null,null,null,null,null,null,null,null,null,null,null,{"$f":"COUNTIFS($B$24:B103,\"Producto \")","v":0},false,79]
[null,null,{"$f":"_xlfn.IFS(B104=\"Producto \",$N$10&\"-\"&T105,B104=\"Actividad Propia\",$N$10&\"-\"&T104&\"-\"&V104,B104=\"Actividad sin participación\",$N$10&\"-\"&T104&\"-\"&V104,B104=\"\",\"\")","v":""},null,null,null,null,null,null,null,null,null,null,null,null,null,null,null,null,{"$f":"COUNTIFS($B$24:B104,\"Producto \")","v":0},false,80]
[null,null,{"$f":"_xlfn.IFS(B105=\"Producto \",$N$10&\"-\"&T106,B105=\"Actividad Propia\",$N$10&\"-\"&T105&\"-\"&V105,B105=\"Actividad sin participación\",$N$10&\"-\"&T105&\"-\"&V105,B105=\"\",\"\")","v":""},null,null,null,null,null,null,null,null,null,null,null,null,null,null,null,null,{"$f":"COUNTIFS($B$24:B105,\"Producto \")","v":0},false,81]
[null,null,{"$f":"_xlfn.IFS(B106=\"Producto \",$N$10&\"-\"&T107,B106=\"Actividad Propia\",$N$10&\"-\"&T106&\"-\"&V106,B106=\"Actividad sin participación\",$N$10&\"-\"&T106&\"-\"&V106,B106=\"\",\"\")","v":""},null,null,null,null,null,null,null,null,null,null,null,null,null,null,null,null,{"$f":"COUNTIFS($B$24:B106,\"Producto \")","v":0},false,82]
[null,null,{"$f":"_xlfn.IFS(B107=\"Producto \",$N$10&\"-\"&T108,B107=\"Actividad Propia\",$N$10&\"-\"&T107&\"-\"&V107,B107=\"Actividad sin participación\",$N$10&\"-\"&T107&\"-\"&V107,B107=\"\",\"\")","v":""},null,null,null,null,null,null,null,null,null,null,null,null,null,null,null,null,{"$f":"COUNTIFS($B$24:B107,\"Producto \")","v":0},false,83]
[null,null,{"$f":"_xlfn.IFS(B108=\"Producto \",$N$10&\"-\"&T109,B108=\"Actividad Propia\",$N$10&\"-\"&T108&\"-\"&V108,B108=\"Actividad sin participación\",$N$10&\"-\"&T108&\"-\"&V108,B108=\"\",\"\")","v":""},null,null,null,null,null,null,null,null,null,null,null,null,null,null,null,null,{"$f":"COUNTIFS($B$24:B108,\"Producto \")","v":0},false,84]
[null,null,{"$f":"_xlfn.IFS(B109=\"Producto \",$N$10&\"-\"&T110,B109=\"Actividad Propia\",$N$10&\"-\"&T109&\"-\"&V109,B109=\"Actividad sin participación\",$N$10&\"-\"&T109&\"-\"&V109,B109=\"\",\"\")","v":""},null,null,null,null,null,null,null,null,null,null,null,null,null,null,null,null,{"$f":"COUNTIFS($B$24:B109,\"Producto \")","v":0},false,85]
[null,null,{"$f":"_xlfn.IFS(B110=\"Producto \",$N$10&\"-\"&T111,B110=\"Actividad Propia\",$N$10&\"-\"&T110&\"-\"&V110,B110=\"Actividad sin participación\",$N$10&\"-\"&T110&\"-\"&V110,B110=\"\",\"\")","v":""},null,null,null,null,null,null,null,null,null,null,null,null,null,null,null,null,{"$f":"COUNTIFS($B$24:B110,\"Producto \")","v":0},false,86]
[null,null,{"$f":"_xlfn.IFS(B111=\"Producto \",$N$10&\"-\"&T112,B111=\"Actividad Propia\",$N$10&\"-\"&T111&\"-\"&V111,B111=\"Actividad sin participación\",$N$10&\"-\"&T111&\"-\"&V111,B111=\"\",\"\")","v":""},null,null,null,null,null,null,null,null,null,null,null,null,null,null,null,null,{"$f":"COUNTIFS($B$24:B111,\"Producto \")","v":0},false,87]
[null,null,{"$f":"_xlfn.IFS(B112=\"Producto \",$N$10&\"-\"&T113,B112=\"Actividad Propia\",$N$10&\"-\"&T112&\"-\"&V112,B112=\"Actividad sin participación\",$N$10&\"-\"&T112&\"-\"&V112,B112=\"\",\"\")","v":""},null,null,null,null,null,null,null,null,null,null,null,null,null,null,null,null,{"$f":"COUNTIFS($B$24:B112,\"Producto \")","v":0},false,88]
[null,null,{"$f":"_xlfn.IFS(B113=\"Producto \",$N$10&\"-\"&T114,B113=\"Actividad Propia\",$N$10&\"-\"&T113&\"-\"&V113,B113=\"Actividad sin participación\",$N$10&\"-\"&T113&\"-\"&V113,B113=\"\",\"\")","v":""},null,null,null,null,null,null,null,null,null,null,null,null,null,null,null,null,{"$f":"COUNTIFS($B$24:B113,\"Producto \")","v":0},false,89]
[null,null,{"$f":"_xlfn.IFS(B114=\"Producto \",$N$10&\"-\"&T115,B114=\"Actividad Propia\",$N$10&\"-\"&T114&\"-\"&V114,B114=\"Actividad sin participación\",$N$10&\"-\"&T114&\"-\"&V114,B114=\"\",\"\")","v":""},null,null,null,null,null,null,null,null,null,null,null,null,null,null,null,null,{"$f":"COUNTIFS($B$24:B114,\"Producto \")","v":0},false,90]
[null,null,{"$f":"_xlfn.IFS(B115=\"Producto \",$N$10&\"-\"&T116,B115=\"Actividad Propia\",$N$10&\"-\"&T115&\"-\"&V115,B115=\"Actividad sin participación\",$N$10&\"-\"&T115&\"-\"&V115,B115=\"\",\"\")","v":""},null,null,null,null,null,null,null,null,null,null,null,null,null,null,null,null,{"$f":"COUNTIFS($B$24:B115,\"Producto \")","v":0},false,91]
[null,null,{"$f":"_xlfn.IFS(B116=\"Producto \",$N$10&\"-\"&T117,B116=\"Actividad Propia\",$N$10&\"-\"&T116&\"-\"&V116,B116=\"Actividad sin participación\",$N$10&\"-\"&T116&\"-\"&V116,B116=\"\",\"\")","v":""},null,null,null,null,null,null,null,null,null,null,null,null,null,null,null,null,{"$f":"COUNTIFS($B$24:B116,\"Producto \")","v":0},false,92]
[null,null,{"$f":"_xlfn.IFS(B117=\"Producto \",$N$10&\"-\"&T118,B117=\"Actividad Propia\",$N$10&\"-\"&T117&\"-\"&V117,B117=\"Actividad sin participación\",$N$10&\"-\"&T117&\"-\"&V117,B117=\"\",\"\")","v":""},null,null,null,null,null,null,null,null,null,null,null,null,null,null,null,null,{"$f":"COUNTIFS($B$24:B117,\"Producto \")","v":0},false,93]
[null,null,{"$f":"_xlfn.IFS(B118=\"Producto \",$N$10&\"-\"&T119,B118=\"Actividad Propia\",$N$10&\"-\"&T118&\"-\"&V118,B118=\"Actividad sin participación\",$N$10&\"-\"&T118&\"-\"&V118,B118=\"\",\"\")","v":""},null,null,null,null,null,null,null,null,null,null,null,null,null,null,null,null,{"$f":"COUNTIFS($B$24:B118,\"Producto \")","v":0},false,94]
[null,null,{"$f":"_xlfn.IFS(B119=\"Producto \",$N$10&\"-\"&T120,B119=\"Actividad Propia\",$N$10&\"-\"&T119&\"-\"&V119,B119=\"Actividad sin participación\",$N$10&\"-\"&T119&\"-\"&V119,B119=\"\",\"\")","v":""},null,null,null,null,null,null,null,null,null,null,null,null,null,null,null,null,{"$f":"COUNTIFS($B$24:B119,\"Producto \")","v":0},false,95]
[null,null,{"$f":"_xlfn.IFS(B120=\"Producto \",$N$10&\"-\"&T121,B120=\"Actividad Propia\",$N$10&\"-\"&T120&\"-\"&V120,B120=\"Actividad sin participación\",$N$10&\"-\"&T120&\"-\"&V120,B120=\"\",\"\")","v":""},null,null,null,null,null,null,null,null,null,null,null,null,null,null,null,null,{"$f":"COUNTIFS($B$24:B120,\"Producto \")","v":0},false,96]
[null,null,{"$f":"_xlfn.IFS(B121=\"Producto \",$N$10&\"-\"&T122,B121=\"Actividad Propia\",$N$10&\"-\"&T121&\"-\"&V121,B121=\"Actividad sin participación\",$N$10&\"-\"&T121&\"-\"&V121,B121=\"\",\"\")","v":""},null,null,null,null,null,null,null,null,null,null,null,null,null,null,null,null,{"$f":"COUNTIFS($B$24:B121,\"Producto \")","v":0},false,97]
[null,null,{"$f":"_xlfn.IFS(B122=\"Producto \",$N$10&\"-\"&T123,B122=\"Actividad Propia\",$N$10&\"-\"&T122&\"-\"&V122,B122=\"Actividad sin participación\",$N$10&\"-\"&T122&\"-\"&V122,B122=\"\",\"\")","v":""},null,null,null,null,null,null,null,null,null,null,null,null,null,null,null,null,{"$f":"COUNTIFS($B$24:B122,\"Producto \")","v":0},false,98]
[null,null,{"$f":"_xlfn.IFS(B123=\"Producto \",$N$10&\"-\"&T124,B123=\"Actividad Propia\",$N$10&\"-\"&T123&\"-\"&V123,B123=\"Actividad sin participación\",$N$10&\"-\"&T123&\"-\"&V123,B123=\"\",\"\")","v":""},null,null,null,null,null,null,null,null,null,null,null,null,null,null,null,null,{"$f":"COUNTIFS($B$24:B123,\"Producto \")","v":0},false,99]
[null,null,{"$f":"_xlfn.IFS(B124=\"Producto \",$N$10&\"-\"&T125,B124=\"Actividad Propia\",$N$10&\"-\"&T124&\"-\"&V124,B124=\"Actividad sin participación\",$N$10&\"-\"&T124&\"-\"&V124,B124=\"\",\"\")","v":""},null,null,null,null,null,null,null,null,null,null,null,null,null,null,null,null,{"$f":"COUNTIFS($B$24:B124,\"Producto \")","v":0},false,100]
[null,null,{"$f":"_xlfn.IFS(B125=\"Producto \",$N$10&\"-\"&T126,B125=\"Actividad Propia\",$N$10&\"-\"&T125&\"-\"&V125,B125=\"Actividad sin participación\",$N$10&\"-\"&T125&\"-\"&V125,B125=\"\",\"\")","v":""},null,null,null,null,null,null,null,null,null,null,null,null,null,null,null,null,{"$f":"COUNTIFS($B$24:B125,\"Producto \")","v":0},false,101]
[null,null,{"$f":"_xlfn.IFS(B126=\"Producto \",$N$10&\"-\"&T127,B126=\"Actividad Propia\",$N$10&\"-\"&T126&\"-\"&V126,B126=\"Actividad sin participación\",$N$10&\"-\"&T126&\"-\"&V126,B126=\"\",\"\")","v":""},null,null,null,null,null,null,null,null,null,null,null,null,null,null,null,null,{"$f":"COUNTIFS($B$24:B126,\"Producto \")","v":0},false,102]
[null,null,{"$f":"_xlfn.IFS(B127=\"Producto \",$N$10&\"-\"&T128,B127=\"Actividad Propia\",$N$10&\"-\"&T127&\"-\"&V127,B127=\"Actividad sin participación\",$N$10&\"-\"&T127&\"-\"&V127,B127=\"\",\"\")","v":""},null,null,null,null,null,null,null,null,null,null,null,null,null,null,null,null,{"$f":"COUNTIFS($B$24:B127,\"Producto \")","v":0},false,103]
[null,null,{"$f":"_xlfn.IFS(B128=\"Producto \",$N$10&\"-\"&T129,B128=\"Actividad Propia\",$N$10&\"-\"&T128&\"-\"&V128,B128=\"Actividad sin participación\",$N$10&\"-\"&T128&\"-\"&V128,B128=\"\",\"\")","v":""},null,null,null,null,null,null,null,null,null,null,null,null,null,null,null,null,{"$f":"COUNTIFS($B$24:B128,\"Producto \")","v":0},false,104]
[null,null,{"$f":"_xlfn.IFS(B129=\"Producto \",$N$10&\"-\"&T130,B129=\"Actividad Propia\",$N$10&\"-\"&T129&\"-\"&V129,B129=\"Actividad sin participación\",$N$10&\"-\"&T129&\"-\"&V129,B129=\"\",\"\")","v":""},null,null,null,null,null,null,null,null,null,null,null,null,null,null,null,null,{"$f":"COUNTIFS($B$24:B129,\"Producto \")","v":0},false,105]
[null,null,{"$f":"_xlfn.IFS(B130=\"Producto \",$N$10&\"-\"&T131,B130=\"Actividad Propia\",$N$10&\"-\"&T130&\"-\"&V130,B130=\"Actividad sin participación\",$N$10&\"-\"&T130&\"-\"&V130,B130=\"\",\"\")","v":""},null,null,null,null,null,null,null,null,null,null,null,null,null,null,null,null,{"$f":"COUNTIFS($B$24:B130,\"Producto \")","v":0},false,106]
[null,null,{"$f":"_xlfn.IFS(B131=\"Producto \",$N$10&\"-\"&T132,B131=\"Actividad Propia\",$N$10&\"-\"&T131&\"-\"&V131,B131=\"Actividad sin participación\",$N$10&\"-\"&T131&\"-\"&V131,B131=\"\",\"\")","v":""},null,null,null,null,null,null,null,null,null,null,null,null,null,null,null,null,{"$f":"COUNTIFS($B$24:B131,\"Producto \")","v":0},false,107]
[null,null,{"$f":"_xlfn.IFS(B132=\"Producto \",$N$10&\"-\"&T133,B132=\"Actividad Propia\",$N$10&\"-\"&T132&\"-\"&V132,B132=\"Actividad sin participación\",$N$10&\"-\"&T132&\"-\"&V132,B132=\"\",\"\")","v":""},null,null,null,null,null,null,null,null,null,null,null,null,null,null,null,null,{"$f":"COUNTIFS($B$24:B132,\"Producto \")","v":0},false,108]
[null,null,{"$f":"_xlfn.IFS(B133=\"Producto \",$N$10&\"-\"&T134,B133=\"Actividad Propia\",$N$10&\"-\"&T133&\"-\"&V133,B133=\"Actividad sin participación\",$N$10&\"-\"&T133&\"-\"&V133,B133=\"\",\"\")","v":""},null,null,null,null,null,null,null,null,null,null,null,null,null,null,null,null,{"$f":"COUNTIFS($B$24:B133,\"Producto \")","v":0},false,109]
[null,null,{"$f":"_xlfn.IFS(B134=\"Producto \",$N$10&\"-\"&T135,B134=\"Actividad Propia\",$N$10&\"-\"&T134&\"-\"&V134,B134=\"Actividad sin participación\",$N$10&\"-\"&T134&\"-\"&V134,B134=\"\",\"\")","v":""},null,null,null,null,null,null,null,null,null,null,null,null,null,null,null,null,{"$f":"COUNTIFS($B$24:B134,\"Producto \")","v":0},false,110]
[null,null,{"$f":"_xlfn.IFS(B135=\"Producto \",$N$10&\"-\"&T136,B135=\"Actividad Propia\",$N$10&\"-\"&T135&\"-\"&V135,B135=\"Actividad sin participación\",$N$10&\"-\"&T135&\"-\"&V135,B135=\"\",\"\")","v":""},null,null,null,null,null,null,null,null,null,null,null,null,null,null,null,null,{"$f":"COUNTIFS($B$24:B135,\"Producto \")","v":0},false,111]
[null,null,{"$f":"_xlfn.IFS(B136=\"Producto \",$N$10&\"-\"&T137,B136=\"Actividad Propia\",$N$10&\"-\"&T136&\"-\"&V136,B136=\"Actividad sin participación\",$N$10&\"-\"&T136&\"-\"&V136,B136=\"\",\"\")","v":""},null,null,null,null,null,null,null,null,null,null,null,null,null,null,null,null,{"$f":"COUNTIFS($B$24:B136,\"Producto \")","v":0},false,112]
[null,null,{"$f":"_xlfn.IFS(B137=\"Producto \",$N$10&\"-\"&T138,B137=\"Actividad Propia\",$N$10&\"-\"&T137&\"-\"&V137,B137=\"Actividad sin participación\",$N$10&\"-\"&T137&\"-\"&V137,B137=\"\",\"\")","v":""},null,null,null,null,null,null,null,null,null,null,null,null,null,null,null,null,{"$f":"COUNTIFS($B$24:B137,\"Producto \")","v":0},false,113]
[null,null,{"$f":"_xlfn.IFS(B138=\"Producto \",$N$10&\"-\"&T139,B138=\"Actividad Propia\",$N$10&\"-\"&T138&\"-\"&V138,B138=\"Actividad sin participación\",$N$10&\"-\"&T138&\"-\"&V138,B138=\"\",\"\")","v":""},null,null,null,null,null,null,null,null,null,null,null,null,null,null,null,null,{"$f":"COUNTIFS($B$24:B138,\"Producto \")","v":0},false,114]
[null,null,{"$f":"_xlfn.IFS(B139=\"Producto \",$N$10&\"-\"&T140,B139=\"Actividad Propia\",$N$10&\"-\"&T139&\"-\"&V139,B139=\"Actividad sin participación\",$N$10&\"-\"&T139&\"-\"&V139,B139=\"\",\"\")","v":""},null,null,null,null,null,null,null,null,null,null,null,null,null,null,null,null,{"$f":"COUNTIFS($B$24:B139,\"Producto \")","v":0},false,115]
[null,null,{"$f":"_xlfn.IFS(B140=\"Producto \",$N$10&\"-\"&T141,B140=\"Actividad Propia\",$N$10&\"-\"&T140&\"-\"&V140,B140=\"Actividad sin participación\",$N$10&\"-\"&T140&\"-\"&V140,B140=\"\",\"\")","v":""},null,null,null,null,null,null,null,null,null,null,null,null,null,null,null,null,{"$f":"COUNTIFS($B$24:B140,\"Producto \")","v":0},false,116]
[null,null,{"$f":"_xlfn.IFS(B141=\"Producto \",$N$10&\"-\"&T142,B141=\"Actividad Propia\",$N$10&\"-\"&T141&\"-\"&V141,B141=\"Actividad sin participación\",$N$10&\"-\"&T141&\"-\"&V141,B141=\"\",\"\")","v":""},null,null,null,null,null,null,null,null,null,null,null,null,null,null,null,null,{"$f":"COUNTIFS($B$24:B141,\"Producto \")","v":0},false,117]
[null,null,{"$f":"_xlfn.IFS(B142=\"Producto \",$N$10&\"-\"&T143,B142=\"Actividad Propia\",$N$10&\"-\"&T142&\"-\"&V142,B142=\"Actividad sin participación\",$N$10&\"-\"&T142&\"-\"&V142,B142=\"\",\"\")","v":""},null,null,null,null,null,null,null,null,null,null,null,null,null,null,null,null,{"$f":"COUNTIFS($B$24:B142,\"Producto \")","v":0},false,118]
[null,null,{"$f":"_xlfn.IFS(B143=\"Producto \",$N$10&\"-\"&T144,B143=\"Actividad Propia\",$N$10&\"-\"&T143&\"-\"&V143,B143=\"Actividad sin participación\",$N$10&\"-\"&T143&\"-\"&V143,B143=\"\",\"\")","v":""},null,null,null,null,null,null,null,null,null,null,null,null,null,null,null,null,{"$f":"COUNTIFS($B$24:B143,\"Producto \")","v":0},false,119]
[null,null,{"$f":"_xlfn.IFS(B144=\"Producto \",$N$10&\"-\"&T145,B144=\"Actividad Propia\",$N$10&\"-\"&T144&\"-\"&V144,B144=\"Actividad sin participación\",$N$10&\"-\"&T144&\"-\"&V144,B144=\"\",\"\")","v":""},null,null,null,null,null,null,null,null,null,null,null,null,null,null,null,null,{"$f":"COUNTIFS($B$24:B144,\"Producto \")","v":0},false,120]
[null,null,{"$f":"_xlfn.IFS(B145=\"Producto \",$N$10&\"-\"&T146,B145=\"Actividad Propia\",$N$10&\"-\"&T145&\"-\"&V145,B145=\"Actividad sin participación\",$N$10&\"-\"&T145&\"-\"&V145,B145=\"\",\"\")","v":""},null,null,null,null,null,null,null,null,null,null,null,null,null,null,null,null,{"$f":"COUNTIFS($B$24:B145,\"Producto \")","v":0},false,121]
[null,null,{"$f":"_xlfn.IFS(B146=\"Producto \",$N$10&\"-\"&T147,B146=\"Actividad Propia\",$N$10&\"-\"&T146&\"-\"&V146,B146=\"Actividad sin participación\",$N$10&\"-\"&T146&\"-\"&V146,B146=\"\",\"\")","v":""},null,null,null,null,null,null,null,null,null,null,null,null,null,null,null,null,{"$f":"COUNTIFS($B$24:B146,\"Producto \")","v":0},false,122]
[null,null,{"$f":"_xlfn.IFS(B147=\"Producto \",$N$10&\"-\"&T148,B147=\"Actividad Propia\",$N$10&\"-\"&T147&\"-\"&V147,B147=\"Actividad sin participación\",$N$10&\"-\"&T147&\"-\"&V147,B147=\"\",\"\")","v":""},null,null,null,null,null,null,null,null,null,null,null,null,null,null,null,null,{"$f":"COUNTIFS($B$24:B147,\"Producto \")","v":0},false,123]
[null,null,{"$f":"_xlfn.IFS(B148=\"Producto \",$N$10&\"-\"&T149,B148=\"Actividad Propia\",$N$10&\"-\"&T148&\"-\"&V148,B148=\"Actividad sin participación\",$N$10&\"-\"&T148&\"-\"&V148,B148=\"\",\"\")","v":""},null,null,null,null,null,null,null,null,null,null,null,null,null,null,null,null,{"$f":"COUNTIFS($B$24:B148,\"Producto \")","v":0},false,124]
[null,null,{"$f":"_xlfn.IFS(B149=\"Producto \",$N$10&\"-\"&T150,B149=\"Actividad Propia\",$N$10&\"-\"&T149&\"-\"&V149,B149=\"Actividad sin participación\",$N$10&\"-\"&T149&\"-\"&V149,B149=\"\",\"\")","v":""},null,null,null,null,null,null,null,null,null,null,null,null,null,null,null,null,{"$f":"COUNTIFS($B$24:B149,\"Producto \")","v":0},false,125]
[null,null,{"$f":"_xlfn.IFS(B150=\"Producto \",$N$10&\"-\"&T151,B150=\"Actividad Propia\",$N$10&\"-\"&T150&\"-\"&V150,B150=\"Actividad sin participación\",$N$10&\"-\"&T150&\"-\"&V150,B150=\"\",\"\")","v":""},null,null,null,null,null,null,null,null,null,null,null,null,null,null,null,null,{"$f":"COUNTIFS($B$24:B150,\"Producto \")","v":0},false,126]
[null,null,{"$f":"_xlfn.IFS(B151=\"Producto \",$N$10&\"-\"&T152,B151=\"Actividad Propia\",$N$10&\"-\"&T151&\"-\"&V151,B151=\"Actividad sin participación\",$N$10&\"-\"&T151&\"-\"&V151,B151=\"\",\"\")","v":""},null,null,null,null,null,null,null,null,null,null,null,null,null,null,null,null,{"$f":"COUNTIFS($B$24:B151,\"Producto \")","v":0},false,127]
[null,null,{"$f":"_xlfn.IFS(B152=\"Producto \",$N$10&\"-\"&T153,B152=\"Actividad Propia\",$N$10&\"-\"&T152&\"-\"&V152,B152=\"Actividad sin participación\",$N$10&\"-\"&T152&\"-\"&V152,B152=\"\",\"\")","v":""},null,null,null,null,null,null,null,null,null,null,null,null,null,null,null,null,{"$f":"COUNTIFS($B$24:B152,\"Producto \")","v":0},false,128]
[null,null,{"$f":"_xlfn.IFS(B153=\"Producto \",$N$10&\"-\"&T154,B153=\"Actividad Propia\",$N$10&\"-\"&T153&\"-\"&V153,B153=\"Actividad sin participación\",$N$10&\"-\"&T153&\"-\"&V153,B153=\"\",\"\")","v":""},null,null,null,null,null,null,null,null,null,null,null,null,null,null,null,null,{"$f":"COUNTIFS($B$24:B153,\"Producto \")","v":0},{"$f":"IF(B152=\"Producto \",C152&\"-\"&V153)","v":false},{"$f":"IF(B152=\"Producto \",1,V152+1)","v":129}]
[null,null,{"$f":"_xlfn.IFS(B154=\"Producto \",$N$10&\"-\"&T155,B154=\"Actividad Propia\",$N$10&\"-\"&T154&\"-\"&V154,B154=\"Actividad sin participación\",$N$10&\"-\"&T154&\"-\"&V154,B154=\"\",\"\")","v":""},null,null,null,null,null,null,null,null,null,null,null,null,null,null,null,null,{"$f":"COUNTIFS($B$24:B154,\"Producto \")","v":0},false,130]
[null,null,{"$f":"_xlfn.IFS(B155=\"Producto \",$N$10&\"-\"&T156,B155=\"Actividad Propia\",$N$10&\"-\"&T155&\"-\"&V155,B155=\"Actividad sin participación\",$N$10&\"-\"&T155&\"-\"&V155,B155=\"\",\"\")","v":""},null,null,null,null,null,null,null,null,null,null,null,null,null,null,null,null,{"$f":"COUNTIFS($B$24:B155,\"Producto \")","v":0},false,131]
[null,null,{"$f":"_xlfn.IFS(B156=\"Producto \",$N$10&\"-\"&T157,B156=\"Actividad Propia\",$N$10&\"-\"&T156&\"-\"&V156,B156=\"Actividad sin participación\",$N$10&\"-\"&T156&\"-\"&V156,B156=\"\",\"\")","v":""},null,null,null,null,null,null,null,null,null,null,null,null,null,null,null,null,{"$f":"COUNTIFS($B$24:B156,\"Producto \")","v":0},false,132]
[null,null,{"$f":"_xlfn.IFS(B157=\"Producto \",$N$10&\"-\"&T158,B157=\"Actividad Propia\",$N$10&\"-\"&T157&\"-\"&V157,B157=\"Actividad sin participación\",$N$10&\"-\"&T157&\"-\"&V157,B157=\"\",\"\")","v":""},null,null,null,null,null,null,null,null,null,null,null,null,null,null,null,null,{"$f":"COUNTIFS($B$24:B157,\"Producto \")","v":0},false,133]
[null,null,{"$f":"_xlfn.IFS(B158=\"Producto \",$N$10&\"-\"&T159,B158=\"Actividad Propia\",$N$10&\"-\"&T158&\"-\"&V158,B158=\"Actividad sin participación\",$N$10&\"-\"&T158&\"-\"&V158,B158=\"\",\"\")","v":""},null,null,null,null,null,null,null,null,null,null,null,null,null,null,null,null,{"$f":"COUNTIFS($B$24:B158,\"Producto \")","v":0},false,134]
[null,null,{"$f":"_xlfn.IFS(B159=\"Producto \",$N$10&\"-\"&T160,B159=\"Actividad Propia\",$N$10&\"-\"&T159&\"-\"&V159,B159=\"Actividad sin participación\",$N$10&\"-\"&T159&\"-\"&V159,B159=\"\",\"\")","v":""},null,null,null,null,null,null,null,null,null,null,null,null,null,null,null,null,{"$f":"COUNTIFS($B$24:B159,\"Producto \")","v":0},false,135]
[null,null,{"$f":"_xlfn.IFS(B160=\"Producto \",$N$10&\"-\"&T161,B160=\"Actividad Propia\",$N$10&\"-\"&T160&\"-\"&V160,B160=\"Actividad sin participación\",$N$10&\"-\"&T160&\"-\"&V160,B160=\"\",\"\")","v":""},null,null,null,null,null,null,null,null,null,null,null,null,null,null,null,null,{"$f":"COUNTIFS($B$24:B160,\"Producto \")","v":0},false,136]
[null,null,{"$f":"_xlfn.IFS(B161=\"Producto \",$N$10&\"-\"&T162,B161=\"Actividad Propia\",$N$10&\"-\"&T161&\"-\"&V161,B161=\"Actividad sin participación\",$N$10&\"-\"&T161&\"-\"&V161,B161=\"\",\"\")","v":""},null,null,null,null,null,null,null,null,null,null,null,null,null,null,null,null,{"$f":"COUNTIFS($B$24:B161,\"Producto \")","v":0},false,137]
[null,null,{"$f":"_xlfn.IFS(B162=\"Producto \",$N$10&\"-\"&T163,B162=\"Actividad Propia\",$N$10&\"-\"&T162&\"-\"&V162,B162=\"Actividad sin participación\",$N$10&\"-\"&T162&\"-\"&V162,B162=\"\",\"\")","v":""},null,null,null,null,null,null,null,null,null,null,null,null,null,null,null,null,{"$f":"COUNTIFS($B$24:B162,\"Producto \")","v":0},false,138]
[null,null,{"$f":"_xlfn.IFS(B163=\"Producto \",$N$10&\"-\"&T164,B163=\"Actividad Propia\",$N$10&\"-\"&T163&\"-\"&V163,B163=\"Actividad sin participación\",$N$10&\"-\"&T163&\"-\"&V163,B163=\"\",\"\")","v":""},null,null,null,null,null,null,null,null,null,null,null,null,null,null,null,null,{"$f":"COUNTIFS($B$24:B163,\"Producto \")","v":0},false,139]
[null,null,{"$f":"_xlfn.IFS(B164=\"Producto \",$N$10&\"-\"&T165,B164=\"Actividad Propia\",$N$10&\"-\"&T164&\"-\"&V164,B164=\"Actividad sin participación\",$N$10&\"-\"&T164&\"-\"&V164,B164=\"\",\"\")","v":""},null,null,null,null,null,null,null,null,null,null,null,null,null,null,null,null,{"$f":"COUNTIFS($B$24:B164,\"Producto \")","v":0},false,140]
[null,null,{"$f":"_xlfn.IFS(B165=\"Producto \",$N$10&\"-\"&T166,B165=\"Actividad Propia\",$N$10&\"-\"&T165&\"-\"&V165,B165=\"Actividad sin participación\",$N$10&\"-\"&T165&\"-\"&V165,B165=\"\",\"\")","v":""},null,null,null,null,null,null,null,null,null,null,null,null,null,null,null,null,{"$f":"COUNTIFS($B$24:B165,\"Producto \")","v":0},false,141]
[null,null,{"$f":"_xlfn.IFS(B166=\"Producto \",$N$10&\"-\"&T167,B166=\"Actividad Propia\",$N$10&\"-\"&T166&\"-\"&V166,B166=\"Actividad sin participación\",$N$10&\"-\"&T166&\"-\"&V166,B166=\"\",\"\")","v":""},null,null,null,null,null,null,null,null,null,null,null,null,null,null,null,null,{"$f":"COUNTIFS($B$24:B166,\"Producto \")","v":0},false,142]
[null,null,{"$f":"_xlfn.IFS(B167=\"Producto \",$N$10&\"-\"&T168,B167=\"Actividad Propia\",$N$10&\"-\"&T167&\"-\"&V167,B167=\"Actividad sin participación\",$N$10&\"-\"&T167&\"-\"&V167,B167=\"\",\"\")","v":""},null,null,null,null,null,null,null,null,null,null,null,null,null,null,null,null,{"$f":"COUNTIFS($B$24:B167,\"Producto \")","v":0},false,143]
[null,null,{"$f":"_xlfn.IFS(B168=\"Producto \",$N$10&\"-\"&T169,B168=\"Actividad Propia\",$N$10&\"-\"&T168&\"-\"&V168,B168=\"Actividad sin participación\",$N$10&\"-\"&T168&\"-\"&V168,B168=\"\",\"\")","v":""},null,null,null,null,null,null,null,null,null,null,null,null,null,null,null,null,{"$f":"COUNTIFS($B$24:B168,\"Producto \")","v":0},false,144]
[null,null,{"$f":"_xlfn.IFS(B169=\"Producto \",$N$10&\"-\"&T170,B169=\"Actividad Propia\",$N$10&\"-\"&T169&\"-\"&V169,B169=\"Actividad sin participación\",$N$10&\"-\"&T169&\"-\"&V169,B169=\"\",\"\")","v":""},null,null,null,null,null,null,null,null,null,null,null,null,null,null,null,null,{"$f":"COUNTIFS($B$24:B169,\"Producto \")","v":0},false,145]
[null,null,{"$f":"_xlfn.IFS(B170=\"Producto \",$N$10&\"-\"&T171,B170=\"Actividad Propia\",$N$10&\"-\"&T170&\"-\"&V170,B170=\"Actividad sin participación\",$N$10&\"-\"&T170&\"-\"&V170,B170=\"\",\"\")","v":""},null,null,null,null,null,null,null,null,null,null,null,null,null,null,null,null,{"$f":"COUNTIFS($B$24:B170,\"Producto \")","v":0},false,146]
[null,null,{"$f":"_xlfn.IFS(B171=\"Producto \",$N$10&\"-\"&T172,B171=\"Actividad Propia\",$N$10&\"-\"&T171&\"-\"&V171,B171=\"Actividad sin participación\",$N$10&\"-\"&T171&\"-\"&V171,B171=\"\",\"\")","v":""},null,null,null,null,null,null,null,null,null,null,null,null,null,null,null,null,{"$f":"COUNTIFS($B$24:B171,\"Producto \")","v":0},false,147]
[null,null,{"$f":"_xlfn.IFS(B172=\"Producto \",$N$10&\"-\"&T173,B172=\"Actividad Propia\",$N$10&\"-\"&T172&\"-\"&V172,B172=\"Actividad sin participación\",$N$10&\"-\"&T172&\"-\"&V172,B172=\"\",\"\")","v":""},null,null,null,null,null,null,null,null,null,null,null,null,null,null,null,null,{"$f":"COUNTIFS($B$24:B172,\"Producto \")","v":0},false,148]
[null,null,{"$f":"_xlfn.IFS(B173=\"Producto \",$N$10&\"-\"&T174,B173=\"Actividad Propia\",$N$10&\"-\"&T173&\"-\"&V173,B173=\"Actividad sin participación\",$N$10&\"-\"&T173&\"-\"&V173,B173=\"\",\"\")","v":""},null,null,null,null,null,null,null,null,null,null,null,null,null,null,null,null,{"$f":"COUNTIFS($B$24:B173,\"Producto \")","v":0},false,149]
[null,null,{"$f":"_xlfn.IFS(B174=\"Producto \",$N$10&\"-\"&T175,B174=\"Actividad Propia\",$N$10&\"-\"&T174&\"-\"&V174,B174=\"Actividad sin participación\",$N$10&\"-\"&T174&\"-\"&V174,B174=\"\",\"\")","v":""},null,null,null,null,null,null,null,null,null,null,null,null,null,null,null,null,{"$f":"COUNTIFS($B$24:B174,\"Producto \")","v":0},false,150]
[null,null,{"$f":"_xlfn.IFS(B175=\"Producto \",$N$10&\"-\"&T176,B175=\"Actividad Propia\",$N$10&\"-\"&T175&\"-\"&V175,B175=\"Actividad sin participación\",$N$10&\"-\"&T175&\"-\"&V175,B175=\"\",\"\")","v":""},null,null,null,null,null,null,null,null,null,null,null,null,null,null,null,null,{"$f":"COUNTIFS($B$24:B175,\"Producto \")","v":0},false,151]
[null,null,{"$f":"_xlfn.IFS(B176=\"Producto \",$N$10&\"-\"&T177,B176=\"Actividad Propia\",$N$10&\"-\"&T176&\"-\"&V176,B176=\"Actividad sin participación\",$N$10&\"-\"&T176&\"-\"&V176,B176=\"\",\"\")","v":""},null,null,null,null,null,null,null,null,null,null,null,null,null,null,null,null,{"$f":"COUNTIFS($B$24:B176,\"Producto \")","v":0},false,152]
[null,null,{"$f":"_xlfn.IFS(B177=\"Producto \",$N$10&\"-\"&T178,B177=\"Actividad Propia\",$N$10&\"-\"&T177&\"-\"&V177,B177=\"Actividad sin participación\",$N$10&\"-\"&T177&\"-\"&V177,B177=\"\",\"\")","v":""},null,null,null,null,null,null,null,null,null,null,null,null,null,null,null,null,{"$f":"COUNTIFS($B$24:B177,\"Producto \")","v":0},false,153]
[null,null,{"$f":"_xlfn.IFS(B178=\"Producto \",$N$10&\"-\"&T179,B178=\"Actividad Propia\",$N$10&\"-\"&T178&\"-\"&V178,B178=\"Actividad sin participación\",$N$10&\"-\"&T178&\"-\"&V178,B178=\"\",\"\")","v":""},null,null,null,null,null,null,null,null,null,null,null,null,null,null,null,null,{"$f":"COUNTIFS($B$24:B178,\"Producto \")","v":0},false,154]
[null,null,{"$f":"_xlfn.IFS(B179=\"Producto \",$N$10&\"-\"&T180,B179=\"Actividad Propia\",$N$10&\"-\"&T179&\"-\"&V179,B179=\"Actividad sin participación\",$N$10&\"-\"&T179&\"-\"&V179,B179=\"\",\"\")","v":""},null,null,null,null,null,null,null,null,null,null,null,null,null,null,null,null,{"$f":"COUNTIFS($B$24:B179,\"Producto \")","v":0},false,155]
[null,null,{"$f":"_xlfn.IFS(B180=\"Producto \",$N$10&\"-\"&T181,B180=\"Actividad Propia\",$N$10&\"-\"&T180&\"-\"&V180,B180=\"Actividad sin participación\",$N$10&\"-\"&T180&\"-\"&V180,B180=\"\",\"\")","v":""},null,null,null,null,null,null,null,null,null,null,null,null,null,null,null,null,{"$f":"COUNTIFS($B$24:B180,\"Producto \")","v":0},false,156]
[null,null,{"$f":"_xlfn.IFS(B181=\"Producto \",$N$10&\"-\"&T182,B181=\"Actividad Propia\",$N$10&\"-\"&T181&\"-\"&V181,B181=\"Actividad sin participación\",$N$10&\"-\"&T181&\"-\"&V181,B181=\"\",\"\")","v":""},null,null,null,null,null,null,null,null,null,null,null,null,null,null,null,null,{"$f":"COUNTIFS($B$24:B181,\"Producto \")","v":0},false,157]
[null,null,{"$f":"_xlfn.IFS(B182=\"Producto \",$N$10&\"-\"&T183,B182=\"Actividad Propia\",$N$10&\"-\"&T182&\"-\"&V182,B182=\"Actividad sin participación\",$N$10&\"-\"&T182&\"-\"&V182,B182=\"\",\"\")","v":""},null,null,null,null,null,null,null,null,null,null,null,null,null,null,null,null,{"$f":"COUNTIFS($B$24:B182,\"Producto \")","v":0},false,158]
[null,null,{"$f":"_xlfn.IFS(B183=\"Producto \",$N$10&\"-\"&T184,B183=\"Actividad Propia\",$N$10&\"-\"&T183&\"-\"&V183,B183=\"Actividad sin participación\",$N$10&\"-\"&T183&\"-\"&V183,B183=\"\",\"\")","v":""},null,null,null,null,null,null,null,null,null,null,null,null,null,null,null,null,{"$f":"COUNTIFS($B$24:B183,\"Producto \")","v":0},false,159]
[null,null,{"$f":"_xlfn.IFS(B184=\"Producto \",$N$10&\"-\"&T185,B184=\"Actividad Propia\",$N$10&\"-\"&T184&\"-\"&V184,B184=\"Actividad sin participación\",$N$10&\"-\"&T184&\"-\"&V184,B184=\"\",\"\")","v":""},null,null,null,null,null,null,null,null,null,null,null,null,null,null,null,null,{"$f":"COUNTIFS($B$24:B184,\"Producto \")","v":0},false,160]
[null,null,{"$f":"_xlfn.IFS(B185=\"Producto \",$N$10&\"-\"&T186,B185=\"Actividad Propia\",$N$10&\"-\"&T185&\"-\"&V185,B185=\"Actividad sin participación\",$N$10&\"-\"&T185&\"-\"&V185,B185=\"\",\"\")","v":""},null,null,null,null,null,null,null,null,null,null,null,null,null,null,null,null,{"$f":"COUNTIFS($B$24:B185,\"Producto \")","v":0},false,161]
[null,null,{"$f":"_xlfn.IFS(B186=\"Producto \",$N$10&\"-\"&T187,B186=\"Actividad Propia\",$N$10&\"-\"&T186&\"-\"&V186,B186=\"Actividad sin participación\",$N$10&\"-\"&T186&\"-\"&V186,B186=\"\",\"\")","v":""},null,null,null,null,null,null,null,null,null,null,null,null,null,null,null,null,{"$f":"COUNTIFS($B$24:B186,\"Producto \")","v":0},false,162]
[null,null,{"$f":"_xlfn.IFS(B187=\"Producto \",$N$10&\"-\"&T188,B187=\"Actividad Propia\",$N$10&\"-\"&T187&\"-\"&V187,B187=\"Actividad sin participación\",$N$10&\"-\"&T187&\"-\"&V187,B187=\"\",\"\")","v":""},null,null,null,null,null,null,null,null,null,null,null,null,null,null,null,null,{"$f":"COUNTIFS($B$24:B187,\"Producto \")","v":0},false,163]
[null,null,{"$f":"_xlfn.IFS(B188=\"Producto \",$N$10&\"-\"&T189,B188=\"Actividad Propia\",$N$10&\"-\"&T188&\"-\"&V188,B188=\"Actividad sin participación\",$N$10&\"-\"&T188&\"-\"&V188,B188=\"\",\"\")","v":""},null,null,null,null,null,null,null,null,null,null,null,null,null,null,null,null,{"$f":"COUNTIFS($B$24:B188,\"Producto \")","v":0},false,164]
[null,null,{"$f":"_xlfn.IFS(B189=\"Producto \",$N$10&\"-\"&T190,B189=\"Actividad Propia\",$N$10&\"-\"&T189&\"-\"&V189,B189=\"Actividad sin participación\",$N$10&\"-\"&T189&\"-\"&V189,B189=\"\",\"\")","v":""},null,null,null,null,null,null,null,null,null,null,null,null,null,null,null,null,{"$f":"COUNTIFS($B$24:B189,\"Producto \")","v":0},false,165]
[null,null,{"$f":"_xlfn.IFS(B190=\"Producto \",$N$10&\"-\"&T191,B190=\"Actividad Propia\",$N$10&\"-\"&T190&\"-\"&V190,B190=\"Actividad sin participación\",$N$10&\"-\"&T190&\"-\"&V190,B190=\"\",\"\")","v":""},null,null,null,null,null,null,null,null,null,null,null,null,null,null,null,null,{"$f":"COUNTIFS($B$24:B190,\"Producto \")","v":0},false,166]
[null,null,{"$f":"_xlfn.IFS(B191=\"Producto \",$N$10&\"-\"&T192,B191=\"Actividad Propia\",$N$10&\"-\"&T191&\"-\"&V191,B191=\"Actividad sin participación\",$N$10&\"-\"&T191&\"-\"&V191,B191=\"\",\"\")","v":""},null,null,null,null,null,null,null,null,null,null,null,null,null,null,null,null,{"$f":"COUNTIFS($B$24:B191,\"Producto \")","v":0},false,167]
[null,null,{"$f":"_xlfn.IFS(B192=\"Producto \",$N$10&\"-\"&T193,B192=\"Actividad Propia\",$N$10&\"-\"&T192&\"-\"&V192,B192=\"Actividad sin participación\",$N$10&\"-\"&T192&\"-\"&V192,B192=\"\",\"\")","v":""},null,null,null,null,null,null,null,null,null,null,null,null,null,null,null,null,{"$f":"COUNTIFS($B$24:B192,\"Producto \")","v":0},false,168]
[null,null,{"$f":"_xlfn.IFS(B193=\"Producto \",$N$10&\"-\"&T194,B193=\"Actividad Propia\",$N$10&\"-\"&T193&\"-\"&V193,B193=\"Actividad sin participación\",$N$10&\"-\"&T193&\"-\"&V193,B193=\"\",\"\")","v":""},null,null,null,null,null,null,null,null,null,null,null,null,null,null,null,null,{"$f":"COUNTIFS($B$24:B193,\"Producto \")","v":0},false,169]
[null,null,{"$f":"_xlfn.IFS(B194=\"Producto \",$N$10&\"-\"&T195,B194=\"Actividad Propia\",$N$10&\"-\"&T194&\"-\"&V194,B194=\"Actividad sin participación\",$N$10&\"-\"&T194&\"-\"&V194,B194=\"\",\"\")","v":""},null,null,null,null,null,null,null,null,null,null,null,null,null,null,null,null,{"$f":"COUNTIFS($B$24:B194,\"Producto \")","v":0},false,170]
[null,null,{"$f":"_xlfn.IFS(B195=\"Producto \",$N$10&\"-\"&T196,B195=\"Actividad Propia\",$N$10&\"-\"&T195&\"-\"&V195,B195=\"Actividad sin participación\",$N$10&\"-\"&T195&\"-\"&V195,B195=\"\",\"\")","v":""},null,null,null,null,null,null,null,null,null,null,null,null,null,null,null,null,{"$f":"COUNTIFS($B$24:B195,\"Producto \")","v":0},false,171]
[null,null,{"$f":"_xlfn.IFS(B196=\"Producto \",$N$10&\"-\"&T197,B196=\"Actividad Propia\",$N$10&\"-\"&T196&\"-\"&V196,B196=\"Actividad sin participación\",$N$10&\"-\"&T196&\"-\"&V196,B196=\"\",\"\")","v":""},null,null,null,null,null,null,null,null,null,null,null,null,null,null,null,null,{"$f":"COUNTIFS($B$24:B196,\"Producto \")","v":0},false,172]
[null,null,{"$f":"_xlfn.IFS(B197=\"Producto \",$N$10&\"-\"&T198,B197=\"Actividad Propia\",$N$10&\"-\"&T197&\"-\"&V197,B197=\"Actividad sin participación\",$N$10&\"-\"&T197&\"-\"&V197,B197=\"\",\"\")","v":""},null,null,null,null,null,null,null,null,null,null,null,null,null,null,null,null,{"$f":"COUNTIFS($B$24:B197,\"Producto \")","v":0},false,173]
[null,null,{"$f":"_xlfn.IFS(B198=\"Producto \",$N$10&\"-\"&T199,B198=\"Actividad Propia\",$N$10&\"-\"&T198&\"-\"&V198,B198=\"Actividad sin participación\",$N$10&\"-\"&T198&\"-\"&V198,B198=\"\",\"\")","v":""},null,null,null,null,null,null,null,null,null,null,null,null,null,null,null,null,{"$f":"COUNTIFS($B$24:B198,\"Producto \")","v":0},false,174]
[null,null,{"$f":"_xlfn.IFS(B199=\"Producto \",$N$10&\"-\"&T200,B199=\"Actividad Propia\",$N$10&\"-\"&T199&\"-\"&V199,B199=\"Actividad sin participación\",$N$10&\"-\"&T199&\"-\"&V199,B199=\"\",\"\")","v":""},null,null,null,null,null,null,null,null,null,null,null,null,null,null,null,null,{"$f":"COUNTIFS($B$24:B199,\"Producto \")","v":0},false,175]
[null,null,{"$f":"_xlfn.IFS(B200=\"Producto \",$N$10&\"-\"&T201,B200=\"Actividad Propia\",$N$10&\"-\"&T200&\"-\"&V200,B200=\"Actividad sin participación\",$N$10&\"-\"&T200&\"-\"&V200,B200=\"\",\"\")","v":""},null,null,null,null,null,null,null,null,null,null,null,null,null,null,null,null,{"$f":"COUNTIFS($B$24:B200,\"Producto \")","v":0},false,176]
[null,null,{"$f":"_xlfn.IFS(B201=\"Producto \",$N$10&\"-\"&T202,B201=\"Actividad Propia\",$N$10&\"-\"&T201&\"-\"&V201,B201=\"Actividad sin participación\",$N$10&\"-\"&T201&\"-\"&V201,B201=\"\",\"\")","v":""},null,null,null,null,null,null,null,null,null,null,null,null,null,null,null,null,{"$f":"COUNTIFS($B$24:B201,\"Producto \")","v":0},false,177]
[null,null,{"$f":"_xlfn.IFS(B202=\"Producto \",$N$10&\"-\"&T203,B202=\"Actividad Propia\",$N$10&\"-\"&T202&\"-\"&V202,B202=\"Actividad sin participación\",$N$10&\"-\"&T202&\"-\"&V202,B202=\"\",\"\")","v":""},null,null,null,null,null,null,null,null,null,null,null,null,null,null,null,null,{"$f":"COUNTIFS($B$24:B202,\"Producto \")","v":0},false,178]
[null,null,{"$f":"_xlfn.IFS(B203=\"Producto \",$N$10&\"-\"&T204,B203=\"Actividad Propia\",$N$10&\"-\"&T203&\"-\"&V203,B203=\"Actividad sin participación\",$N$10&\"-\"&T203&\"-\"&V203,B203=\"\",\"\")","v":""},null,null,null,null,null,null,null,null,null,null,null,null,null,null,null,null,{"$f":"COUNTIFS($B$24:B203,\"Producto \")","v":0},false,179]
[null,null,{"$f":"_xlfn.IFS(B204=\"Producto \",$N$10&\"-\"&T205,B204=\"Actividad Propia\",$N$10&\"-\"&T204&\"-\"&V204,B204=\"Actividad sin participación\",$N$10&\"-\"&T204&\"-\"&V204,B204=\"\",\"\")","v":""},null,null,null,null,null,null,null,null,null,null,null,null,null,null,null,null,{"$f":"COUNTIFS($B$24:B204,\"Producto \")","v":0},false,180]
[null,null,{"$f":"_xlfn.IFS(B205=\"Producto \",$N$10&\"-\"&T206,B205=\"Actividad Propia\",$N$10&\"-\"&T205&\"-\"&V205,B205=\"Actividad sin participación\",$N$10&\"-\"&T205&\"-\"&V205,B205=\"\",\"\")","v":""},null,null,null,null,null,null,null,null,null,null,null,null,null,null,null,null,{"$f":"COUNTIFS($B$24:B205,\"Producto \")","v":0},false,181]
[null,null,{"$f":"_xlfn.IFS(B206=\"Producto \",$N$10&\"-\"&T207,B206=\"Actividad Propia\",$N$10&\"-\"&T206&\"-\"&V206,B206=\"Actividad sin participación\",$N$10&\"-\"&T206&\"-\"&V206,B206=\"\",\"\")","v":""},null,null,null,null,null,null,null,null,null,null,null,null,null,null,null,null,{"$f":"COUNTIFS($B$24:B206,\"Producto \")","v":0},false,182]
[null,null,{"$f":"_xlfn.IFS(B207=\"Producto \",$N$10&\"-\"&T208,B207=\"Actividad Propia\",$N$10&\"-\"&T207&\"-\"&V207,B207=\"Actividad sin participación\",$N$10&\"-\"&T207&\"-\"&V207,B207=\"\",\"\")","v":""},null,null,null,null,null,null,null,null,null,null,null,null,null,null,null,null,{"$f":"COUNTIFS($B$24:B207,\"Producto \")","v":0},false,183]
[null,null,{"$f":"_xlfn.IFS(B208=\"Producto \",$N$10&\"-\"&T209,B208=\"Actividad Propia\",$N$10&\"-\"&T208&\"-\"&V208,B208=\"Actividad sin participación\",$N$10&\"-\"&T208&\"-\"&V208,B208=\"\",\"\")","v":""},null,null,null,null,null,null,null,null,null,null,null,null,null,null,null,null,{"$f":"COUNTIFS($B$24:B208,\"Producto \")","v":0},false,184]
[null,null,{"$f":"_xlfn.IFS(B209=\"Producto \",$N$10&\"-\"&T210,B209=\"Actividad Propia\",$N$10&\"-\"&T209&\"-\"&V209,B209=\"Actividad sin participación\",$N$10&\"-\"&T209&\"-\"&V209,B209=\"\",\"\")","v":""},null,null,null,null,null,null,null,null,null,null,null,null,null,null,null,null,{"$f":"COUNTIFS($B$24:B209,\"Producto \")","v":0},false,185]
[null,null,{"$f":"_xlfn.IFS(B210=\"Producto \",$N$10&\"-\"&T211,B210=\"Actividad Propia\",$N$10&\"-\"&T210&\"-\"&V210,B210=\"Actividad sin participación\",$N$10&\"-\"&T210&\"-\"&V210,B210=\"\",\"\")","v":""},null,null,null,null,null,null,null,null,null,null,null,null,null,null,null,null,{"$f":"COUNTIFS($B$24:B210,\"Producto \")","v":0},false,186]
[null,null,{"$f":"_xlfn.IFS(B211=\"Producto \",$N$10&\"-\"&T212,B211=\"Actividad Propia\",$N$10&\"-\"&T211&\"-\"&V211,B211=\"Actividad sin participación\",$N$10&\"-\"&T211&\"-\"&V211,B211=\"\",\"\")","v":""},null,null,null,null,null,null,null,null,null,null,null,null,null,null,null,null,{"$f":"COUNTIFS($B$24:B211,\"Producto \")","v":0},false,187]
[null,null,{"$f":"_xlfn.IFS(B212=\"Producto \",$N$10&\"-\"&T213,B212=\"Actividad Propia\",$N$10&\"-\"&T212&\"-\"&V212,B212=\"Actividad sin participación\",$N$10&\"-\"&T212&\"-\"&V212,B212=\"\",\"\")","v":""},null,null,null,null,null,null,null,null,null,null,null,null,null,null,null,null,{"$f":"COUNTIFS($B$24:B212,\"Producto \")","v":0},false,188]
[null,null,{"$f":"_xlfn.IFS(B213=\"Producto \",$N$10&\"-\"&T214,B213=\"Actividad Propia\",$N$10&\"-\"&T213&\"-\"&V213,B213=\"Actividad sin participación\",$N$10&\"-\"&T213&\"-\"&V213,B213=\"\",\"\")","v":""},null,null,null,null,null,null,null,null,null,null,null,null,null,null,null,null,{"$f":"COUNTIFS($B$24:B213,\"Producto \")","v":0},false,189]
[null,null,{"$f":"_xlfn.IFS(B214=\"Producto \",$N$10&\"-\"&T215,B214=\"Actividad Propia\",$N$10&\"-\"&T214&\"-\"&V214,B214=\"Actividad sin participación\",$N$10&\"-\"&T214&\"-\"&V214,B214=\"\",\"\")","v":""},null,null,null,null,null,null,null,null,null,null,null,null,null,null,null,null,{"$f":"COUNTIFS($B$24:B214,\"Producto \")","v":0},false,190]
[null,null,{"$f":"_xlfn.IFS(B215=\"Producto \",$N$10&\"-\"&T216,B215=\"Actividad Propia\",$N$10&\"-\"&T215&\"-\"&V215,B215=\"Actividad sin participación\",$N$10&\"-\"&T215&\"-\"&V215,B215=\"\",\"\")","v":""},null,null,null,null,null,null,null,null,null,null,null,null,null,null,null,null,{"$f":"COUNTIFS($B$24:B215,\"Producto \")","v":0},false,191]
[null,null,{"$f":"_xlfn.IFS(B216=\"Producto \",$N$10&\"-\"&T217,B216=\"Actividad Propia\",$N$10&\"-\"&T216&\"-\"&V216,B216=\"Actividad sin participación\",$N$10&\"-\"&T216&\"-\"&V216,B216=\"\",\"\")","v":""},null,null,null,null,null,null,null,null,null,null,null,null,null,null,null,null,{"$f":"COUNTIFS($B$24:B216,\"Producto \")","v":0},false,192]
[null,null,{"$f":"_xlfn.IFS(B217=\"Producto \",$N$10&\"-\"&T218,B217=\"Actividad Propia\",$N$10&\"-\"&T217&\"-\"&V217,B217=\"Actividad sin participación\",$N$10&\"-\"&T217&\"-\"&V217,B217=\"\",\"\")","v":""},null,null,null,null,null,null,null,null,null,null,null,null,null,null,null,null,{"$f":"COUNTIFS($B$24:B217,\"Producto \")","v":0},{"$f":"IF(B216=\"Producto \",C216&\"-\"&V217)","v":false},{"$f":"IF(B216=\"Producto \",1,V216+1)","v":193}]
[null,null,{"$f":"_xlfn.IFS(B218=\"Producto \",$N$10&\"-\"&T219,B218=\"Actividad Propia\",$N$10&\"-\"&T218&\"-\"&V218,B218=\"Actividad sin participación\",$N$10&\"-\"&T218&\"-\"&V218,B218=\"\",\"\")","v":""},null,null,null,null,null,null,null,null,null,null,null,null,null,null,null,null,{"$f":"COUNTIFS($B$24:B218,\"Producto \")","v":0},false,194]
[null,null,{"$f":"_xlfn.IFS(B219=\"Producto \",$N$10&\"-\"&T220,B219=\"Actividad Propia\",$N$10&\"-\"&T219&\"-\"&V219,B219=\"Actividad sin participación\",$N$10&\"-\"&T219&\"-\"&V219,B219=\"\",\"\")","v":""},null,null,null,null,null,null,null,null,null,null,null,null,null,null,null,null,{"$f":"COUNTIFS($B$24:B219,\"Producto \")","v":0},false,195]
[null,null,{"$f":"_xlfn.IFS(B220=\"Producto \",$N$10&\"-\"&T221,B220=\"Actividad Propia\",$N$10&\"-\"&T220&\"-\"&V220,B220=\"Actividad sin participación\",$N$10&\"-\"&T220&\"-\"&V220,B220=\"\",\"\")","v":""},null,null,null,null,null,null,null,null,null,null,null,null,null,null,null,null,{"$f":"COUNTIFS($B$24:B220,\"Producto \")","v":0},false,196]
[null,null,{"$f":"_xlfn.IFS(B221=\"Producto \",$N$10&\"-\"&T222,B221=\"Actividad Propia\",$N$10&\"-\"&T221&\"-\"&V221,B221=\"Actividad sin participación\",$N$10&\"-\"&T221&\"-\"&V221,B221=\"\",\"\")","v":""},null,null,null,null,null,null,null,null,null,null,null,null,null,null,null,null,{"$f":"COUNTIFS($B$24:B221,\"Producto \")","v":0},false,197]
[null,null,{"$f":"_xlfn.IFS(B222=\"Producto \",$N$10&\"-\"&T223,B222=\"Actividad Propia\",$N$10&\"-\"&T222&\"-\"&V222,B222=\"Actividad sin participación\",$N$10&\"-\"&T222&\"-\"&V222,B222=\"\",\"\")","v":""},null,null,null,null,null,null,null,null,null,null,null,null,null,null,null,null,{"$f":"COUNTIFS($B$24:B222,\"Producto \")","v":0},false,198]
[null,null,{"$f":"_xlfn.IFS(B223=\"Producto \",$N$10&\"-\"&T224,B223=\"Actividad Propia\",$N$10&\"-\"&T223&\"-\"&V223,B223=\"Actividad sin participación\",$N$10&\"-\"&T223&\"-\"&V223,B223=\"\",\"\")","v":""},null,null,null,null,null,null,null,null,null,null,null,null,null,null,null,null,{"$f":"COUNTIFS($B$24:B223,\"Producto \")","v":0},false,199]
[null,null,{"$f":"_xlfn.IFS(B224=\"Producto \",$N$10&\"-\"&T225,B224=\"Actividad Propia\",$N$10&\"-\"&T224&\"-\"&V224,B224=\"Actividad sin participación\",$N$10&\"-\"&T224&\"-\"&V224,B224=\"\",\"\")","v":""},null,null,null,null,null,null,null,null,null,null,null,null,null,null,null,null,{"$f":"COUNTIFS($B$24:B224,\"Producto \")","v":0},false,200]
[null,null,{"$f":"_xlfn.IFS(B225=\"Producto \",$N$10&\"-\"&T226,B225=\"Actividad Propia\",$N$10&\"-\"&T225&\"-\"&V225,B225=\"Actividad sin participación\",$N$10&\"-\"&T225&\"-\"&V225,B225=\"\",\"\")","v":""},null,null,null,null,null,null,null,null,null,null,null,null,null,null,null,null,{"$f":"COUNTIFS($B$24:B225,\"Producto \")","v":0},false,201]
[null,null,{"$f":"_xlfn.IFS(B226=\"Producto \",$N$10&\"-\"&T227,B226=\"Actividad Propia\",$N$10&\"-\"&T226&\"-\"&V226,B226=\"Actividad sin participación\",$N$10&\"-\"&T226&\"-\"&V226,B226=\"\",\"\")","v":""},null,null,null,null,null,null,null,null,null,null,null,null,null,null,null,null,{"$f":"COUNTIFS($B$24:B226,\"Producto \")","v":0},false,202]
[null,null,{"$f":"_xlfn.IFS(B227=\"Producto \",$N$10&\"-\"&T228,B227=\"Actividad Propia\",$N$10&\"-\"&T227&\"-\"&V227,B227=\"Actividad sin participación\",$N$10&\"-\"&T227&\"-\"&V227,B227=\"\",\"\")","v":""},null,null,null,null,null,null,null,null,null,null,null,null,null,null,null,null,{"$f":"COUNTIFS($B$24:B227,\"Producto \")","v":0},false,203]
[null,null,{"$f":"_xlfn.IFS(B228=\"Producto \",$N$10&\"-\"&T229,B228=\"Actividad Propia\",$N$10&\"-\"&T228&\"-\"&V228,B228=\"Actividad sin participación\",$N$10&\"-\"&T228&\"-\"&V228,B228=\"\",\"\")","v":""},null,null,null,null,null,null,null,null,null,null,null,null,null,null,null,null,{"$f":"COUNTIFS($B$24:B228,\"Producto \")","v":0},false,204]
[null,null,{"$f":"_xlfn.IFS(B229=\"Producto \",$N$10&\"-\"&T230,B229=\"Actividad Propia\",$N$10&\"-\"&T229&\"-\"&V229,B229=\"Actividad sin participación\",$N$10&\"-\"&T229&\"-\"&V229,B229=\"\",\"\")","v":""},null,null,null,null,null,null,null,null,null,null,null,null,null,null,null,null,{"$f":"COUNTIFS($B$24:B229,\"Producto \")","v":0},false,205]
[null,null,{"$f":"_xlfn.IFS(B230=\"Producto \",$N$10&\"-\"&T231,B230=\"Actividad Propia\",$N$10&\"-\"&T230&\"-\"&V230,B230=\"Actividad sin participación\",$N$10&\"-\"&T230&\"-\"&V230,B230=\"\",\"\")","v":""},null,null,null,null,null,null,null,null,null,null,null,null,null,null,null,null,{"$f":"COUNTIFS($B$24:B230,\"Producto \")","v":0},false,206]
[null,null,{"$f":"_xlfn.IFS(B231=\"Producto \",$N$10&\"-\"&T232,B231=\"Actividad Propia\",$N$10&\"-\"&T231&\"-\"&V231,B231=\"Actividad sin participación\",$N$10&\"-\"&T231&\"-\"&V231,B231=\"\",\"\")","v":""},null,null,null,null,null,null,null,null,null,null,null,null,null,null,null,null,{"$f":"COUNTIFS($B$24:B231,\"Producto \")","v":0},false,207]
[null,null,{"$f":"_xlfn.IFS(B232=\"Producto \",$N$10&\"-\"&T233,B232=\"Actividad Propia\",$N$10&\"-\"&T232&\"-\"&V232,B232=\"Actividad sin participación\",$N$10&\"-\"&T232&\"-\"&V232,B232=\"\",\"\")","v":""},null,null,null,null,null,null,null,null,null,null,null,null,null,null,null,null,{"$f":"COUNTIFS($B$24:B232,\"Producto \")","v":0},false,208]
[null,null,{"$f":"_xlfn.IFS(B233=\"Producto \",$N$10&\"-\"&T234,B233=\"Actividad Propia\",$N$10&\"-\"&T233&\"-\"&V233,B233=\"Actividad sin participación\",$N$10&\"-\"&T233&\"-\"&V233,B233=\"\",\"\")","v":""},null,null,null,null,null,null,null,null,null,null,null,null,null,null,null,null,{"$f":"COUNTIFS($B$24:B233,\"Producto \")","v":0},false,209]
[null,null,{"$f":"_xlfn.IFS(B234=\"Producto \",$N$10&\"-\"&T235,B234=\"Actividad Propia\",$N$10&\"-\"&T234&\"-\"&V234,B234=\"Actividad sin participación\",$N$10&\"-\"&T234&\"-\"&V234,B234=\"\",\"\")","v":""},null,null,null,null,null,null,null,null,null,null,null,null,null,null,null,null,{"$f":"COUNTIFS($B$24:B234,\"Producto \")","v":0},false,210]
[null,null,{"$f":"_xlfn.IFS(B235=\"Producto \",$N$10&\"-\"&T236,B235=\"Actividad Propia\",$N$10&\"-\"&T235&\"-\"&V235,B235=\"Actividad sin participación\",$N$10&\"-\"&T235&\"-\"&V235,B235=\"\",\"\")","v":""},null,null,null,null,null,null,null,null,null,null,null,null,null,null,null,null,{"$f":"COUNTIFS($B$24:B235,\"Producto \")","v":0},false,211]
[null,null,{"$f":"_xlfn.IFS(B236=\"Producto \",$N$10&\"-\"&T237,B236=\"Actividad Propia\",$N$10&\"-\"&T236&\"-\"&V236,B236=\"Actividad sin participación\",$N$10&\"-\"&T236&\"-\"&V236,B236=\"\",\"\")","v":""},null,null,null,null,null,null,null,null,null,null,null,null,null,null,null,null,{"$f":"COUNTIFS($B$24:B236,\"Producto \")","v":0},false,212]
[null,null,{"$f":"_xlfn.IFS(B237=\"Producto \",$N$10&\"-\"&T238,B237=\"Actividad Propia\",$N$10&\"-\"&T237&\"-\"&V237,B237=\"Actividad sin participación\",$N$10&\"-\"&T237&\"-\"&V237,B237=\"\",\"\")","v":""},null,null,null,null,null,null,null,null,null,null,null,null,null,null,null,null,{"$f":"COUNTIFS($B$24:B237,\"Producto \")","v":0},false,213]
[null,null,{"$f":"_xlfn.IFS(B238=\"Producto \",$N$10&\"-\"&T239,B238=\"Actividad Propia\",$N$10&\"-\"&T238&\"-\"&V238,B238=\"Actividad sin participación\",$N$10&\"-\"&T238&\"-\"&V238,B238=\"\",\"\")","v":""},null,null,null,null,null,null,null,null,null,null,null,null,null,null,null,null,{"$f":"COUNTIFS($B$24:B238,\"Producto \")","v":0},false,214]
[null,null,{"$f":"_xlfn.IFS(B239=\"Producto \",$N$10&\"-\"&T240,B239=\"Actividad Propia\",$N$10&\"-\"&T239&\"-\"&V239,B239=\"Actividad sin participación\",$N$10&\"-\"&T239&\"-\"&V239,B239=\"\",\"\")","v":""},null,null,null,null,null,null,null,null,null,null,null,null,null,null,null,null,{"$f":"COUNTIFS($B$24:B239,\"Producto \")","v":0},false,215]
[null,null,{"$f":"_xlfn.IFS(B240=\"Producto \",$N$10&\"-\"&T241,B240=\"Actividad Propia\",$N$10&\"-\"&T240&\"-\"&V240,B240=\"Actividad sin participación\",$N$10&\"-\"&T240&\"-\"&V240,B240=\"\",\"\")","v":""},null,null,null,null,null,null,null,null,null,null,null,null,null,null,null,null,{"$f":"COUNTIFS($B$24:B240,\"Producto \")","v":0},false,216]
[null,null,{"$f":"_xlfn.IFS(B241=\"Producto \",$N$10&\"-\"&T242,B241=\"Actividad Propia\",$N$10&\"-\"&T241&\"-\"&V241,B241=\"Actividad sin participación\",$N$10&\"-\"&T241&\"-\"&V241,B241=\"\",\"\")","v":""},null,null,null,null,null,null,null,null,null,null,null,null,null,null,null,null,{"$f":"COUNTIFS($B$24:B241,\"Producto \")","v":0},false,217]
[null,null,{"$f":"_xlfn.IFS(B242=\"Producto \",$N$10&\"-\"&T243,B242=\"Actividad Propia\",$N$10&\"-\"&T242&\"-\"&V242,B242=\"Actividad sin participación\",$N$10&\"-\"&T242&\"-\"&V242,B242=\"\",\"\")","v":""},null,null,null,null,null,null,null,null,null,null,null,null,null,null,null,null,{"$f":"COUNTIFS($B$24:B242,\"Producto \")","v":0},false,218]
[null,null,{"$f":"_xlfn.IFS(B243=\"Producto \",$N$10&\"-\"&T244,B243=\"Actividad Propia\",$N$10&\"-\"&T243&\"-\"&V243,B243=\"Actividad sin participación\",$N$10&\"-\"&T243&\"-\"&V243,B243=\"\",\"\")","v":""},null,null,null,null,null,null,null,null,null,null,null,null,null,null,null,null,{"$f":"COUNTIFS($B$24:B243,\"Producto \")","v":0},false,219]
[null,null,{"$f":"_xlfn.IFS(B244=\"Producto \",$N$10&\"-\"&T245,B244=\"Actividad Propia\",$N$10&\"-\"&T244&\"-\"&V244,B244=\"Actividad sin participación\",$N$10&\"-\"&T244&\"-\"&V244,B244=\"\",\"\")","v":""},null,null,null,null,null,null,null,null,null,null,null,null,null,null,null,null,{"$f":"COUNTIFS($B$24:B244,\"Producto \")","v":0},false,220]
[null,null,{"$f":"_xlfn.IFS(B245=\"Producto \",$N$10&\"-\"&T246,B245=\"Actividad Propia\",$N$10&\"-\"&T245&\"-\"&V245,B245=\"Actividad sin participación\",$N$10&\"-\"&T245&\"-\"&V245,B245=\"\",\"\")","v":""},null,null,null,null,null,null,null,null,null,null,null,null,null,null,null,null,{"$f":"COUNTIFS($B$24:B245,\"Producto \")","v":0},false,221]
[null,null,{"$f":"_xlfn.IFS(B246=\"Producto \",$N$10&\"-\"&T247,B246=\"Actividad Propia\",$N$10&\"-\"&T246&\"-\"&V246,B246=\"Actividad sin participación\",$N$10&\"-\"&T246&\"-\"&V246,B246=\"\",\"\")","v":""},null,null,null,null,null,null,null,null,null,null,null,null,null,null,null,null,{"$f":"COUNTIFS($B$24:B246,\"Producto \")","v":0},false,222]
[null,null,{"$f":"_xlfn.IFS(B247=\"Producto \",$N$10&\"-\"&T248,B247=\"Actividad Propia\",$N$10&\"-\"&T247&\"-\"&V247,B247=\"Actividad sin participación\",$N$10&\"-\"&T247&\"-\"&V247,B247=\"\",\"\")","v":""},null,null,null,null,null,null,null,null,null,null,null,null,null,null,null,null,{"$f":"COUNTIFS($B$24:B247,\"Producto \")","v":0},false,223]
[null,null,{"$f":"_xlfn.IFS(B248=\"Producto \",$N$10&\"-\"&T249,B248=\"Actividad Propia\",$N$10&\"-\"&T248&\"-\"&V248,B248=\"Actividad sin participación\",$N$10&\"-\"&T248&\"-\"&V248,B248=\"\",\"\")","v":""},null,null,null,null,null,null,null,null,null,null,null,null,null,null,null,null,{"$f":"COUNTIFS($B$24:B248,\"Producto \")","v":0},false,224]
[null,null,{"$f":"_xlfn.IFS(B249=\"Producto \",$N$10&\"-\"&T250,B249=\"Actividad Propia\",$N$10&\"-\"&T249&\"-\"&V249,B249=\"Actividad sin participación\",$N$10&\"-\"&T249&\"-\"&V249,B249=\"\",\"\")","v":""},null,null,null,null,null,null,null,null,null,null,null,null,null,null,null,null,{"$f":"COUNTIFS($B$24:B249,\"Producto \")","v":0},false,225]
[null,null,{"$f":"_xlfn.IFS(B250=\"Producto \",$N$10&\"-\"&T251,B250=\"Actividad Propia\",$N$10&\"-\"&T250&\"-\"&V250,B250=\"Actividad sin participación\",$N$10&\"-\"&T250&\"-\"&V250,B250=\"\",\"\")","v":""},null,null,null,null,null,null,null,null,null,null,null,null,null,null,null,null,{"$f":"COUNTIFS($B$24:B250,\"Producto \")","v":0},false,226]
[null,null,{"$f":"_xlfn.IFS(B251=\"Producto \",$N$10&\"-\"&T252,B251=\"Actividad Propia\",$N$10&\"-\"&T251&\"-\"&V251,B251=\"Actividad sin participación\",$N$10&\"-\"&T251&\"-\"&V251,B251=\"\",\"\")","v":""},null,null,null,null,null,null,null,null,null,null,null,null,null,null,null,null,{"$f":"COUNTIFS($B$24:B251,\"Producto \")","v":0},false,227]
[null,null,{"$f":"_xlfn.IFS(B252=\"Producto \",$N$10&\"-\"&T253,B252=\"Actividad Propia\",$N$10&\"-\"&T252&\"-\"&V252,B252=\"Actividad sin participación\",$N$10&\"-\"&T252&\"-\"&V252,B252=\"\",\"\")","v":""},null,null,null,null,null,null,null,null,null,null,null,null,null,null,null,null,{"$f":"COUNTIFS($B$24:B252,\"Producto \")","v":0},false,228]
[null,null,{"$f":"_xlfn.IFS(B253=\"Producto \",$N$10&\"-\"&T254,B253=\"Actividad Propia\",$N$10&\"-\"&T253&\"-\"&V253,B253=\"Actividad sin participación\",$N$10&\"-\"&T253&\"-\"&V253,B253=\"\",\"\")","v":""},null,null,null,null,null,null,null,null,null,null,null,null,null,null,null,null,{"$f":"COUNTIFS($B$24:B253,\"Producto \")","v":0},false,229]
[null,null,{"$f":"_xlfn.IFS(B254=\"Producto \",$N$10&\"-\"&T255,B254=\"Actividad Propia\",$N$10&\"-\"&T254&\"-\"&V254,B254=\"Actividad sin participación\",$N$10&\"-\"&T254&\"-\"&V254,B254=\"\",\"\")","v":""},null,null,null,null,null,null,null,null,null,null,null,null,null,null,null,null,{"$f":"COUNTIFS($B$24:B254,\"Producto \")","v":0},false,230]
[null,null,{"$f":"_xlfn.IFS(B255=\"Producto \",$N$10&\"-\"&T256,B255=\"Actividad Propia\",$N$10&\"-\"&T255&\"-\"&V255,B255=\"Actividad sin participación\",$N$10&\"-\"&T255&\"-\"&V255,B255=\"\",\"\")","v":""},null,null,null,null,null,null,null,null,null,null,null,null,null,null,null,null,{"$f":"COUNTIFS($B$24:B255,\"Producto \")","v":0},false,231]
[null,null,{"$f":"_xlfn.IFS(B256=\"Producto \",$N$10&\"-\"&T257,B256=\"Actividad Propia\",$N$10&\"-\"&T256&\"-\"&V256,B256=\"Actividad sin participación\",$N$10&\"-\"&T256&\"-\"&V256,B256=\"\",\"\")","v":""},null,null,null,null,null,null,null,null,null,null,null,null,null,null,null,null,{"$f":"COUNTIFS($B$24:B256,\"Producto \")","v":0},false,232]
[null,null,{"$f":"_xlfn.IFS(B257=\"Producto \",$N$10&\"-\"&T258,B257=\"Actividad Propia\",$N$10&\"-\"&T257&\"-\"&V257,B257=\"Actividad sin participación\",$N$10&\"-\"&T257&\"-\"&V257,B257=\"\",\"\")","v":""},null,null,null,null,null,null,null,null,null,null,null,null,null,null,null,null,{"$f":"COUNTIFS($B$24:B257,\"Producto \")","v":0},false,233]
[null,null,{"$f":"_xlfn.IFS(B258=\"Producto \",$N$10&\"-\"&T259,B258=\"Actividad Propia\",$N$10&\"-\"&T258&\"-\"&V258,B258=\"Actividad sin participación\",$N$10&\"-\"&T258&\"-\"&V258,B258=\"\",\"\")","v":""},null,null,null,null,null,null,null,null,null,null,null,null,null,null,null,null,{"$f":"COUNTIFS($B$24:B258,\"Producto \")","v":0},false,234]
[null,null,{"$f":"_xlfn.IFS(B259=\"Producto \",$N$10&\"-\"&T260,B259=\"Actividad Propia\",$N$10&\"-\"&T259&\"-\"&V259,B259=\"Actividad sin participación\",$N$10&\"-\"&T259&\"-\"&V259,B259=\"\",\"\")","v":""},null,null,null,null,null,null,null,null,null,null,null,null,null,null,null,null,{"$f":"COUNTIFS($B$24:B259,\"Producto \")","v":0},false,235]
[null,null,{"$f":"_xlfn.IFS(B260=\"Producto \",$N$10&\"-\"&T261,B260=\"Actividad Propia\",$N$10&\"-\"&T260&\"-\"&V260,B260=\"Actividad sin participación\",$N$10&\"-\"&T260&\"-\"&V260,B260=\"\",\"\")","v":""},null,null,null,null,null,null,null,null,null,null,null,null,null,null,null,null,{"$f":"COUNTIFS($B$24:B260,\"Producto \")","v":0},false,236]
[null,null,{"$f":"_xlfn.IFS(B261=\"Producto \",$N$10&\"-\"&T262,B261=\"Actividad Propia\",$N$10&\"-\"&T261&\"-\"&V261,B261=\"Actividad sin participación\",$N$10&\"-\"&T261&\"-\"&V261,B261=\"\",\"\")","v":""},null,null,null,null,null,null,null,null,null,null,null,null,null,null,null,null,{"$f":"COUNTIFS($B$24:B261,\"Producto \")","v":0},false,237]
[null,null,{"$f":"_xlfn.IFS(B262=\"Producto \",$N$10&\"-\"&T263,B262=\"Actividad Propia\",$N$10&\"-\"&T262&\"-\"&V262,B262=\"Actividad sin participación\",$N$10&\"-\"&T262&\"-\"&V262,B262=\"\",\"\")","v":""},null,null,null,null,null,null,null,null,null,null,null,null,null,null,null,null,{"$f":"COUNTIFS($B$24:B262,\"Producto \")","v":0},false,238]
[null,null,{"$f":"_xlfn.IFS(B263=\"Producto \",$N$10&\"-\"&T264,B263=\"Actividad Propia\",$N$10&\"-\"&T263&\"-\"&V263,B263=\"Actividad sin participación\",$N$10&\"-\"&T263&\"-\"&V263,B263=\"\",\"\")","v":""},null,null,null,null,null,null,null,null,null,null,null,null,null,null,null,null,{"$f":"COUNTIFS($B$24:B263,\"Producto \")","v":0},false,239]
[null,null,{"$f":"_xlfn.IFS(B264=\"Producto \",$N$10&\"-\"&T265,B264=\"Actividad Propia\",$N$10&\"-\"&T264&\"-\"&V264,B264=\"Actividad sin participación\",$N$10&\"-\"&T264&\"-\"&V264,B264=\"\",\"\")","v":""},null,null,null,null,null,null,null,null,null,null,null,null,null,null,null,null,{"$f":"COUNTIFS($B$24:B264,\"Producto \")","v":0},false,240]
[null,null,{"$f":"_xlfn.IFS(B265=\"Producto \",$N$10&\"-\"&T266,B265=\"Actividad Propia\",$N$10&\"-\"&T265&\"-\"&V265,B265=\"Actividad sin participación\",$N$10&\"-\"&T265&\"-\"&V265,B265=\"\",\"\")","v":""},null,null,null,null,null,null,null,null,null,null,null,null,null,null,null,null,{"$f":"COUNTIFS($B$24:B265,\"Producto \")","v":0},false,241]
[null,null,{"$f":"_xlfn.IFS(B266=\"Producto \",$N$10&\"-\"&T267,B266=\"Actividad Propia\",$N$10&\"-\"&T266&\"-\"&V266,B266=\"Actividad sin participación\",$N$10&\"-\"&T266&\"-\"&V266,B266=\"\",\"\")","v":""},null,null,null,null,null,null,null,null,null,null,null,null,null,null,null,null,{"$f":"COUNTIFS($B$24:B266,\"Producto \")","v":0},false,242]
[null,null,{"$f":"_xlfn.IFS(B267=\"Producto \",$N$10&\"-\"&T268,B267=\"Actividad Propia\",$N$10&\"-\"&T267&\"-\"&V267,B267=\"Actividad sin participación\",$N$10&\"-\"&T267&\"-\"&V267,B267=\"\",\"\")","v":""},null,null,null,null,null,null,null,null,null,null,null,null,null,null,null,null,{"$f":"COUNTIFS($B$24:B267,\"Producto \")","v":0},false,243]
[null,null,{"$f":"_xlfn.IFS(B268=\"Producto \",$N$10&\"-\"&T269,B268=\"Actividad Propia\",$N$10&\"-\"&T268&\"-\"&V268,B268=\"Actividad sin participación\",$N$10&\"-\"&T268&\"-\"&V268,B268=\"\",\"\")","v":""},null,null,null,null,null,null,null,null,null,null,null,null,null,null,null,null,{"$f":"COUNTIFS($B$24:B268,\"Producto \")","v":0},false,244]
[null,null,{"$f":"_xlfn.IFS(B269=\"Producto \",$N$10&\"-\"&T270,B269=\"Actividad Propia\",$N$10&\"-\"&T269&\"-\"&V269,B269=\"Actividad sin participación\",$N$10&\"-\"&T269&\"-\"&V269,B269=\"\",\"\")","v":""},null,null,null,null,null,null,null,null,null,null,null,null,null,null,null,null,{"$f":"COUNTIFS($B$24:B269,\"Producto \")","v":0},false,245]
[null,null,{"$f":"_xlfn.IFS(B270=\"Producto \",$N$10&\"-\"&T271,B270=\"Actividad Propia\",$N$10&\"-\"&T270&\"-\"&V270,B270=\"Actividad sin participación\",$N$10&\"-\"&T270&\"-\"&V270,B270=\"\",\"\")","v":""},null,null,null,null,null,null,null,null,null,null,null,null,null,null,null,null,{"$f":"COUNTIFS($B$24:B270,\"Producto \")","v":0},false,246]
[null,null,{"$f":"_xlfn.IFS(B271=\"Producto \",$N$10&\"-\"&T272,B271=\"Actividad Propia\",$N$10&\"-\"&T271&\"-\"&V271,B271=\"Actividad sin participación\",$N$10&\"-\"&T271&\"-\"&V271,B271=\"\",\"\")","v":""},null,null,null,null,null,null,null,null,null,null,null,null,null,null,null,null,{"$f":"COUNTIFS($B$24:B271,\"Producto \")","v":0},false,247]
[null,null,{"$f":"_xlfn.IFS(B272=\"Producto \",$N$10&\"-\"&T273,B272=\"Actividad Propia\",$N$10&\"-\"&T272&\"-\"&V272,B272=\"Actividad sin participación\",$N$10&\"-\"&T272&\"-\"&V272,B272=\"\",\"\")","v":""},null,null,null,null,null,null,null,null,null,null,null,null,null,null,null,null,{"$f":"COUNTIFS($B$24:B272,\"Producto \")","v":0},false,248]
[null,null,{"$f":"_xlfn.IFS(B273=\"Producto \",$N$10&\"-\"&T274,B273=\"Actividad Propia\",$N$10&\"-\"&T273&\"-\"&V273,B273=\"Actividad sin participación\",$N$10&\"-\"&T273&\"-\"&V273,B273=\"\",\"\")","v":""},null,null,null,null,null,null,null,null,null,null,null,null,null,null,null,null,{"$f":"COUNTIFS($B$24:B273,\"Producto \")","v":0},false,249]
[null,null,{"$f":"_xlfn.IFS(B274=\"Producto \",$N$10&\"-\"&T275,B274=\"Actividad Propia\",$N$10&\"-\"&T274&\"-\"&V274,B274=\"Actividad sin participación\",$N$10&\"-\"&T274&\"-\"&V274,B274=\"\",\"\")","v":""},null,null,null,null,null,null,null,null,null,null,null,null,null,null,null,null,{"$f":"COUNTIFS($B$24:B274,\"Producto \")","v":0},false,250]
[null,null,{"$f":"_xlfn.IFS(B275=\"Producto \",$N$10&\"-\"&T276,B275=\"Actividad Propia\",$N$10&\"-\"&T275&\"-\"&V275,B275=\"Actividad sin participación\",$N$10&\"-\"&T275&\"-\"&V275,B275=\"\",\"\")","v":""},null,null,null,null,null,null,null,null,null,null,null,null,null,null,null,null,{"$f":"COUNTIFS($B$24:B275,\"Producto \")","v":0},false,251]
[null,null,{"$f":"_xlfn.IFS(B276=\"Producto \",$N$10&\"-\"&T277,B276=\"Actividad Propia\",$N$10&\"-\"&T276&\"-\"&V276,B276=\"Actividad sin participación\",$N$10&\"-\"&T276&\"-\"&V276,B276=\"\",\"\")","v":""},null,null,null,null,null,null,null,null,null,null,null,null,null,null,null,null,{"$f":"COUNTIFS($B$24:B276,\"Producto \")","v":0},false,252]
[null,null,{"$f":"_xlfn.IFS(B277=\"Producto \",$N$10&\"-\"&T278,B277=\"Actividad Propia\",$N$10&\"-\"&T277&\"-\"&V277,B277=\"Actividad sin participación\",$N$10&\"-\"&T277&\"-\"&V277,B277=\"\",\"\")","v":""},null,null,null,null,null,null,null,null,null,null,null,null,null,null,null,null,{"$f":"COUNTIFS($B$24:B277,\"Producto \")","v":0},false,253]
[null,null,{"$f":"_xlfn.IFS(B278=\"Producto \",$N$10&\"-\"&T279,B278=\"Actividad Propia\",$N$10&\"-\"&T278&\"-\"&V278,B278=\"Actividad sin participación\",$N$10&\"-\"&T278&\"-\"&V278,B278=\"\",\"\")","v":""},null,null,null,null,null,null,null,null,null,null,null,null,null,null,null,null,{"$f":"COUNTIFS($B$24:B278,\"Producto \")","v":0},false,254]
[null,null,{"$f":"_xlfn.IFS(B279=\"Producto \",$N$10&\"-\"&T280,B279=\"Actividad Propia\",$N$10&\"-\"&T279&\"-\"&V279,B279=\"Actividad sin participación\",$N$10&\"-\"&T279&\"-\"&V279,B279=\"\",\"\")","v":""},null,null,null,null,null,null,null,null,null,null,null,null,null,null,null,null,{"$f":"COUNTIFS($B$24:B279,\"Producto \")","v":0},false,255]
[null,null,{"$f":"_xlfn.IFS(B280=\"Producto \",$N$10&\"-\"&T281,B280=\"Actividad Propia\",$N$10&\"-\"&T280&\"-\"&V280,B280=\"Actividad sin participación\",$N$10&\"-\"&T280&\"-\"&V280,B280=\"\",\"\")","v":""},null,null,null,null,null,null,null,null,null,null,null,null,null,null,null,null,{"$f":"COUNTIFS($B$24:B280,\"Producto \")","v":0},false,256]
[null,null,{"$f":"_xlfn.IFS(B281=\"Producto \",$N$10&\"-\"&T282,B281=\"Actividad Propia\",$N$10&\"-\"&T281&\"-\"&V281,B281=\"Actividad sin participación\",$N$10&\"-\"&T281&\"-\"&V281,B281=\"\",\"\")","v":""},null,null,null,null,null,null,null,null,null,null,null,null,null,null,null,null,{"$f":"COUNTIFS($B$24:B281,\"Producto \")","v":0},{"$f":"IF(B280=\"Producto \",C280&\"-\"&V281)","v":false},{"$f":"IF(B280=\"Producto \",1,V280+1)","v":257}]
[null,null,{"$f":"_xlfn.IFS(B282=\"Producto \",$N$10&\"-\"&T283,B282=\"Actividad Propia\",$N$10&\"-\"&T282&\"-\"&V282,B282=\"Actividad sin participación\",$N$10&\"-\"&T282&\"-\"&V282,B282=\"\",\"\")","v":""},null,null,null,null,null,null,null,null,null,null,null,null,null,null,null,null,{"$f":"COUNTIFS($B$24:B282,\"Producto \")","v":0},false,258]
[null,null,{"$f":"_xlfn.IFS(B283=\"Producto \",$N$10&\"-\"&T284,B283=\"Actividad Propia\",$N$10&\"-\"&T283&\"-\"&V283,B283=\"Actividad sin participación\",$N$10&\"-\"&T283&\"-\"&V283,B283=\"\",\"\")","v":""},null,null,null,null,null,null,null,null,null,null,null,null,null,null,null,null,{"$f":"COUNTIFS($B$24:B283,\"Producto \")","v":0},false,259]
[null,null,{"$f":"_xlfn.IFS(B284=\"Producto \",$N$10&\"-\"&T285,B284=\"Actividad Propia\",$N$10&\"-\"&T284&\"-\"&V284,B284=\"Actividad sin participación\",$N$10&\"-\"&T284&\"-\"&V284,B284=\"\",\"\")","v":""},null,null,null,null,null,null,null,null,null,null,null,null,null,null,null,null,{"$f":"COUNTIFS($B$24:B284,\"Producto \")","v":0},false,260]
[null,null,{"$f":"_xlfn.IFS(B285=\"Producto \",$N$10&\"-\"&T286,B285=\"Actividad Propia\",$N$10&\"-\"&T285&\"-\"&V285,B285=\"Actividad sin participación\",$N$10&\"-\"&T285&\"-\"&V285,B285=\"\",\"\")","v":""},null,null,null,null,null,null,null,null,null,null,null,null,null,null,null,null,{"$f":"COUNTIFS($B$24:B285,\"Producto \")","v":0},false,261]
[null,null,{"$f":"_xlfn.IFS(B286=\"Producto \",$N$10&\"-\"&T287,B286=\"Actividad Propia\",$N$10&\"-\"&T286&\"-\"&V286,B286=\"Actividad sin participación\",$N$10&\"-\"&T286&\"-\"&V286,B286=\"\",\"\")","v":""},null,null,null,null,null,null,null,null,null,null,null,null,null,null,null,null,{"$f":"COUNTIFS($B$24:B286,\"Producto \")","v":0},false,262]
[null,null,{"$f":"_xlfn.IFS(B287=\"Producto \",$N$10&\"-\"&T288,B287=\"Actividad Propia\",$N$10&\"-\"&T287&\"-\"&V287,B287=\"Actividad sin participación\",$N$10&\"-\"&T287&\"-\"&V287,B287=\"\",\"\")","v":""},null,null,null,null,null,null,null,null,null,null,null,null,null,null,null,null,{"$f":"COUNTIFS($B$24:B287,\"Producto \")","v":0},false,263]
[null,null,{"$f":"_xlfn.IFS(B288=\"Producto \",$N$10&\"-\"&T289,B288=\"Actividad Propia\",$N$10&\"-\"&T288&\"-\"&V288,B288=\"Actividad sin participación\",$N$10&\"-\"&T288&\"-\"&V288,B288=\"\",\"\")","v":""},null,null,null,null,null,null,null,null,null,null,null,null,null,null,null,null,{"$f":"COUNTIFS($B$24:B288,\"Producto \")","v":0},false,264]
[null,null,{"$f":"_xlfn.IFS(B289=\"Producto \",$N$10&\"-\"&T290,B289=\"Actividad Propia\",$N$10&\"-\"&T289&\"-\"&V289,B289=\"Actividad sin participación\",$N$10&\"-\"&T289&\"-\"&V289,B289=\"\",\"\")","v":""},null,null,null,null,null,null,null,null,null,null,null,null,null,null,null,null,{"$f":"COUNTIFS($B$24:B289,\"Producto \")","v":0},false,265]
[null,null,{"$f":"_xlfn.IFS(B290=\"Producto \",$N$10&\"-\"&T291,B290=\"Actividad Propia\",$N$10&\"-\"&T290&\"-\"&V290,B290=\"Actividad sin participación\",$N$10&\"-\"&T290&\"-\"&V290,B290=\"\",\"\")","v":""},null,null,null,null,null,null,null,null,null,null,null,null,null,null,null,null,{"$f":"COUNTIFS($B$24:B290,\"Producto \")","v":0},false,266]
[null,null,{"$f":"_xlfn.IFS(B291=\"Producto \",$N$10&\"-\"&T292,B291=\"Actividad Propia\",$N$10&\"-\"&T291&\"-\"&V291,B291=\"Actividad sin participación\",$N$10&\"-\"&T291&\"-\"&V291,B291=\"\",\"\")","v":""},null,null,null,null,null,null,null,null,null,null,null,null,null,null,null,null,{"$f":"COUNTIFS($B$24:B291,\"Producto \")","v":0},false,267]
[null,null,{"$f":"_xlfn.IFS(B292=\"Producto \",$N$10&\"-\"&T293,B292=\"Actividad Propia\",$N$10&\"-\"&T292&\"-\"&V292,B292=\"Actividad sin participación\",$N$10&\"-\"&T292&\"-\"&V292,B292=\"\",\"\")","v":""},null,null,null,null,null,null,null,null,null,null,null,null,null,null,null,null,{"$f":"COUNTIFS($B$24:B292,\"Producto \")","v":0},false,268]
[null,null,{"$f":"_xlfn.IFS(B293=\"Producto \",$N$10&\"-\"&T294,B293=\"Actividad Propia\",$N$10&\"-\"&T293&\"-\"&V293,B293=\"Actividad sin participación\",$N$10&\"-\"&T293&\"-\"&V293,B293=\"\",\"\")","v":""},null,null,null,null,null,null,null,null,null,null,null,null,null,null,null,null,{"$f":"COUNTIFS($B$24:B293,\"Producto \")","v":0},false,269]
[null,null,{"$f":"_xlfn.IFS(B294=\"Producto \",$N$10&\"-\"&T295,B294=\"Actividad Propia\",$N$10&\"-\"&T294&\"-\"&V294,B294=\"Actividad sin participación\",$N$10&\"-\"&T294&\"-\"&V294,B294=\"\",\"\")","v":""},null,null,null,null,null,null,null,null,null,null,null,null,null,null,null,null,{"$f":"COUNTIFS($B$24:B294,\"Producto \")","v":0},false,270]
[null,null,{"$f":"_xlfn.IFS(B295=\"Producto \",$N$10&\"-\"&T296,B295=\"Actividad Propia\",$N$10&\"-\"&T295&\"-\"&V295,B295=\"Actividad sin participación\",$N$10&\"-\"&T295&\"-\"&V295,B295=\"\",\"\")","v":""},null,null,null,null,null,null,null,null,null,null,null,null,null,null,null,null,{"$f":"COUNTIFS($B$24:B295,\"Producto \")","v":0},false,271]
[null,null,{"$f":"_xlfn.IFS(B296=\"Producto \",$N$10&\"-\"&T297,B296=\"Actividad Propia\",$N$10&\"-\"&T296&\"-\"&V296,B296=\"Actividad sin participación\",$N$10&\"-\"&T296&\"-\"&V296,B296=\"\",\"\")","v":""},null,null,null,null,null,null,null,null,null,null,null,null,null,null,null,null,{"$f":"COUNTIFS($B$24:B296,\"Producto \")","v":0},false,272]
[null,null,{"$f":"_xlfn.IFS(B297=\"Producto \",$N$10&\"-\"&T298,B297=\"Actividad Propia\",$N$10&\"-\"&T297&\"-\"&V297,B297=\"Actividad sin participación\",$N$10&\"-\"&T297&\"-\"&V297,B297=\"\",\"\")","v":""},null,null,null,null,null,null,null,null,null,null,null,null,null,null,null,null,{"$f":"COUNTIFS($B$24:B297,\"Producto \")","v":0},false,273]
[null,null,{"$f":"_xlfn.IFS(B298=\"Producto \",$N$10&\"-\"&T299,B298=\"Actividad Propia\",$N$10&\"-\"&T298&\"-\"&V298,B298=\"Actividad sin participación\",$N$10&\"-\"&T298&\"-\"&V298,B298=\"\",\"\")","v":""},null,null,null,null,null,null,null,null,null,null,null,null,null,null,null,null,{"$f":"COUNTIFS($B$24:B298,\"Producto \")","v":0},false,274]
[null,null,{"$f":"_xlfn.IFS(B299=\"Producto \",$N$10&\"-\"&T300,B299=\"Actividad Propia\",$N$10&\"-\"&T299&\"-\"&V299,B299=\"Actividad sin participación\",$N$10&\"-\"&T299&\"-\"&V299,B299=\"\",\"\")","v":""},null,null,null,null,null,null,null,null,null,null,null,null,null,null,null,null,{"$f":"COUNTIFS($B$24:B299,\"Producto \")","v":0},false,275]
[null,null,{"$f":"_xlfn.IFS(B300=\"Producto \",$N$10&\"-\"&T301,B300=\"Actividad Propia\",$N$10&\"-\"&T300&\"-\"&V300,B300=\"Actividad sin participación\",$N$10&\"-\"&T300&\"-\"&V300,B300=\"\",\"\")","v":""},null,null,null,null,null,null,null,null,null,null,null,null,null,null,null,null,{"$f":"COUNTIFS($B$24:B300,\"Producto \")","v":0},false,276]
[null,null,{"$f":"_xlfn.IFS(B301=\"Producto \",$N$10&\"-\"&T302,B301=\"Actividad Propia\",$N$10&\"-\"&T301&\"-\"&V301,B301=\"Actividad sin participación\",$N$10&\"-\"&T301&\"-\"&V301,B301=\"\",\"\")","v":""},null,null,null,null,null,null,null,null,null,null,null,null,null,null,null,null,{"$f":"COUNTIFS($B$24:B301,\"Producto \")","v":0},false,277]
[null,null,{"$f":"_xlfn.IFS(B302=\"Producto \",$N$10&\"-\"&T303,B302=\"Actividad Propia\",$N$10&\"-\"&T302&\"-\"&V302,B302=\"Actividad sin participación\",$N$10&\"-\"&T302&\"-\"&V302,B302=\"\",\"\")","v":""},null,null,null,null,null,null,null,null,null,null,null,null,null,null,null,null,{"$f":"COUNTIFS($B$24:B302,\"Producto \")","v":0},false,278]
[null,null,{"$f":"_xlfn.IFS(B303=\"Producto \",$N$10&\"-\"&T304,B303=\"Actividad Propia\",$N$10&\"-\"&T303&\"-\"&V303,B303=\"Actividad sin participación\",$N$10&\"-\"&T303&\"-\"&V303,B303=\"\",\"\")","v":""},null,null,null,null,null,null,null,null,null,null,null,null,null,null,null,null,{"$f":"COUNTIFS($B$24:B303,\"Producto \")","v":0},false,279]
[null,null,{"$f":"_xlfn.IFS(B304=\"Producto \",$N$10&\"-\"&T305,B304=\"Actividad Propia\",$N$10&\"-\"&T304&\"-\"&V304,B304=\"Actividad sin participación\",$N$10&\"-\"&T304&\"-\"&V304,B304=\"\",\"\")","v":""},null,null,null,null,null,null,null,null,null,null,null,null,null,null,null,null,{"$f":"COUNTIFS($B$24:B304,\"Producto \")","v":0},false,280]
[null,null,{"$f":"_xlfn.IFS(B305=\"Producto \",$N$10&\"-\"&T306,B305=\"Actividad Propia\",$N$10&\"-\"&T305&\"-\"&V305,B305=\"Actividad sin participación\",$N$10&\"-\"&T305&\"-\"&V305,B305=\"\",\"\")","v":""},null,null,null,null,null,null,null,null,null,null,null,null,null,null,null,null,{"$f":"COUNTIFS($B$24:B305,\"Producto \")","v":0},false,281]
[null,null,{"$f":"_xlfn.IFS(B306=\"Producto \",$N$10&\"-\"&T307,B306=\"Actividad Propia\",$N$10&\"-\"&T306&\"-\"&V306,B306=\"Actividad sin participación\",$N$10&\"-\"&T306&\"-\"&V306,B306=\"\",\"\")","v":""},null,null,null,null,null,null,null,null,null,null,null,null,null,null,null,null,{"$f":"COUNTIFS($B$24:B306,\"Producto \")","v":0},false,282]
[null,null,{"$f":"_xlfn.IFS(B307=\"Producto \",$N$10&\"-\"&T308,B307=\"Actividad Propia\",$N$10&\"-\"&T307&\"-\"&V307,B307=\"Actividad sin participación\",$N$10&\"-\"&T307&\"-\"&V307,B307=\"\",\"\")","v":""},null,null,null,null,null,null,null,null,null,null,null,null,null,null,null,null,{"$f":"COUNTIFS($B$24:B307,\"Producto \")","v":0},false,283]
[null,null,{"$f":"_xlfn.IFS(B308=\"Producto \",$N$10&\"-\"&T309,B308=\"Actividad Propia\",$N$10&\"-\"&T308&\"-\"&V308,B308=\"Actividad sin participación\",$N$10&\"-\"&T308&\"-\"&V308,B308=\"\",\"\")","v":""},null,null,null,null,null,null,null,null,null,null,null,null,null,null,null,null,{"$f":"COUNTIFS($B$24:B308,\"Producto \")","v":0},false,284]
[null,null,{"$f":"_xlfn.IFS(B309=\"Producto \",$N$10&\"-\"&T310,B309=\"Actividad Propia\",$N$10&\"-\"&T309&\"-\"&V309,B309=\"Actividad sin participación\",$N$10&\"-\"&T309&\"-\"&V309,B309=\"\",\"\")","v":""},null,null,null,null,null,null,null,null,null,null,null,null,null,null,null,null,{"$f":"COUNTIFS($B$24:B309,\"Producto \")","v":0},false,285]
[null,null,{"$f":"_xlfn.IFS(B310=\"Producto \",$N$10&\"-\"&T311,B310=\"Actividad Propia\",$N$10&\"-\"&T310&\"-\"&V310,B310=\"Actividad sin participación\",$N$10&\"-\"&T310&\"-\"&V310,B310=\"\",\"\")","v":""},null,null,null,null,null,null,null,null,null,null,null,null,null,null,null,null,{"$f":"COUNTIFS($B$24:B310,\"Producto \")","v":0},false,286]
[null,null,{"$f":"_xlfn.IFS(B311=\"Producto \",$N$10&\"-\"&T312,B311=\"Actividad Propia\",$N$10&\"-\"&T311&\"-\"&V311,B311=\"Actividad sin participación\",$N$10&\"-\"&T311&\"-\"&V311,B311=\"\",\"\")","v":""},null,null,null,null,null,null,null,null,null,null,null,null,null,null,null,null,{"$f":"COUNTIFS($B$24:B311,\"Producto \")","v":0},false,287]
[null,null,{"$f":"_xlfn.IFS(B312=\"Producto \",$N$10&\"-\"&T313,B312=\"Actividad Propia\",$N$10&\"-\"&T312&\"-\"&V312,B312=\"Actividad sin participación\",$N$10&\"-\"&T312&\"-\"&V312,B312=\"\",\"\")","v":""},null,null,null,null,null,null,null,null,null,null,null,null,null,null,null,null,{"$f":"COUNTIFS($B$24:B312,\"Producto \")","v":0},false,288]
[null,null,{"$f":"_xlfn.IFS(B313=\"Producto \",$N$10&\"-\"&T314,B313=\"Actividad Propia\",$N$10&\"-\"&T313&\"-\"&V313,B313=\"Actividad sin participación\",$N$10&\"-\"&T313&\"-\"&V313,B313=\"\",\"\")","v":""},null,null,null,null,null,null,null,null,null,null,null,null,null,null,null,null,{"$f":"COUNTIFS($B$24:B313,\"Producto \")","v":0},false,289]
[null,null,{"$f":"_xlfn.IFS(B314=\"Producto \",$N$10&\"-\"&T315,B314=\"Actividad Propia\",$N$10&\"-\"&T314&\"-\"&V314,B314=\"Actividad sin participación\",$N$10&\"-\"&T314&\"-\"&V314,B314=\"\",\"\")","v":""},null,null,null,null,null,null,null,null,null,null,null,null,null,null,null,null,{"$f":"COUNTIFS($B$24:B314,\"Producto \")","v":0},false,290]
[null,null,{"$f":"_xlfn.IFS(B315=\"Producto \",$N$10&\"-\"&T316,B315=\"Actividad Propia\",$N$10&\"-\"&T315&\"-\"&V315,B315=\"Actividad sin participación\",$N$10&\"-\"&T315&\"-\"&V315,B315=\"\",\"\")","v":""},null,null,null,null,null,null,null,null,null,null,null,null,null,null,null,null,{"$f":"COUNTIFS($B$24:B315,\"Producto \")","v":0},false,291]
[null,null,{"$f":"_xlfn.IFS(B316=\"Producto \",$N$10&\"-\"&T317,B316=\"Actividad Propia\",$N$10&\"-\"&T316&\"-\"&V316,B316=\"Actividad sin participación\",$N$10&\"-\"&T316&\"-\"&V316,B316=\"\",\"\")","v":""},null,null,null,null,null,null,null,null,null,null,null,null,null,null,null,null,{"$f":"COUNTIFS($B$24:B316,\"Producto \")","v":0},false,292]
[null,null,{"$f":"_xlfn.IFS(B317=\"Producto \",$N$10&\"-\"&T318,B317=\"Actividad Propia\",$N$10&\"-\"&T317&\"-\"&V317,B317=\"Actividad sin participación\",$N$10&\"-\"&T317&\"-\"&V317,B317=\"\",\"\")","v":""},null,null,null,null,null,null,null,null,null,null,null,null,null,null,null,null,{"$f":"COUNTIFS($B$24:B317,\"Producto \")","v":0},false,293]
[null,null,{"$f":"_xlfn.IFS(B318=\"Producto \",$N$10&\"-\"&T319,B318=\"Actividad Propia\",$N$10&\"-\"&T318&\"-\"&V318,B318=\"Actividad sin participación\",$N$10&\"-\"&T318&\"-\"&V318,B318=\"\",\"\")","v":""},null,null,null,null,null,null,null,null,null,null,null,null,null,null,null,null,{"$f":"COUNTIFS($B$24:B318,\"Producto \")","v":0},false,294]
[null,null,{"$f":"_xlfn.IFS(B319=\"Producto \",$N$10&\"-\"&T320,B319=\"Actividad Propia\",$N$10&\"-\"&T319&\"-\"&V319,B319=\"Actividad sin participación\",$N$10&\"-\"&T319&\"-\"&V319,B319=\"\",\"\")","v":""},null,null,null,null,null,null,null,null,null,null,null,null,null,null,null,null,{"$f":"COUNTIFS($B$24:B319,\"Producto \")","v":0},false,295]
[null,null,{"$f":"_xlfn.IFS(B320=\"Producto \",$N$10&\"-\"&T321,B320=\"Actividad Propia\",$N$10&\"-\"&T320&\"-\"&V320,B320=\"Actividad sin participación\",$N$10&\"-\"&T320&\"-\"&V320,B320=\"\",\"\")","v":""},null,null,null,null,null,null,null,null,null,null,null,null,null,null,null,null,{"$f":"COUNTIFS($B$24:B320,\"Producto \")","v":0},false,296]
[null,null,{"$f":"_xlfn.IFS(B321=\"Producto \",$N$10&\"-\"&T322,B321=\"Actividad Propia\",$N$10&\"-\"&T321&\"-\"&V321,B321=\"Actividad sin participación\",$N$10&\"-\"&T321&\"-\"&V321,B321=\"\",\"\")","v":""},null,null,null,null,null,null,null,null,null,null,null,null,null,null,null,null,{"$f":"COUNTIFS($B$24:B321,\"Producto \")","v":0},false,297]
[null,null,{"$f":"_xlfn.IFS(B322=\"Producto \",$N$10&\"-\"&T323,B322=\"Actividad Propia\",$N$10&\"-\"&T322&\"-\"&V322,B322=\"Actividad sin participación\",$N$10&\"-\"&T322&\"-\"&V322,B322=\"\",\"\")","v":""},null,null,null,null,null,null,null,null,null,null,null,null,null,null,null,null,{"$f":"COUNTIFS($B$24:B322,\"Producto \")","v":0},false,298]
[null,null,{"$f":"_xlfn.IFS(B323=\"Producto \",$N$10&\"-\"&T324,B323=\"Actividad Propia\",$N$10&\"-\"&T323&\"-\"&V323,B323=\"Actividad sin participación\",$N$10&\"-\"&T323&\"-\"&V323,B323=\"\",\"\")","v":""},null,null,null,null,null,null,null,null,null,null,null,null,null,null,null,null,{"$f":"COUNTIFS($B$24:B323,\"Producto \")","v":0},false,299]
[null,null,{"$f":"_xlfn.IFS(B324=\"Producto \",$N$10&\"-\"&T325,B324=\"Actividad Propia\",$N$10&\"-\"&T324&\"-\"&V324,B324=\"Actividad sin participación\",$N$10&\"-\"&T324&\"-\"&V324,B324=\"\",\"\")","v":""},null,null,null,null,null,null,null,null,null,null,null,null,null,null,null,null,{"$f":"COUNTIFS($B$24:B324,\"Producto \")","v":0},false,300]
[null,null,{"$f":"_xlfn.IFS(B325=\"Producto \",$N$10&\"-\"&T326,B325=\"Actividad Propia\",$N$10&\"-\"&T325&\"-\"&V325,B325=\"Actividad sin participación\",$N$10&\"-\"&T325&\"-\"&V325,B325=\"\",\"\")","v":""},null,null,null,null,null,null,null,null,null,null,null,null,null,null,null,null,{"$f":"COUNTIFS($B$24:B325,\"Producto \")","v":0},false,301]
[null,null,{"$f":"_xlfn.IFS(B326=\"Producto \",$N$10&\"-\"&T327,B326=\"Actividad Propia\",$N$10&\"-\"&T326&\"-\"&V326,B326=\"Actividad sin participación\",$N$10&\"-\"&T326&\"-\"&V326,B326=\"\",\"\")","v":""},null,null,null,null,null,null,null,null,null,null,null,null,null,null,null,null,{"$f":"COUNTIFS($B$24:B326,\"Producto \")","v":0},false,302]
[null,null,{"$f":"_xlfn.IFS(B327=\"Producto \",$N$10&\"-\"&T328,B327=\"Actividad Propia\",$N$10&\"-\"&T327&\"-\"&V327,B327=\"Actividad sin participación\",$N$10&\"-\"&T327&\"-\"&V327,B327=\"\",\"\")","v":""},null,null,null,null,null,null,null,null,null,null,null,null,null,null,null,null,{"$f":"COUNTIFS($B$24:B327,\"Producto \")","v":0},false,303]
[null,null,{"$f":"_xlfn.IFS(B328=\"Producto \",$N$10&\"-\"&T329,B328=\"Actividad Propia\",$N$10&\"-\"&T328&\"-\"&V328,B328=\"Actividad sin participación\",$N$10&\"-\"&T328&\"-\"&V328,B328=\"\",\"\")","v":""},null,null,null,null,null,null,null,null,null,null,null,null,null,null,null,null,{"$f":"COUNTIFS($B$24:B328,\"Producto \")","v":0},false,304]
[null,null,{"$f":"_xlfn.IFS(B329=\"Producto \",$N$10&\"-\"&T330,B329=\"Actividad Propia\",$N$10&\"-\"&T329&\"-\"&V329,B329=\"Actividad sin participación\",$N$10&\"-\"&T329&\"-\"&V329,B329=\"\",\"\")","v":""},null,null,null,null,null,null,null,null,null,null,null,null,null,null,null,null,{"$f":"COUNTIFS($B$24:B329,\"Producto \")","v":0},false,305]
[null,null,{"$f":"_xlfn.IFS(B330=\"Producto \",$N$10&\"-\"&T331,B330=\"Actividad Propia\",$N$10&\"-\"&T330&\"-\"&V330,B330=\"Actividad sin participación\",$N$10&\"-\"&T330&\"-\"&V330,B330=\"\",\"\")","v":""},null,null,null,null,null,null,null,null,null,null,null,null,null,null,null,null,{"$f":"COUNTIFS($B$24:B330,\"Producto \")","v":0},false,306]
[null,null,{"$f":"_xlfn.IFS(B331=\"Producto \",$N$10&\"-\"&T332,B331=\"Actividad Propia\",$N$10&\"-\"&T331&\"-\"&V331,B331=\"Actividad sin participación\",$N$10&\"-\"&T331&\"-\"&V331,B331=\"\",\"\")","v":""},null,null,null,null,null,null,null,null,null,null,null,null,null,null,null,null,{"$f":"COUNTIFS($B$24:B331,\"Producto \")","v":0},false,307]
[null,null,{"$f":"_xlfn.IFS(B332=\"Producto \",$N$10&\"-\"&T333,B332=\"Actividad Propia\",$N$10&\"-\"&T332&\"-\"&V332,B332=\"Actividad sin participación\",$N$10&\"-\"&T332&\"-\"&V332,B332=\"\",\"\")","v":""},null,null,null,null,null,null,null,null,null,null,null,null,null,null,null,null,{"$f":"COUNTIFS($B$24:B332,\"Producto \")","v":0},false,308]
[null,null,{"$f":"_xlfn.IFS(B333=\"Producto \",$N$10&\"-\"&T334,B333=\"Actividad Propia\",$N$10&\"-\"&T333&\"-\"&V333,B333=\"Actividad sin participación\",$N$10&\"-\"&T333&\"-\"&V333,B333=\"\",\"\")","v":""},null,null,null,null,null,null,null,null,null,null,null,null,null,null,null,null,{"$f":"COUNTIFS($B$24:B333,\"Producto \")","v":0},false,309]
[null,null,{"$f":"_xlfn.IFS(B334=\"Producto \",$N$10&\"-\"&T335,B334=\"Actividad Propia\",$N$10&\"-\"&T334&\"-\"&V334,B334=\"Actividad sin participación\",$N$10&\"-\"&T334&\"-\"&V334,B334=\"\",\"\")","v":""},null,null,null,null,null,null,null,null,null,null,null,null,null,null,null,null,{"$f":"COUNTIFS($B$24:B334,\"Producto \")","v":0},false,310]
[null,null,{"$f":"_xlfn.IFS(B335=\"Producto \",$N$10&\"-\"&T336,B335=\"Actividad Propia\",$N$10&\"-\"&T335&\"-\"&V335,B335=\"Actividad sin participación\",$N$10&\"-\"&T335&\"-\"&V335,B335=\"\",\"\")","v":""},null,null,null,null,null,null,null,null,null,null,null,null,null,null,null,null,{"$f":"COUNTIFS($B$24:B335,\"Producto \")","v":0},false,311]
[null,null,{"$f":"_xlfn.IFS(B336=\"Producto \",$N$10&\"-\"&T337,B336=\"Actividad Propia\",$N$10&\"-\"&T336&\"-\"&V336,B336=\"Actividad sin participación\",$N$10&\"-\"&T336&\"-\"&V336,B336=\"\",\"\")","v":""},null,null,null,null,null,null,null,null,null,null,null,null,null,null,null,null,{"$f":"COUNTIFS($B$24:B336,\"Producto \")","v":0},false,312]
[null,null,{"$f":"_xlfn.IFS(B337=\"Producto \",$N$10&\"-\"&T338,B337=\"Actividad Propia\",$N$10&\"-\"&T337&\"-\"&V337,B337=\"Actividad sin participación\",$N$10&\"-\"&T337&\"-\"&V337,B337=\"\",\"\")","v":""},null,null,null,null,null,null,null,null,null,null,null,null,null,null,null,null,{"$f":"COUNTIFS($B$24:B337,\"Producto \")","v":0},false,313]
[null,null,{"$f":"_xlfn.IFS(B338=\"Producto \",$N$10&\"-\"&T339,B338=\"Actividad Propia\",$N$10&\"-\"&T338&\"-\"&V338,B338=\"Actividad sin participación\",$N$10&\"-\"&T338&\"-\"&V338,B338=\"\",\"\")","v":""},null,null,null,null,null,null,null,null,null,null,null,null,null,null,null,null,{"$f":"COUNTIFS($B$24:B338,\"Producto \")","v":0},false,314]
[null,null,{"$f":"_xlfn.IFS(B339=\"Producto \",$N$10&\"-\"&T340,B339=\"Actividad Propia\",$N$10&\"-\"&T339&\"-\"&V339,B339=\"Actividad sin participación\",$N$10&\"-\"&T339&\"-\"&V339,B339=\"\",\"\")","v":""},null,null,null,null,null,null,null,null,null,null,null,null,null,null,null,null,{"$f":"COUNTIFS($B$24:B339,\"Producto \")","v":0},false,315]
[null,null,{"$f":"_xlfn.IFS(B340=\"Producto \",$N$10&\"-\"&T341,B340=\"Actividad Propia\",$N$10&\"-\"&T340&\"-\"&V340,B340=\"Actividad sin participación\",$N$10&\"-\"&T340&\"-\"&V340,B340=\"\",\"\")","v":""},null,null,null,null,null,null,null,null,null,null,null,null,null,null,null,null,{"$f":"COUNTIFS($B$24:B340,\"Producto \")","v":0},false,316]
[null,null,{"$f":"_xlfn.IFS(B341=\"Producto \",$N$10&\"-\"&T342,B341=\"Actividad Propia\",$N$10&\"-\"&T341&\"-\"&V341,B341=\"Actividad sin participación\",$N$10&\"-\"&T341&\"-\"&V341,B341=\"\",\"\")","v":""},null,null,null,null,null,null,null,null,null,null,null,null,null,null,null,null,{"$f":"COUNTIFS($B$24:B341,\"Producto \")","v":0},false,317]
[null,null,{"$f":"_xlfn.IFS(B342=\"Producto \",$N$10&\"-\"&T343,B342=\"Actividad Propia\",$N$10&\"-\"&T342&\"-\"&V342,B342=\"Actividad sin participación\",$N$10&\"-\"&T342&\"-\"&V342,B342=\"\",\"\")","v":""},null,null,null,null,null,null,null,null,null,null,null,null,null,null,null,null,{"$f":"COUNTIFS($B$24:B342,\"Producto \")","v":0},false,318]
[null,null,{"$f":"_xlfn.IFS(B343=\"Producto \",$N$10&\"-\"&T344,B343=\"Actividad Propia\",$N$10&\"-\"&T343&\"-\"&V343,B343=\"Actividad sin participación\",$N$10&\"-\"&T343&\"-\"&V343,B343=\"\",\"\")","v":""},null,null,null,null,null,null,null,null,null,null,null,null,null,null,null,null,{"$f":"COUNTIFS($B$24:B343,\"Producto \")","v":0},false,319]
[null,null,{"$f":"_xlfn.IFS(B344=\"Producto \",$N$10&\"-\"&T345,B344=\"Actividad Propia\",$N$10&\"-\"&T344&\"-\"&V344,B344=\"Actividad sin participación\",$N$10&\"-\"&T344&\"-\"&V344,B344=\"\",\"\")","v":""},null,null,null,null,null,null,null,null,null,null,null,null,null,null,null,null,{"$f":"COUNTIFS($B$24:B344,\"Producto \")","v":0},false,320]
[null,null,{"$f":"_xlfn.IFS(B345=\"Producto \",$N$10&\"-\"&T346,B345=\"Actividad Propia\",$N$10&\"-\"&T345&\"-\"&V345,B345=\"Actividad sin participación\",$N$10&\"-\"&T345&\"-\"&V345,B345=\"\",\"\")","v":""},null,null,null,null,null,null,null,null,null,null,null,null,null,null,null,null,{"$f":"COUNTIFS($B$24:B345,\"Producto \")","v":0},{"$f":"IF(B344=\"Producto \",C344&\"-\"&V345)","v":false},{"$f":"IF(B344=\"Producto \",1,V344+1)","v":321}]
[null,null,{"$f":"_xlfn.IFS(B346=\"Producto \",$N$10&\"-\"&T347,B346=\"Actividad Propia\",$N$10&\"-\"&T346&\"-\"&V346,B346=\"Actividad sin participación\",$N$10&\"-\"&T346&\"-\"&V346,B346=\"\",\"\")","v":""},null,null,null,null,null,null,null,null,null,null,null,null,null,null,null,null,{"$f":"COUNTIFS($B$24:B346,\"Producto \")","v":0},false,322]
[null,null,{"$f":"_xlfn.IFS(B347=\"Producto \",$N$10&\"-\"&T348,B347=\"Actividad Propia\",$N$10&\"-\"&T347&\"-\"&V347,B347=\"Actividad sin participación\",$N$10&\"-\"&T347&\"-\"&V347,B347=\"\",\"\")","v":""},null,null,null,null,null,null,null,null,null,null,null,null,null,null,null,null,{"$f":"COUNTIFS($B$24:B347,\"Producto \")","v":0},false,323]
[null,null,{"$f":"_xlfn.IFS(B348=\"Producto \",$N$10&\"-\"&T349,B348=\"Actividad Propia\",$N$10&\"-\"&T348&\"-\"&V348,B348=\"Actividad sin participación\",$N$10&\"-\"&T348&\"-\"&V348,B348=\"\",\"\")","v":""},null,null,null,null,null,null,null,null,null,null,null,null,null,null,null,null,{"$f":"COUNTIFS($B$24:B348,\"Producto \")","v":0},false,324]
[null,null,{"$f":"_xlfn.IFS(B349=\"Producto \",$N$10&\"-\"&T350,B349=\"Actividad Propia\",$N$10&\"-\"&T349&\"-\"&V349,B349=\"Actividad sin participación\",$N$10&\"-\"&T349&\"-\"&V349,B349=\"\",\"\")","v":""},null,null,null,null,null,null,null,null,null,null,null,null,null,null,null,null,{"$f":"COUNTIFS($B$24:B349,\"Producto \")","v":0},false,325]
[null,null,{"$f":"_xlfn.IFS(B350=\"Producto \",$N$10&\"-\"&T351,B350=\"Actividad Propia\",$N$10&\"-\"&T350&\"-\"&V350,B350=\"Actividad sin participación\",$N$10&\"-\"&T350&\"-\"&V350,B350=\"\",\"\")","v":""},null,null,null,null,null,null,null,null,null,null,null,null,null,null,null,null,{"$f":"COUNTIFS($B$24:B350,\"Producto \")","v":0},false,326]
[null,null,{"$f":"_xlfn.IFS(B351=\"Producto \",$N$10&\"-\"&T352,B351=\"Actividad Propia\",$N$10&\"-\"&T351&\"-\"&V351,B351=\"Actividad sin participación\",$N$10&\"-\"&T351&\"-\"&V351,B351=\"\",\"\")","v":""},null,null,null,null,null,null,null,null,null,null,null,null,null,null,null,null,{"$f":"COUNTIFS($B$24:B351,\"Producto \")","v":0},false,327]
[null,null,{"$f":"_xlfn.IFS(B352=\"Producto \",$N$10&\"-\"&T353,B352=\"Actividad Propia\",$N$10&\"-\"&T352&\"-\"&V352,B352=\"Actividad sin participación\",$N$10&\"-\"&T352&\"-\"&V352,B352=\"\",\"\")","v":""},null,null,null,null,null,null,null,null,null,null,null,null,null,null,null,null,{"$f":"COUNTIFS($B$24:B352,\"Producto \")","v":0},false,328]
[null,null,{"$f":"_xlfn.IFS(B353=\"Producto \",$N$10&\"-\"&T354,B353=\"Actividad Propia\",$N$10&\"-\"&T353&\"-\"&V353,B353=\"Actividad sin participación\",$N$10&\"-\"&T353&\"-\"&V353,B353=\"\",\"\")","v":""},null,null,null,null,null,null,null,null,null,null,null,null,null,null,null,null,{"$f":"COUNTIFS($B$24:B353,\"Producto \")","v":0},false,329]
[null,null,{"$f":"_xlfn.IFS(B354=\"Producto \",$N$10&\"-\"&T355,B354=\"Actividad Propia\",$N$10&\"-\"&T354&\"-\"&V354,B354=\"Actividad sin participación\",$N$10&\"-\"&T354&\"-\"&V354,B354=\"\",\"\")","v":""},null,null,null,null,null,null,null,null,null,null,null,null,null,null,null,null,{"$f":"COUNTIFS($B$24:B354,\"Producto \")","v":0},false,330]
[null,null,{"$f":"_xlfn.IFS(B355=\"Producto \",$N$10&\"-\"&T356,B355=\"Actividad Propia\",$N$10&\"-\"&T355&\"-\"&V355,B355=\"Actividad sin participación\",$N$10&\"-\"&T355&\"-\"&V355,B355=\"\",\"\")","v":""},null,null,null,null,null,null,null,null,null,null,null,null,null,null,null,null,{"$f":"COUNTIFS($B$24:B355,\"Producto \")","v":0},false,331]
[null,null,{"$f":"_xlfn.IFS(B356=\"Producto \",$N$10&\"-\"&T357,B356=\"Actividad Propia\",$N$10&\"-\"&T356&\"-\"&V356,B356=\"Actividad sin participación\",$N$10&\"-\"&T356&\"-\"&V356,B356=\"\",\"\")","v":""},null,null,null,null,null,null,null,null,null,null,null,null,null,null,null,null,{"$f":"COUNTIFS($B$24:B356,\"Producto \")","v":0},false,332]
[null,null,{"$f":"_xlfn.IFS(B357=\"Producto \",$N$10&\"-\"&T358,B357=\"Actividad Propia\",$N$10&\"-\"&T357&\"-\"&V357,B357=\"Actividad sin participación\",$N$10&\"-\"&T357&\"-\"&V357,B357=\"\",\"\")","v":""},null,null,null,null,null,null,null,null,null,null,null,null,null,null,null,null,{"$f":"COUNTIFS($B$24:B357,\"Producto \")","v":0},false,333]
[null,null,{"$f":"_xlfn.IFS(B358=\"Producto \",$N$10&\"-\"&T359,B358=\"Actividad Propia\",$N$10&\"-\"&T358&\"-\"&V358,B358=\"Actividad sin participación\",$N$10&\"-\"&T358&\"-\"&V358,B358=\"\",\"\")","v":""},null,null,null,null,null,null,null,null,null,null,null,null,null,null,null,null,{"$f":"COUNTIFS($B$24:B358,\"Producto \")","v":0},false,334]
[null,null,{"$f":"_xlfn.IFS(B359=\"Producto \",$N$10&\"-\"&T360,B359=\"Actividad Propia\",$N$10&\"-\"&T359&\"-\"&V359,B359=\"Actividad sin participación\",$N$10&\"-\"&T359&\"-\"&V359,B359=\"\",\"\")","v":""},null,null,null,null,null,null,null,null,null,null,null,null,null,null,null,null,{"$f":"COUNTIFS($B$24:B359,\"Producto \")","v":0},false,335]
[null,null,{"$f":"_xlfn.IFS(B360=\"Producto \",$N$10&\"-\"&T361,B360=\"Actividad Propia\",$N$10&\"-\"&T360&\"-\"&V360,B360=\"Actividad sin participación\",$N$10&\"-\"&T360&\"-\"&V360,B360=\"\",\"\")","v":""},null,null,null,null,null,null,null,null,null,null,null,null,null,null,null,null,{"$f":"COUNTIFS($B$24:B360,\"Producto \")","v":0},false,336]
[null,null,{"$f":"_xlfn.IFS(B361=\"Producto \",$N$10&\"-\"&T362,B361=\"Actividad Propia\",$N$10&\"-\"&T361&\"-\"&V361,B361=\"Actividad sin participación\",$N$10&\"-\"&T361&\"-\"&V361,B361=\"\",\"\")","v":""},null,null,null,null,null,null,null,null,null,null,null,null,null,null,null,null,{"$f":"COUNTIFS($B$24:B361,\"Producto \")","v":0},false,337]
[null,null,{"$f":"_xlfn.IFS(B362=\"Producto \",$N$10&\"-\"&T363,B362=\"Actividad Propia\",$N$10&\"-\"&T362&\"-\"&V362,B362=\"Actividad sin participación\",$N$10&\"-\"&T362&\"-\"&V362,B362=\"\",\"\")","v":""},null,null,null,null,null,null,null,null,null,null,null,null,null,null,null,null,{"$f":"COUNTIFS($B$24:B362,\"Producto \")","v":0},false,338]
[null,null,{"$f":"_xlfn.IFS(B363=\"Producto \",$N$10&\"-\"&T364,B363=\"Actividad Propia\",$N$10&\"-\"&T363&\"-\"&V363,B363=\"Actividad sin participación\",$N$10&\"-\"&T363&\"-\"&V363,B363=\"\",\"\")","v":""},null,null,null,null,null,null,null,null,null,null,null,null,null,null,null,null,{"$f":"COUNTIFS($B$24:B363,\"Producto \")","v":0},false,339]
[null,null,{"$f":"_xlfn.IFS(B364=\"Producto \",$N$10&\"-\"&T365,B364=\"Actividad Propia\",$N$10&\"-\"&T364&\"-\"&V364,B364=\"Actividad sin participación\",$N$10&\"-\"&T364&\"-\"&V364,B364=\"\",\"\")","v":""},null,null,null,null,null,null,null,null,null,null,null,null,null,null,null,null,{"$f":"COUNTIFS($B$24:B364,\"Producto \")","v":0},false,340]
[null,null,{"$f":"_xlfn.IFS(B365=\"Producto \",$N$10&\"-\"&T366,B365=\"Actividad Propia\",$N$10&\"-\"&T365&\"-\"&V365,B365=\"Actividad sin participación\",$N$10&\"-\"&T365&\"-\"&V365,B365=\"\",\"\")","v":""},null,null,null,null,null,null,null,null,null,null,null,null,null,null,null,null,{"$f":"COUNTIFS($B$24:B365,\"Producto \")","v":0},false,341]
[null,null,{"$f":"_xlfn.IFS(B366=\"Producto \",$N$10&\"-\"&T367,B366=\"Actividad Propia\",$N$10&\"-\"&T366&\"-\"&V366,B366=\"Actividad sin participación\",$N$10&\"-\"&T366&\"-\"&V366,B366=\"\",\"\")","v":""},null,null,null,null,null,null,null,null,null,null,null,null,null,null,null,null,{"$f":"COUNTIFS($B$24:B366,\"Producto \")","v":0},false,342]
[null,null,{"$f":"_xlfn.IFS(B367=\"Producto \",$N$10&\"-\"&T368,B367=\"Actividad Propia\",$N$10&\"-\"&T367&\"-\"&V367,B367=\"Actividad sin participación\",$N$10&\"-\"&T367&\"-\"&V367,B367=\"\",\"\")","v":""},null,null,null,null,null,null,null,null,null,null,null,null,null,null,null,null,{"$f":"COUNTIFS($B$24:B367,\"Producto \")","v":0},false,343]
[null,null,{"$f":"_xlfn.IFS(B368=\"Producto \",$N$10&\"-\"&T369,B368=\"Actividad Propia\",$N$10&\"-\"&T368&\"-\"&V368,B368=\"Actividad sin participación\",$N$10&\"-\"&T368&\"-\"&V368,B368=\"\",\"\")","v":""},null,null,null,null,null,null,null,null,null,null,null,null,null,null,null,null,{"$f":"COUNTIFS($B$24:B368,\"Producto \")","v":0},false,344]
[null,null,{"$f":"_xlfn.IFS(B369=\"Producto \",$N$10&\"-\"&T370,B369=\"Actividad Propia\",$N$10&\"-\"&T369&\"-\"&V369,B369=\"Actividad sin participación\",$N$10&\"-\"&T369&\"-\"&V369,B369=\"\",\"\")","v":""},null,null,null,null,null,null,null,null,null,null,null,null,null,null,null,null,{"$f":"COUNTIFS($B$24:B369,\"Producto \")","v":0},false,345]
[null,null,{"$f":"_xlfn.IFS(B370=\"Producto \",$N$10&\"-\"&T371,B370=\"Actividad Propia\",$N$10&\"-\"&T370&\"-\"&V370,B370=\"Actividad sin participación\",$N$10&\"-\"&T370&\"-\"&V370,B370=\"\",\"\")","v":""},null,null,null,null,null,null,null,null,null,null,null,null,null,null,null,null,{"$f":"COUNTIFS($B$24:B370,\"Producto \")","v":0},false,346]
[null,null,{"$f":"_xlfn.IFS(B371=\"Producto \",$N$10&\"-\"&T372,B371=\"Actividad Propia\",$N$10&\"-\"&T371&\"-\"&V371,B371=\"Actividad sin participación\",$N$10&\"-\"&T371&\"-\"&V371,B371=\"\",\"\")","v":""},null,null,null,null,null,null,null,null,null,null,null,null,null,null,null,null,{"$f":"COUNTIFS($B$24:B371,\"Producto \")","v":0},false,347]
[null,null,{"$f":"_xlfn.IFS(B372=\"Producto \",$N$10&\"-\"&T373,B372=\"Actividad Propia\",$N$10&\"-\"&T372&\"-\"&V372,B372=\"Actividad sin participación\",$N$10&\"-\"&T372&\"-\"&V372,B372=\"\",\"\")","v":""},null,null,null,null,null,null,null,null,null,null,null,null,null,null,null,null,{"$f":"COUNTIFS($B$24:B372,\"Producto \")","v":0},false,348]
[null,null,{"$f":"_xlfn.IFS(B373=\"Producto \",$N$10&\"-\"&T374,B373=\"Actividad Propia\",$N$10&\"-\"&T373&\"-\"&V373,B373=\"Actividad sin participación\",$N$10&\"-\"&T373&\"-\"&V373,B373=\"\",\"\")","v":""},null,null,null,null,null,null,null,null,null,null,null,null,null,null,null,null,{"$f":"COUNTIFS($B$24:B373,\"Producto \")","v":0},false,349]
[null,null,{"$f":"_xlfn.IFS(B374=\"Producto \",$N$10&\"-\"&T375,B374=\"Actividad Propia\",$N$10&\"-\"&T374&\"-\"&V374,B374=\"Actividad sin participación\",$N$10&\"-\"&T374&\"-\"&V374,B374=\"\",\"\")","v":""},null,null,null,null,null,null,null,null,null,null,null,null,null,null,null,null,{"$f":"COUNTIFS($B$24:B374,\"Producto \")","v":0},false,350]
[null,null,{"$f":"_xlfn.IFS(B375=\"Producto \",$N$10&\"-\"&T376,B375=\"Actividad Propia\",$N$10&\"-\"&T375&\"-\"&V375,B375=\"Actividad sin participación\",$N$10&\"-\"&T375&\"-\"&V375,B375=\"\",\"\")","v":""},null,null,null,null,null,null,null,null,null,null,null,null,null,null,null,null,{"$f":"COUNTIFS($B$24:B375,\"Producto \")","v":0},false,351]
[null,null,{"$f":"_xlfn.IFS(B376=\"Producto \",$N$10&\"-\"&T377,B376=\"Actividad Propia\",$N$10&\"-\"&T376&\"-\"&V376,B376=\"Actividad sin participación\",$N$10&\"-\"&T376&\"-\"&V376,B376=\"\",\"\")","v":""},null,null,null,null,null,null,null,null,null,null,null,null,null,null,null,null,{"$f":"COUNTIFS($B$24:B376,\"Producto \")","v":0},false,352]
[null,null,{"$f":"_xlfn.IFS(B377=\"Producto \",$N$10&\"-\"&T378,B377=\"Actividad Propia\",$N$10&\"-\"&T377&\"-\"&V377,B377=\"Actividad sin participación\",$N$10&\"-\"&T377&\"-\"&V377,B377=\"\",\"\")","v":""},null,null,null,null,null,null,null,null,null,null,null,null,null,null,null,null,{"$f":"COUNTIFS($B$24:B377,\"Producto \")","v":0},false,353]
[null,null,{"$f":"_xlfn.IFS(B378=\"Producto \",$N$10&\"-\"&T379,B378=\"Actividad Propia\",$N$10&\"-\"&T378&\"-\"&V378,B378=\"Actividad sin participación\",$N$10&\"-\"&T378&\"-\"&V378,B378=\"\",\"\")","v":""},null,null,null,null,null,null,null,null,null,null,null,null,null,null,null,null,{"$f":"COUNTIFS($B$24:B378,\"Producto \")","v":0},false,354]
[null,null,{"$f":"_xlfn.IFS(B379=\"Producto \",$N$10&\"-\"&T380,B379=\"Actividad Propia\",$N$10&\"-\"&T379&\"-\"&V379,B379=\"Actividad sin participación\",$N$10&\"-\"&T379&\"-\"&V379,B379=\"\",\"\")","v":""},null,null,null,null,null,null,null,null,null,null,null,null,null,null,null,null,{"$f":"COUNTIFS($B$24:B379,\"Producto \")","v":0},false,355]
[null,null,{"$f":"_xlfn.IFS(B380=\"Producto \",$N$10&\"-\"&T381,B380=\"Actividad Propia\",$N$10&\"-\"&T380&\"-\"&V380,B380=\"Actividad sin participación\",$N$10&\"-\"&T380&\"-\"&V380,B380=\"\",\"\")","v":""},null,null,null,null,null,null,null,null,null,null,null,null,null,null,null,null,{"$f":"COUNTIFS($B$24:B380,\"Producto \")","v":0},false,356]
[null,null,{"$f":"_xlfn.IFS(B381=\"Producto \",$N$10&\"-\"&T382,B381=\"Actividad Propia\",$N$10&\"-\"&T381&\"-\"&V381,B381=\"Actividad sin participación\",$N$10&\"-\"&T381&\"-\"&V381,B381=\"\",\"\")","v":""},null,null,null,null,null,null,null,null,null,null,null,null,null,null,null,null,{"$f":"COUNTIFS($B$24:B381,\"Producto \")","v":0},false,357]
[null,null,{"$f":"_xlfn.IFS(B382=\"Producto \",$N$10&\"-\"&T383,B382=\"Actividad Propia\",$N$10&\"-\"&T382&\"-\"&V382,B382=\"Actividad sin participación\",$N$10&\"-\"&T382&\"-\"&V382,B382=\"\",\"\")","v":""},null,null,null,null,null,null,null,null,null,null,null,null,null,null,null,null,{"$f":"COUNTIFS($B$24:B382,\"Producto \")","v":0},false,358]
[null,null,{"$f":"_xlfn.IFS(B383=\"Producto \",$N$10&\"-\"&T384,B383=\"Actividad Propia\",$N$10&\"-\"&T383&\"-\"&V383,B383=\"Actividad sin participación\",$N$10&\"-\"&T383&\"-\"&V383,B383=\"\",\"\")","v":""},null,null,null,null,null,null,null,null,null,null,null,null,null,null,null,null,{"$f":"COUNTIFS($B$24:B383,\"Producto \")","v":0},false,359]
[null,null,{"$f":"_xlfn.IFS(B384=\"Producto \",$N$10&\"-\"&T385,B384=\"Actividad Propia\",$N$10&\"-\"&T384&\"-\"&V384,B384=\"Actividad sin participación\",$N$10&\"-\"&T384&\"-\"&V384,B384=\"\",\"\")","v":""},null,null,null,null,null,null,null,null,null,null,null,null,null,null,null,null,{"$f":"COUNTIFS($B$24:B384,\"Producto \")","v":0},false,360]
[null,null,{"$f":"_xlfn.IFS(B385=\"Producto \",$N$10&\"-\"&T386,B385=\"Actividad Propia\",$N$10&\"-\"&T385&\"-\"&V385,B385=\"Actividad sin participación\",$N$10&\"-\"&T385&\"-\"&V385,B385=\"\",\"\")","v":""},null,null,null,null,null,null,null,null,null,null,null,null,null,null,null,null,{"$f":"COUNTIFS($B$24:B385,\"Producto \")","v":0},false,361]
[null,null,{"$f":"_xlfn.IFS(B386=\"Producto \",$N$10&\"-\"&T387,B386=\"Actividad Propia\",$N$10&\"-\"&T386&\"-\"&V386,B386=\"Actividad sin participación\",$N$10&\"-\"&T386&\"-\"&V386,B386=\"\",\"\")","v":""},null,null,null,null,null,null,null,null,null,null,null,null,null,null,null,null,{"$f":"COUNTIFS($B$24:B386,\"Producto \")","v":0},false,362]
[null,null,{"$f":"_xlfn.IFS(B387=\"Producto \",$N$10&\"-\"&T388,B387=\"Actividad Propia\",$N$10&\"-\"&T387&\"-\"&V387,B387=\"Actividad sin participación\",$N$10&\"-\"&T387&\"-\"&V387,B387=\"\",\"\")","v":""},null,null,null,null,null,null,null,null,null,null,null,null,null,null,null,null,{"$f":"COUNTIFS($B$24:B387,\"Producto \")","v":0},false,363]
[null,null,{"$f":"_xlfn.IFS(B388=\"Producto \",$N$10&\"-\"&T389,B388=\"Actividad Propia\",$N$10&\"-\"&T388&\"-\"&V388,B388=\"Actividad sin participación\",$N$10&\"-\"&T388&\"-\"&V388,B388=\"\",\"\")","v":""},null,null,null,null,null,null,null,null,null,null,null,null,null,null,null,null,{"$f":"COUNTIFS($B$24:B388,\"Producto \")","v":0},false,364]
[null,null,{"$f":"_xlfn.IFS(B389=\"Producto \",$N$10&\"-\"&T390,B389=\"Actividad Propia\",$N$10&\"-\"&T389&\"-\"&V389,B389=\"Actividad sin participación\",$N$10&\"-\"&T389&\"-\"&V389,B389=\"\",\"\")","v":""},null,null,null,null,null,null,null,null,null,null,null,null,null,null,null,null,{"$f":"COUNTIFS($B$24:B389,\"Producto \")","v":0},false,365]
[null,null,{"$f":"_xlfn.IFS(B390=\"Producto \",$N$10&\"-\"&T391,B390=\"Actividad Propia\",$N$10&\"-\"&T390&\"-\"&V390,B390=\"Actividad sin participación\",$N$10&\"-\"&T390&\"-\"&V390,B390=\"\",\"\")","v":""},null,null,null,null,null,null,null,null,null,null,null,null,null,null,null,null,{"$f":"COUNTIFS($B$24:B390,\"Producto \")","v":0},false,366]
[null,null,{"$f":"_xlfn.IFS(B391=\"Producto \",$N$10&\"-\"&T392,B391=\"Actividad Propia\",$N$10&\"-\"&T391&\"-\"&V391,B391=\"Actividad sin participación\",$N$10&\"-\"&T391&\"-\"&V391,B391=\"\",\"\")","v":""},null,null,null,null,null,null,null,null,null,null,null,null,null,null,null,null,{"$f":"COUNTIFS($B$24:B391,\"Producto \")","v":0},false,367]
[null,null,{"$f":"_xlfn.IFS(B392=\"Producto \",$N$10&\"-\"&T393,B392=\"Actividad Propia\",$N$10&\"-\"&T392&\"-\"&V392,B392=\"Actividad sin participación\",$N$10&\"-\"&T392&\"-\"&V392,B392=\"\",\"\")","v":""},null,null,null,null,null,null,null,null,null,null,null,null,null,null,null,null,{"$f":"COUNTIFS($B$24:B392,\"Producto \")","v":0},false,368]
[null,null,{"$f":"_xlfn.IFS(B393=\"Producto \",$N$10&\"-\"&T394,B393=\"Actividad Propia\",$N$10&\"-\"&T393&\"-\"&V393,B393=\"Actividad sin participación\",$N$10&\"-\"&T393&\"-\"&V393,B393=\"\",\"\")","v":""},null,null,null,null,null,null,null,null,null,null,null,null,null,null,null,null,{"$f":"COUNTIFS($B$24:B393,\"Producto \")","v":0},false,369]
[null,null,{"$f":"_xlfn.IFS(B394=\"Producto \",$N$10&\"-\"&T395,B394=\"Actividad Propia\",$N$10&\"-\"&T394&\"-\"&V394,B394=\"Actividad sin participación\",$N$10&\"-\"&T394&\"-\"&V394,B394=\"\",\"\")","v":""},null,null,null,null,null,null,null,null,null,null,null,null,null,null,null,null,{"$f":"COUNTIFS($B$24:B394,\"Producto \")","v":0},false,370]
[null,null,{"$f":"_xlfn.IFS(B395=\"Producto \",$N$10&\"-\"&T396,B395=\"Actividad Propia\",$N$10&\"-\"&T395&\"-\"&V395,B395=\"Actividad sin participación\",$N$10&\"-\"&T395&\"-\"&V395,B395=\"\",\"\")","v":""},null,null,null,null,null,null,null,null,null,null,null,null,null,null,null,null,{"$f":"COUNTIFS($B$24:B395,\"Producto \")","v":0},false,371]
[null,null,{"$f":"_xlfn.IFS(B396=\"Producto \",$N$10&\"-\"&T397,B396=\"Actividad Propia\",$N$10&\"-\"&T396&\"-\"&V396,B396=\"Actividad sin participación\",$N$10&\"-\"&T396&\"-\"&V396,B396=\"\",\"\")","v":""},null,null,null,null,null,null,null,null,null,null,null,null,null,null,null,null,{"$f":"COUNTIFS($B$24:B396,\"Producto \")","v":0},false,372]
[null,null,{"$f":"_xlfn.IFS(B397=\"Producto \",$N$10&\"-\"&T398,B397=\"Actividad Propia\",$N$10&\"-\"&T397&\"-\"&V397,B397=\"Actividad sin participación\",$N$10&\"-\"&T397&\"-\"&V397,B397=\"\",\"\")","v":""},null,null,null,null,null,null,null,null,null,null,null,null,null,null,null,null,{"$f":"COUNTIFS($B$24:B397,\"Producto \")","v":0},false,373]
[null,null,{"$f":"_xlfn.IFS(B398=\"Producto \",$N$10&\"-\"&T399,B398=\"Actividad Propia\",$N$10&\"-\"&T398&\"-\"&V398,B398=\"Actividad sin participación\",$N$10&\"-\"&T398&\"-\"&V398,B398=\"\",\"\")","v":""},null,null,null,null,null,null,null,null,null,null,null,null,null,null,null,null,{"$f":"COUNTIFS($B$24:B398,\"Producto \")","v":0},false,374]
[null,null,{"$f":"_xlfn.IFS(B399=\"Producto \",$N$10&\"-\"&T400,B399=\"Actividad Propia\",$N$10&\"-\"&T399&\"-\"&V399,B399=\"Actividad sin participación\",$N$10&\"-\"&T399&\"-\"&V399,B399=\"\",\"\")","v":""},null,null,null,null,null,null,null,null,null,null,null,null,null,null,null,null,{"$f":"COUNTIFS($B$24:B399,\"Producto \")","v":0},false,375]
[null,null,{"$f":"_xlfn.IFS(B400=\"Producto \",$N$10&\"-\"&T401,B400=\"Actividad Propia\",$N$10&\"-\"&T400&\"-\"&V400,B400=\"Actividad sin participación\",$N$10&\"-\"&T400&\"-\"&V400,B400=\"\",\"\")","v":""},null,null,null,null,null,null,null,null,null,null,null,null,null,null,null,null,{"$f":"COUNTIFS($B$24:B400,\"Producto \")","v":0},false,376]
[null,null,{"$f":"_xlfn.IFS(B401=\"Producto \",$N$10&\"-\"&T402,B401=\"Actividad Propia\",$N$10&\"-\"&T401&\"-\"&V401,B401=\"Actividad sin participación\",$N$10&\"-\"&T401&\"-\"&V401,B401=\"\",\"\")","v":""},null,null,null,null,null,null,null,null,null,null,null,null,null,null,null,null,{"$f":"COUNTIFS($B$24:B401,\"Producto \")","v":0},false,377]
[null,null,{"$f":"_xlfn.IFS(B402=\"Producto \",$N$10&\"-\"&T403,B402=\"Actividad Propia\",$N$10&\"-\"&T402&\"-\"&V402,B402=\"Actividad sin participación\",$N$10&\"-\"&T402&\"-\"&V402,B402=\"\",\"\")","v":""},null,null,null,null,null,null,null,null,null,null,null,null,null,null,null,null,{"$f":"COUNTIFS($B$24:B402,\"Producto \")","v":0},false,378]
[null,null,{"$f":"_xlfn.IFS(B403=\"Producto \",$N$10&\"-\"&T404,B403=\"Actividad Propia\",$N$10&\"-\"&T403&\"-\"&V403,B403=\"Actividad sin participación\",$N$10&\"-\"&T403&\"-\"&V403,B403=\"\",\"\")","v":""},null,null,null,null,null,null,null,null,null,null,null,null,null,null,null,null,{"$f":"COUNTIFS($B$24:B403,\"Producto \")","v":0},false,379]
[null,null,{"$f":"_xlfn.IFS(B404=\"Producto \",$N$10&\"-\"&T405,B404=\"Actividad Propia\",$N$10&\"-\"&T404&\"-\"&V404,B404=\"Actividad sin participación\",$N$10&\"-\"&T404&\"-\"&V404,B404=\"\",\"\")","v":""},null,null,null,null,null,null,null,null,null,null,null,null,null,null,null,null,{"$f":"COUNTIFS($B$24:B404,\"Producto \")","v":0},false,380]
[null,null,{"$f":"_xlfn.IFS(B405=\"Producto \",$N$10&\"-\"&T406,B405=\"Actividad Propia\",$N$10&\"-\"&T405&\"-\"&V405,B405=\"Actividad sin participación\",$N$10&\"-\"&T405&\"-\"&V405,B405=\"\",\"\")","v":""},null,null,null,null,null,null,null,null,null,null,null,null,null,null,null,null,{"$f":"COUNTIFS($B$24:B405,\"Producto \")","v":0},false,381]
[null,null,{"$f":"_xlfn.IFS(B406=\"Producto \",$N$10&\"-\"&T407,B406=\"Actividad Propia\",$N$10&\"-\"&T406&\"-\"&V406,B406=\"Actividad sin participación\",$N$10&\"-\"&T406&\"-\"&V406,B406=\"\",\"\")","v":""},null,null,null,null,null,null,null,null,null,null,null,null,null,null,null,null,{"$f":"COUNTIFS($B$24:B406,\"Producto \")","v":0},false,382]
[null,null,{"$f":"_xlfn.IFS(B407=\"Producto \",$N$10&\"-\"&T408,B407=\"Actividad Propia\",$N$10&\"-\"&T407&\"-\"&V407,B407=\"Actividad sin participación\",$N$10&\"-\"&T407&\"-\"&V407,B407=\"\",\"\")","v":""},null,null,null,null,null,null,null,null,null,null,null,null,null,null,null,null,{"$f":"COUNTIFS($B$24:B407,\"Producto \")","v":0},false,383]
[null,null,{"$f":"_xlfn.IFS(B408=\"Producto \",$N$10&\"-\"&T409,B408=\"Actividad Propia\",$N$10&\"-\"&T408&\"-\"&V408,B408=\"Actividad sin participación\",$N$10&\"-\"&T408&\"-\"&V408,B408=\"\",\"\")","v":""},null,null,null,null,null,null,null,null,null,null,null,null,null,null,null,null,{"$f":"COUNTIFS($B$24:B408,\"Producto \")","v":0},false,384]
[null,null,{"$f":"_xlfn.IFS(B409=\"Producto \",$N$10&\"-\"&T410,B409=\"Actividad Propia\",$N$10&\"-\"&T409&\"-\"&V409,B409=\"Actividad sin participación\",$N$10&\"-\"&T409&\"-\"&V409,B409=\"\",\"\")","v":""},null,null,null,null,null,null,null,null,null,null,null,null,null,null,null,null,{"$f":"COUNTIFS($B$24:B409,\"Producto \")","v":0},{"$f":"IF(B408=\"Producto \",C408&\"-\"&V409)","v":false},{"$f":"IF(B408=\"Producto \",1,V408+1)","v":385}]
[null,null,{"$f":"_xlfn.IFS(B410=\"Producto \",$N$10&\"-\"&T411,B410=\"Actividad Propia\",$N$10&\"-\"&T410&\"-\"&V410,B410=\"Actividad sin participación\",$N$10&\"-\"&T410&\"-\"&V410,B410=\"\",\"\")","v":""},null,null,null,null,null,null,null,null,null,null,null,null,null,null,null,null,{"$f":"COUNTIFS($B$24:B410,\"Producto \")","v":0},false,386]
[null,null,{"$f":"_xlfn.IFS(B411=\"Producto \",$N$10&\"-\"&T412,B411=\"Actividad Propia\",$N$10&\"-\"&T411&\"-\"&V411,B411=\"Actividad sin participación\",$N$10&\"-\"&T411&\"-\"&V411,B411=\"\",\"\")","v":""},null,null,null,null,null,null,null,null,null,null,null,null,null,null,null,null,{"$f":"COUNTIFS($B$24:B411,\"Producto \")","v":0},false,387]
[null,null,{"$f":"_xlfn.IFS(B412=\"Producto \",$N$10&\"-\"&T413,B412=\"Actividad Propia\",$N$10&\"-\"&T412&\"-\"&V412,B412=\"Actividad sin participación\",$N$10&\"-\"&T412&\"-\"&V412,B412=\"\",\"\")","v":""},null,null,null,null,null,null,null,null,null,null,null,null,null,null,null,null,{"$f":"COUNTIFS($B$24:B412,\"Producto \")","v":0},false,388]
[null,null,{"$f":"_xlfn.IFS(B413=\"Producto \",$N$10&\"-\"&T414,B413=\"Actividad Propia\",$N$10&\"-\"&T413&\"-\"&V413,B413=\"Actividad sin participación\",$N$10&\"-\"&T413&\"-\"&V413,B413=\"\",\"\")","v":""},null,null,null,null,null,null,null,null,null,null,null,null,null,null,null,null,{"$f":"COUNTIFS($B$24:B413,\"Producto \")","v":0},false,389]
[null,null,{"$f":"_xlfn.IFS(B414=\"Producto \",$N$10&\"-\"&T415,B414=\"Actividad Propia\",$N$10&\"-\"&T414&\"-\"&V414,B414=\"Actividad sin participación\",$N$10&\"-\"&T414&\"-\"&V414,B414=\"\",\"\")","v":""},null,null,null,null,null,null,null,null,null,null,null,null,null,null,null,null,{"$f":"COUNTIFS($B$24:B414,\"Producto \")","v":0},false,390]
[null,null,{"$f":"_xlfn.IFS(B415=\"Producto \",$N$10&\"-\"&T416,B415=\"Actividad Propia\",$N$10&\"-\"&T415&\"-\"&V415,B415=\"Actividad sin participación\",$N$10&\"-\"&T415&\"-\"&V415,B415=\"\",\"\")","v":""},null,null,null,null,null,null,null,null,null,null,null,null,null,null,null,null,{"$f":"COUNTIFS($B$24:B415,\"Producto \")","v":0},false,391]
[null,null,{"$f":"_xlfn.IFS(B416=\"Producto \",$N$10&\"-\"&T417,B416=\"Actividad Propia\",$N$10&\"-\"&T416&\"-\"&V416,B416=\"Actividad sin participación\",$N$10&\"-\"&T416&\"-\"&V416,B416=\"\",\"\")","v":""},null,null,null,null,null,null,null,null,null,null,null,null,null,null,null,null,{"$f":"COUNTIFS($B$24:B416,\"Producto \")","v":0},false,392]
[null,null,{"$f":"_xlfn.IFS(B417=\"Producto \",$N$10&\"-\"&T418,B417=\"Actividad Propia\",$N$10&\"-\"&T417&\"-\"&V417,B417=\"Actividad sin participación\",$N$10&\"-\"&T417&\"-\"&V417,B417=\"\",\"\")","v":""},null,null,null,null,null,null,null,null,null,null,null,null,null,null,null,null,{"$f":"COUNTIFS($B$24:B417,\"Producto \")","v":0},false,393]
[null,null,{"$f":"_xlfn.IFS(B418=\"Producto \",$N$10&\"-\"&T419,B418=\"Actividad Propia\",$N$10&\"-\"&T418&\"-\"&V418,B418=\"Actividad sin participación\",$N$10&\"-\"&T418&\"-\"&V418,B418=\"\",\"\")","v":""},null,null,null,null,null,null,null,null,null,null,null,null,null,null,null,null,{"$f":"COUNTIFS($B$24:B418,\"Producto \")","v":0},false,394]
[null,null,{"$f":"_xlfn.IFS(B419=\"Producto \",$N$10&\"-\"&T420,B419=\"Actividad Propia\",$N$10&\"-\"&T419&\"-\"&V419,B419=\"Actividad sin participación\",$N$10&\"-\"&T419&\"-\"&V419,B419=\"\",\"\")","v":""},null,null,null,null,null,null,null,null,null,null,null,null,null,null,null,null,{"$f":"COUNTIFS($B$24:B419,\"Producto \")","v":0},false,395]
[null,null,{"$f":"_xlfn.IFS(B420=\"Producto \",$N$10&\"-\"&T421,B420=\"Actividad Propia\",$N$10&\"-\"&T420&\"-\"&V420,B420=\"Actividad sin participación\",$N$10&\"-\"&T420&\"-\"&V420,B420=\"\",\"\")","v":""},null,null,null,null,null,null,null,null,null,null,null,null,null,null,null,null,{"$f":"COUNTIFS($B$24:B420,\"Producto \")","v":0},false,396]
[null,null,{"$f":"_xlfn.IFS(B421=\"Producto \",$N$10&\"-\"&T422,B421=\"Actividad Propia\",$N$10&\"-\"&T421&\"-\"&V421,B421=\"Actividad sin participación\",$N$10&\"-\"&T421&\"-\"&V421,B421=\"\",\"\")","v":""},null,null,null,null,null,null,null,null,null,null,null,null,null,null,null,null,{"$f":"COUNTIFS($B$24:B421,\"Producto \")","v":0},false,397]
[null,null,{"$f":"_xlfn.IFS(B422=\"Producto \",$N$10&\"-\"&T423,B422=\"Actividad Propia\",$N$10&\"-\"&T422&\"-\"&V422,B422=\"Actividad sin participación\",$N$10&\"-\"&T422&\"-\"&V422,B422=\"\",\"\")","v":""},null,null,null,null,null,null,null,null,null,null,null,null,null,null,null,null,{"$f":"COUNTIFS($B$24:B422,\"Producto \")","v":0},false,398]
[null,null,{"$f":"_xlfn.IFS(B423=\"Producto \",$N$10&\"-\"&T424,B423=\"Actividad Propia\",$N$10&\"-\"&T423&\"-\"&V423,B423=\"Actividad sin participación\",$N$10&\"-\"&T423&\"-\"&V423,B423=\"\",\"\")","v":""},null,null,null,null,null,null,null,null,null,null,null,null,null,null,null,null,{"$f":"COUNTIFS($B$24:B423,\"Producto \")","v":0},false,399]
[null,null,{"$f":"_xlfn.IFS(B424=\"Producto \",$N$10&\"-\"&T425,B424=\"Actividad Propia\",$N$10&\"-\"&T424&\"-\"&V424,B424=\"Actividad sin participación\",$N$10&\"-\"&T424&\"-\"&V424,B424=\"\",\"\")","v":""},null,null,null,null,null,null,null,null,null,null,null,null,null,null,null,null,{"$f":"COUNTIFS($B$24:B424,\"Producto \")","v":0},false,400]
[null,null,{"$f":"_xlfn.IFS(B425=\"Producto \",$N$10&\"-\"&T426,B425=\"Actividad Propia\",$N$10&\"-\"&T425&\"-\"&V425,B425=\"Actividad sin participación\",$N$10&\"-\"&T425&\"-\"&V425,B425=\"\",\"\")","v":""},null,null,null,null,null,null,null,null,null,null,null,null,null,null,null,null,{"$f":"COUNTIFS($B$24:B425,\"Producto \")","v":0},false,401]
[null,null,{"$f":"_xlfn.IFS(B426=\"Producto \",$N$10&\"-\"&T427,B426=\"Actividad Propia\",$N$10&\"-\"&T426&\"-\"&V426,B426=\"Actividad sin participación\",$N$10&\"-\"&T426&\"-\"&V426,B426=\"\",\"\")","v":""},null,null,null,null,null,null,null,null,null,null,null,null,null,null,null,null,{"$f":"COUNTIFS($B$24:B426,\"Producto \")","v":0},false,402]
[null,null,{"$f":"_xlfn.IFS(B427=\"Producto \",$N$10&\"-\"&T428,B427=\"Actividad Propia\",$N$10&\"-\"&T427&\"-\"&V427,B427=\"Actividad sin participación\",$N$10&\"-\"&T427&\"-\"&V427,B427=\"\",\"\")","v":""},null,null,null,null,null,null,null,null,null,null,null,null,null,null,null,null,{"$f":"COUNTIFS($B$24:B427,\"Producto \")","v":0},false,403]
[null,null,{"$f":"_xlfn.IFS(B428=\"Producto \",$N$10&\"-\"&T429,B428=\"Actividad Propia\",$N$10&\"-\"&T428&\"-\"&V428,B428=\"Actividad sin participación\",$N$10&\"-\"&T428&\"-\"&V428,B428=\"\",\"\")","v":""},null,null,null,null,null,null,null,null,null,null,null,null,null,null,null,null,{"$f":"COUNTIFS($B$24:B428,\"Producto \")","v":0},false,404]
[null,null,{"$f":"_xlfn.IFS(B429=\"Producto \",$N$10&\"-\"&T430,B429=\"Actividad Propia\",$N$10&\"-\"&T429&\"-\"&V429,B429=\"Actividad sin participación\",$N$10&\"-\"&T429&\"-\"&V429,B429=\"\",\"\")","v":""},null,null,null,null,null,null,null,null,null,null,null,null,null,null,null,null,{"$f":"COUNTIFS($B$24:B429,\"Producto \")","v":0},false,405]
[null,null,{"$f":"_xlfn.IFS(B430=\"Producto \",$N$10&\"-\"&T431,B430=\"Actividad Propia\",$N$10&\"-\"&T430&\"-\"&V430,B430=\"Actividad sin participación\",$N$10&\"-\"&T430&\"-\"&V430,B430=\"\",\"\")","v":""},null,null,null,null,null,null,null,null,null,null,null,null,null,null,null,null,{"$f":"COUNTIFS($B$24:B430,\"Producto \")","v":0},false,406]
[null,null,{"$f":"_xlfn.IFS(B431=\"Producto \",$N$10&\"-\"&T432,B431=\"Actividad Propia\",$N$10&\"-\"&T431&\"-\"&V431,B431=\"Actividad sin participación\",$N$10&\"-\"&T431&\"-\"&V431,B431=\"\",\"\")","v":""},null,null,null,null,null,null,null,null,null,null,null,null,null,null,null,null,{"$f":"COUNTIFS($B$24:B431,\"Producto \")","v":0},false,407]
[null,null,{"$f":"_xlfn.IFS(B432=\"Producto \",$N$10&\"-\"&T433,B432=\"Actividad Propia\",$N$10&\"-\"&T432&\"-\"&V432,B432=\"Actividad sin participación\",$N$10&\"-\"&T432&\"-\"&V432,B432=\"\",\"\")","v":""},null,null,null,null,null,null,null,null,null,null,null,null,null,null,null,null,{"$f":"COUNTIFS($B$24:B432,\"Producto \")","v":0},false,408]
[null,null,{"$f":"_xlfn.IFS(B433=\"Producto \",$N$10&\"-\"&T434,B433=\"Actividad Propia\",$N$10&\"-\"&T433&\"-\"&V433,B433=\"Actividad sin participación\",$N$10&\"-\"&T433&\"-\"&V433,B433=\"\",\"\")","v":""},null,null,null,null,null,null,null,null,null,null,null,null,null,null,null,null,{"$f":"COUNTIFS($B$24:B433,\"Producto \")","v":0},false,409]
[null,null,{"$f":"_xlfn.IFS(B434=\"Producto \",$N$10&\"-\"&T435,B434=\"Actividad Propia\",$N$10&\"-\"&T434&\"-\"&V434,B434=\"Actividad sin participación\",$N$10&\"-\"&T434&\"-\"&V434,B434=\"\",\"\")","v":""},null,null,null,null,null,null,null,null,null,null,null,null,null,null,null,null,{"$f":"COUNTIFS($B$24:B434,\"Producto \")","v":0},false,410]
[null,null,{"$f":"_xlfn.IFS(B435=\"Producto \",$N$10&\"-\"&T436,B435=\"Actividad Propia\",$N$10&\"-\"&T435&\"-\"&V435,B435=\"Actividad sin participación\",$N$10&\"-\"&T435&\"-\"&V435,B435=\"\",\"\")","v":""},null,null,null,null,null,null,null,null,null,null,null,null,null,null,null,null,{"$f":"COUNTIFS($B$24:B435,\"Producto \")","v":0},false,411]
[null,null,{"$f":"_xlfn.IFS(B436=\"Producto \",$N$10&\"-\"&T437,B436=\"Actividad Propia\",$N$10&\"-\"&T436&\"-\"&V436,B436=\"Actividad sin participación\",$N$10&\"-\"&T436&\"-\"&V436,B436=\"\",\"\")","v":""},null,null,null,null,null,null,null,null,null,null,null,null,null,null,null,null,{"$f":"COUNTIFS($B$24:B436,\"Producto \")","v":0},false,412]
[null,null,{"$f":"_xlfn.IFS(B437=\"Producto \",$N$10&\"-\"&T438,B437=\"Actividad Propia\",$N$10&\"-\"&T437&\"-\"&V437,B437=\"Actividad sin participación\",$N$10&\"-\"&T437&\"-\"&V437,B437=\"\",\"\")","v":""},null,null,null,null,null,null,null,null,null,null,null,null,null,null,null,null,{"$f":"COUNTIFS($B$24:B437,\"Producto \")","v":0},false,413]
[null,null,{"$f":"_xlfn.IFS(B438=\"Producto \",$N$10&\"-\"&T439,B438=\"Actividad Propia\",$N$10&\"-\"&T438&\"-\"&V438,B438=\"Actividad sin participación\",$N$10&\"-\"&T438&\"-\"&V438,B438=\"\",\"\")","v":""},null,null,null,null,null,null,null,null,null,null,null,null,null,null,null,null,{"$f":"COUNTIFS($B$24:B438,\"Producto \")","v":0},false,414]
[null,null,{"$f":"_xlfn.IFS(B439=\"Producto \",$N$10&\"-\"&T440,B439=\"Actividad Propia\",$N$10&\"-\"&T439&\"-\"&V439,B439=\"Actividad sin participación\",$N$10&\"-\"&T439&\"-\"&V439,B439=\"\",\"\")","v":""},null,null,null,null,null,null,null,null,null,null,null,null,null,null,null,null,{"$f":"COUNTIFS($B$24:B439,\"Producto \")","v":0},false,415]
[null,null,{"$f":"_xlfn.IFS(B440=\"Producto \",$N$10&\"-\"&T441,B440=\"Actividad Propia\",$N$10&\"-\"&T440&\"-\"&V440,B440=\"Actividad sin participación\",$N$10&\"-\"&T440&\"-\"&V440,B440=\"\",\"\")","v":""},null,null,null,null,null,null,null,null,null,null,null,null,null,null,null,null,{"$f":"COUNTIFS($B$24:B440,\"Producto \")","v":0},false,416]
[null,null,{"$f":"_xlfn.IFS(B441=\"Producto \",$N$10&\"-\"&T442,B441=\"Actividad Propia\",$N$10&\"-\"&T441&\"-\"&V441,B441=\"Actividad sin participación\",$N$10&\"-\"&T441&\"-\"&V441,B441=\"\",\"\")","v":""},null,null,null,null,null,null,null,null,null,null,null,null,null,null,null,null,{"$f":"COUNTIFS($B$24:B441,\"Producto \")","v":0},false,417]
[null,null,{"$f":"_xlfn.IFS(B442=\"Producto \",$N$10&\"-\"&T443,B442=\"Actividad Propia\",$N$10&\"-\"&T442&\"-\"&V442,B442=\"Actividad sin participación\",$N$10&\"-\"&T442&\"-\"&V442,B442=\"\",\"\")","v":""},null,null,null,null,null,null,null,null,null,null,null,null,null,null,null,null,{"$f":"COUNTIFS($B$24:B442,\"Producto \")","v":0},false,418]
[null,null,{"$f":"_xlfn.IFS(B443=\"Producto \",$N$10&\"-\"&T444,B443=\"Actividad Propia\",$N$10&\"-\"&T443&\"-\"&V443,B443=\"Actividad sin participación\",$N$10&\"-\"&T443&\"-\"&V443,B443=\"\",\"\")","v":""},null,null,null,null,null,null,null,null,null,null,null,null,null,null,null,null,{"$f":"COUNTIFS($B$24:B443,\"Producto \")","v":0},false,419]
[null,null,{"$f":"_xlfn.IFS(B444=\"Producto \",$N$10&\"-\"&T445,B444=\"Actividad Propia\",$N$10&\"-\"&T444&\"-\"&V444,B444=\"Actividad sin participación\",$N$10&\"-\"&T444&\"-\"&V444,B444=\"\",\"\")","v":""},null,null,null,null,null,null,null,null,null,null,null,null,null,null,null,null,{"$f":"COUNTIFS($B$24:B444,\"Producto \")","v":0},false,420]
[null,null,{"$f":"_xlfn.IFS(B445=\"Producto \",$N$10&\"-\"&T446,B445=\"Actividad Propia\",$N$10&\"-\"&T445&\"-\"&V445,B445=\"Actividad sin participación\",$N$10&\"-\"&T445&\"-\"&V445,B445=\"\",\"\")","v":""},null,null,null,null,null,null,null,null,null,null,null,null,null,null,null,null,{"$f":"COUNTIFS($B$24:B445,\"Producto \")","v":0},false,421]
[null,null,{"$f":"_xlfn.IFS(B446=\"Producto \",$N$10&\"-\"&T447,B446=\"Actividad Propia\",$N$10&\"-\"&T446&\"-\"&V446,B446=\"Actividad sin participación\",$N$10&\"-\"&T446&\"-\"&V446,B446=\"\",\"\")","v":""},null,null,null,null,null,null,null,null,null,null,null,null,null,null,null,null,{"$f":"COUNTIFS($B$24:B446,\"Producto \")","v":0},false,422]
[null,null,{"$f":"_xlfn.IFS(B447=\"Producto \",$N$10&\"-\"&T448,B447=\"Actividad Propia\",$N$10&\"-\"&T447&\"-\"&V447,B447=\"Actividad sin participación\",$N$10&\"-\"&T447&\"-\"&V447,B447=\"\",\"\")","v":""},null,null,null,null,null,null,null,null,null,null,null,null,null,null,null,null,{"$f":"COUNTIFS($B$24:B447,\"Producto \")","v":0},false,423]
[null,null,{"$f":"_xlfn.IFS(B448=\"Producto \",$N$10&\"-\"&T449,B448=\"Actividad Propia\",$N$10&\"-\"&T448&\"-\"&V448,B448=\"Actividad sin participación\",$N$10&\"-\"&T448&\"-\"&V448,B448=\"\",\"\")","v":""},null,null,null,null,null,null,null,null,null,null,null,null,null,null,null,null,{"$f":"COUNTIFS($B$24:B448,\"Producto \")","v":0},false,424]
[null,null,{"$f":"_xlfn.IFS(B449=\"Producto \",$N$10&\"-\"&T450,B449=\"Actividad Propia\",$N$10&\"-\"&T449&\"-\"&V449,B449=\"Actividad sin participación\",$N$10&\"-\"&T449&\"-\"&V449,B449=\"\",\"\")","v":""},null,null,null,null,null,null,null,null,null,null,null,null,null,null,null,null,{"$f":"COUNTIFS($B$24:B449,\"Producto \")","v":0},false,425]
[null,null,{"$f":"_xlfn.IFS(B450=\"Producto \",$N$10&\"-\"&T451,B450=\"Actividad Propia\",$N$10&\"-\"&T450&\"-\"&V450,B450=\"Actividad sin participación\",$N$10&\"-\"&T450&\"-\"&V450,B450=\"\",\"\")","v":""},null,null,null,null,null,null,null,null,null,null,null,null,null,null,null,null,{"$f":"COUNTIFS($B$24:B450,\"Producto \")","v":0},false,426]
[null,null,{"$f":"_xlfn.IFS(B451=\"Producto \",$N$10&\"-\"&T452,B451=\"Actividad Propia\",$N$10&\"-\"&T451&\"-\"&V451,B451=\"Actividad sin participación\",$N$10&\"-\"&T451&\"-\"&V451,B451=\"\",\"\")","v":""},null,null,null,null,null,null,null,null,null,null,null,null,null,null,null,null,{"$f":"COUNTIFS($B$24:B451,\"Producto \")","v":0},false,427]
[null,null,{"$f":"_xlfn.IFS(B452=\"Producto \",$N$10&\"-\"&T453,B452=\"Actividad Propia\",$N$10&\"-\"&T452&\"-\"&V452,B452=\"Actividad sin participación\",$N$10&\"-\"&T452&\"-\"&V452,B452=\"\",\"\")","v":""},null,null,null,null,null,null,null,null,null,null,null,null,null,null,null,null,{"$f":"COUNTIFS($B$24:B452,\"Producto \")","v":0},false,428]
[null,null,{"$f":"_xlfn.IFS(B453=\"Producto \",$N$10&\"-\"&T454,B453=\"Actividad Propia\",$N$10&\"-\"&T453&\"-\"&V453,B453=\"Actividad sin participación\",$N$10&\"-\"&T453&\"-\"&V453,B453=\"\",\"\")","v":""},null,null,null,null,null,null,null,null,null,null,null,null,null,null,null,null,{"$f":"COUNTIFS($B$24:B453,\"Producto \")","v":0},false,429]
[null,null,{"$f":"_xlfn.IFS(B454=\"Producto \",$N$10&\"-\"&T455,B454=\"Actividad Propia\",$N$10&\"-\"&T454&\"-\"&V454,B454=\"Actividad sin participación\",$N$10&\"-\"&T454&\"-\"&V454,B454=\"\",\"\")","v":""},null,null,null,null,null,null,null,null,null,null,null,null,null,null,null,null,{"$f":"COUNTIFS($B$24:B454,\"Producto \")","v":0},false,430]
[null,null,{"$f":"_xlfn.IFS(B455=\"Producto \",$N$10&\"-\"&T456,B455=\"Actividad Propia\",$N$10&\"-\"&T455&\"-\"&V455,B455=\"Actividad sin participación\",$N$10&\"-\"&T455&\"-\"&V455,B455=\"\",\"\")","v":""},null,null,null,null,null,null,null,null,null,null,null,null,null,null,null,null,{"$f":"COUNTIFS($B$24:B455,\"Producto \")","v":0},false,431]
[null,null,{"$f":"_xlfn.IFS(B456=\"Producto \",$N$10&\"-\"&T457,B456=\"Actividad Propia\",$N$10&\"-\"&T456&\"-\"&V456,B456=\"Actividad sin participación\",$N$10&\"-\"&T456&\"-\"&V456,B456=\"\",\"\")","v":""},null,null,null,null,null,null,null,null,null,null,null,null,null,null,null,null,{"$f":"COUNTIFS($B$24:B456,\"Producto \")","v":0},false,432]
[null,null,{"$f":"_xlfn.IFS(B457=\"Producto \",$N$10&\"-\"&T458,B457=\"Actividad Propia\",$N$10&\"-\"&T457&\"-\"&V457,B457=\"Actividad sin participación\",$N$10&\"-\"&T457&\"-\"&V457,B457=\"\",\"\")","v":""},null,null,null,null,null,null,null,null,null,null,null,null,null,null,null,null,{"$f":"COUNTIFS($B$24:B457,\"Producto \")","v":0},false,433]
[null,null,{"$f":"_xlfn.IFS(B458=\"Producto \",$N$10&\"-\"&T459,B458=\"Actividad Propia\",$N$10&\"-\"&T458&\"-\"&V458,B458=\"Actividad sin participación\",$N$10&\"-\"&T458&\"-\"&V458,B458=\"\",\"\")","v":""},null,null,null,null,null,null,null,null,null,null,null,null,null,null,null,null,{"$f":"COUNTIFS($B$24:B458,\"Producto \")","v":0},false,434]
[null,null,{"$f":"_xlfn.IFS(B459=\"Producto \",$N$10&\"-\"&T460,B459=\"Actividad Propia\",$N$10&\"-\"&T459&\"-\"&V459,B459=\"Actividad sin participación\",$N$10&\"-\"&T459&\"-\"&V459,B459=\"\",\"\")","v":""},null,null,null,null,null,null,null,null,null,null,null,null,null,null,null,null,{"$f":"COUNTIFS($B$24:B459,\"Producto \")","v":0},false,435]
[null,null,{"$f":"_xlfn.IFS(B460=\"Producto \",$N$10&\"-\"&T461,B460=\"Actividad Propia\",$N$10&\"-\"&T460&\"-\"&V460,B460=\"Actividad sin participación\",$N$10&\"-\"&T460&\"-\"&V460,B460=\"\",\"\")","v":""},null,null,null,null,null,null,null,null,null,null,null,null,null,null,null,null,{"$f":"COUNTIFS($B$24:B460,\"Producto \")","v":0},false,436]
[null,null,{"$f":"_xlfn.IFS(B461=\"Producto \",$N$10&\"-\"&T462,B461=\"Actividad Propia\",$N$10&\"-\"&T461&\"-\"&V461,B461=\"Actividad sin participación\",$N$10&\"-\"&T461&\"-\"&V461,B461=\"\",\"\")","v":""},null,null,null,null,null,null,null,null,null,null,null,null,null,null,null,null,{"$f":"COUNTIFS($B$24:B461,\"Producto \")","v":0},false,437]
[null,null,{"$f":"_xlfn.IFS(B462=\"Producto \",$N$10&\"-\"&T463,B462=\"Actividad Propia\",$N$10&\"-\"&T462&\"-\"&V462,B462=\"Actividad sin participación\",$N$10&\"-\"&T462&\"-\"&V462,B462=\"\",\"\")","v":""},null,null,null,null,null,null,null,null,null,null,null,null,null,null,null,null,{"$f":"COUNTIFS($B$24:B462,\"Producto \")","v":0},false,438]
[null,null,{"$f":"_xlfn.IFS(B463=\"Producto \",$N$10&\"-\"&T464,B463=\"Actividad Propia\",$N$10&\"-\"&T463&\"-\"&V463,B463=\"Actividad sin participación\",$N$10&\"-\"&T463&\"-\"&V463,B463=\"\",\"\")","v":""},null,null,null,null,null,null,null,null,null,null,null,null,null,null,null,null,{"$f":"COUNTIFS($B$24:B463,\"Producto \")","v":0},false,439]
[null,null,{"$f":"_xlfn.IFS(B464=\"Producto \",$N$10&\"-\"&T465,B464=\"Actividad Propia\",$N$10&\"-\"&T464&\"-\"&V464,B464=\"Actividad sin participación\",$N$10&\"-\"&T464&\"-\"&V464,B464=\"\",\"\")","v":""},null,null,null,null,null,null,null,null,null,null,null,null,null,null,null,null,{"$f":"COUNTIFS($B$24:B464,\"Producto \")","v":0},false,440]
[null,null,{"$f":"_xlfn.IFS(B465=\"Producto \",$N$10&\"-\"&T466,B465=\"Actividad Propia\",$N$10&\"-\"&T465&\"-\"&V465,B465=\"Actividad sin participación\",$N$10&\"-\"&T465&\"-\"&V465,B465=\"\",\"\")","v":""},null,null,null,null,null,null,null,null,null,null,null,null,null,null,null,null,{"$f":"COUNTIFS($B$24:B465,\"Producto \")","v":0},false,441]
[null,null,{"$f":"_xlfn.IFS(B466=\"Producto \",$N$10&\"-\"&T467,B466=\"Actividad Propia\",$N$10&\"-\"&T466&\"-\"&V466,B466=\"Actividad sin participación\",$N$10&\"-\"&T466&\"-\"&V466,B466=\"\",\"\")","v":""},null,null,null,null,null,null,null,null,null,null,null,null,null,null,null,null,{"$f":"COUNTIFS($B$24:B466,\"Producto \")","v":0},false,442]
[null,null,{"$f":"_xlfn.IFS(B467=\"Producto \",$N$10&\"-\"&T468,B467=\"Actividad Propia\",$N$10&\"-\"&T467&\"-\"&V467,B467=\"Actividad sin participación\",$N$10&\"-\"&T467&\"-\"&V467,B467=\"\",\"\")","v":""},null,null,null,null,null,null,null,null,null,null,null,null,null,null,null,null,{"$f":"COUNTIFS($B$24:B467,\"Producto \")","v":0},false,443]
[null,null,{"$f":"_xlfn.IFS(B468=\"Producto \",$N$10&\"-\"&T469,B468=\"Actividad Propia\",$N$10&\"-\"&T468&\"-\"&V468,B468=\"Actividad sin participación\",$N$10&\"-\"&T468&\"-\"&V468,B468=\"\",\"\")","v":""},null,null,null,null,null,null,null,null,null,null,null,null,null,null,null,null,{"$f":"COUNTIFS($B$24:B468,\"Producto \")","v":0},false,444]
[null,null,{"$f":"_xlfn.IFS(B469=\"Producto \",$N$10&\"-\"&T470,B469=\"Actividad Propia\",$N$10&\"-\"&T469&\"-\"&V469,B469=\"Actividad sin participación\",$N$10&\"-\"&T469&\"-\"&V469,B469=\"\",\"\")","v":""},null,null,null,null,null,null,null,null,null,null,null,null,null,null,null,null,{"$f":"COUNTIFS($B$24:B469,\"Producto \")","v":0},false,445]
[null,null,{"$f":"_xlfn.IFS(B470=\"Producto \",$N$10&\"-\"&T471,B470=\"Actividad Propia\",$N$10&\"-\"&T470&\"-\"&V470,B470=\"Actividad sin participación\",$N$10&\"-\"&T470&\"-\"&V470,B470=\"\",\"\")","v":""},null,null,null,null,null,null,null,null,null,null,null,null,null,null,null,null,{"$f":"COUNTIFS($B$24:B470,\"Producto \")","v":0},false,446]
[null,null,{"$f":"_xlfn.IFS(B471=\"Producto \",$N$10&\"-\"&T472,B471=\"Actividad Propia\",$N$10&\"-\"&T471&\"-\"&V471,B471=\"Actividad sin participación\",$N$10&\"-\"&T471&\"-\"&V471,B471=\"\",\"\")","v":""},null,null,null,null,null,null,null,null,null,null,null,null,null,null,null,null,{"$f":"COUNTIFS($B$24:B471,\"Producto \")","v":0},false,447]
[null,null,{"$f":"_xlfn.IFS(B472=\"Producto \",$N$10&\"-\"&T473,B472=\"Actividad Propia\",$N$10&\"-\"&T472&\"-\"&V472,B472=\"Actividad sin participación\",$N$10&\"-\"&T472&\"-\"&V472,B472=\"\",\"\")","v":""},null,null,null,null,null,null,null,null,null,null,null,null,null,null,null,null,{"$f":"COUNTIFS($B$24:B472,\"Producto \")","v":0},false,448]
[null,null,{"$f":"_xlfn.IFS(B473=\"Producto \",$N$10&\"-\"&T474,B473=\"Actividad Propia\",$N$10&\"-\"&T473&\"-\"&V473,B473=\"Actividad sin participación\",$N$10&\"-\"&T473&\"-\"&V473,B473=\"\",\"\")","v":""},null,null,null,null,null,null,null,null,null,null,null,null,null,null,null,null,{"$f":"COUNTIFS($B$24:B473,\"Producto \")","v":0},{"$f":"IF(B472=\"Producto \",C472&\"-\"&V473)","v":false},{"$f":"IF(B472=\"Producto \",1,V472+1)","v":449}]
[null,null,{"$f":"_xlfn.IFS(B474=\"Producto \",$N$10&\"-\"&T475,B474=\"Actividad Propia\",$N$10&\"-\"&T474&\"-\"&V474,B474=\"Actividad sin participación\",$N$10&\"-\"&T474&\"-\"&V474,B474=\"\",\"\")","v":""},null,null,null,null,null,null,null,null,null,null,null,null,null,null,null,null,{"$f":"COUNTIFS($B$24:B474,\"Producto \")","v":0},false,450]
[null,null,{"$f":"_xlfn.IFS(B475=\"Producto \",$N$10&\"-\"&T476,B475=\"Actividad Propia\",$N$10&\"-\"&T475&\"-\"&V475,B475=\"Actividad sin participación\",$N$10&\"-\"&T475&\"-\"&V475,B475=\"\",\"\")","v":""},null,null,null,null,null,null,null,null,null,null,null,null,null,null,null,null,{"$f":"COUNTIFS($B$24:B475,\"Producto \")","v":0},false,451]
[null,null,{"$f":"_xlfn.IFS(B476=\"Producto \",$N$10&\"-\"&T477,B476=\"Actividad Propia\",$N$10&\"-\"&T476&\"-\"&V476,B476=\"Actividad sin participación\",$N$10&\"-\"&T476&\"-\"&V476,B476=\"\",\"\")","v":""},null,null,null,null,null,null,null,null,null,null,null,null,null,null,null,null,{"$f":"COUNTIFS($B$24:B476,\"Producto \")","v":0},false,452]
[null,null,{"$f":"_xlfn.IFS(B477=\"Producto \",$N$10&\"-\"&T478,B477=\"Actividad Propia\",$N$10&\"-\"&T477&\"-\"&V477,B477=\"Actividad sin participación\",$N$10&\"-\"&T477&\"-\"&V477,B477=\"\",\"\")","v":""},null,null,null,null,null,null,null,null,null,null,null,null,null,null,null,null,{"$f":"COUNTIFS($B$24:B477,\"Producto \")","v":0},false,453]
[null,null,{"$f":"_xlfn.IFS(B478=\"Producto \",$N$10&\"-\"&T479,B478=\"Actividad Propia\",$N$10&\"-\"&T478&\"-\"&V478,B478=\"Actividad sin participación\",$N$10&\"-\"&T478&\"-\"&V478,B478=\"\",\"\")","v":""},null,null,null,null,null,null,null,null,null,null,null,null,null,null,null,null,{"$f":"COUNTIFS($B$24:B478,\"Producto \")","v":0},false,454]
[null,null,{"$f":"_xlfn.IFS(B479=\"Producto \",$N$10&\"-\"&T480,B479=\"Actividad Propia\",$N$10&\"-\"&T479&\"-\"&V479,B479=\"Actividad sin participación\",$N$10&\"-\"&T479&\"-\"&V479,B479=\"\",\"\")","v":""},null,null,null,null,null,null,null,null,null,null,null,null,null,null,null,null,{"$f":"COUNTIFS($B$24:B479,\"Producto \")","v":0},false,455]
[null,null,{"$f":"_xlfn.IFS(B480=\"Producto \",$N$10&\"-\"&T481,B480=\"Actividad Propia\",$N$10&\"-\"&T480&\"-\"&V480,B480=\"Actividad sin participación\",$N$10&\"-\"&T480&\"-\"&V480,B480=\"\",\"\")","v":""},null,null,null,null,null,null,null,null,null,null,null,null,null,null,null,null,{"$f":"COUNTIFS($B$24:B480,\"Producto \")","v":0},false,456]
[null,null,{"$f":"_xlfn.IFS(B481=\"Producto \",$N$10&\"-\"&T482,B481=\"Actividad Propia\",$N$10&\"-\"&T481&\"-\"&V481,B481=\"Actividad sin participación\",$N$10&\"-\"&T481&\"-\"&V481,B481=\"\",\"\")","v":""},null,null,null,null,null,null,null,null,null,null,null,null,null,null,null,null,{"$f":"COUNTIFS($B$24:B481,\"Producto \")","v":0},false,457]
[null,null,{"$f":"_xlfn.IFS(B482=\"Producto \",$N$10&\"-\"&T483,B482=\"Actividad Propia\",$N$10&\"-\"&T482&\"-\"&V482,B482=\"Actividad sin participación\",$N$10&\"-\"&T482&\"-\"&V482,B482=\"\",\"\")","v":""},null,null,null,null,null,null,null,null,null,null,null,null,null,null,null,null,{"$f":"COUNTIFS($B$24:B482,\"Producto \")","v":0},false,458]
[null,null,{"$f":"_xlfn.IFS(B483=\"Producto \",$N$10&\"-\"&T484,B483=\"Actividad Propia\",$N$10&\"-\"&T483&\"-\"&V483,B483=\"Actividad sin participación\",$N$10&\"-\"&T483&\"-\"&V483,B483=\"\",\"\")","v":""},null,null,null,null,null,null,null,null,null,null,null,null,null,null,null,null,{"$f":"COUNTIFS($B$24:B483,\"Producto \")","v":0},false,459]
[null,null,{"$f":"_xlfn.IFS(B484=\"Producto \",$N$10&\"-\"&T485,B484=\"Actividad Propia\",$N$10&\"-\"&T484&\"-\"&V484,B484=\"Actividad sin participación\",$N$10&\"-\"&T484&\"-\"&V484,B484=\"\",\"\")","v":""},null,null,null,null,null,null,null,null,null,null,null,null,null,null,null,null,{"$f":"COUNTIFS($B$24:B484,\"Producto \")","v":0},false,460]
[null,null,{"$f":"_xlfn.IFS(B485=\"Producto \",$N$10&\"-\"&T486,B485=\"Actividad Propia\",$N$10&\"-\"&T485&\"-\"&V485,B485=\"Actividad sin participación\",$N$10&\"-\"&T485&\"-\"&V485,B485=\"\",\"\")","v":""},null,null,null,null,null,null,null,null,null,null,null,null,null,null,null,null,{"$f":"COUNTIFS($B$24:B485,\"Producto \")","v":0},false,461]
[null,null,{"$f":"_xlfn.IFS(B486=\"Producto \",$N$10&\"-\"&T487,B486=\"Actividad Propia\",$N$10&\"-\"&T486&\"-\"&V486,B486=\"Actividad sin participación\",$N$10&\"-\"&T486&\"-\"&V486,B486=\"\",\"\")","v":""},null,null,null,null,null,null,null,null,null,null,null,null,null,null,null,null,{"$f":"COUNTIFS($B$24:B486,\"Producto \")","v":0},false,462]
[null,null,{"$f":"_xlfn.IFS(B487=\"Producto \",$N$10&\"-\"&T488,B487=\"Actividad Propia\",$N$10&\"-\"&T487&\"-\"&V487,B487=\"Actividad sin participación\",$N$10&\"-\"&T487&\"-\"&V487,B487=\"\",\"\")","v":""},null,null,null,null,null,null,null,null,null,null,null,null,null,null,null,null,{"$f":"COUNTIFS($B$24:B487,\"Producto \")","v":0},false,463]
[null,null,{"$f":"_xlfn.IFS(B488=\"Producto \",$N$10&\"-\"&T489,B488=\"Actividad Propia\",$N$10&\"-\"&T488&\"-\"&V488,B488=\"Actividad sin participación\",$N$10&\"-\"&T488&\"-\"&V488,B488=\"\",\"\")","v":""},null,null,null,null,null,null,null,null,null,null,null,null,null,null,null,null,{"$f":"COUNTIFS($B$24:B488,\"Producto \")","v":0},false,464]
[null,null,{"$f":"_xlfn.IFS(B489=\"Producto \",$N$10&\"-\"&T490,B489=\"Actividad Propia\",$N$10&\"-\"&T489&\"-\"&V489,B489=\"Actividad sin participación\",$N$10&\"-\"&T489&\"-\"&V489,B489=\"\",\"\")","v":""},null,null,null,null,null,null,null,null,null,null,null,null,null,null,null,null,{"$f":"COUNTIFS($B$24:B489,\"Producto \")","v":0},false,465]
[null,null,{"$f":"_xlfn.IFS(B490=\"Producto \",$N$10&\"-\"&T491,B490=\"Actividad Propia\",$N$10&\"-\"&T490&\"-\"&V490,B490=\"Actividad sin participación\",$N$10&\"-\"&T490&\"-\"&V490,B490=\"\",\"\")","v":""},null,null,null,null,null,null,null,null,null,null,null,null,null,null,null,null,{"$f":"COUNTIFS($B$24:B490,\"Producto \")","v":0},false,466]
[null,null,{"$f":"_xlfn.IFS(B491=\"Producto \",$N$10&\"-\"&T492,B491=\"Actividad Propia\",$N$10&\"-\"&T491&\"-\"&V491,B491=\"Actividad sin participación\",$N$10&\"-\"&T491&\"-\"&V491,B491=\"\",\"\")","v":""},null,null,null,null,null,null,null,null,null,null,null,null,null,null,null,null,{"$f":"COUNTIFS($B$24:B491,\"Producto \")","v":0},false,467]
[null,null,{"$f":"_xlfn.IFS(B492=\"Producto \",$N$10&\"-\"&T493,B492=\"Actividad Propia\",$N$10&\"-\"&T492&\"-\"&V492,B492=\"Actividad sin participación\",$N$10&\"-\"&T492&\"-\"&V492,B492=\"\",\"\")","v":""},null,null,null,null,null,null,null,null,null,null,null,null,null,null,null,null,{"$f":"COUNTIFS($B$24:B492,\"Producto \")","v":0},false,468]
[null,null,{"$f":"_xlfn.IFS(B493=\"Producto \",$N$10&\"-\"&T494,B493=\"Actividad Propia\",$N$10&\"-\"&T493&\"-\"&V493,B493=\"Actividad sin participación\",$N$10&\"-\"&T493&\"-\"&V493,B493=\"\",\"\")","v":""},null,null,null,null,null,null,null,null,null,null,null,null,null,null,null,null,{"$f":"COUNTIFS($B$24:B493,\"Producto \")","v":0},false,469]
[null,null,{"$f":"_xlfn.IFS(B494=\"Producto \",$N$10&\"-\"&T495,B494=\"Actividad Propia\",$N$10&\"-\"&T494&\"-\"&V494,B494=\"Actividad sin participación\",$N$10&\"-\"&T494&\"-\"&V494,B494=\"\",\"\")","v":""},null,null,null,null,null,null,null,null,null,null,null,null,null,null,null,null,{"$f":"COUNTIFS($B$24:B494,\"Producto \")","v":0},false,470]
[null,null,{"$f":"_xlfn.IFS(B495=\"Producto \",$N$10&\"-\"&T496,B495=\"Actividad Propia\",$N$10&\"-\"&T495&\"-\"&V495,B495=\"Actividad sin participación\",$N$10&\"-\"&T495&\"-\"&V495,B495=\"\",\"\")","v":""},null,null,null,null,null,null,null,null,null,null,null,null,null,null,null,null,{"$f":"COUNTIFS($B$24:B495,\"Producto \")","v":0},false,471]
[null,null,{"$f":"_xlfn.IFS(B496=\"Producto \",$N$10&\"-\"&T497,B496=\"Actividad Propia\",$N$10&\"-\"&T496&\"-\"&V496,B496=\"Actividad sin participación\",$N$10&\"-\"&T496&\"-\"&V496,B496=\"\",\"\")","v":""},null,null,null,null,null,null,null,null,null,null,null,null,null,null,null,null,{"$f":"COUNTIFS($B$24:B496,\"Producto \")","v":0},false,472]
[null,null,{"$f":"_xlfn.IFS(B497=\"Producto \",$N$10&\"-\"&T498,B497=\"Actividad Propia\",$N$10&\"-\"&T497&\"-\"&V497,B497=\"Actividad sin participación\",$N$10&\"-\"&T497&\"-\"&V497,B497=\"\",\"\")","v":""},null,null,null,null,null,null,null,null,null,null,null,null,null,null,null,null,{"$f":"COUNTIFS($B$24:B497,\"Producto \")","v":0},false,473]
[null,null,{"$f":"_xlfn.IFS(B498=\"Producto \",$N$10&\"-\"&T499,B498=\"Actividad Propia\",$N$10&\"-\"&T498&\"-\"&V498,B498=\"Actividad sin participación\",$N$10&\"-\"&T498&\"-\"&V498,B498=\"\",\"\")","v":""},null,null,null,null,null,null,null,null,null,null,null,null,null,null,null,null,{"$f":"COUNTIFS($B$24:B498,\"Producto \")","v":0},false,474]
[null,null,{"$f":"_xlfn.IFS(B499=\"Producto \",$N$10&\"-\"&T500,B499=\"Actividad Propia\",$N$10&\"-\"&T499&\"-\"&V499,B499=\"Actividad sin participación\",$N$10&\"-\"&T499&\"-\"&V499,B499=\"\",\"\")","v":""},null,null,null,null,null,null,null,null,null,null,null,null,null,null,null,null,{"$f":"COUNTIFS($B$24:B499,\"Producto \")","v":0},false,475]
[null,null,{"$f":"_xlfn.IFS(B500=\"Producto \",$N$10&\"-\"&T501,B500=\"Actividad Propia\",$N$10&\"-\"&T500&\"-\"&V500,B500=\"Actividad sin participación\",$N$10&\"-\"&T500&\"-\"&V500,B500=\"\",\"\")","v":""},null,null,null,null,null,null,null,null,null,null,null,null,null,null,null,null,{"$f":"COUNTIFS($B$24:B500,\"Producto \")","v":0},false,476]
[null,null,{"$f":"_xlfn.IFS(B501=\"Producto \",$N$10&\"-\"&T502,B501=\"Actividad Propia\",$N$10&\"-\"&T501&\"-\"&V501,B501=\"Actividad sin participación\",$N$10&\"-\"&T501&\"-\"&V501,B501=\"\",\"\")","v":""},null,null,null,null,null,null,null,null,null,null,null,null,null,null,null,null,{"$f":"COUNTIFS($B$24:B501,\"Producto \")","v":0},false,477]
[null,null,{"$f":"_xlfn.IFS(B502=\"Producto \",$N$10&\"-\"&T503,B502=\"Actividad Propia\",$N$10&\"-\"&T502&\"-\"&V502,B502=\"Actividad sin participación\",$N$10&\"-\"&T502&\"-\"&V502,B502=\"\",\"\")","v":""},null,null,null,null,null,null,null,null,null,null,null,null,null,null,null,null,{"$f":"COUNTIFS($B$24:B502,\"Producto \")","v":0},false,478]
[null,null,{"$f":"_xlfn.IFS(B503=\"Producto \",$N$10&\"-\"&T504,B503=\"Actividad Propia\",$N$10&\"-\"&T503&\"-\"&V503,B503=\"Actividad sin participación\",$N$10&\"-\"&T503&\"-\"&V503,B503=\"\",\"\")","v":""},null,null,null,null,null,null,null,null,null,null,null,null,null,null,null,null,{"$f":"COUNTIFS($B$24:B503,\"Producto \")","v":0},false,479]
[null,null,{"$f":"_xlfn.IFS(B504=\"Producto \",$N$10&\"-\"&T505,B504=\"Actividad Propia\",$N$10&\"-\"&T504&\"-\"&V504,B504=\"Actividad sin participación\",$N$10&\"-\"&T504&\"-\"&V504,B504=\"\",\"\")","v":""},null,null,null,null,null,null,null,null,null,null,null,null,null,null,null,null,{"$f":"COUNTIFS($B$24:B504,\"Producto \")","v":0},false,480]
[null,null,{"$f":"_xlfn.IFS(B505=\"Producto \",$N$10&\"-\"&T506,B505=\"Actividad Propia\",$N$10&\"-\"&T505&\"-\"&V505,B505=\"Actividad sin participación\",$N$10&\"-\"&T505&\"-\"&V505,B505=\"\",\"\")","v":""},null,null,null,null,null,null,null,null,null,null,null,null,null,null,null,null,{"$f":"COUNTIFS($B$24:B505,\"Producto \")","v":0},false,481]
[null,null,{"$f":"_xlfn.IFS(B506=\"Producto \",$N$10&\"-\"&T507,B506=\"Actividad Propia\",$N$10&\"-\"&T506&\"-\"&V506,B506=\"Actividad sin participación\",$N$10&\"-\"&T506&\"-\"&V506,B506=\"\",\"\")","v":""},null,null,null,null,null,null,null,null,null,null,null,null,null,null,null,null,{"$f":"COUNTIFS($B$24:B506,\"Producto \")","v":0},false,482]
[null,null,{"$f":"_xlfn.IFS(B507=\"Producto \",$N$10&\"-\"&T508,B507=\"Actividad Propia\",$N$10&\"-\"&T507&\"-\"&V507,B507=\"Actividad sin participación\",$N$10&\"-\"&T507&\"-\"&V507,B507=\"\",\"\")","v":""},null,null,null,null,null,null,null,null,null,null,null,null,null,null,null,null,{"$f":"COUNTIFS($B$24:B507,\"Producto \")","v":0},false,483]
[null,null,{"$f":"_xlfn.IFS(B508=\"Producto \",$N$10&\"-\"&T509,B508=\"Actividad Propia\",$N$10&\"-\"&T508&\"-\"&V508,B508=\"Actividad sin participación\",$N$10&\"-\"&T508&\"-\"&V508,B508=\"\",\"\")","v":""},null,null,null,null,null,null,null,null,null,null,null,null,null,null,null,null,{"$f":"COUNTIFS($B$24:B508,\"Producto \")","v":0},false,484]
[null,null,{"$f":"_xlfn.IFS(B509=\"Producto \",$N$10&\"-\"&T510,B509=\"Actividad Propia\",$N$10&\"-\"&T509&\"-\"&V509,B509=\"Actividad sin participación\",$N$10&\"-\"&T509&\"-\"&V509,B509=\"\",\"\")","v":""},null,null,null,null,null,null,null,null,null,null,null,null,null,null,null,null,{"$f":"COUNTIFS($B$24:B509,\"Producto \")","v":0},false,485]
[null,null,{"$f":"_xlfn.IFS(B510=\"Producto \",$N$10&\"-\"&T511,B510=\"Actividad Propia\",$N$10&\"-\"&T510&\"-\"&V510,B510=\"Actividad sin participación\",$N$10&\"-\"&T510&\"-\"&V510,B510=\"\",\"\")","v":""},null,null,null,null,null,null,null,null,null,null,null,null,null,null,null,null,{"$f":"COUNTIFS($B$24:B510,\"Producto \")","v":0},false,486]
[null,null,{"$f":"_xlfn.IFS(B511=\"Producto \",$N$10&\"-\"&T512,B511=\"Actividad Propia\",$N$10&\"-\"&T511&\"-\"&V511,B511=\"Actividad sin participación\",$N$10&\"-\"&T511&\"-\"&V511,B511=\"\",\"\")","v":""},null,null,null,null,null,null,null,null,null,null,null,null,null,null,null,null,{"$f":"COUNTIFS($B$24:B511,\"Producto \")","v":0},false,487]
[null,null,{"$f":"_xlfn.IFS(B512=\"Producto \",$N$10&\"-\"&T513,B512=\"Actividad Propia\",$N$10&\"-\"&T512&\"-\"&V512,B512=\"Actividad sin participación\",$N$10&\"-\"&T512&\"-\"&V512,B512=\"\",\"\")","v":""},null,null,null,null,null,null,null,null,null,null,null,null,null,null,null,null,{"$f":"COUNTIFS($B$24:B512,\"Producto \")","v":0},false,488]
[null,null,{"$f":"_xlfn.IFS(B513=\"Producto \",$N$10&\"-\"&T514,B513=\"Actividad Propia\",$N$10&\"-\"&T513&\"-\"&V513,B513=\"Actividad sin participación\",$N$10&\"-\"&T513&\"-\"&V513,B513=\"\",\"\")","v":""},null,null,null,null,null,null,null,null,null,null,null,null,null,null,null,null,{"$f":"COUNTIFS($B$24:B513,\"Producto \")","v":0},false,489]
[null,null,{"$f":"_xlfn.IFS(B514=\"Producto \",$N$10&\"-\"&T515,B514=\"Actividad Propia\",$N$10&\"-\"&T514&\"-\"&V514,B514=\"Actividad sin participación\",$N$10&\"-\"&T514&\"-\"&V514,B514=\"\",\"\")","v":""},null,null,null,null,null,null,null,null,null,null,null,null,null,null,null,null,{"$f":"COUNTIFS($B$24:B514,\"Producto \")","v":0},false,490]
[null,null,{"$f":"_xlfn.IFS(B515=\"Producto \",$N$10&\"-\"&T516,B515=\"Actividad Propia\",$N$10&\"-\"&T515&\"-\"&V515,B515=\"Actividad sin participación\",$N$10&\"-\"&T515&\"-\"&V515,B515=\"\",\"\")","v":""},null,null,null,null,null,null,null,null,null,null,null,null,null,null,null,null,{"$f":"COUNTIFS($B$24:B515,\"Producto \")","v":0},false,491]
[null,null,{"$f":"_xlfn.IFS(B516=\"Producto \",$N$10&\"-\"&T517,B516=\"Actividad Propia\",$N$10&\"-\"&T516&\"-\"&V516,B516=\"Actividad sin participación\",$N$10&\"-\"&T516&\"-\"&V516,B516=\"\",\"\")","v":""},null,null,null,null,null,null,null,null,null,null,null,null,null,null,null,null,{"$f":"COUNTIFS($B$24:B516,\"Producto \")","v":0},false,492]
[null,null,{"$f":"_xlfn.IFS(B517=\"Producto \",$N$10&\"-\"&T518,B517=\"Actividad Propia\",$N$10&\"-\"&T517&\"-\"&V517,B517=\"Actividad sin participación\",$N$10&\"-\"&T517&\"-\"&V517,B517=\"\",\"\")","v":""},null,null,null,null,null,null,null,null,null,null,null,null,null,null,null,null,{"$f":"COUNTIFS($B$24:B517,\"Producto \")","v":0},false,493]
[null,null,{"$f":"_xlfn.IFS(B518=\"Producto \",$N$10&\"-\"&T519,B518=\"Actividad Propia\",$N$10&\"-\"&T518&\"-\"&V518,B518=\"Actividad sin participación\",$N$10&\"-\"&T518&\"-\"&V518,B518=\"\",\"\")","v":""},null,null,null,null,null,null,null,null,null,null,null,null,null,null,null,null,{"$f":"COUNTIFS($B$24:B518,\"Producto \")","v":0},false,494]
[null,null,{"$f":"_xlfn.IFS(B519=\"Producto \",$N$10&\"-\"&T520,B519=\"Actividad Propia\",$N$10&\"-\"&T519&\"-\"&V519,B519=\"Actividad sin participación\",$N$10&\"-\"&T519&\"-\"&V519,B519=\"\",\"\")","v":""},null,null,null,null,null,null,null,null,null,null,null,null,null,null,null,null,{"$f":"COUNTIFS($B$24:B519,\"Producto \")","v":0},false,495]
[null,null,{"$f":"_xlfn.IFS(B520=\"Producto \",$N$10&\"-\"&T521,B520=\"Actividad Propia\",$N$10&\"-\"&T520&\"-\"&V520,B520=\"Actividad sin participación\",$N$10&\"-\"&T520&\"-\"&V520,B520=\"\",\"\")","v":""},null,null,null,null,null,null,null,null,null,null,null,null,null,null,null,null,{"$f":"COUNTIFS($B$24:B520,\"Producto \")","v":0},false,496]
[null,null,{"$f":"_xlfn.IFS(B521=\"Producto \",$N$10&\"-\"&T522,B521=\"Actividad Propia\",$N$10&\"-\"&T521&\"-\"&V521,B521=\"Actividad sin participación\",$N$10&\"-\"&T521&\"-\"&V521,B521=\"\",\"\")","v":""},null,null,null,null,null,null,null,null,null,null,null,null,null,null,null,null,{"$f":"COUNTIFS($B$24:B521,\"Producto \")","v":0},false,497]
[null,null,{"$f":"_xlfn.IFS(B522=\"Producto \",$N$10&\"-\"&T523,B522=\"Actividad Propia\",$N$10&\"-\"&T522&\"-\"&V522,B522=\"Actividad sin participación\",$N$10&\"-\"&T522&\"-\"&V522,B522=\"\",\"\")","v":""},null,null,null,null,null,null,null,null,null,null,null,null,null,null,null,null,{"$f":"COUNTIFS($B$24:B522,\"Producto \")","v":0},false,498]
[null,null,{"$f":"_xlfn.IFS(B523=\"Producto \",$N$10&\"-\"&T524,B523=\"Actividad Propia\",$N$10&\"-\"&T523&\"-\"&V523,B523=\"Actividad sin participación\",$N$10&\"-\"&T523&\"-\"&V523,B523=\"\",\"\")","v":""},null,null,null,null,null,null,null,null,null,null,null,null,null,null,null,null,{"$f":"COUNTIFS($B$24:B523,\"Producto \")","v":0},false,499]
[null,null,{"$f":"_xlfn.IFS(B524=\"Producto \",$N$10&\"-\"&T525,B524=\"Actividad Propia\",$N$10&\"-\"&T524&\"-\"&V524,B524=\"Actividad sin participación\",$N$10&\"-\"&T524&\"-\"&V524,B524=\"\",\"\")","v":""},null,null,null,null,null,null,null,null,null,null,null,null,null,null,null,null,{"$f":"COUNTIFS($B$24:B524,\"Producto \")","v":0},false,500]
[null,null,{"$f":"_xlfn.IFS(B525=\"Producto \",$N$10&\"-\"&T526,B525=\"Actividad Propia\",$N$10&\"-\"&T525&\"-\"&V525,B525=\"Actividad sin participación\",$N$10&\"-\"&T525&\"-\"&V525,B525=\"\",\"\")","v":""},null,null,null,null,null,null,null,null,null,null,null,null,null,null,null,null,{"$f":"COUNTIFS($B$24:B525,\"Producto \")","v":0},false,501]
[null,null,{"$f":"_xlfn.IFS(B526=\"Producto \",$N$10&\"-\"&T527,B526=\"Actividad Propia\",$N$10&\"-\"&T526&\"-\"&V526,B526=\"Actividad sin participación\",$N$10&\"-\"&T526&\"-\"&V526,B526=\"\",\"\")","v":""},null,null,null,null,null,null,null,null,null,null,null,null,null,null,null,null,{"$f":"COUNTIFS($B$24:B526,\"Producto \")","v":0},false,502]
[null,null,{"$f":"_xlfn.IFS(B527=\"Producto \",$N$10&\"-\"&T528,B527=\"Actividad Propia\",$N$10&\"-\"&T527&\"-\"&V527,B527=\"Actividad sin participación\",$N$10&\"-\"&T527&\"-\"&V527,B527=\"\",\"\")","v":""},null,null,null,null,null,null,null,null,null,null,null,null,null,null,null,null,{"$f":"COUNTIFS($B$24:B527,\"Producto \")","v":0},false,503]
[null,null,{"$f":"_xlfn.IFS(B528=\"Producto \",$N$10&\"-\"&T529,B528=\"Actividad Propia\",$N$10&\"-\"&T528&\"-\"&V528,B528=\"Actividad sin participación\",$N$10&\"-\"&T528&\"-\"&V528,B528=\"\",\"\")","v":""},null,null,null,null,null,null,null,null,null,null,null,null,null,null,null,null,{"$f":"COUNTIFS($B$24:B528,\"Producto \")","v":0},false,504]
[null,null,{"$f":"_xlfn.IFS(B529=\"Producto \",$N$10&\"-\"&T530,B529=\"Actividad Propia\",$N$10&\"-\"&T529&\"-\"&V529,B529=\"Actividad sin participación\",$N$10&\"-\"&T529&\"-\"&V529,B529=\"\",\"\")","v":""},null,null,null,null,null,null,null,null,null,null,null,null,null,null,null,null,{"$f":"COUNTIFS($B$24:B529,\"Producto \")","v":0},false,505]
[null,null,{"$f":"_xlfn.IFS(B530=\"Producto \",$N$10&\"-\"&T531,B530=\"Actividad Propia\",$N$10&\"-\"&T530&\"-\"&V530,B530=\"Actividad sin participación\",$N$10&\"-\"&T530&\"-\"&V530,B530=\"\",\"\")","v":""},null,null,null,null,null,null,null,null,null,null,null,null,null,null,null,null,{"$f":"COUNTIFS($B$24:B530,\"Producto \")","v":0},false,506]
[null,null,{"$f":"_xlfn.IFS(B531=\"Producto \",$N$10&\"-\"&T532,B531=\"Actividad Propia\",$N$10&\"-\"&T531&\"-\"&V531,B531=\"Actividad sin participación\",$N$10&\"-\"&T531&\"-\"&V531,B531=\"\",\"\")","v":""},null,null,null,null,null,null,null,null,null,null,null,null,null,null,null,null,{"$f":"COUNTIFS($B$24:B531,\"Producto \")","v":0},false,507]
[null,null,{"$f":"_xlfn.IFS(B532=\"Producto \",$N$10&\"-\"&T533,B532=\"Actividad Propia\",$N$10&\"-\"&T532&\"-\"&V532,B532=\"Actividad sin participación\",$N$10&\"-\"&T532&\"-\"&V532,B532=\"\",\"\")","v":""},null,null,null,null,null,null,null,null,null,null,null,null,null,null,null,null,{"$f":"COUNTIFS($B$24:B532,\"Producto \")","v":0},false,508]
[null,null,{"$f":"_xlfn.IFS(B533=\"Producto \",$N$10&\"-\"&T534,B533=\"Actividad Propia\",$N$10&\"-\"&T533&\"-\"&V533,B533=\"Actividad sin participación\",$N$10&\"-\"&T533&\"-\"&V533,B533=\"\",\"\")","v":""},null,null,null,null,null,null,null,null,null,null,null,null,null,null,null,null,{"$f":"COUNTIFS($B$24:B533,\"Producto \")","v":0},false,509]
[null,null,{"$f":"_xlfn.IFS(B534=\"Producto \",$N$10&\"-\"&T535,B534=\"Actividad Propia\",$N$10&\"-\"&T534&\"-\"&V534,B534=\"Actividad sin participación\",$N$10&\"-\"&T534&\"-\"&V534,B534=\"\",\"\")","v":""},null,null,null,null,null,null,null,null,null,null,null,null,null,null,null,null,{"$f":"COUNTIFS($B$24:B534,\"Producto \")","v":0},false,510]
[null,null,{"$f":"_xlfn.IFS(B535=\"Producto \",$N$10&\"-\"&T536,B535=\"Actividad Propia\",$N$10&\"-\"&T535&\"-\"&V535,B535=\"Actividad sin participación\",$N$10&\"-\"&T535&\"-\"&V535,B535=\"\",\"\")","v":""},null,null,null,null,null,null,null,null,null,null,null,null,null,null,null,null,{"$f":"COUNTIFS($B$24:B535,\"Producto \")","v":0},false,511]
[null,null,{"$f":"_xlfn.IFS(B536=\"Producto \",$N$10&\"-\"&T537,B536=\"Actividad Propia\",$N$10&\"-\"&T536&\"-\"&V536,B536=\"Actividad sin participación\",$N$10&\"-\"&T536&\"-\"&V536,B536=\"\",\"\")","v":""},null,null,null,null,null,null,null,null,null,null,null,null,null,null,null,null,{"$f":"COUNTIFS($B$24:B536,\"Producto \")","v":0},false,512]
[null,null,{"$f":"_xlfn.IFS(B537=\"Producto \",$N$10&\"-\"&T538,B537=\"Actividad Propia\",$N$10&\"-\"&T537&\"-\"&V537,B537=\"Actividad sin participación\",$N$10&\"-\"&T537&\"-\"&V537,B537=\"\",\"\")","v":""},null,null,null,null,null,null,null,null,null,null,null,null,null,null,null,null,{"$f":"COUNTIFS($B$24:B537,\"Producto \")","v":0},{"$f":"IF(B536=\"Producto \",C536&\"-\"&V537)","v":false},{"$f":"IF(B536=\"Producto \",1,V536+1)","v":513}]
[null,null,{"$f":"_xlfn.IFS(B538=\"Producto \",$N$10&\"-\"&T539,B538=\"Actividad Propia\",$N$10&\"-\"&T538&\"-\"&V538,B538=\"Actividad sin participación\",$N$10&\"-\"&T538&\"-\"&V538,B538=\"\",\"\")","v":""},null,null,null,null,null,null,null,null,null,null,null,null,null,null,null,null,{"$f":"COUNTIFS($B$24:B538,\"Producto \")","v":0},false,514]
[null,null,{"$f":"_xlfn.IFS(B539=\"Producto \",$N$10&\"-\"&T540,B539=\"Actividad Propia\",$N$10&\"-\"&T539&\"-\"&V539,B539=\"Actividad sin participación\",$N$10&\"-\"&T539&\"-\"&V539,B539=\"\",\"\")","v":""},null,null,null,null,null,null,null,null,null,null,null,null,null,null,null,null,{"$f":"COUNTIFS($B$24:B539,\"Producto \")","v":0},false,515]
[null,null,{"$f":"_xlfn.IFS(B540=\"Producto \",$N$10&\"-\"&T541,B540=\"Actividad Propia\",$N$10&\"-\"&T540&\"-\"&V540,B540=\"Actividad sin participación\",$N$10&\"-\"&T540&\"-\"&V540,B540=\"\",\"\")","v":""},null,null,null,null,null,null,null,null,null,null,null,null,null,null,null,null,{"$f":"COUNTIFS($B$24:B540,\"Producto \")","v":0},false,516]
[null,null,{"$f":"_xlfn.IFS(B541=\"Producto \",$N$10&\"-\"&T542,B541=\"Actividad Propia\",$N$10&\"-\"&T541&\"-\"&V541,B541=\"Actividad sin participación\",$N$10&\"-\"&T541&\"-\"&V541,B541=\"\",\"\")","v":""},null,null,null,null,null,null,null,null,null,null,null,null,null,null,null,null,{"$f":"COUNTIFS($B$24:B541,\"Producto \")","v":0},false,517]
[null,null,{"$f":"_xlfn.IFS(B542=\"Producto \",$N$10&\"-\"&T543,B542=\"Actividad Propia\",$N$10&\"-\"&T542&\"-\"&V542,B542=\"Actividad sin participación\",$N$10&\"-\"&T542&\"-\"&V542,B542=\"\",\"\")","v":""},null,null,null,null,null,null,null,null,null,null,null,null,null,null,null,null,{"$f":"COUNTIFS($B$24:B542,\"Producto \")","v":0},false,518]
[null,null,{"$f":"_xlfn.IFS(B543=\"Producto \",$N$10&\"-\"&T544,B543=\"Actividad Propia\",$N$10&\"-\"&T543&\"-\"&V543,B543=\"Actividad sin participación\",$N$10&\"-\"&T543&\"-\"&V543,B543=\"\",\"\")","v":""},null,null,null,null,null,null,null,null,null,null,null,null,null,null,null,null,{"$f":"COUNTIFS($B$24:B543,\"Producto \")","v":0},false,519]
[null,null,{"$f":"_xlfn.IFS(B544=\"Producto \",$N$10&\"-\"&T545,B544=\"Actividad Propia\",$N$10&\"-\"&T544&\"-\"&V544,B544=\"Actividad sin participación\",$N$10&\"-\"&T544&\"-\"&V544,B544=\"\",\"\")","v":""},null,null,null,null,null,null,null,null,null,null,null,null,null,null,null,null,{"$f":"COUNTIFS($B$24:B544,\"Producto \")","v":0},false,520]
[null,null,{"$f":"_xlfn.IFS(B545=\"Producto \",$N$10&\"-\"&T546,B545=\"Actividad Propia\",$N$10&\"-\"&T545&\"-\"&V545,B545=\"Actividad sin participación\",$N$10&\"-\"&T545&\"-\"&V545,B545=\"\",\"\")","v":""},null,null,null,null,null,null,null,null,null,null,null,null,null,null,null,null,{"$f":"COUNTIFS($B$24:B545,\"Producto \")","v":0},false,521]
[null,null,{"$f":"_xlfn.IFS(B546=\"Producto \",$N$10&\"-\"&T547,B546=\"Actividad Propia\",$N$10&\"-\"&T546&\"-\"&V546,B546=\"Actividad sin participación\",$N$10&\"-\"&T546&\"-\"&V546,B546=\"\",\"\")","v":""},null,null,null,null,null,null,null,null,null,null,null,null,null,null,null,null,{"$f":"COUNTIFS($B$24:B546,\"Producto \")","v":0},false,522]
[null,null,{"$f":"_xlfn.IFS(B547=\"Producto \",$N$10&\"-\"&T548,B547=\"Actividad Propia\",$N$10&\"-\"&T547&\"-\"&V547,B547=\"Actividad sin participación\",$N$10&\"-\"&T547&\"-\"&V547,B547=\"\",\"\")","v":""},null,null,null,null,null,null,null,null,null,null,null,null,null,null,null,null,{"$f":"COUNTIFS($B$24:B547,\"Producto \")","v":0},false,523]
[null,null,{"$f":"_xlfn.IFS(B548=\"Producto \",$N$10&\"-\"&T549,B548=\"Actividad Propia\",$N$10&\"-\"&T548&\"-\"&V548,B548=\"Actividad sin participación\",$N$10&\"-\"&T548&\"-\"&V548,B548=\"\",\"\")","v":""},null,null,null,null,null,null,null,null,null,null,null,null,null,null,null,null,{"$f":"COUNTIFS($B$24:B548,\"Producto \")","v":0},false,524]
[null,null,{"$f":"_xlfn.IFS(B549=\"Producto \",$N$10&\"-\"&T550,B549=\"Actividad Propia\",$N$10&\"-\"&T549&\"-\"&V549,B549=\"Actividad sin participación\",$N$10&\"-\"&T549&\"-\"&V549,B549=\"\",\"\")","v":""},null,null,null,null,null,null,null,null,null,null,null,null,null,null,null,null,{"$f":"COUNTIFS($B$24:B549,\"Producto \")","v":0},false,525]
[null,null,{"$f":"_xlfn.IFS(B550=\"Producto \",$N$10&\"-\"&T551,B550=\"Actividad Propia\",$N$10&\"-\"&T550&\"-\"&V550,B550=\"Actividad sin participación\",$N$10&\"-\"&T550&\"-\"&V550,B550=\"\",\"\")","v":""},null,null,null,null,null,null,null,null,null,null,null,null,null,null,null,null,{"$f":"COUNTIFS($B$24:B550,\"Producto \")","v":0},false,526]
[null,null,{"$f":"_xlfn.IFS(B551=\"Producto \",$N$10&\"-\"&T552,B551=\"Actividad Propia\",$N$10&\"-\"&T551&\"-\"&V551,B551=\"Actividad sin participación\",$N$10&\"-\"&T551&\"-\"&V551,B551=\"\",\"\")","v":""},null,null,null,null,null,null,null,null,null,null,null,null,null,null,null,null,{"$f":"COUNTIFS($B$24:B551,\"Producto \")","v":0},false,527]
[null,null,{"$f":"_xlfn.IFS(B552=\"Producto \",$N$10&\"-\"&T553,B552=\"Actividad Propia\",$N$10&\"-\"&T552&\"-\"&V552,B552=\"Actividad sin participación\",$N$10&\"-\"&T552&\"-\"&V552,B552=\"\",\"\")","v":""},null,null,null,null,null,null,null,null,null,null,null,null,null,null,null,null,{"$f":"COUNTIFS($B$24:B552,\"Producto \")","v":0},false,528]
[null,null,{"$f":"_xlfn.IFS(B553=\"Producto \",$N$10&\"-\"&T554,B553=\"Actividad Propia\",$N$10&\"-\"&T553&\"-\"&V553,B553=\"Actividad sin participación\",$N$10&\"-\"&T553&\"-\"&V553,B553=\"\",\"\")","v":""},null,null,null,null,null,null,null,null,null,null,null,null,null,null,null,null,{"$f":"COUNTIFS($B$24:B553,\"Producto \")","v":0},false,529]
[null,null,{"$f":"_xlfn.IFS(B554=\"Producto \",$N$10&\"-\"&T555,B554=\"Actividad Propia\",$N$10&\"-\"&T554&\"-\"&V554,B554=\"Actividad sin participación\",$N$10&\"-\"&T554&\"-\"&V554,B554=\"\",\"\")","v":""},null,null,null,null,null,null,null,null,null,null,null,null,null,null,null,null,{"$f":"COUNTIFS($B$24:B554,\"Producto \")","v":0},false,530]
[null,null,{"$f":"_xlfn.IFS(B555=\"Producto \",$N$10&\"-\"&T556,B555=\"Actividad Propia\",$N$10&\"-\"&T555&\"-\"&V555,B555=\"Actividad sin participación\",$N$10&\"-\"&T555&\"-\"&V555,B555=\"\",\"\")","v":""},null,null,null,null,null,null,null,null,null,null,null,null,null,null,null,null,{"$f":"COUNTIFS($B$24:B555,\"Producto \")","v":0},false,531]
[null,null,{"$f":"_xlfn.IFS(B556=\"Producto \",$N$10&\"-\"&T557,B556=\"Actividad Propia\",$N$10&\"-\"&T556&\"-\"&V556,B556=\"Actividad sin participación\",$N$10&\"-\"&T556&\"-\"&V556,B556=\"\",\"\")","v":""},null,null,null,null,null,null,null,null,null,null,null,null,null,null,null,null,{"$f":"COUNTIFS($B$24:B556,\"Producto \")","v":0},false,532]
[null,null,{"$f":"_xlfn.IFS(B557=\"Producto \",$N$10&\"-\"&T558,B557=\"Actividad Propia\",$N$10&\"-\"&T557&\"-\"&V557,B557=\"Actividad sin participación\",$N$10&\"-\"&T557&\"-\"&V557,B557=\"\",\"\")","v":""},null,null,null,null,null,null,null,null,null,null,null,null,null,null,null,null,{"$f":"COUNTIFS($B$24:B557,\"Producto \")","v":0},false,533]
[null,null,{"$f":"_xlfn.IFS(B558=\"Producto \",$N$10&\"-\"&T559,B558=\"Actividad Propia\",$N$10&\"-\"&T558&\"-\"&V558,B558=\"Actividad sin participación\",$N$10&\"-\"&T558&\"-\"&V558,B558=\"\",\"\")","v":""},null,null,null,null,null,null,null,null,null,null,null,null,null,null,null,null,{"$f":"COUNTIFS($B$24:B558,\"Producto \")","v":0},false,534]
[null,null,{"$f":"_xlfn.IFS(B559=\"Producto \",$N$10&\"-\"&T560,B559=\"Actividad Propia\",$N$10&\"-\"&T559&\"-\"&V559,B559=\"Actividad sin participación\",$N$10&\"-\"&T559&\"-\"&V559,B559=\"\",\"\")","v":""},null,null,null,null,null,null,null,null,null,null,null,null,null,null,null,null,{"$f":"COUNTIFS($B$24:B559,\"Producto \")","v":0},false,535]
[null,null,{"$f":"_xlfn.IFS(B560=\"Producto \",$N$10&\"-\"&T561,B560=\"Actividad Propia\",$N$10&\"-\"&T560&\"-\"&V560,B560=\"Actividad sin participación\",$N$10&\"-\"&T560&\"-\"&V560,B560=\"\",\"\")","v":""},null,null,null,null,null,null,null,null,null,null,null,null,null,null,null,null,{"$f":"COUNTIFS($B$24:B560,\"Producto \")","v":0},false,536]
[null,null,{"$f":"_xlfn.IFS(B561=\"Producto \",$N$10&\"-\"&T562,B561=\"Actividad Propia\",$N$10&\"-\"&T561&\"-\"&V561,B561=\"Actividad sin participación\",$N$10&\"-\"&T561&\"-\"&V561,B561=\"\",\"\")","v":""},null,null,null,null,null,null,null,null,null,null,null,null,null,null,null,null,{"$f":"COUNTIFS($B$24:B561,\"Producto \")","v":0},false,537]
[null,null,{"$f":"_xlfn.IFS(B562=\"Producto \",$N$10&\"-\"&T563,B562=\"Actividad Propia\",$N$10&\"-\"&T562&\"-\"&V562,B562=\"Actividad sin participación\",$N$10&\"-\"&T562&\"-\"&V562,B562=\"\",\"\")","v":""},null,null,null,null,null,null,null,null,null,null,null,null,null,null,null,null,{"$f":"COUNTIFS($B$24:B562,\"Producto \")","v":0},false,538]
[null,null,{"$f":"_xlfn.IFS(B563=\"Producto \",$N$10&\"-\"&T564,B563=\"Actividad Propia\",$N$10&\"-\"&T563&\"-\"&V563,B563=\"Actividad sin participación\",$N$10&\"-\"&T563&\"-\"&V563,B563=\"\",\"\")","v":""},null,null,null,null,null,null,null,null,null,null,null,null,null,null,null,null,{"$f":"COUNTIFS($B$24:B563,\"Producto \")","v":0},false,539]
[null,null,{"$f":"_xlfn.IFS(B564=\"Producto \",$N$10&\"-\"&T565,B564=\"Actividad Propia\",$N$10&\"-\"&T564&\"-\"&V564,B564=\"Actividad sin participación\",$N$10&\"-\"&T564&\"-\"&V564,B564=\"\",\"\")","v":""},null,null,null,null,null,null,null,null,null,null,null,null,null,null,null,null,{"$f":"COUNTIFS($B$24:B564,\"Producto \")","v":0},false,540]
[null,null,{"$f":"_xlfn.IFS(B565=\"Producto \",$N$10&\"-\"&T566,B565=\"Actividad Propia\",$N$10&\"-\"&T565&\"-\"&V565,B565=\"Actividad sin participación\",$N$10&\"-\"&T565&\"-\"&V565,B565=\"\",\"\")","v":""},null,null,null,null,null,null,null,null,null,null,null,null,null,null,null,null,{"$f":"COUNTIFS($B$24:B565,\"Producto \")","v":0},false,541]
[null,null,{"$f":"_xlfn.IFS(B566=\"Producto \",$N$10&\"-\"&T567,B566=\"Actividad Propia\",$N$10&\"-\"&T566&\"-\"&V566,B566=\"Actividad sin participación\",$N$10&\"-\"&T566&\"-\"&V566,B566=\"\",\"\")","v":""},null,null,null,null,null,null,null,null,null,null,null,null,null,null,null,null,{"$f":"COUNTIFS($B$24:B566,\"Producto \")","v":0},false,542]
[null,null,{"$f":"_xlfn.IFS(B567=\"Producto \",$N$10&\"-\"&T568,B567=\"Actividad Propia\",$N$10&\"-\"&T567&\"-\"&V567,B567=\"Actividad sin participación\",$N$10&\"-\"&T567&\"-\"&V567,B567=\"\",\"\")","v":""},null,null,null,null,null,null,null,null,null,null,null,null,null,null,null,null,{"$f":"COUNTIFS($B$24:B567,\"Producto \")","v":0},false,543]
[null,null,{"$f":"_xlfn.IFS(B568=\"Producto \",$N$10&\"-\"&T569,B568=\"Actividad Propia\",$N$10&\"-\"&T568&\"-\"&V568,B568=\"Actividad sin participación\",$N$10&\"-\"&T568&\"-\"&V568,B568=\"\",\"\")","v":""},null,null,null,null,null,null,null,null,null,null,null,null,null,null,null,null,{"$f":"COUNTIFS($B$24:B568,\"Producto \")","v":0},false,544]
[null,null,{"$f":"_xlfn.IFS(B569=\"Producto \",$N$10&\"-\"&T570,B569=\"Actividad Propia\",$N$10&\"-\"&T569&\"-\"&V569,B569=\"Actividad sin participación\",$N$10&\"-\"&T569&\"-\"&V569,B569=\"\",\"\")","v":""},null,null,null,null,null,null,null,null,null,null,null,null,null,null,null,null,{"$f":"COUNTIFS($B$24:B569,\"Producto \")","v":0},false,545]
[null,null,{"$f":"_xlfn.IFS(B570=\"Producto \",$N$10&\"-\"&T571,B570=\"Actividad Propia\",$N$10&\"-\"&T570&\"-\"&V570,B570=\"Actividad sin participación\",$N$10&\"-\"&T570&\"-\"&V570,B570=\"\",\"\")","v":""},null,null,null,null,null,null,null,null,null,null,null,null,null,null,null,null,{"$f":"COUNTIFS($B$24:B570,\"Producto \")","v":0},false,546]
[null,null,{"$f":"_xlfn.IFS(B571=\"Producto \",$N$10&\"-\"&T572,B571=\"Actividad Propia\",$N$10&\"-\"&T571&\"-\"&V571,B571=\"Actividad sin participación\",$N$10&\"-\"&T571&\"-\"&V571,B571=\"\",\"\")","v":""},null,null,null,null,null,null,null,null,null,null,null,null,null,null,null,null,{"$f":"COUNTIFS($B$24:B571,\"Producto \")","v":0},false,547]
[null,null,{"$f":"_xlfn.IFS(B572=\"Producto \",$N$10&\"-\"&T573,B572=\"Actividad Propia\",$N$10&\"-\"&T572&\"-\"&V572,B572=\"Actividad sin participación\",$N$10&\"-\"&T572&\"-\"&V572,B572=\"\",\"\")","v":""},null,null,null,null,null,null,null,null,null,null,null,null,null,null,null,null,{"$f":"COUNTIFS($B$24:B572,\"Producto \")","v":0},false,548]
[null,null,{"$f":"_xlfn.IFS(B573=\"Producto \",$N$10&\"-\"&T574,B573=\"Actividad Propia\",$N$10&\"-\"&T573&\"-\"&V573,B573=\"Actividad sin participación\",$N$10&\"-\"&T573&\"-\"&V573,B573=\"\",\"\")","v":""},null,null,null,null,null,null,null,null,null,null,null,null,null,null,null,null,{"$f":"COUNTIFS($B$24:B573,\"Producto \")","v":0},false,549]
[null,null,{"$f":"_xlfn.IFS(B574=\"Producto \",$N$10&\"-\"&T575,B574=\"Actividad Propia\",$N$10&\"-\"&T574&\"-\"&V574,B574=\"Actividad sin participación\",$N$10&\"-\"&T574&\"-\"&V574,B574=\"\",\"\")","v":""},null,null,null,null,null,null,null,null,null,null,null,null,null,null,null,null,{"$f":"COUNTIFS($B$24:B574,\"Producto \")","v":0},false,550]
[null,null,{"$f":"_xlfn.IFS(B575=\"Producto \",$N$10&\"-\"&T576,B575=\"Actividad Propia\",$N$10&\"-\"&T575&\"-\"&V575,B575=\"Actividad sin participación\",$N$10&\"-\"&T575&\"-\"&V575,B575=\"\",\"\")","v":""},null,null,null,null,null,null,null,null,null,null,null,null,null,null,null,null,{"$f":"COUNTIFS($B$24:B575,\"Producto \")","v":0},false,551]
[null,null,{"$f":"_xlfn.IFS(B576=\"Producto \",$N$10&\"-\"&T577,B576=\"Actividad Propia\",$N$10&\"-\"&T576&\"-\"&V576,B576=\"Actividad sin participación\",$N$10&\"-\"&T576&\"-\"&V576,B576=\"\",\"\")","v":""},null,null,null,null,null,null,null,null,null,null,null,null,null,null,null,null,{"$f":"COUNTIFS($B$24:B576,\"Producto \")","v":0},false,552]
[null,null,{"$f":"_xlfn.IFS(B577=\"Producto \",$N$10&\"-\"&T578,B577=\"Actividad Propia\",$N$10&\"-\"&T577&\"-\"&V577,B577=\"Actividad sin participación\",$N$10&\"-\"&T577&\"-\"&V577,B577=\"\",\"\")","v":""},null,null,null,null,null,null,null,null,null,null,null,null,null,null,null,null,{"$f":"COUNTIFS($B$24:B577,\"Producto \")","v":0},false,553]
[null,null,{"$f":"_xlfn.IFS(B578=\"Producto \",$N$10&\"-\"&T579,B578=\"Actividad Propia\",$N$10&\"-\"&T578&\"-\"&V578,B578=\"Actividad sin participación\",$N$10&\"-\"&T578&\"-\"&V578,B578=\"\",\"\")","v":""},null,null,null,null,null,null,null,null,null,null,null,null,null,null,null,null,{"$f":"COUNTIFS($B$24:B578,\"Producto \")","v":0},false,554]
[null,null,{"$f":"_xlfn.IFS(B579=\"Producto \",$N$10&\"-\"&T580,B579=\"Actividad Propia\",$N$10&\"-\"&T579&\"-\"&V579,B579=\"Actividad sin participación\",$N$10&\"-\"&T579&\"-\"&V579,B579=\"\",\"\")","v":""},null,null,null,null,null,null,null,null,null,null,null,null,null,null,null,null,{"$f":"COUNTIFS($B$24:B579,\"Producto \")","v":0},false,555]
[null,null,{"$f":"_xlfn.IFS(B580=\"Producto \",$N$10&\"-\"&T581,B580=\"Actividad Propia\",$N$10&\"-\"&T580&\"-\"&V580,B580=\"Actividad sin participación\",$N$10&\"-\"&T580&\"-\"&V580,B580=\"\",\"\")","v":""},null,null,null,null,null,null,null,null,null,null,null,null,null,null,null,null,{"$f":"COUNTIFS($B$24:B580,\"Producto \")","v":0},false,556]
[null,null,{"$f":"_xlfn.IFS(B581=\"Producto \",$N$10&\"-\"&T582,B581=\"Actividad Propia\",$N$10&\"-\"&T581&\"-\"&V581,B581=\"Actividad sin participación\",$N$10&\"-\"&T581&\"-\"&V581,B581=\"\",\"\")","v":""},null,null,null,null,null,null,null,null,null,null,null,null,null,null,null,null,{"$f":"COUNTIFS($B$24:B581,\"Producto \")","v":0},false,557]
[null,null,{"$f":"_xlfn.IFS(B582=\"Producto \",$N$10&\"-\"&T583,B582=\"Actividad Propia\",$N$10&\"-\"&T582&\"-\"&V582,B582=\"Actividad sin participación\",$N$10&\"-\"&T582&\"-\"&V582,B582=\"\",\"\")","v":""},null,null,null,null,null,null,null,null,null,null,null,null,null,null,null,null,{"$f":"COUNTIFS($B$24:B582,\"Producto \")","v":0},false,558]
[null,null,{"$f":"_xlfn.IFS(B583=\"Producto \",$N$10&\"-\"&T584,B583=\"Actividad Propia\",$N$10&\"-\"&T583&\"-\"&V583,B583=\"Actividad sin participación\",$N$10&\"-\"&T583&\"-\"&V583,B583=\"\",\"\")","v":""},null,null,null,null,null,null,null,null,null,null,null,null,null,null,null,null,{"$f":"COUNTIFS($B$24:B583,\"Producto \")","v":0},false,559]
[null,null,{"$f":"_xlfn.IFS(B584=\"Producto \",$N$10&\"-\"&T585,B584=\"Actividad Propia\",$N$10&\"-\"&T584&\"-\"&V584,B584=\"Actividad sin participación\",$N$10&\"-\"&T584&\"-\"&V584,B584=\"\",\"\")","v":""},null,null,null,null,null,null,null,null,null,null,null,null,null,null,null,null,{"$f":"COUNTIFS($B$24:B584,\"Producto \")","v":0},false,560]
[null,null,{"$f":"_xlfn.IFS(B585=\"Producto \",$N$10&\"-\"&T586,B585=\"Actividad Propia\",$N$10&\"-\"&T585&\"-\"&V585,B585=\"Actividad sin participación\",$N$10&\"-\"&T585&\"-\"&V585,B585=\"\",\"\")","v":""},null,null,null,null,null,null,null,null,null,null,null,null,null,null,null,null,{"$f":"COUNTIFS($B$24:B585,\"Producto \")","v":0},false,561]
[null,null,{"$f":"_xlfn.IFS(B586=\"Producto \",$N$10&\"-\"&T587,B586=\"Actividad Propia\",$N$10&\"-\"&T586&\"-\"&V586,B586=\"Actividad sin participación\",$N$10&\"-\"&T586&\"-\"&V586,B586=\"\",\"\")","v":""},null,null,null,null,null,null,null,null,null,null,null,null,null,null,null,null,{"$f":"COUNTIFS($B$24:B586,\"Producto \")","v":0},false,562]
[null,null,{"$f":"_xlfn.IFS(B587=\"Producto \",$N$10&\"-\"&T588,B587=\"Actividad Propia\",$N$10&\"-\"&T587&\"-\"&V587,B587=\"Actividad sin participación\",$N$10&\"-\"&T587&\"-\"&V587,B587=\"\",\"\")","v":""},null,null,null,null,null,null,null,null,null,null,null,null,null,null,null,null,{"$f":"COUNTIFS($B$24:B587,\"Producto \")","v":0},false,563]
[null,null,{"$f":"_xlfn.IFS(B588=\"Producto \",$N$10&\"-\"&T589,B588=\"Actividad Propia\",$N$10&\"-\"&T588&\"-\"&V588,B588=\"Actividad sin participación\",$N$10&\"-\"&T588&\"-\"&V588,B588=\"\",\"\")","v":""},null,null,null,null,null,null,null,null,null,null,null,null,null,null,null,null,{"$f":"COUNTIFS($B$24:B588,\"Producto \")","v":0},false,564]
[null,null,{"$f":"_xlfn.IFS(B589=\"Producto \",$N$10&\"-\"&T590,B589=\"Actividad Propia\",$N$10&\"-\"&T589&\"-\"&V589,B589=\"Actividad sin participación\",$N$10&\"-\"&T589&\"-\"&V589,B589=\"\",\"\")","v":""},null,null,null,null,null,null,null,null,null,null,null,null,null,null,null,null,{"$f":"COUNTIFS($B$24:B589,\"Producto \")","v":0},false,565]
[null,null,{"$f":"_xlfn.IFS(B590=\"Producto \",$N$10&\"-\"&T591,B590=\"Actividad Propia\",$N$10&\"-\"&T590&\"-\"&V590,B590=\"Actividad sin participación\",$N$10&\"-\"&T590&\"-\"&V590,B590=\"\",\"\")","v":""},null,null,null,null,null,null,null,null,null,null,null,null,null,null,null,null,{"$f":"COUNTIFS($B$24:B590,\"Producto \")","v":0},false,566]
[null,null,{"$f":"_xlfn.IFS(B591=\"Producto \",$N$10&\"-\"&T592,B591=\"Actividad Propia\",$N$10&\"-\"&T591&\"-\"&V591,B591=\"Actividad sin participación\",$N$10&\"-\"&T591&\"-\"&V591,B591=\"\",\"\")","v":""},null,null,null,null,null,null,null,null,null,null,null,null,null,null,null,null,{"$f":"COUNTIFS($B$24:B591,\"Producto \")","v":0},false,567]
[null,null,{"$f":"_xlfn.IFS(B592=\"Producto \",$N$10&\"-\"&T593,B592=\"Actividad Propia\",$N$10&\"-\"&T592&\"-\"&V592,B592=\"Actividad sin participación\",$N$10&\"-\"&T592&\"-\"&V592,B592=\"\",\"\")","v":""},null,null,null,null,null,null,null,null,null,null,null,null,null,null,null,null,{"$f":"COUNTIFS($B$24:B592,\"Producto \")","v":0},false,568]
[null,null,{"$f":"_xlfn.IFS(B593=\"Producto \",$N$10&\"-\"&T594,B593=\"Actividad Propia\",$N$10&\"-\"&T593&\"-\"&V593,B593=\"Actividad sin participación\",$N$10&\"-\"&T593&\"-\"&V593,B593=\"\",\"\")","v":""},null,null,null,null,null,null,null,null,null,null,null,null,null,null,null,null,{"$f":"COUNTIFS($B$24:B593,\"Producto \")","v":0},false,569]
[null,null,{"$f":"_xlfn.IFS(B594=\"Producto \",$N$10&\"-\"&T595,B594=\"Actividad Propia\",$N$10&\"-\"&T594&\"-\"&V594,B594=\"Actividad sin participación\",$N$10&\"-\"&T594&\"-\"&V594,B594=\"\",\"\")","v":""},null,null,null,null,null,null,null,null,null,null,null,null,null,null,null,null,{"$f":"COUNTIFS($B$24:B594,\"Producto \")","v":0},false,570]
[null,null,{"$f":"_xlfn.IFS(B595=\"Producto \",$N$10&\"-\"&T596,B595=\"Actividad Propia\",$N$10&\"-\"&T595&\"-\"&V595,B595=\"Actividad sin participación\",$N$10&\"-\"&T595&\"-\"&V595,B595=\"\",\"\")","v":""},null,null,null,null,null,null,null,null,null,null,null,null,null,null,null,null,{"$f":"COUNTIFS($B$24:B595,\"Producto \")","v":0},false,571]
[null,null,{"$f":"_xlfn.IFS(B596=\"Producto \",$N$10&\"-\"&T597,B596=\"Actividad Propia\",$N$10&\"-\"&T596&\"-\"&V596,B596=\"Actividad sin participación\",$N$10&\"-\"&T596&\"-\"&V596,B596=\"\",\"\")","v":""},null,null,null,null,null,null,null,null,null,null,null,null,null,null,null,null,{"$f":"COUNTIFS($B$24:B596,\"Producto \")","v":0},false,572]
[null,null,{"$f":"_xlfn.IFS(B597=\"Producto \",$N$10&\"-\"&T598,B597=\"Actividad Propia\",$N$10&\"-\"&T597&\"-\"&V597,B597=\"Actividad sin participación\",$N$10&\"-\"&T597&\"-\"&V597,B597=\"\",\"\")","v":""},null,null,null,null,null,null,null,null,null,null,null,null,null,null,null,null,{"$f":"COUNTIFS($B$24:B597,\"Producto \")","v":0},false,573]
[null,null,{"$f":"_xlfn.IFS(B598=\"Producto \",$N$10&\"-\"&T599,B598=\"Actividad Propia\",$N$10&\"-\"&T598&\"-\"&V598,B598=\"Actividad sin participación\",$N$10&\"-\"&T598&\"-\"&V598,B598=\"\",\"\")","v":""},null,null,null,null,null,null,null,null,null,null,null,null,null,null,null,null,{"$f":"COUNTIFS($B$24:B598,\"Producto \")","v":0},false,574]
[null,null,{"$f":"_xlfn.IFS(B599=\"Producto \",$N$10&\"-\"&T600,B599=\"Actividad Propia\",$N$10&\"-\"&T599&\"-\"&V599,B599=\"Actividad sin participación\",$N$10&\"-\"&T599&\"-\"&V599,B599=\"\",\"\")","v":""},null,null,null,null,null,null,null,null,null,null,null,null,null,null,null,null,{"$f":"COUNTIFS($B$24:B599,\"Producto \")","v":0},false,575]
[null,null,{"$f":"_xlfn.IFS(B600=\"Producto \",$N$10&\"-\"&T601,B600=\"Actividad Propia\",$N$10&\"-\"&T600&\"-\"&V600,B600=\"Actividad sin participación\",$N$10&\"-\"&T600&\"-\"&V600,B600=\"\",\"\")","v":""},null,null,null,null,null,null,null,null,null,null,null,null,null,null,null,null,{"$f":"COUNTIFS($B$24:B600,\"Producto \")","v":0},false,576]
[null,null,{"$f":"_xlfn.IFS(B601=\"Producto \",$N$10&\"-\"&T602,B601=\"Actividad Propia\",$N$10&\"-\"&T601&\"-\"&V601,B601=\"Actividad sin participación\",$N$10&\"-\"&T601&\"-\"&V601,B601=\"\",\"\")","v":""},null,null,null,null,null,null,null,null,null,null,null,null,null,null,null,null,{"$f":"COUNTIFS($B$24:B601,\"Producto \")","v":0},{"$f":"IF(B600=\"Producto \",C600&\"-\"&V601)","v":false},{"$f":"IF(B600=\"Producto \",1,V600+1)","v":577}]
[null,null,{"$f":"_xlfn.IFS(B602=\"Producto \",$N$10&\"-\"&T603,B602=\"Actividad Propia\",$N$10&\"-\"&T602&\"-\"&V602,B602=\"Actividad sin participación\",$N$10&\"-\"&T602&\"-\"&V602,B602=\"\",\"\")","v":""},null,null,null,null,null,null,null,null,null,null,null,null,null,null,null,null,{"$f":"COUNTIFS($B$24:B602,\"Producto \")","v":0},false,578]
[null,null,{"$f":"_xlfn.IFS(B603=\"Producto \",$N$10&\"-\"&T604,B603=\"Actividad Propia\",$N$10&\"-\"&T603&\"-\"&V603,B603=\"Actividad sin participación\",$N$10&\"-\"&T603&\"-\"&V603,B603=\"\",\"\")","v":""},null,null,null,null,null,null,null,null,null,null,null,null,null,null,null,null,{"$f":"COUNTIFS($B$24:B603,\"Producto \")","v":0},false,579]
[null,null,{"$f":"_xlfn.IFS(B604=\"Producto \",$N$10&\"-\"&T605,B604=\"Actividad Propia\",$N$10&\"-\"&T604&\"-\"&V604,B604=\"Actividad sin participación\",$N$10&\"-\"&T604&\"-\"&V604,B604=\"\",\"\")","v":""},null,null,null,null,null,null,null,null,null,null,null,null,null,null,null,null,{"$f":"COUNTIFS($B$24:B604,\"Producto \")","v":0},false,580]
[null,null,{"$f":"_xlfn.IFS(B605=\"Producto \",$N$10&\"-\"&T606,B605=\"Actividad Propia\",$N$10&\"-\"&T605&\"-\"&V605,B605=\"Actividad sin participación\",$N$10&\"-\"&T605&\"-\"&V605,B605=\"\",\"\")","v":""},null,null,null,null,null,null,null,null,null,null,null,null,null,null,null,null,{"$f":"COUNTIFS($B$24:B605,\"Producto \")","v":0},false,581]
[null,null,{"$f":"_xlfn.IFS(B606=\"Producto \",$N$10&\"-\"&T607,B606=\"Actividad Propia\",$N$10&\"-\"&T606&\"-\"&V606,B606=\"Actividad sin participación\",$N$10&\"-\"&T606&\"-\"&V606,B606=\"\",\"\")","v":""},null,null,null,null,null,null,null,null,null,null,null,null,null,null,null,null,{"$f":"COUNTIFS($B$24:B606,\"Producto \")","v":0},false,582]
[null,null,{"$f":"_xlfn.IFS(B607=\"Producto \",$N$10&\"-\"&T608,B607=\"Actividad Propia\",$N$10&\"-\"&T607&\"-\"&V607,B607=\"Actividad sin participación\",$N$10&\"-\"&T607&\"-\"&V607,B607=\"\",\"\")","v":""},null,null,null,null,null,null,null,null,null,null,null,null,null,null,null,null,{"$f":"COUNTIFS($B$24:B607,\"Producto \")","v":0},false,583]
[null,null,{"$f":"_xlfn.IFS(B608=\"Producto \",$N$10&\"-\"&T609,B608=\"Actividad Propia\",$N$10&\"-\"&T608&\"-\"&V608,B608=\"Actividad sin participación\",$N$10&\"-\"&T608&\"-\"&V608,B608=\"\",\"\")","v":""},null,null,null,null,null,null,null,null,null,null,null,null,null,null,null,null,{"$f":"COUNTIFS($B$24:B608,\"Producto \")","v":0},false,584]
[null,null,{"$f":"_xlfn.IFS(B609=\"Producto \",$N$10&\"-\"&T610,B609=\"Actividad Propia\",$N$10&\"-\"&T609&\"-\"&V609,B609=\"Actividad sin participación\",$N$10&\"-\"&T609&\"-\"&V609,B609=\"\",\"\")","v":""},null,null,null,null,null,null,null,null,null,null,null,null,null,null,null,null,{"$f":"COUNTIFS($B$24:B609,\"Producto \")","v":0},false,585]
[null,null,{"$f":"_xlfn.IFS(B610=\"Producto \",$N$10&\"-\"&T611,B610=\"Actividad Propia\",$N$10&\"-\"&T610&\"-\"&V610,B610=\"Actividad sin participación\",$N$10&\"-\"&T610&\"-\"&V610,B610=\"\",\"\")","v":""},null,null,null,null,null,null,null,null,null,null,null,null,null,null,null,null,{"$f":"COUNTIFS($B$24:B610,\"Producto \")","v":0},false,586]
[null,null,{"$f":"_xlfn.IFS(B611=\"Producto \",$N$10&\"-\"&T612,B611=\"Actividad Propia\",$N$10&\"-\"&T611&\"-\"&V611,B611=\"Actividad sin participación\",$N$10&\"-\"&T611&\"-\"&V611,B611=\"\",\"\")","v":""},null,null,null,null,null,null,null,null,null,null,null,null,null,null,null,null,{"$f":"COUNTIFS($B$24:B611,\"Producto \")","v":0},false,587]
[null,null,{"$f":"_xlfn.IFS(B612=\"Producto \",$N$10&\"-\"&T613,B612=\"Actividad Propia\",$N$10&\"-\"&T612&\"-\"&V612,B612=\"Actividad sin participación\",$N$10&\"-\"&T612&\"-\"&V612,B612=\"\",\"\")","v":""},null,null,null,null,null,null,null,null,null,null,null,null,null,null,null,null,{"$f":"COUNTIFS($B$24:B612,\"Producto \")","v":0},false,588]
[null,null,{"$f":"_xlfn.IFS(B613=\"Producto \",$N$10&\"-\"&T614,B613=\"Actividad Propia\",$N$10&\"-\"&T613&\"-\"&V613,B613=\"Actividad sin participación\",$N$10&\"-\"&T613&\"-\"&V613,B613=\"\",\"\")","v":""},null,null,null,null,null,null,null,null,null,null,null,null,null,null,null,null,{"$f":"COUNTIFS($B$24:B613,\"Producto \")","v":0},false,589]
[null,null,{"$f":"_xlfn.IFS(B614=\"Producto \",$N$10&\"-\"&T615,B614=\"Actividad Propia\",$N$10&\"-\"&T614&\"-\"&V614,B614=\"Actividad sin participación\",$N$10&\"-\"&T614&\"-\"&V614,B614=\"\",\"\")","v":""},null,null,null,null,null,null,null,null,null,null,null,null,null,null,null,null,{"$f":"COUNTIFS($B$24:B614,\"Producto \")","v":0},false,590]
[null,null,{"$f":"_xlfn.IFS(B615=\"Producto \",$N$10&\"-\"&T616,B615=\"Actividad Propia\",$N$10&\"-\"&T615&\"-\"&V615,B615=\"Actividad sin participación\",$N$10&\"-\"&T615&\"-\"&V615,B615=\"\",\"\")","v":""},null,null,null,null,null,null,null,null,null,null,null,null,null,null,null,null,{"$f":"COUNTIFS($B$24:B615,\"Producto \")","v":0},false,591]
[null,null,{"$f":"_xlfn.IFS(B616=\"Producto \",$N$10&\"-\"&T617,B616=\"Actividad Propia\",$N$10&\"-\"&T616&\"-\"&V616,B616=\"Actividad sin participación\",$N$10&\"-\"&T616&\"-\"&V616,B616=\"\",\"\")","v":""},null,null,null,null,null,null,null,null,null,null,null,null,null,null,null,null,{"$f":"COUNTIFS($B$24:B616,\"Producto \")","v":0},false,592]
[null,null,{"$f":"_xlfn.IFS(B617=\"Producto \",$N$10&\"-\"&T618,B617=\"Actividad Propia\",$N$10&\"-\"&T617&\"-\"&V617,B617=\"Actividad sin participación\",$N$10&\"-\"&T617&\"-\"&V617,B617=\"\",\"\")","v":""},null,null,null,null,null,null,null,null,null,null,null,null,null,null,null,null,{"$f":"COUNTIFS($B$24:B617,\"Producto \")","v":0},false,593]
[null,null,{"$f":"_xlfn.IFS(B618=\"Producto \",$N$10&\"-\"&T619,B618=\"Actividad Propia\",$N$10&\"-\"&T618&\"-\"&V618,B618=\"Actividad sin participación\",$N$10&\"-\"&T618&\"-\"&V618,B618=\"\",\"\")","v":""},null,null,null,null,null,null,null,null,null,null,null,null,null,null,null,null,{"$f":"COUNTIFS($B$24:B618,\"Producto \")","v":0},false,594]
[null,null,{"$f":"_xlfn.IFS(B619=\"Producto \",$N$10&\"-\"&T620,B619=\"Actividad Propia\",$N$10&\"-\"&T619&\"-\"&V619,B619=\"Actividad sin participación\",$N$10&\"-\"&T619&\"-\"&V619,B619=\"\",\"\")","v":""},null,null,null,null,null,null,null,null,null,null,null,null,null,null,null,null,{"$f":"COUNTIFS($B$24:B619,\"Producto \")","v":0},false,595]
[null,null,{"$f":"_xlfn.IFS(B620=\"Producto \",$N$10&\"-\"&T621,B620=\"Actividad Propia\",$N$10&\"-\"&T620&\"-\"&V620,B620=\"Actividad sin participación\",$N$10&\"-\"&T620&\"-\"&V620,B620=\"\",\"\")","v":""},null,null,null,null,null,null,null,null,null,null,null,null,null,null,null,null,{"$f":"COUNTIFS($B$24:B620,\"Producto \")","v":0},false,596]
[null,null,{"$f":"_xlfn.IFS(B621=\"Producto \",$N$10&\"-\"&T622,B621=\"Actividad Propia\",$N$10&\"-\"&T621&\"-\"&V621,B621=\"Actividad sin participación\",$N$10&\"-\"&T621&\"-\"&V621,B621=\"\",\"\")","v":""},null,null,null,null,null,null,null,null,null,null,null,null,null,null,null,null,{"$f":"COUNTIFS($B$24:B621,\"Producto \")","v":0},false,597]
[null,null,{"$f":"_xlfn.IFS(B622=\"Producto \",$N$10&\"-\"&T623,B622=\"Actividad Propia\",$N$10&\"-\"&T622&\"-\"&V622,B622=\"Actividad sin participación\",$N$10&\"-\"&T622&\"-\"&V622,B622=\"\",\"\")","v":""},null,null,null,null,null,null,null,null,null,null,null,null,null,null,null,null,{"$f":"COUNTIFS($B$24:B622,\"Producto \")","v":0},false,598]
[null,null,{"$f":"_xlfn.IFS(B623=\"Producto \",$N$10&\"-\"&T624,B623=\"Actividad Propia\",$N$10&\"-\"&T623&\"-\"&V623,B623=\"Actividad sin participación\",$N$10&\"-\"&T623&\"-\"&V623,B623=\"\",\"\")","v":""},null,null,null,null,null,null,null,null,null,null,null,null,null,null,null,null,{"$f":"COUNTIFS($B$24:B623,\"Producto \")","v":0},false,599]
[null,null,{"$f":"_xlfn.IFS(B624=\"Producto \",$N$10&\"-\"&T625,B624=\"Actividad Propia\",$N$10&\"-\"&T624&\"-\"&V624,B624=\"Actividad sin participación\",$N$10&\"-\"&T624&\"-\"&V624,B624=\"\",\"\")","v":""},null,null,null,null,null,null,null,null,null,null,null,null,null,null,null,null,{"$f":"COUNTIFS($B$24:B624,\"Producto \")","v":0},false,600]
[null,null,{"$f":"_xlfn.IFS(B625=\"Producto \",$N$10&\"-\"&T626,B625=\"Actividad Propia\",$N$10&\"-\"&T625&\"-\"&V625,B625=\"Actividad sin participación\",$N$10&\"-\"&T625&\"-\"&V625,B625=\"\",\"\")","v":""},null,null,null,null,null,null,null,null,null,null,null,null,null,null,null,null,{"$f":"COUNTIFS($B$24:B625,\"Producto \")","v":0},false,601]
[null,null,{"$f":"_xlfn.IFS(B626=\"Producto \",$N$10&\"-\"&T627,B626=\"Actividad Propia\",$N$10&\"-\"&T626&\"-\"&V626,B626=\"Actividad sin participación\",$N$10&\"-\"&T626&\"-\"&V626,B626=\"\",\"\")","v":""},null,null,null,null,null,null,null,null,null,null,null,null,null,null,null,null,{"$f":"COUNTIFS($B$24:B626,\"Producto \")","v":0},false,602]
[null,null,{"$f":"_xlfn.IFS(B627=\"Producto \",$N$10&\"-\"&T628,B627=\"Actividad Propia\",$N$10&\"-\"&T627&\"-\"&V627,B627=\"Actividad sin participación\",$N$10&\"-\"&T627&\"-\"&V627,B627=\"\",\"\")","v":""},null,null,null,null,null,null,null,null,null,null,null,null,null,null,null,null,{"$f":"COUNTIFS($B$24:B627,\"Producto \")","v":0},false,603]
[null,null,{"$f":"_xlfn.IFS(B628=\"Producto \",$N$10&\"-\"&T629,B628=\"Actividad Propia\",$N$10&\"-\"&T628&\"-\"&V628,B628=\"Actividad sin participación\",$N$10&\"-\"&T628&\"-\"&V628,B628=\"\",\"\")","v":""},null,null,null,null,null,null,null,null,null,null,null,null,null,null,null,null,{"$f":"COUNTIFS($B$24:B628,\"Producto \")","v":0},false,604]
[null,null,{"$f":"_xlfn.IFS(B629=\"Producto \",$N$10&\"-\"&T630,B629=\"Actividad Propia\",$N$10&\"-\"&T629&\"-\"&V629,B629=\"Actividad sin participación\",$N$10&\"-\"&T629&\"-\"&V629,B629=\"\",\"\")","v":""},null,null,null,null,null,null,null,null,null,null,null,null,null,null,null,null,{"$f":"COUNTIFS($B$24:B629,\"Producto \")","v":0},false,605]
[null,null,{"$f":"_xlfn.IFS(B630=\"Producto \",$N$10&\"-\"&T631,B630=\"Actividad Propia\",$N$10&\"-\"&T630&\"-\"&V630,B630=\"Actividad sin participación\",$N$10&\"-\"&T630&\"-\"&V630,B630=\"\",\"\")","v":""},null,null,null,null,null,null,null,null,null,null,null,null,null,null,null,null,{"$f":"COUNTIFS($B$24:B630,\"Producto \")","v":0},false,606]
[null,null,{"$f":"_xlfn.IFS(B631=\"Producto \",$N$10&\"-\"&T632,B631=\"Actividad Propia\",$N$10&\"-\"&T631&\"-\"&V631,B631=\"Actividad sin participación\",$N$10&\"-\"&T631&\"-\"&V631,B631=\"\",\"\")","v":""},null,null,null,null,null,null,null,null,null,null,null,null,null,null,null,null,{"$f":"COUNTIFS($B$24:B631,\"Producto \")","v":0},false,607]
[null,null,{"$f":"_xlfn.IFS(B632=\"Producto \",$N$10&\"-\"&T633,B632=\"Actividad Propia\",$N$10&\"-\"&T632&\"-\"&V632,B632=\"Actividad sin participación\",$N$10&\"-\"&T632&\"-\"&V632,B632=\"\",\"\")","v":""},null,null,null,null,null,null,null,null,null,null,null,null,null,null,null,null,{"$f":"COUNTIFS($B$24:B632,\"Producto \")","v":0},false,608]
[null,null,{"$f":"_xlfn.IFS(B633=\"Producto \",$N$10&\"-\"&T634,B633=\"Actividad Propia\",$N$10&\"-\"&T633&\"-\"&V633,B633=\"Actividad sin participación\",$N$10&\"-\"&T633&\"-\"&V633,B633=\"\",\"\")","v":""},null,null,null,null,null,null,null,null,null,null,null,null,null,null,null,null,{"$f":"COUNTIFS($B$24:B633,\"Producto \")","v":0},false,609]
[null,null,{"$f":"_xlfn.IFS(B634=\"Producto \",$N$10&\"-\"&T635,B634=\"Actividad Propia\",$N$10&\"-\"&T634&\"-\"&V634,B634=\"Actividad sin participación\",$N$10&\"-\"&T634&\"-\"&V634,B634=\"\",\"\")","v":""},null,null,null,null,null,null,null,null,null,null,null,null,null,null,null,null,{"$f":"COUNTIFS($B$24:B634,\"Producto \")","v":0},false,610]
[null,null,{"$f":"_xlfn.IFS(B635=\"Producto \",$N$10&\"-\"&T636,B635=\"Actividad Propia\",$N$10&\"-\"&T635&\"-\"&V635,B635=\"Actividad sin participación\",$N$10&\"-\"&T635&\"-\"&V635,B635=\"\",\"\")","v":""},null,null,null,null,null,null,null,null,null,null,null,null,null,null,null,null,{"$f":"COUNTIFS($B$24:B635,\"Producto \")","v":0},false,611]
[null,null,{"$f":"_xlfn.IFS(B636=\"Producto \",$N$10&\"-\"&T637,B636=\"Actividad Propia\",$N$10&\"-\"&T636&\"-\"&V636,B636=\"Actividad sin participación\",$N$10&\"-\"&T636&\"-\"&V636,B636=\"\",\"\")","v":""},null,null,null,null,null,null,null,null,null,null,null,null,null,null,null,null,{"$f":"COUNTIFS($B$24:B636,\"Producto \")","v":0},false,612]
[null,null,{"$f":"_xlfn.IFS(B637=\"Producto \",$N$10&\"-\"&T638,B637=\"Actividad Propia\",$N$10&\"-\"&T637&\"-\"&V637,B637=\"Actividad sin participación\",$N$10&\"-\"&T637&\"-\"&V637,B637=\"\",\"\")","v":""},null,null,null,null,null,null,null,null,null,null,null,null,null,null,null,null,{"$f":"COUNTIFS($B$24:B637,\"Producto \")","v":0},false,613]
[null,null,{"$f":"_xlfn.IFS(B638=\"Producto \",$N$10&\"-\"&T639,B638=\"Actividad Propia\",$N$10&\"-\"&T638&\"-\"&V638,B638=\"Actividad sin participación\",$N$10&\"-\"&T638&\"-\"&V638,B638=\"\",\"\")","v":""},null,null,null,null,null,null,null,null,null,null,null,null,null,null,null,null,{"$f":"COUNTIFS($B$24:B638,\"Producto \")","v":0},false,614]
[null,null,{"$f":"_xlfn.IFS(B639=\"Producto \",$N$10&\"-\"&T640,B639=\"Actividad Propia\",$N$10&\"-\"&T639&\"-\"&V639,B639=\"Actividad sin participación\",$N$10&\"-\"&T639&\"-\"&V639,B639=\"\",\"\")","v":""},null,null,null,null,null,null,null,null,null,null,null,null,null,null,null,null,{"$f":"COUNTIFS($B$24:B639,\"Producto \")","v":0},false,615]
[null,null,{"$f":"_xlfn.IFS(B640=\"Producto \",$N$10&\"-\"&T641,B640=\"Actividad Propia\",$N$10&\"-\"&T640&\"-\"&V640,B640=\"Actividad sin participación\",$N$10&\"-\"&T640&\"-\"&V640,B640=\"\",\"\")","v":""},null,null,null,null,null,null,null,null,null,null,null,null,null,null,null,null,{"$f":"COUNTIFS($B$24:B640,\"Producto \")","v":0},false,616]
[null,null,{"$f":"_xlfn.IFS(B641=\"Producto \",$N$10&\"-\"&T642,B641=\"Actividad Propia\",$N$10&\"-\"&T641&\"-\"&V641,B641=\"Actividad sin participación\",$N$10&\"-\"&T641&\"-\"&V641,B641=\"\",\"\")","v":""},null,null,null,null,null,null,null,null,null,null,null,null,null,null,null,null,{"$f":"COUNTIFS($B$24:B641,\"Producto \")","v":0},false,617]
[null,null,{"$f":"_xlfn.IFS(B642=\"Producto \",$N$10&\"-\"&T643,B642=\"Actividad Propia\",$N$10&\"-\"&T642&\"-\"&V642,B642=\"Actividad sin participación\",$N$10&\"-\"&T642&\"-\"&V642,B642=\"\",\"\")","v":""},null,null,null,null,null,null,null,null,null,null,null,null,null,null,null,null,{"$f":"COUNTIFS($B$24:B642,\"Producto \")","v":0},false,618]
[null,null,{"$f":"_xlfn.IFS(B643=\"Producto \",$N$10&\"-\"&T644,B643=\"Actividad Propia\",$N$10&\"-\"&T643&\"-\"&V643,B643=\"Actividad sin participación\",$N$10&\"-\"&T643&\"-\"&V643,B643=\"\",\"\")","v":""},null,null,null,null,null,null,null,null,null,null,null,null,null,null,null,null,{"$f":"COUNTIFS($B$24:B643,\"Producto \")","v":0},false,619]
[null,null,{"$f":"_xlfn.IFS(B644=\"Producto \",$N$10&\"-\"&T645,B644=\"Actividad Propia\",$N$10&\"-\"&T644&\"-\"&V644,B644=\"Actividad sin participación\",$N$10&\"-\"&T644&\"-\"&V644,B644=\"\",\"\")","v":""},null,null,null,null,null,null,null,null,null,null,null,null,null,null,null,null,{"$f":"COUNTIFS($B$24:B644,\"Producto \")","v":0},false,620]
[null,null,{"$f":"_xlfn.IFS(B645=\"Producto \",$N$10&\"-\"&T646,B645=\"Actividad Propia\",$N$10&\"-\"&T645&\"-\"&V645,B645=\"Actividad sin participación\",$N$10&\"-\"&T645&\"-\"&V645,B645=\"\",\"\")","v":""},null,null,null,null,null,null,null,null,null,null,null,null,null,null,null,null,{"$f":"COUNTIFS($B$24:B645,\"Producto \")","v":0},false,621]
[null,null,{"$f":"_xlfn.IFS(B646=\"Producto \",$N$10&\"-\"&T647,B646=\"Actividad Propia\",$N$10&\"-\"&T646&\"-\"&V646,B646=\"Actividad sin participación\",$N$10&\"-\"&T646&\"-\"&V646,B646=\"\",\"\")","v":""},null,null,null,null,null,null,null,null,null,null,null,null,null,null,null,null,{"$f":"COUNTIFS($B$24:B646,\"Producto \")","v":0},false,622]
[null,null,{"$f":"_xlfn.IFS(B647=\"Producto \",$N$10&\"-\"&T648,B647=\"Actividad Propia\",$N$10&\"-\"&T647&\"-\"&V647,B647=\"Actividad sin participación\",$N$10&\"-\"&T647&\"-\"&V647,B647=\"\",\"\")","v":""},null,null,null,null,null,null,null,null,null,null,null,null,null,null,null,null,{"$f":"COUNTIFS($B$24:B647,\"Producto \")","v":0},false,623]
[null,null,{"$f":"_xlfn.IFS(B648=\"Producto \",$N$10&\"-\"&T649,B648=\"Actividad Propia\",$N$10&\"-\"&T648&\"-\"&V648,B648=\"Actividad sin participación\",$N$10&\"-\"&T648&\"-\"&V648,B648=\"\",\"\")","v":""},null,null,null,null,null,null,null,null,null,null,null,null,null,null,null,null,{"$f":"COUNTIFS($B$24:B648,\"Producto \")","v":0},false,624]
[null,null,{"$f":"_xlfn.IFS(B649=\"Producto \",$N$10&\"-\"&T650,B649=\"Actividad Propia\",$N$10&\"-\"&T649&\"-\"&V649,B649=\"Actividad sin participación\",$N$10&\"-\"&T649&\"-\"&V649,B649=\"\",\"\")","v":""},null,null,null,null,null,null,null,null,null,null,null,null,null,null,null,null,{"$f":"COUNTIFS($B$24:B649,\"Producto \")","v":0},false,625]
[null,null,{"$f":"_xlfn.IFS(B650=\"Producto \",$N$10&\"-\"&T651,B650=\"Actividad Propia\",$N$10&\"-\"&T650&\"-\"&V650,B650=\"Actividad sin participación\",$N$10&\"-\"&T650&\"-\"&V650,B650=\"\",\"\")","v":""},null,null,null,null,null,null,null,null,null,null,null,null,null,null,null,null,{"$f":"COUNTIFS($B$24:B650,\"Producto \")","v":0},false,626]
[null,null,{"$f":"_xlfn.IFS(B651=\"Producto \",$N$10&\"-\"&T652,B651=\"Actividad Propia\",$N$10&\"-\"&T651&\"-\"&V651,B651=\"Actividad sin participación\",$N$10&\"-\"&T651&\"-\"&V651,B651=\"\",\"\")","v":""},null,null,null,null,null,null,null,null,null,null,null,null,null,null,null,null,{"$f":"COUNTIFS($B$24:B651,\"Producto \")","v":0},false,627]
[null,null,{"$f":"_xlfn.IFS(B652=\"Producto \",$N$10&\"-\"&T653,B652=\"Actividad Propia\",$N$10&\"-\"&T652&\"-\"&V652,B652=\"Actividad sin participación\",$N$10&\"-\"&T652&\"-\"&V652,B652=\"\",\"\")","v":""},null,null,null,null,null,null,null,null,null,null,null,null,null,null,null,null,{"$f":"COUNTIFS($B$24:B652,\"Producto \")","v":0},false,628]
[null,null,{"$f":"_xlfn.IFS(B653=\"Producto \",$N$10&\"-\"&T654,B653=\"Actividad Propia\",$N$10&\"-\"&T653&\"-\"&V653,B653=\"Actividad sin participación\",$N$10&\"-\"&T653&\"-\"&V653,B653=\"\",\"\")","v":""},null,null,null,null,null,null,null,null,null,null,null,null,null,null,null,null,{"$f":"COUNTIFS($B$24:B653,\"Producto \")","v":0},false,629]
[null,null,{"$f":"_xlfn.IFS(B654=\"Producto \",$N$10&\"-\"&T655,B654=\"Actividad Propia\",$N$10&\"-\"&T654&\"-\"&V654,B654=\"Actividad sin participación\",$N$10&\"-\"&T654&\"-\"&V654,B654=\"\",\"\")","v":""},null,null,null,null,null,null,null,null,null,null,null,null,null,null,null,null,{"$f":"COUNTIFS($B$24:B654,\"Producto \")","v":0},false,630]
[null,null,{"$f":"_xlfn.IFS(B655=\"Producto \",$N$10&\"-\"&T656,B655=\"Actividad Propia\",$N$10&\"-\"&T655&\"-\"&V655,B655=\"Actividad sin participación\",$N$10&\"-\"&T655&\"-\"&V655,B655=\"\",\"\")","v":""},null,null,null,null,null,null,null,null,null,null,null,null,null,null,null,null,{"$f":"COUNTIFS($B$24:B655,\"Producto \")","v":0},false,631]
[null,null,{"$f":"_xlfn.IFS(B656=\"Producto \",$N$10&\"-\"&T657,B656=\"Actividad Propia\",$N$10&\"-\"&T656&\"-\"&V656,B656=\"Actividad sin participación\",$N$10&\"-\"&T656&\"-\"&V656,B656=\"\",\"\")","v":""},null,null,null,null,null,null,null,null,null,null,null,null,null,null,null,null,{"$f":"COUNTIFS($B$24:B656,\"Producto \")","v":0},false,632]
[null,null,{"$f":"_xlfn.IFS(B657=\"Producto \",$N$10&\"-\"&T658,B657=\"Actividad Propia\",$N$10&\"-\"&T657&\"-\"&V657,B657=\"Actividad sin participación\",$N$10&\"-\"&T657&\"-\"&V657,B657=\"\",\"\")","v":""},null,null,null,null,null,null,null,null,null,null,null,null,null,null,null,null,{"$f":"COUNTIFS($B$24:B657,\"Producto \")","v":0},false,633]
[null,null,{"$f":"_xlfn.IFS(B658=\"Producto \",$N$10&\"-\"&T659,B658=\"Actividad Propia\",$N$10&\"-\"&T658&\"-\"&V658,B658=\"Actividad sin participación\",$N$10&\"-\"&T658&\"-\"&V658,B658=\"\",\"\")","v":""},null,null,null,null,null,null,null,null,null,null,null,null,null,null,null,null,{"$f":"COUNTIFS($B$24:B658,\"Producto \")","v":0},false,634]
[null,null,{"$f":"_xlfn.IFS(B659=\"Producto \",$N$10&\"-\"&T660,B659=\"Actividad Propia\",$N$10&\"-\"&T659&\"-\"&V659,B659=\"Actividad sin participación\",$N$10&\"-\"&T659&\"-\"&V659,B659=\"\",\"\")","v":""},null,null,null,null,null,null,null,null,null,null,null,null,null,null,null,null,{"$f":"COUNTIFS($B$24:B659,\"Producto \")","v":0},false,635]
[null,null,{"$f":"_xlfn.IFS(B660=\"Producto \",$N$10&\"-\"&T661,B660=\"Actividad Propia\",$N$10&\"-\"&T660&\"-\"&V660,B660=\"Actividad sin participación\",$N$10&\"-\"&T660&\"-\"&V660,B660=\"\",\"\")","v":""},null,null,null,null,null,null,null,null,null,null,null,null,null,null,null,null,{"$f":"COUNTIFS($B$24:B660,\"Producto \")","v":0},false,636]
[null,null,{"$f":"_xlfn.IFS(B661=\"Producto \",$N$10&\"-\"&T662,B661=\"Actividad Propia\",$N$10&\"-\"&T661&\"-\"&V661,B661=\"Actividad sin participación\",$N$10&\"-\"&T661&\"-\"&V661,B661=\"\",\"\")","v":""},null,null,null,null,null,null,null,null,null,null,null,null,null,null,null,null,{"$f":"COUNTIFS($B$24:B661,\"Producto \")","v":0},false,637]
[null,null,{"$f":"_xlfn.IFS(B662=\"Producto \",$N$10&\"-\"&T663,B662=\"Actividad Propia\",$N$10&\"-\"&T662&\"-\"&V662,B662=\"Actividad sin participación\",$N$10&\"-\"&T662&\"-\"&V662,B662=\"\",\"\")","v":""},null,null,null,null,null,null,null,null,null,null,null,null,null,null,null,null,{"$f":"COUNTIFS($B$24:B662,\"Producto \")","v":0},false,638]
[null,null,{"$f":"_xlfn.IFS(B663=\"Producto \",$N$10&\"-\"&T664,B663=\"Actividad Propia\",$N$10&\"-\"&T663&\"-\"&V663,B663=\"Actividad sin participación\",$N$10&\"-\"&T663&\"-\"&V663,B663=\"\",\"\")","v":""},null,null,null,null,null,null,null,null,null,null,null,null,null,null,null,null,{"$f":"COUNTIFS($B$24:B663,\"Producto \")","v":0},false,639]
[null,null,{"$f":"_xlfn.IFS(B664=\"Producto \",$N$10&\"-\"&T665,B664=\"Actividad Propia\",$N$10&\"-\"&T664&\"-\"&V664,B664=\"Actividad sin participación\",$N$10&\"-\"&T664&\"-\"&V664,B664=\"\",\"\")","v":""},null,null,null,null,null,null,null,null,null,null,null,null,null,null,null,null,{"$f":"COUNTIFS($B$24:B664,\"Producto \")","v":0},false,640]
[null,null,{"$f":"_xlfn.IFS(B665=\"Producto \",$N$10&\"-\"&T666,B665=\"Actividad Propia\",$N$10&\"-\"&T665&\"-\"&V665,B665=\"Actividad sin participación\",$N$10&\"-\"&T665&\"-\"&V665,B665=\"\",\"\")","v":""},null,null,null,null,null,null,null,null,null,null,null,null,null,null,null,null,{"$f":"COUNTIFS($B$24:B665,\"Producto \")","v":0},{"$f":"IF(B664=\"Producto \",C664&\"-\"&V665)","v":false},{"$f":"IF(B664=\"Producto \",1,V664+1)","v":641}]
[null,null,{"$f":"_xlfn.IFS(B666=\"Producto \",$N$10&\"-\"&T667,B666=\"Actividad Propia\",$N$10&\"-\"&T666&\"-\"&V666,B666=\"Actividad sin participación\",$N$10&\"-\"&T666&\"-\"&V666,B666=\"\",\"\")","v":""},null,null,null,null,null,null,null,null,null,null,null,null,null,null,null,null,{"$f":"COUNTIFS($B$24:B666,\"Producto \")","v":0},false,642]
[null,null,{"$f":"_xlfn.IFS(B667=\"Producto \",$N$10&\"-\"&T668,B667=\"Actividad Propia\",$N$10&\"-\"&T667&\"-\"&V667,B667=\"Actividad sin participación\",$N$10&\"-\"&T667&\"-\"&V667,B667=\"\",\"\")","v":""},null,null,null,null,null,null,null,null,null,null,null,null,null,null,null,null,{"$f":"COUNTIFS($B$24:B667,\"Producto \")","v":0},false,643]
[null,null,{"$f":"_xlfn.IFS(B668=\"Producto \",$N$10&\"-\"&T669,B668=\"Actividad Propia\",$N$10&\"-\"&T668&\"-\"&V668,B668=\"Actividad sin participación\",$N$10&\"-\"&T668&\"-\"&V668,B668=\"\",\"\")","v":""},null,null,null,null,null,null,null,null,null,null,null,null,null,null,null,null,{"$f":"COUNTIFS($B$24:B668,\"Producto \")","v":0},false,644]
[null,null,{"$f":"_xlfn.IFS(B669=\"Producto \",$N$10&\"-\"&T670,B669=\"Actividad Propia\",$N$10&\"-\"&T669&\"-\"&V669,B669=\"Actividad sin participación\",$N$10&\"-\"&T669&\"-\"&V669,B669=\"\",\"\")","v":""},null,null,null,null,null,null,null,null,null,null,null,null,null,null,null,null,{"$f":"COUNTIFS($B$24:B669,\"Producto \")","v":0},false,645]
[null,null,{"$f":"_xlfn.IFS(B670=\"Producto \",$N$10&\"-\"&T671,B670=\"Actividad Propia\",$N$10&\"-\"&T670&\"-\"&V670,B670=\"Actividad sin participación\",$N$10&\"-\"&T670&\"-\"&V670,B670=\"\",\"\")","v":""},null,null,null,null,null,null,null,null,null,null,null,null,null,null,null,null,{"$f":"COUNTIFS($B$24:B670,\"Producto \")","v":0},false,646]
[null,null,{"$f":"_xlfn.IFS(B671=\"Producto \",$N$10&\"-\"&T672,B671=\"Actividad Propia\",$N$10&\"-\"&T671&\"-\"&V671,B671=\"Actividad sin participación\",$N$10&\"-\"&T671&\"-\"&V671,B671=\"\",\"\")","v":""},null,null,null,null,null,null,null,null,null,null,null,null,null,null,null,null,{"$f":"COUNTIFS($B$24:B671,\"Producto \")","v":0},false,647]
[null,null,{"$f":"_xlfn.IFS(B672=\"Producto \",$N$10&\"-\"&T673,B672=\"Actividad Propia\",$N$10&\"-\"&T672&\"-\"&V672,B672=\"Actividad sin participación\",$N$10&\"-\"&T672&\"-\"&V672,B672=\"\",\"\")","v":""},null,null,null,null,null,null,null,null,null,null,null,null,null,null,null,null,{"$f":"COUNTIFS($B$24:B672,\"Producto \")","v":0},false,648]
[null,null,{"$f":"_xlfn.IFS(B673=\"Producto \",$N$10&\"-\"&T674,B673=\"Actividad Propia\",$N$10&\"-\"&T673&\"-\"&V673,B673=\"Actividad sin participación\",$N$10&\"-\"&T673&\"-\"&V673,B673=\"\",\"\")","v":""},null,null,null,null,null,null,null,null,null,null,null,null,null,null,null,null,{"$f":"COUNTIFS($B$24:B673,\"Producto \")","v":0},false,649]
[null,null,{"$f":"_xlfn.IFS(B674=\"Producto \",$N$10&\"-\"&T675,B674=\"Actividad Propia\",$N$10&\"-\"&T674&\"-\"&V674,B674=\"Actividad sin participación\",$N$10&\"-\"&T674&\"-\"&V674,B674=\"\",\"\")","v":""},null,null,null,null,null,null,null,null,null,null,null,null,null,null,null,null,{"$f":"COUNTIFS($B$24:B674,\"Producto \")","v":0},false,650]
[null,null,{"$f":"_xlfn.IFS(B675=\"Producto \",$N$10&\"-\"&T676,B675=\"Actividad Propia\",$N$10&\"-\"&T675&\"-\"&V675,B675=\"Actividad sin participación\",$N$10&\"-\"&T675&\"-\"&V675,B675=\"\",\"\")","v":""},null,null,null,null,null,null,null,null,null,null,null,null,null,null,null,null,{"$f":"COUNTIFS($B$24:B675,\"Producto \")","v":0},false,651]
[null,null,{"$f":"_xlfn.IFS(B676=\"Producto \",$N$10&\"-\"&T677,B676=\"Actividad Propia\",$N$10&\"-\"&T676&\"-\"&V676,B676=\"Actividad sin participación\",$N$10&\"-\"&T676&\"-\"&V676,B676=\"\",\"\")","v":""},null,null,null,null,null,null,null,null,null,null,null,null,null,null,null,null,{"$f":"COUNTIFS($B$24:B676,\"Producto \")","v":0},false,652]
[null,null,{"$f":"_xlfn.IFS(B677=\"Producto \",$N$10&\"-\"&T678,B677=\"Actividad Propia\",$N$10&\"-\"&T677&\"-\"&V677,B677=\"Actividad sin participación\",$N$10&\"-\"&T677&\"-\"&V677,B677=\"\",\"\")","v":""},null,null,null,null,null,null,null,null,null,null,null,null,null,null,null,null,{"$f":"COUNTIFS($B$24:B677,\"Producto \")","v":0},false,653]
[null,null,{"$f":"_xlfn.IFS(B678=\"Producto \",$N$10&\"-\"&T679,B678=\"Actividad Propia\",$N$10&\"-\"&T678&\"-\"&V678,B678=\"Actividad sin participación\",$N$10&\"-\"&T678&\"-\"&V678,B678=\"\",\"\")","v":""},null,null,null,null,null,null,null,null,null,null,null,null,null,null,null,null,{"$f":"COUNTIFS($B$24:B678,\"Producto \")","v":0},false,654]
[null,null,{"$f":"_xlfn.IFS(B679=\"Producto \",$N$10&\"-\"&T680,B679=\"Actividad Propia\",$N$10&\"-\"&T679&\"-\"&V679,B679=\"Actividad sin participación\",$N$10&\"-\"&T679&\"-\"&V679,B679=\"\",\"\")","v":""},null,null,null,null,null,null,null,null,null,null,null,null,null,null,null,null,{"$f":"COUNTIFS($B$24:B679,\"Producto \")","v":0},false,655]
[null,null,{"$f":"_xlfn.IFS(B680=\"Producto \",$N$10&\"-\"&T681,B680=\"Actividad Propia\",$N$10&\"-\"&T680&\"-\"&V680,B680=\"Actividad sin participación\",$N$10&\"-\"&T680&\"-\"&V680,B680=\"\",\"\")","v":""},null,null,null,null,null,null,null,null,null,null,null,null,null,null,null,null,{"$f":"COUNTIFS($B$24:B680,\"Producto \")","v":0},false,656]
[null,null,{"$f":"_xlfn.IFS(B681=\"Producto \",$N$10&\"-\"&T682,B681=\"Actividad Propia\",$N$10&\"-\"&T681&\"-\"&V681,B681=\"Actividad sin participación\",$N$10&\"-\"&T681&\"-\"&V681,B681=\"\",\"\")","v":""},null,null,null,null,null,null,null,null,null,null,null,null,null,null,null,null,{"$f":"COUNTIFS($B$24:B681,\"Producto \")","v":0},false,657]
[null,null,{"$f":"_xlfn.IFS(B682=\"Producto \",$N$10&\"-\"&T683,B682=\"Actividad Propia\",$N$10&\"-\"&T682&\"-\"&V682,B682=\"Actividad sin participación\",$N$10&\"-\"&T682&\"-\"&V682,B682=\"\",\"\")","v":""},null,null,null,null,null,null,null,null,null,null,null,null,null,null,null,null,{"$f":"COUNTIFS($B$24:B682,\"Producto \")","v":0},false,658]
[null,null,{"$f":"_xlfn.IFS(B683=\"Producto \",$N$10&\"-\"&T684,B683=\"Actividad Propia\",$N$10&\"-\"&T683&\"-\"&V683,B683=\"Actividad sin participación\",$N$10&\"-\"&T683&\"-\"&V683,B683=\"\",\"\")","v":""},null,null,null,null,null,null,null,null,null,null,null,null,null,null,null,null,{"$f":"COUNTIFS($B$24:B683,\"Producto \")","v":0},false,659]
[null,null,{"$f":"_xlfn.IFS(B684=\"Producto \",$N$10&\"-\"&T685,B684=\"Actividad Propia\",$N$10&\"-\"&T684&\"-\"&V684,B684=\"Actividad sin participación\",$N$10&\"-\"&T684&\"-\"&V684,B684=\"\",\"\")","v":""},null,null,null,null,null,null,null,null,null,null,null,null,null,null,null,null,{"$f":"COUNTIFS($B$24:B684,\"Producto \")","v":0},false,660]
[null,null,{"$f":"_xlfn.IFS(B685=\"Producto \",$N$10&\"-\"&T686,B685=\"Actividad Propia\",$N$10&\"-\"&T685&\"-\"&V685,B685=\"Actividad sin participación\",$N$10&\"-\"&T685&\"-\"&V685,B685=\"\",\"\")","v":""},null,null,null,null,null,null,null,null,null,null,null,null,null,null,null,null,{"$f":"COUNTIFS($B$24:B685,\"Producto \")","v":0},false,661]
[null,null,{"$f":"_xlfn.IFS(B686=\"Producto \",$N$10&\"-\"&T687,B686=\"Actividad Propia\",$N$10&\"-\"&T686&\"-\"&V686,B686=\"Actividad sin participación\",$N$10&\"-\"&T686&\"-\"&V686,B686=\"\",\"\")","v":""},null,null,null,null,null,null,null,null,null,null,null,null,null,null,null,null,{"$f":"COUNTIFS($B$24:B686,\"Producto \")","v":0},false,662]
[null,null,{"$f":"_xlfn.IFS(B687=\"Producto \",$N$10&\"-\"&T688,B687=\"Actividad Propia\",$N$10&\"-\"&T687&\"-\"&V687,B687=\"Actividad sin participación\",$N$10&\"-\"&T687&\"-\"&V687,B687=\"\",\"\")","v":""},null,null,null,null,null,null,null,null,null,null,null,null,null,null,null,null,{"$f":"COUNTIFS($B$24:B687,\"Producto \")","v":0},false,663]
[null,null,{"$f":"_xlfn.IFS(B688=\"Producto \",$N$10&\"-\"&T689,B688=\"Actividad Propia\",$N$10&\"-\"&T688&\"-\"&V688,B688=\"Actividad sin participación\",$N$10&\"-\"&T688&\"-\"&V688,B688=\"\",\"\")","v":""},null,null,null,null,null,null,null,null,null,null,null,null,null,null,null,null,{"$f":"COUNTIFS($B$24:B688,\"Producto \")","v":0},false,664]
[null,null,{"$f":"_xlfn.IFS(B689=\"Producto \",$N$10&\"-\"&T690,B689=\"Actividad Propia\",$N$10&\"-\"&T689&\"-\"&V689,B689=\"Actividad sin participación\",$N$10&\"-\"&T689&\"-\"&V689,B689=\"\",\"\")","v":""},null,null,null,null,null,null,null,null,null,null,null,null,null,null,null,null,{"$f":"COUNTIFS($B$24:B689,\"Producto \")","v":0},false,665]
[null,null,{"$f":"_xlfn.IFS(B690=\"Producto \",$N$10&\"-\"&T691,B690=\"Actividad Propia\",$N$10&\"-\"&T690&\"-\"&V690,B690=\"Actividad sin participación\",$N$10&\"-\"&T690&\"-\"&V690,B690=\"\",\"\")","v":""},null,null,null,null,null,null,null,null,null,null,null,null,null,null,null,null,{"$f":"COUNTIFS($B$24:B690,\"Producto \")","v":0},false,666]
[null,null,{"$f":"_xlfn.IFS(B691=\"Producto \",$N$10&\"-\"&T692,B691=\"Actividad Propia\",$N$10&\"-\"&T691&\"-\"&V691,B691=\"Actividad sin participación\",$N$10&\"-\"&T691&\"-\"&V691,B691=\"\",\"\")","v":""},null,null,null,null,null,null,null,null,null,null,null,null,null,null,null,null,{"$f":"COUNTIFS($B$24:B691,\"Producto \")","v":0},false,667]
[null,null,{"$f":"_xlfn.IFS(B692=\"Producto \",$N$10&\"-\"&T693,B692=\"Actividad Propia\",$N$10&\"-\"&T692&\"-\"&V692,B692=\"Actividad sin participación\",$N$10&\"-\"&T692&\"-\"&V692,B692=\"\",\"\")","v":""},null,null,null,null,null,null,null,null,null,null,null,null,null,null,null,null,{"$f":"COUNTIFS($B$24:B692,\"Producto \")","v":0},false,668]
[null,null,{"$f":"_xlfn.IFS(B693=\"Producto \",$N$10&\"-\"&T694,B693=\"Actividad Propia\",$N$10&\"-\"&T693&\"-\"&V693,B693=\"Actividad sin participación\",$N$10&\"-\"&T693&\"-\"&V693,B693=\"\",\"\")","v":""},null,null,null,null,null,null,null,null,null,null,null,null,null,null,null,null,{"$f":"COUNTIFS($B$24:B693,\"Producto \")","v":0},false,669]
[null,null,{"$f":"_xlfn.IFS(B694=\"Producto \",$N$10&\"-\"&T695,B694=\"Actividad Propia\",$N$10&\"-\"&T694&\"-\"&V694,B694=\"Actividad sin participación\",$N$10&\"-\"&T694&\"-\"&V694,B694=\"\",\"\")","v":""},null,null,null,null,null,null,null,null,null,null,null,null,null,null,null,null,{"$f":"COUNTIFS($B$24:B694,\"Producto \")","v":0},false,670]
[null,null,{"$f":"_xlfn.IFS(B695=\"Producto \",$N$10&\"-\"&T696,B695=\"Actividad Propia\",$N$10&\"-\"&T695&\"-\"&V695,B695=\"Actividad sin participación\",$N$10&\"-\"&T695&\"-\"&V695,B695=\"\",\"\")","v":""},null,null,null,null,null,null,null,null,null,null,null,null,null,null,null,null,{"$f":"COUNTIFS($B$24:B695,\"Producto \")","v":0},false,671]
[null,null,{"$f":"_xlfn.IFS(B696=\"Producto \",$N$10&\"-\"&T697,B696=\"Actividad Propia\",$N$10&\"-\"&T696&\"-\"&V696,B696=\"Actividad sin participación\",$N$10&\"-\"&T696&\"-\"&V696,B696=\"\",\"\")","v":""},null,null,null,null,null,null,null,null,null,null,null,null,null,null,null,null,{"$f":"COUNTIFS($B$24:B696,\"Producto \")","v":0},false,672]
[null,null,{"$f":"_xlfn.IFS(B697=\"Producto \",$N$10&\"-\"&T698,B697=\"Actividad Propia\",$N$10&\"-\"&T697&\"-\"&V697,B697=\"Actividad sin participación\",$N$10&\"-\"&T697&\"-\"&V697,B697=\"\",\"\")","v":""},null,null,null,null,null,null,null,null,null,null,null,null,null,null,null,null,{"$f":"COUNTIFS($B$24:B697,\"Producto \")","v":0},false,673]
[null,null,{"$f":"_xlfn.IFS(B698=\"Producto \",$N$10&\"-\"&T699,B698=\"Actividad Propia\",$N$10&\"-\"&T698&\"-\"&V698,B698=\"Actividad sin participación\",$N$10&\"-\"&T698&\"-\"&V698,B698=\"\",\"\")","v":""},null,null,null,null,null,null,null,null,null,null,null,null,null,null,null,null,{"$f":"COUNTIFS($B$24:B698,\"Producto \")","v":0},false,674]
[null,null,{"$f":"_xlfn.IFS(B699=\"Producto \",$N$10&\"-\"&T700,B699=\"Actividad Propia\",$N$10&\"-\"&T699&\"-\"&V699,B699=\"Actividad sin participación\",$N$10&\"-\"&T699&\"-\"&V699,B699=\"\",\"\")","v":""},null,null,null,null,null,null,null,null,null,null,null,null,null,null,null,null,{"$f":"COUNTIFS($B$24:B699,\"Producto \")","v":0},false,675]
[null,null,{"$f":"_xlfn.IFS(B700=\"Producto \",$N$10&\"-\"&T701,B700=\"Actividad Propia\",$N$10&\"-\"&T700&\"-\"&V700,B700=\"Actividad sin participación\",$N$10&\"-\"&T700&\"-\"&V700,B700=\"\",\"\")","v":""},null,null,null,null,null,null,null,null,null,null,null,null,null,null,null,null,{"$f":"COUNTIFS($B$24:B700,\"Producto \")","v":0},false,676]
[null,null,{"$f":"_xlfn.IFS(B701=\"Producto \",$N$10&\"-\"&T702,B701=\"Actividad Propia\",$N$10&\"-\"&T701&\"-\"&V701,B701=\"Actividad sin participación\",$N$10&\"-\"&T701&\"-\"&V701,B701=\"\",\"\")","v":""},null,null,null,null,null,null,null,null,null,null,null,null,null,null,null,null,{"$f":"COUNTIFS($B$24:B701,\"Producto \")","v":0},false,677]
[null,null,{"$f":"_xlfn.IFS(B702=\"Producto \",$N$10&\"-\"&T703,B702=\"Actividad Propia\",$N$10&\"-\"&T702&\"-\"&V702,B702=\"Actividad sin participación\",$N$10&\"-\"&T702&\"-\"&V702,B702=\"\",\"\")","v":""},null,null,null,null,null,null,null,null,null,null,null,null,null,null,null,null,{"$f":"COUNTIFS($B$24:B702,\"Producto \")","v":0},false,678]
[null,null,{"$f":"_xlfn.IFS(B703=\"Producto \",$N$10&\"-\"&T704,B703=\"Actividad Propia\",$N$10&\"-\"&T703&\"-\"&V703,B703=\"Actividad sin participación\",$N$10&\"-\"&T703&\"-\"&V703,B703=\"\",\"\")","v":""},null,null,null,null,null,null,null,null,null,null,null,null,null,null,null,null,{"$f":"COUNTIFS($B$24:B703,\"Producto \")","v":0},false,679]
[null,null,{"$f":"_xlfn.IFS(B704=\"Producto \",$N$10&\"-\"&T705,B704=\"Actividad Propia\",$N$10&\"-\"&T704&\"-\"&V704,B704=\"Actividad sin participación\",$N$10&\"-\"&T704&\"-\"&V704,B704=\"\",\"\")","v":""},null,null,null,null,null,null,null,null,null,null,null,null,null,null,null,null,{"$f":"COUNTIFS($B$24:B704,\"Producto \")","v":0},false,680]
[null,null,{"$f":"_xlfn.IFS(B705=\"Producto \",$N$10&\"-\"&T706,B705=\"Actividad Propia\",$N$10&\"-\"&T705&\"-\"&V705,B705=\"Actividad sin participación\",$N$10&\"-\"&T705&\"-\"&V705,B705=\"\",\"\")","v":""},null,null,null,null,null,null,null,null,null,null,null,null,null,null,null,null,{"$f":"COUNTIFS($B$24:B705,\"Producto \")","v":0},false,681]
[null,null,{"$f":"_xlfn.IFS(B706=\"Producto \",$N$10&\"-\"&T707,B706=\"Actividad Propia\",$N$10&\"-\"&T706&\"-\"&V706,B706=\"Actividad sin participación\",$N$10&\"-\"&T706&\"-\"&V706,B706=\"\",\"\")","v":""},null,null,null,null,null,null,null,null,null,null,null,null,null,null,null,null,{"$f":"COUNTIFS($B$24:B706,\"Producto \")","v":0},false,682]
[null,null,{"$f":"_xlfn.IFS(B707=\"Producto \",$N$10&\"-\"&T708,B707=\"Actividad Propia\",$N$10&\"-\"&T707&\"-\"&V707,B707=\"Actividad sin participación\",$N$10&\"-\"&T707&\"-\"&V707,B707=\"\",\"\")","v":""},null,null,null,null,null,null,null,null,null,null,null,null,null,null,null,null,{"$f":"COUNTIFS($B$24:B707,\"Producto \")","v":0},false,683]
[null,null,{"$f":"_xlfn.IFS(B708=\"Producto \",$N$10&\"-\"&T709,B708=\"Actividad Propia\",$N$10&\"-\"&T708&\"-\"&V708,B708=\"Actividad sin participación\",$N$10&\"-\"&T708&\"-\"&V708,B708=\"\",\"\")","v":""},null,null,null,null,null,null,null,null,null,null,null,null,null,null,null,null,{"$f":"COUNTIFS($B$24:B708,\"Producto \")","v":0},false,684]
[null,null,{"$f":"_xlfn.IFS(B709=\"Producto \",$N$10&\"-\"&T710,B709=\"Actividad Propia\",$N$10&\"-\"&T709&\"-\"&V709,B709=\"Actividad sin participación\",$N$10&\"-\"&T709&\"-\"&V709,B709=\"\",\"\")","v":""},null,null,null,null,null,null,null,null,null,null,null,null,null,null,null,null,{"$f":"COUNTIFS($B$24:B709,\"Producto \")","v":0},false,685]
[null,null,{"$f":"_xlfn.IFS(B710=\"Producto \",$N$10&\"-\"&T711,B710=\"Actividad Propia\",$N$10&\"-\"&T710&\"-\"&V710,B710=\"Actividad sin participación\",$N$10&\"-\"&T710&\"-\"&V710,B710=\"\",\"\")","v":""},null,null,null,null,null,null,null,null,null,null,null,null,null,null,null,null,{"$f":"COUNTIFS($B$24:B710,\"Producto \")","v":0},false,686]
[null,null,{"$f":"_xlfn.IFS(B711=\"Producto \",$N$10&\"-\"&T712,B711=\"Actividad Propia\",$N$10&\"-\"&T711&\"-\"&V711,B711=\"Actividad sin participación\",$N$10&\"-\"&T711&\"-\"&V711,B711=\"\",\"\")","v":""},null,null,null,null,null,null,null,null,null,null,null,null,null,null,null,null,{"$f":"COUNTIFS($B$24:B711,\"Producto \")","v":0},false,687]
[null,null,{"$f":"_xlfn.IFS(B712=\"Producto \",$N$10&\"-\"&T713,B712=\"Actividad Propia\",$N$10&\"-\"&T712&\"-\"&V712,B712=\"Actividad sin participación\",$N$10&\"-\"&T712&\"-\"&V712,B712=\"\",\"\")","v":""},null,null,null,null,null,null,null,null,null,null,null,null,null,null,null,null,{"$f":"COUNTIFS($B$24:B712,\"Producto \")","v":0},false,688]
[null,null,{"$f":"_xlfn.IFS(B713=\"Producto \",$N$10&\"-\"&T714,B713=\"Actividad Propia\",$N$10&\"-\"&T713&\"-\"&V713,B713=\"Actividad sin participación\",$N$10&\"-\"&T713&\"-\"&V713,B713=\"\",\"\")","v":""},null,null,null,null,null,null,null,null,null,null,null,null,null,null,null,null,{"$f":"COUNTIFS($B$24:B713,\"Producto \")","v":0},false,689]
[null,null,{"$f":"_xlfn.IFS(B714=\"Producto \",$N$10&\"-\"&T715,B714=\"Actividad Propia\",$N$10&\"-\"&T714&\"-\"&V714,B714=\"Actividad sin participación\",$N$10&\"-\"&T714&\"-\"&V714,B714=\"\",\"\")","v":""},null,null,null,null,null,null,null,null,null,null,null,null,null,null,null,null,{"$f":"COUNTIFS($B$24:B714,\"Producto \")","v":0},false,690]
[null,null,{"$f":"_xlfn.IFS(B715=\"Producto \",$N$10&\"-\"&T716,B715=\"Actividad Propia\",$N$10&\"-\"&T715&\"-\"&V715,B715=\"Actividad sin participación\",$N$10&\"-\"&T715&\"-\"&V715,B715=\"\",\"\")","v":""},null,null,null,null,null,null,null,null,null,null,null,null,null,null,null,null,{"$f":"COUNTIFS($B$24:B715,\"Producto \")","v":0},false,691]
[null,null,{"$f":"_xlfn.IFS(B716=\"Producto \",$N$10&\"-\"&T717,B716=\"Actividad Propia\",$N$10&\"-\"&T716&\"-\"&V716,B716=\"Actividad sin participación\",$N$10&\"-\"&T716&\"-\"&V716,B716=\"\",\"\")","v":""},null,null,null,null,null,null,null,null,null,null,null,null,null,null,null,null,{"$f":"COUNTIFS($B$24:B716,\"Producto \")","v":0},false,692]
[null,null,{"$f":"_xlfn.IFS(B717=\"Producto \",$N$10&\"-\"&T718,B717=\"Actividad Propia\",$N$10&\"-\"&T717&\"-\"&V717,B717=\"Actividad sin participación\",$N$10&\"-\"&T717&\"-\"&V717,B717=\"\",\"\")","v":""},null,null,null,null,null,null,null,null,null,null,null,null,null,null,null,null,{"$f":"COUNTIFS($B$24:B717,\"Producto \")","v":0},false,693]
[null,null,{"$f":"_xlfn.IFS(B718=\"Producto \",$N$10&\"-\"&T719,B718=\"Actividad Propia\",$N$10&\"-\"&T718&\"-\"&V718,B718=\"Actividad sin participación\",$N$10&\"-\"&T718&\"-\"&V718,B718=\"\",\"\")","v":""},null,null,null,null,null,null,null,null,null,null,null,null,null,null,null,null,{"$f":"COUNTIFS($B$24:B718,\"Producto \")","v":0},false,694]
[null,null,{"$f":"_xlfn.IFS(B719=\"Producto \",$N$10&\"-\"&T720,B719=\"Actividad Propia\",$N$10&\"-\"&T719&\"-\"&V719,B719=\"Actividad sin participación\",$N$10&\"-\"&T719&\"-\"&V719,B719=\"\",\"\")","v":""},null,null,null,null,null,null,null,null,null,null,null,null,null,null,null,null,{"$f":"COUNTIFS($B$24:B719,\"Producto \")","v":0},false,695]
[null,null,{"$f":"_xlfn.IFS(B720=\"Producto \",$N$10&\"-\"&T721,B720=\"Actividad Propia\",$N$10&\"-\"&T720&\"-\"&V720,B720=\"Actividad sin participación\",$N$10&\"-\"&T720&\"-\"&V720,B720=\"\",\"\")","v":""},null,null,null,null,null,null,null,null,null,null,null,null,null,null,null,null,{"$f":"COUNTIFS($B$24:B720,\"Producto \")","v":0},false,696]
[null,null,{"$f":"_xlfn.IFS(B721=\"Producto \",$N$10&\"-\"&T722,B721=\"Actividad Propia\",$N$10&\"-\"&T721&\"-\"&V721,B721=\"Actividad sin participación\",$N$10&\"-\"&T721&\"-\"&V721,B721=\"\",\"\")","v":""},null,null,null,null,null,null,null,null,null,null,null,null,null,null,null,null,{"$f":"COUNTIFS($B$24:B721,\"Producto \")","v":0},false,697]
[null,null,{"$f":"_xlfn.IFS(B722=\"Producto \",$N$10&\"-\"&T723,B722=\"Actividad Propia\",$N$10&\"-\"&T722&\"-\"&V722,B722=\"Actividad sin participación\",$N$10&\"-\"&T722&\"-\"&V722,B722=\"\",\"\")","v":""},null,null,null,null,null,null,null,null,null,null,null,null,null,null,null,null,{"$f":"COUNTIFS($B$24:B722,\"Producto \")","v":0},false,698]
[null,null,{"$f":"_xlfn.IFS(B723=\"Producto \",$N$10&\"-\"&T724,B723=\"Actividad Propia\",$N$10&\"-\"&T723&\"-\"&V723,B723=\"Actividad sin participación\",$N$10&\"-\"&T723&\"-\"&V723,B723=\"\",\"\")","v":""},null,null,null,null,null,null,null,null,null,null,null,null,null,null,null,null,{"$f":"COUNTIFS($B$24:B723,\"Producto \")","v":0},false,699]
[null,null,{"$f":"_xlfn.IFS(B724=\"Producto \",$N$10&\"-\"&T725,B724=\"Actividad Propia\",$N$10&\"-\"&T724&\"-\"&V724,B724=\"Actividad sin participación\",$N$10&\"-\"&T724&\"-\"&V724,B724=\"\",\"\")","v":""},null,null,null,null,null,null,null,null,null,null,null,null,null,null,null,null,{"$f":"COUNTIFS($B$24:B724,\"Producto \")","v":0},false,700]
[null,null,{"$f":"_xlfn.IFS(B725=\"Producto \",$N$10&\"-\"&T726,B725=\"Actividad Propia\",$N$10&\"-\"&T725&\"-\"&V725,B725=\"Actividad sin participación\",$N$10&\"-\"&T725&\"-\"&V725,B725=\"\",\"\")","v":""},null,null,null,null,null,null,null,null,null,null,null,null,null,null,null,null,{"$f":"COUNTIFS($B$24:B725,\"Producto \")","v":0},false,701]
[null,null,{"$f":"_xlfn.IFS(B726=\"Producto \",$N$10&\"-\"&T727,B726=\"Actividad Propia\",$N$10&\"-\"&T726&\"-\"&V726,B726=\"Actividad sin participación\",$N$10&\"-\"&T726&\"-\"&V726,B726=\"\",\"\")","v":""},null,null,null,null,null,null,null,null,null,null,null,null,null,null,null,null,{"$f":"COUNTIFS($B$24:B726,\"Producto \")","v":0},false,702]
[null,null,{"$f":"_xlfn.IFS(B727=\"Producto \",$N$10&\"-\"&T728,B727=\"Actividad Propia\",$N$10&\"-\"&T727&\"-\"&V727,B727=\"Actividad sin participación\",$N$10&\"-\"&T727&\"-\"&V727,B727=\"\",\"\")","v":""},null,null,null,null,null,null,null,null,null,null,null,null,null,null,null,null,{"$f":"COUNTIFS($B$24:B727,\"Producto \")","v":0},false,703]
[null,null,{"$f":"_xlfn.IFS(B728=\"Producto \",$N$10&\"-\"&T729,B728=\"Actividad Propia\",$N$10&\"-\"&T728&\"-\"&V728,B728=\"Actividad sin participación\",$N$10&\"-\"&T728&\"-\"&V728,B728=\"\",\"\")","v":""},null,null,null,null,null,null,null,null,null,null,null,null,null,null,null,null,{"$f":"COUNTIFS($B$24:B728,\"Producto \")","v":0},false,704]
[null,null,{"$f":"_xlfn.IFS(B729=\"Producto \",$N$10&\"-\"&T730,B729=\"Actividad Propia\",$N$10&\"-\"&T729&\"-\"&V729,B729=\"Actividad sin participación\",$N$10&\"-\"&T729&\"-\"&V729,B729=\"\",\"\")","v":""},null,null,null,null,null,null,null,null,null,null,null,null,null,null,null,null,{"$f":"COUNTIFS($B$24:B729,\"Producto \")","v":0},{"$f":"IF(B728=\"Producto \",C728&\"-\"&V729)","v":false},{"$f":"IF(B728=\"Producto \",1,V728+1)","v":705}]
[null,null,{"$f":"_xlfn.IFS(B730=\"Producto \",$N$10&\"-\"&T731,B730=\"Actividad Propia\",$N$10&\"-\"&T730&\"-\"&V730,B730=\"Actividad sin participación\",$N$10&\"-\"&T730&\"-\"&V730,B730=\"\",\"\")","v":""},null,null,null,null,null,null,null,null,null,null,null,null,null,null,null,null,{"$f":"COUNTIFS($B$24:B730,\"Producto \")","v":0},false,706]
[null,null,{"$f":"_xlfn.IFS(B731=\"Producto \",$N$10&\"-\"&T732,B731=\"Actividad Propia\",$N$10&\"-\"&T731&\"-\"&V731,B731=\"Actividad sin participación\",$N$10&\"-\"&T731&\"-\"&V731,B731=\"\",\"\")","v":""},null,null,null,null,null,null,null,null,null,null,null,null,null,null,null,null,{"$f":"COUNTIFS($B$24:B731,\"Producto \")","v":0},false,707]
[null,null,{"$f":"_xlfn.IFS(B732=\"Producto \",$N$10&\"-\"&T733,B732=\"Actividad Propia\",$N$10&\"-\"&T732&\"-\"&V732,B732=\"Actividad sin participación\",$N$10&\"-\"&T732&\"-\"&V732,B732=\"\",\"\")","v":""},null,null,null,null,null,null,null,null,null,null,null,null,null,null,null,null,{"$f":"COUNTIFS($B$24:B732,\"Producto \")","v":0},false,708]
[null,null,{"$f":"_xlfn.IFS(B733=\"Producto \",$N$10&\"-\"&T734,B733=\"Actividad Propia\",$N$10&\"-\"&T733&\"-\"&V733,B733=\"Actividad sin participación\",$N$10&\"-\"&T733&\"-\"&V733,B733=\"\",\"\")","v":""},null,null,null,null,null,null,null,null,null,null,null,null,null,null,null,null,{"$f":"COUNTIFS($B$24:B733,\"Producto \")","v":0},false,709]
[null,null,{"$f":"_xlfn.IFS(B734=\"Producto \",$N$10&\"-\"&T735,B734=\"Actividad Propia\",$N$10&\"-\"&T734&\"-\"&V734,B734=\"Actividad sin participación\",$N$10&\"-\"&T734&\"-\"&V734,B734=\"\",\"\")","v":""},null,null,null,null,null,null,null,null,null,null,null,null,null,null,null,null,{"$f":"COUNTIFS($B$24:B734,\"Producto \")","v":0},false,710]
[null,null,{"$f":"_xlfn.IFS(B735=\"Producto \",$N$10&\"-\"&T736,B735=\"Actividad Propia\",$N$10&\"-\"&T735&\"-\"&V735,B735=\"Actividad sin participación\",$N$10&\"-\"&T735&\"-\"&V735,B735=\"\",\"\")","v":""},null,null,null,null,null,null,null,null,null,null,null,null,null,null,null,null,{"$f":"COUNTIFS($B$24:B735,\"Producto \")","v":0},false,711]
[null,null,{"$f":"_xlfn.IFS(B736=\"Producto \",$N$10&\"-\"&T737,B736=\"Actividad Propia\",$N$10&\"-\"&T736&\"-\"&V736,B736=\"Actividad sin participación\",$N$10&\"-\"&T736&\"-\"&V736,B736=\"\",\"\")","v":""},null,null,null,null,null,null,null,null,null,null,null,null,null,null,null,null,{"$f":"COUNTIFS($B$24:B736,\"Producto \")","v":0},false,712]
[null,null,{"$f":"_xlfn.IFS(B737=\"Producto \",$N$10&\"-\"&T738,B737=\"Actividad Propia\",$N$10&\"-\"&T737&\"-\"&V737,B737=\"Actividad sin participación\",$N$10&\"-\"&T737&\"-\"&V737,B737=\"\",\"\")","v":""},null,null,null,null,null,null,null,null,null,null,null,null,null,null,null,null,{"$f":"COUNTIFS($B$24:B737,\"Producto \")","v":0},false,713]
[null,null,{"$f":"_xlfn.IFS(B738=\"Producto \",$N$10&\"-\"&T739,B738=\"Actividad Propia\",$N$10&\"-\"&T738&\"-\"&V738,B738=\"Actividad sin participación\",$N$10&\"-\"&T738&\"-\"&V738,B738=\"\",\"\")","v":""},null,null,null,null,null,null,null,null,null,null,null,null,null,null,null,null,{"$f":"COUNTIFS($B$24:B738,\"Producto \")","v":0},false,714]
[null,null,{"$f":"_xlfn.IFS(B739=\"Producto \",$N$10&\"-\"&T740,B739=\"Actividad Propia\",$N$10&\"-\"&T739&\"-\"&V739,B739=\"Actividad sin participación\",$N$10&\"-\"&T739&\"-\"&V739,B739=\"\",\"\")","v":""},null,null,null,null,null,null,null,null,null,null,null,null,null,null,null,null,{"$f":"COUNTIFS($B$24:B739,\"Producto \")","v":0},false,715]
[null,null,{"$f":"_xlfn.IFS(B740=\"Producto \",$N$10&\"-\"&T741,B740=\"Actividad Propia\",$N$10&\"-\"&T740&\"-\"&V740,B740=\"Actividad sin participación\",$N$10&\"-\"&T740&\"-\"&V740,B740=\"\",\"\")","v":""},null,null,null,null,null,null,null,null,null,null,null,null,null,null,null,null,{"$f":"COUNTIFS($B$24:B740,\"Producto \")","v":0},false,716]
[null,null,{"$f":"_xlfn.IFS(B741=\"Producto \",$N$10&\"-\"&T742,B741=\"Actividad Propia\",$N$10&\"-\"&T741&\"-\"&V741,B741=\"Actividad sin participación\",$N$10&\"-\"&T741&\"-\"&V741,B741=\"\",\"\")","v":""},null,null,null,null,null,null,null,null,null,null,null,null,null,null,null,null,{"$f":"COUNTIFS($B$24:B741,\"Producto \")","v":0},false,717]
[null,null,{"$f":"_xlfn.IFS(B742=\"Producto \",$N$10&\"-\"&T743,B742=\"Actividad Propia\",$N$10&\"-\"&T742&\"-\"&V742,B742=\"Actividad sin participación\",$N$10&\"-\"&T742&\"-\"&V742,B742=\"\",\"\")","v":""},null,null,null,null,null,null,null,null,null,null,null,null,null,null,null,null,{"$f":"COUNTIFS($B$24:B742,\"Producto \")","v":0},false,718]
[null,null,{"$f":"_xlfn.IFS(B743=\"Producto \",$N$10&\"-\"&T744,B743=\"Actividad Propia\",$N$10&\"-\"&T743&\"-\"&V743,B743=\"Actividad sin participación\",$N$10&\"-\"&T743&\"-\"&V743,B743=\"\",\"\")","v":""},null,null,null,null,null,null,null,null,null,null,null,null,null,null,null,null,{"$f":"COUNTIFS($B$24:B743,\"Producto \")","v":0},false,719]
[null,null,{"$f":"_xlfn.IFS(B744=\"Producto \",$N$10&\"-\"&T745,B744=\"Actividad Propia\",$N$10&\"-\"&T744&\"-\"&V744,B744=\"Actividad sin participación\",$N$10&\"-\"&T744&\"-\"&V744,B744=\"\",\"\")","v":""},null,null,null,null,null,null,null,null,null,null,null,null,null,null,null,null,{"$f":"COUNTIFS($B$24:B744,\"Producto \")","v":0},false,720]
[null,null,{"$f":"_xlfn.IFS(B745=\"Producto \",$N$10&\"-\"&T746,B745=\"Actividad Propia\",$N$10&\"-\"&T745&\"-\"&V745,B745=\"Actividad sin participación\",$N$10&\"-\"&T745&\"-\"&V745,B745=\"\",\"\")","v":""},null,null,null,null,null,null,null,null,null,null,null,null,null,null,null,null,{"$f":"COUNTIFS($B$24:B745,\"Producto \")","v":0},false,721]
[null,null,{"$f":"_xlfn.IFS(B746=\"Producto \",$N$10&\"-\"&T747,B746=\"Actividad Propia\",$N$10&\"-\"&T746&\"-\"&V746,B746=\"Actividad sin participación\",$N$10&\"-\"&T746&\"-\"&V746,B746=\"\",\"\")","v":""},null,null,null,null,null,null,null,null,null,null,null,null,null,null,null,null,{"$f":"COUNTIFS($B$24:B746,\"Producto \")","v":0},false,722]
[null,null,{"$f":"_xlfn.IFS(B747=\"Producto \",$N$10&\"-\"&T748,B747=\"Actividad Propia\",$N$10&\"-\"&T747&\"-\"&V747,B747=\"Actividad sin participación\",$N$10&\"-\"&T747&\"-\"&V747,B747=\"\",\"\")","v":""},null,null,null,null,null,null,null,null,null,null,null,null,null,null,null,null,{"$f":"COUNTIFS($B$24:B747,\"Producto \")","v":0},false,723]
[null,null,{"$f":"_xlfn.IFS(B748=\"Producto \",$N$10&\"-\"&T749,B748=\"Actividad Propia\",$N$10&\"-\"&T748&\"-\"&V748,B748=\"Actividad sin participación\",$N$10&\"-\"&T748&\"-\"&V748,B748=\"\",\"\")","v":""},null,null,null,null,null,null,null,null,null,null,null,null,null,null,null,null,{"$f":"COUNTIFS($B$24:B748,\"Producto \")","v":0},false,724]
[null,null,{"$f":"_xlfn.IFS(B749=\"Producto \",$N$10&\"-\"&T750,B749=\"Actividad Propia\",$N$10&\"-\"&T749&\"-\"&V749,B749=\"Actividad sin participación\",$N$10&\"-\"&T749&\"-\"&V749,B749=\"\",\"\")","v":""},null,null,null,null,null,null,null,null,null,null,null,null,null,null,null,null,{"$f":"COUNTIFS($B$24:B749,\"Producto \")","v":0},false,725]
[null,null,{"$f":"_xlfn.IFS(B750=\"Producto \",$N$10&\"-\"&T751,B750=\"Actividad Propia\",$N$10&\"-\"&T750&\"-\"&V750,B750=\"Actividad sin participación\",$N$10&\"-\"&T750&\"-\"&V750,B750=\"\",\"\")","v":""},null,null,null,null,null,null,null,null,null,null,null,null,null,null,null,null,{"$f":"COUNTIFS($B$24:B750,\"Producto \")","v":0},false,726]
[null,null,{"$f":"_xlfn.IFS(B751=\"Producto \",$N$10&\"-\"&T752,B751=\"Actividad Propia\",$N$10&\"-\"&T751&\"-\"&V751,B751=\"Actividad sin participación\",$N$10&\"-\"&T751&\"-\"&V751,B751=\"\",\"\")","v":""},null,null,null,null,null,null,null,null,null,null,null,null,null,null,null,null,{"$f":"COUNTIFS($B$24:B751,\"Producto \")","v":0},false,727]
[null,null,{"$f":"_xlfn.IFS(B752=\"Producto \",$N$10&\"-\"&T753,B752=\"Actividad Propia\",$N$10&\"-\"&T752&\"-\"&V752,B752=\"Actividad sin participación\",$N$10&\"-\"&T752&\"-\"&V752,B752=\"\",\"\")","v":""},null,null,null,null,null,null,null,null,null,null,null,null,null,null,null,null,{"$f":"COUNTIFS($B$24:B752,\"Producto \")","v":0},false,728]
[null,null,{"$f":"_xlfn.IFS(B753=\"Producto \",$N$10&\"-\"&T754,B753=\"Actividad Propia\",$N$10&\"-\"&T753&\"-\"&V753,B753=\"Actividad sin participación\",$N$10&\"-\"&T753&\"-\"&V753,B753=\"\",\"\")","v":""},null,null,null,null,null,null,null,null,null,null,null,null,null,null,null,null,{"$f":"COUNTIFS($B$24:B753,\"Producto \")","v":0},false,729]
[null,null,{"$f":"_xlfn.IFS(B754=\"Producto \",$N$10&\"-\"&T755,B754=\"Actividad Propia\",$N$10&\"-\"&T754&\"-\"&V754,B754=\"Actividad sin participación\",$N$10&\"-\"&T754&\"-\"&V754,B754=\"\",\"\")","v":""},null,null,null,null,null,null,null,null,null,null,null,null,null,null,null,null,{"$f":"COUNTIFS($B$24:B754,\"Producto \")","v":0},false,730]
[null,null,{"$f":"_xlfn.IFS(B755=\"Producto \",$N$10&\"-\"&T756,B755=\"Actividad Propia\",$N$10&\"-\"&T755&\"-\"&V755,B755=\"Actividad sin participación\",$N$10&\"-\"&T755&\"-\"&V755,B755=\"\",\"\")","v":""},null,null,null,null,null,null,null,null,null,null,null,null,null,null,null,null,{"$f":"COUNTIFS($B$24:B755,\"Producto \")","v":0},false,731]
[null,null,{"$f":"_xlfn.IFS(B756=\"Producto \",$N$10&\"-\"&T757,B756=\"Actividad Propia\",$N$10&\"-\"&T756&\"-\"&V756,B756=\"Actividad sin participación\",$N$10&\"-\"&T756&\"-\"&V756,B756=\"\",\"\")","v":""},null,null,null,null,null,null,null,null,null,null,null,null,null,null,null,null,{"$f":"COUNTIFS($B$24:B756,\"Producto \")","v":0},false,732]
[null,null,{"$f":"_xlfn.IFS(B757=\"Producto \",$N$10&\"-\"&T758,B757=\"Actividad Propia\",$N$10&\"-\"&T757&\"-\"&V757,B757=\"Actividad sin participación\",$N$10&\"-\"&T757&\"-\"&V757,B757=\"\",\"\")","v":""},null,null,null,null,null,null,null,null,null,null,null,null,null,null,null,null,{"$f":"COUNTIFS($B$24:B757,\"Producto \")","v":0},false,733]
[null,null,{"$f":"_xlfn.IFS(B758=\"Producto \",$N$10&\"-\"&T759,B758=\"Actividad Propia\",$N$10&\"-\"&T758&\"-\"&V758,B758=\"Actividad sin participación\",$N$10&\"-\"&T758&\"-\"&V758,B758=\"\",\"\")","v":""},null,null,null,null,null,null,null,null,null,null,null,null,null,null,null,null,{"$f":"COUNTIFS($B$24:B758,\"Producto \")","v":0},false,734]
[null,null,{"$f":"_xlfn.IFS(B759=\"Producto \",$N$10&\"-\"&T760,B759=\"Actividad Propia\",$N$10&\"-\"&T759&\"-\"&V759,B759=\"Actividad sin participación\",$N$10&\"-\"&T759&\"-\"&V759,B759=\"\",\"\")","v":""},null,null,null,null,null,null,null,null,null,null,null,null,null,null,null,null,{"$f":"COUNTIFS($B$24:B759,\"Producto \")","v":0},false,735]
[null,null,{"$f":"_xlfn.IFS(B760=\"Producto \",$N$10&\"-\"&T761,B760=\"Actividad Propia\",$N$10&\"-\"&T760&\"-\"&V760,B760=\"Actividad sin participación\",$N$10&\"-\"&T760&\"-\"&V760,B760=\"\",\"\")","v":""},null,null,null,null,null,null,null,null,null,null,null,null,null,null,null,null,{"$f":"COUNTIFS($B$24:B760,\"Producto \")","v":0},false,736]
[null,null,{"$f":"_xlfn.IFS(B761=\"Producto \",$N$10&\"-\"&T762,B761=\"Actividad Propia\",$N$10&\"-\"&T761&\"-\"&V761,B761=\"Actividad sin participación\",$N$10&\"-\"&T761&\"-\"&V761,B761=\"\",\"\")","v":""},null,null,null,null,null,null,null,null,null,null,null,null,null,null,null,null,{"$f":"COUNTIFS($B$24:B761,\"Producto \")","v":0},false,737]
[null,null,{"$f":"_xlfn.IFS(B762=\"Producto \",$N$10&\"-\"&T763,B762=\"Actividad Propia\",$N$10&\"-\"&T762&\"-\"&V762,B762=\"Actividad sin participación\",$N$10&\"-\"&T762&\"-\"&V762,B762=\"\",\"\")","v":""},null,null,null,null,null,null,null,null,null,null,null,null,null,null,null,null,{"$f":"COUNTIFS($B$24:B762,\"Producto \")","v":0},false,738]
[null,null,{"$f":"_xlfn.IFS(B763=\"Producto \",$N$10&\"-\"&T764,B763=\"Actividad Propia\",$N$10&\"-\"&T763&\"-\"&V763,B763=\"Actividad sin participación\",$N$10&\"-\"&T763&\"-\"&V763,B763=\"\",\"\")","v":""},null,null,null,null,null,null,null,null,null,null,null,null,null,null,null,null,{"$f":"COUNTIFS($B$24:B763,\"Producto \")","v":0},false,739]
[null,null,{"$f":"_xlfn.IFS(B764=\"Producto \",$N$10&\"-\"&T765,B764=\"Actividad Propia\",$N$10&\"-\"&T764&\"-\"&V764,B764=\"Actividad sin participación\",$N$10&\"-\"&T764&\"-\"&V764,B764=\"\",\"\")","v":""},null,null,null,null,null,null,null,null,null,null,null,null,null,null,null,null,{"$f":"COUNTIFS($B$24:B764,\"Producto \")","v":0},false,740]
[null,null,{"$f":"_xlfn.IFS(B765=\"Producto \",$N$10&\"-\"&T766,B765=\"Actividad Propia\",$N$10&\"-\"&T765&\"-\"&V765,B765=\"Actividad sin participación\",$N$10&\"-\"&T765&\"-\"&V765,B765=\"\",\"\")","v":""},null,null,null,null,null,null,null,null,null,null,null,null,null,null,null,null,{"$f":"COUNTIFS($B$24:B765,\"Producto \")","v":0},false,741]
[null,null,{"$f":"_xlfn.IFS(B766=\"Producto \",$N$10&\"-\"&T767,B766=\"Actividad Propia\",$N$10&\"-\"&T766&\"-\"&V766,B766=\"Actividad sin participación\",$N$10&\"-\"&T766&\"-\"&V766,B766=\"\",\"\")","v":""},null,null,null,null,null,null,null,null,null,null,null,null,null,null,null,null,{"$f":"COUNTIFS($B$24:B766,\"Producto \")","v":0},false,742]
[null,null,{"$f":"_xlfn.IFS(B767=\"Producto \",$N$10&\"-\"&T768,B767=\"Actividad Propia\",$N$10&\"-\"&T767&\"-\"&V767,B767=\"Actividad sin participación\",$N$10&\"-\"&T767&\"-\"&V767,B767=\"\",\"\")","v":""},null,null,null,null,null,null,null,null,null,null,null,null,null,null,null,null,{"$f":"COUNTIFS($B$24:B767,\"Producto \")","v":0},false,743]
[null,null,{"$f":"_xlfn.IFS(B768=\"Producto \",$N$10&\"-\"&T769,B768=\"Actividad Propia\",$N$10&\"-\"&T768&\"-\"&V768,B768=\"Actividad sin participación\",$N$10&\"-\"&T768&\"-\"&V768,B768=\"\",\"\")","v":""},null,null,null,null,null,null,null,null,null,null,null,null,null,null,null,null,{"$f":"COUNTIFS($B$24:B768,\"Producto \")","v":0},false,744]
[null,null,{"$f":"_xlfn.IFS(B769=\"Producto \",$N$10&\"-\"&T770,B769=\"Actividad Propia\",$N$10&\"-\"&T769&\"-\"&V769,B769=\"Actividad sin participación\",$N$10&\"-\"&T769&\"-\"&V769,B769=\"\",\"\")","v":""},null,null,null,null,null,null,null,null,null,null,null,null,null,null,null,null,{"$f":"COUNTIFS($B$24:B769,\"Producto \")","v":0},false,745]
[null,null,{"$f":"_xlfn.IFS(B770=\"Producto \",$N$10&\"-\"&T771,B770=\"Actividad Propia\",$N$10&\"-\"&T770&\"-\"&V770,B770=\"Actividad sin participación\",$N$10&\"-\"&T770&\"-\"&V770,B770=\"\",\"\")","v":""},null,null,null,null,null,null,null,null,null,null,null,null,null,null,null,null,{"$f":"COUNTIFS($B$24:B770,\"Producto \")","v":0},false,746]
[null,null,{"$f":"_xlfn.IFS(B771=\"Producto \",$N$10&\"-\"&T772,B771=\"Actividad Propia\",$N$10&\"-\"&T771&\"-\"&V771,B771=\"Actividad sin participación\",$N$10&\"-\"&T771&\"-\"&V771,B771=\"\",\"\")","v":""},null,null,null,null,null,null,null,null,null,null,null,null,null,null,null,null,{"$f":"COUNTIFS($B$24:B771,\"Producto \")","v":0},false,747]
[null,null,{"$f":"_xlfn.IFS(B772=\"Producto \",$N$10&\"-\"&T773,B772=\"Actividad Propia\",$N$10&\"-\"&T772&\"-\"&V772,B772=\"Actividad sin participación\",$N$10&\"-\"&T772&\"-\"&V772,B772=\"\",\"\")","v":""},null,null,null,null,null,null,null,null,null,null,null,null,null,null,null,null,{"$f":"COUNTIFS($B$24:B772,\"Producto \")","v":0},false,748]
[null,null,{"$f":"_xlfn.IFS(B773=\"Producto \",$N$10&\"-\"&T774,B773=\"Actividad Propia\",$N$10&\"-\"&T773&\"-\"&V773,B773=\"Actividad sin participación\",$N$10&\"-\"&T773&\"-\"&V773,B773=\"\",\"\")","v":""},null,null,null,null,null,null,null,null,null,null,null,null,null,null,null,null,{"$f":"COUNTIFS($B$24:B773,\"Producto \")","v":0},false,749]
[null,null,{"$f":"_xlfn.IFS(B774=\"Producto \",$N$10&\"-\"&T775,B774=\"Actividad Propia\",$N$10&\"-\"&T774&\"-\"&V774,B774=\"Actividad sin participación\",$N$10&\"-\"&T774&\"-\"&V774,B774=\"\",\"\")","v":""},null,null,null,null,null,null,null,null,null,null,null,null,null,null,null,null,{"$f":"COUNTIFS($B$24:B774,\"Producto \")","v":0},false,750]
[null,null,{"$f":"_xlfn.IFS(B775=\"Producto \",$N$10&\"-\"&T776,B775=\"Actividad Propia\",$N$10&\"-\"&T775&\"-\"&V775,B775=\"Actividad sin participación\",$N$10&\"-\"&T775&\"-\"&V775,B775=\"\",\"\")","v":""},null,null,null,null,null,null,null,null,null,null,null,null,null,null,null,null,{"$f":"COUNTIFS($B$24:B775,\"Producto \")","v":0},false,751]
[null,null,{"$f":"_xlfn.IFS(B776=\"Producto \",$N$10&\"-\"&T777,B776=\"Actividad Propia\",$N$10&\"-\"&T776&\"-\"&V776,B776=\"Actividad sin participación\",$N$10&\"-\"&T776&\"-\"&V776,B776=\"\",\"\")","v":""},null,null,null,null,null,null,null,null,null,null,null,null,null,null,null,null,{"$f":"COUNTIFS($B$24:B776,\"Producto \")","v":0},false,752]
[null,null,{"$f":"_xlfn.IFS(B777=\"Producto \",$N$10&\"-\"&T778,B777=\"Actividad Propia\",$N$10&\"-\"&T777&\"-\"&V777,B777=\"Actividad sin participación\",$N$10&\"-\"&T777&\"-\"&V777,B777=\"\",\"\")","v":""},null,null,null,null,null,null,null,null,null,null,null,null,null,null,null,null,{"$f":"COUNTIFS($B$24:B777,\"Producto \")","v":0},false,753]
[null,null,{"$f":"_xlfn.IFS(B778=\"Producto \",$N$10&\"-\"&T779,B778=\"Actividad Propia\",$N$10&\"-\"&T778&\"-\"&V778,B778=\"Actividad sin participación\",$N$10&\"-\"&T778&\"-\"&V778,B778=\"\",\"\")","v":""},null,null,null,null,null,null,null,null,null,null,null,null,null,null,null,null,{"$f":"COUNTIFS($B$24:B778,\"Producto \")","v":0},false,754]
[null,null,{"$f":"_xlfn.IFS(B779=\"Producto \",$N$10&\"-\"&T780,B779=\"Actividad Propia\",$N$10&\"-\"&T779&\"-\"&V779,B779=\"Actividad sin participación\",$N$10&\"-\"&T779&\"-\"&V779,B779=\"\",\"\")","v":""},null,null,null,null,null,null,null,null,null,null,null,null,null,null,null,null,{"$f":"COUNTIFS($B$24:B779,\"Producto \")","v":0},false,755]
[null,null,{"$f":"_xlfn.IFS(B780=\"Producto \",$N$10&\"-\"&T781,B780=\"Actividad Propia\",$N$10&\"-\"&T780&\"-\"&V780,B780=\"Actividad sin participación\",$N$10&\"-\"&T780&\"-\"&V780,B780=\"\",\"\")","v":""},null,null,null,null,null,null,null,null,null,null,null,null,null,null,null,null,{"$f":"COUNTIFS($B$24:B780,\"Producto \")","v":0},false,756]
[null,null,{"$f":"_xlfn.IFS(B781=\"Producto \",$N$10&\"-\"&T782,B781=\"Actividad Propia\",$N$10&\"-\"&T781&\"-\"&V781,B781=\"Actividad sin participación\",$N$10&\"-\"&T781&\"-\"&V781,B781=\"\",\"\")","v":""},null,null,null,null,null,null,null,null,null,null,null,null,null,null,null,null,{"$f":"COUNTIFS($B$24:B781,\"Producto \")","v":0},false,757]
[null,null,{"$f":"_xlfn.IFS(B782=\"Producto \",$N$10&\"-\"&T783,B782=\"Actividad Propia\",$N$10&\"-\"&T782&\"-\"&V782,B782=\"Actividad sin participación\",$N$10&\"-\"&T782&\"-\"&V782,B782=\"\",\"\")","v":""},null,null,null,null,null,null,null,null,null,null,null,null,null,null,null,null,{"$f":"COUNTIFS($B$24:B782,\"Producto \")","v":0},false,758]
[null,null,{"$f":"_xlfn.IFS(B783=\"Producto \",$N$10&\"-\"&T784,B783=\"Actividad Propia\",$N$10&\"-\"&T783&\"-\"&V783,B783=\"Actividad sin participación\",$N$10&\"-\"&T783&\"-\"&V783,B783=\"\",\"\")","v":""},null,null,null,null,null,null,null,null,null,null,null,null,null,null,null,null,{"$f":"COUNTIFS($B$24:B783,\"Producto \")","v":0},false,759]
[null,null,{"$f":"_xlfn.IFS(B784=\"Producto \",$N$10&\"-\"&T785,B784=\"Actividad Propia\",$N$10&\"-\"&T784&\"-\"&V784,B784=\"Actividad sin participación\",$N$10&\"-\"&T784&\"-\"&V784,B784=\"\",\"\")","v":""},null,null,null,null,null,null,null,null,null,null,null,null,null,null,null,null,{"$f":"COUNTIFS($B$24:B784,\"Producto \")","v":0},false,760]
[null,null,{"$f":"_xlfn.IFS(B785=\"Producto \",$N$10&\"-\"&T786,B785=\"Actividad Propia\",$N$10&\"-\"&T785&\"-\"&V785,B785=\"Actividad sin participación\",$N$10&\"-\"&T785&\"-\"&V785,B785=\"\",\"\")","v":""},null,null,null,null,null,null,null,null,null,null,null,null,null,null,null,null,{"$f":"COUNTIFS($B$24:B785,\"Producto \")","v":0},false,761]
[null,null,{"$f":"_xlfn.IFS(B786=\"Producto \",$N$10&\"-\"&T787,B786=\"Actividad Propia\",$N$10&\"-\"&T786&\"-\"&V786,B786=\"Actividad sin participación\",$N$10&\"-\"&T786&\"-\"&V786,B786=\"\",\"\")","v":""},null,null,null,null,null,null,null,null,null,null,null,null,null,null,null,null,{"$f":"COUNTIFS($B$24:B786,\"Producto \")","v":0},false,762]
[null,null,{"$f":"_xlfn.IFS(B787=\"Producto \",$N$10&\"-\"&T788,B787=\"Actividad Propia\",$N$10&\"-\"&T787&\"-\"&V787,B787=\"Actividad sin participación\",$N$10&\"-\"&T787&\"-\"&V787,B787=\"\",\"\")","v":""},null,null,null,null,null,null,null,null,null,null,null,null,null,null,null,null,{"$f":"COUNTIFS($B$24:B787,\"Producto \")","v":0},false,763]
[null,null,{"$f":"_xlfn.IFS(B788=\"Producto \",$N$10&\"-\"&T789,B788=\"Actividad Propia\",$N$10&\"-\"&T788&\"-\"&V788,B788=\"Actividad sin participación\",$N$10&\"-\"&T788&\"-\"&V788,B788=\"\",\"\")","v":""},null,null,null,null,null,null,null,null,null,null,null,null,null,null,null,null,{"$f":"COUNTIFS($B$24:B788,\"Producto \")","v":0},false,764]
[null,null,{"$f":"_xlfn.IFS(B789=\"Producto \",$N$10&\"-\"&T790,B789=\"Actividad Propia\",$N$10&\"-\"&T789&\"-\"&V789,B789=\"Actividad sin participación\",$N$10&\"-\"&T789&\"-\"&V789,B789=\"\",\"\")","v":""},null,null,null,null,null,null,null,null,null,null,null,null,null,null,null,null,{"$f":"COUNTIFS($B$24:B789,\"Producto \")","v":0},false,765]
[null,null,{"$f":"_xlfn.IFS(B790=\"Producto \",$N$10&\"-\"&T791,B790=\"Actividad Propia\",$N$10&\"-\"&T790&\"-\"&V790,B790=\"Actividad sin participación\",$N$10&\"-\"&T790&\"-\"&V790,B790=\"\",\"\")","v":""},null,null,null,null,null,null,null,null,null,null,null,null,null,null,null,null,{"$f":"COUNTIFS($B$24:B790,\"Producto \")","v":0},false,766]
[null,null,{"$f":"_xlfn.IFS(B791=\"Producto \",$N$10&\"-\"&T792,B791=\"Actividad Propia\",$N$10&\"-\"&T791&\"-\"&V791,B791=\"Actividad sin participación\",$N$10&\"-\"&T791&\"-\"&V791,B791=\"\",\"\")","v":""},null,null,null,null,null,null,null,null,null,null,null,null,null,null,null,null,{"$f":"COUNTIFS($B$24:B791,\"Producto \")","v":0},false,767]
[null,null,{"$f":"_xlfn.IFS(B792=\"Producto \",$N$10&\"-\"&T793,B792=\"Actividad Propia\",$N$10&\"-\"&T792&\"-\"&V792,B792=\"Actividad sin participación\",$N$10&\"-\"&T792&\"-\"&V792,B792=\"\",\"\")","v":""},null,null,null,null,null,null,null,null,null,null,null,null,null,null,null,null,{"$f":"COUNTIFS($B$24:B792,\"Producto \")","v":0},false,768]
[null,null,{"$f":"_xlfn.IFS(B793=\"Producto \",$N$10&\"-\"&T794,B793=\"Actividad Propia\",$N$10&\"-\"&T793&\"-\"&V793,B793=\"Actividad sin participación\",$N$10&\"-\"&T793&\"-\"&V793,B793=\"\",\"\")","v":""},null,null,null,null,null,null,null,null,null,null,null,null,null,null,null,null,{"$f":"COUNTIFS($B$24:B793,\"Producto \")","v":0},{"$f":"IF(B792=\"Producto \",C792&\"-\"&V793)","v":false},{"$f":"IF(B792=\"Producto \",1,V792+1)","v":769}]
[null,null,{"$f":"_xlfn.IFS(B794=\"Producto \",$N$10&\"-\"&T795,B794=\"Actividad Propia\",$N$10&\"-\"&T794&\"-\"&V794,B794=\"Actividad sin participación\",$N$10&\"-\"&T794&\"-\"&V794,B794=\"\",\"\")","v":""},null,null,null,null,null,null,null,null,null,null,null,null,null,null,null,null,{"$f":"COUNTIFS($B$24:B794,\"Producto \")","v":0},false,770]
[null,null,{"$f":"_xlfn.IFS(B795=\"Producto \",$N$10&\"-\"&T796,B795=\"Actividad Propia\",$N$10&\"-\"&T795&\"-\"&V795,B795=\"Actividad sin participación\",$N$10&\"-\"&T795&\"-\"&V795,B795=\"\",\"\")","v":""},null,null,null,null,null,null,null,null,null,null,null,null,null,null,null,null,{"$f":"COUNTIFS($B$24:B795,\"Producto \")","v":0},false,771]
[null,null,{"$f":"_xlfn.IFS(B796=\"Producto \",$N$10&\"-\"&T797,B796=\"Actividad Propia\",$N$10&\"-\"&T796&\"-\"&V796,B796=\"Actividad sin participación\",$N$10&\"-\"&T796&\"-\"&V796,B796=\"\",\"\")","v":""},null,null,null,null,null,null,null,null,null,null,null,null,null,null,null,null,{"$f":"COUNTIFS($B$24:B796,\"Producto \")","v":0},false,772]
[null,null,{"$f":"_xlfn.IFS(B797=\"Producto \",$N$10&\"-\"&T798,B797=\"Actividad Propia\",$N$10&\"-\"&T797&\"-\"&V797,B797=\"Actividad sin participación\",$N$10&\"-\"&T797&\"-\"&V797,B797=\"\",\"\")","v":""},null,null,null,null,null,null,null,null,null,null,null,null,null,null,null,null,{"$f":"COUNTIFS($B$24:B797,\"Producto \")","v":0},false,773]
[null,null,{"$f":"_xlfn.IFS(B798=\"Producto \",$N$10&\"-\"&T799,B798=\"Actividad Propia\",$N$10&\"-\"&T798&\"-\"&V798,B798=\"Actividad sin participación\",$N$10&\"-\"&T798&\"-\"&V798,B798=\"\",\"\")","v":""},null,null,null,null,null,null,null,null,null,null,null,null,null,null,null,null,{"$f":"COUNTIFS($B$24:B798,\"Producto \")","v":0},false,774]
[null,null,{"$f":"_xlfn.IFS(B799=\"Producto \",$N$10&\"-\"&T800,B799=\"Actividad Propia\",$N$10&\"-\"&T799&\"-\"&V799,B799=\"Actividad sin participación\",$N$10&\"-\"&T799&\"-\"&V799,B799=\"\",\"\")","v":""},null,null,null,null,null,null,null,null,null,null,null,null,null,null,null,null,{"$f":"COUNTIFS($B$24:B799,\"Producto \")","v":0},false,775]
[null,null,{"$f":"_xlfn.IFS(B800=\"Producto \",$N$10&\"-\"&T801,B800=\"Actividad Propia\",$N$10&\"-\"&T800&\"-\"&V800,B800=\"Actividad sin participación\",$N$10&\"-\"&T800&\"-\"&V800,B800=\"\",\"\")","v":""},null,null,null,null,null,null,null,null,null,null,null,null,null,null,null,null,{"$f":"COUNTIFS($B$24:B800,\"Producto \")","v":0},false,776]
[null,null,{"$f":"_xlfn.IFS(B801=\"Producto \",$N$10&\"-\"&T802,B801=\"Actividad Propia\",$N$10&\"-\"&T801&\"-\"&V801,B801=\"Actividad sin participación\",$N$10&\"-\"&T801&\"-\"&V801,B801=\"\",\"\")","v":""},null,null,null,null,null,null,null,null,null,null,null,null,null,null,null,null,{"$f":"COUNTIFS($B$24:B801,\"Producto \")","v":0},false,777]
[null,null,{"$f":"_xlfn.IFS(B802=\"Producto \",$N$10&\"-\"&T803,B802=\"Actividad Propia\",$N$10&\"-\"&T802&\"-\"&V802,B802=\"Actividad sin participación\",$N$10&\"-\"&T802&\"-\"&V802,B802=\"\",\"\")","v":""},null,null,null,null,null,null,null,null,null,null,null,null,null,null,null,null,{"$f":"COUNTIFS($B$24:B802,\"Producto \")","v":0},false,778]
[null,null,{"$f":"_xlfn.IFS(B803=\"Producto \",$N$10&\"-\"&T804,B803=\"Actividad Propia\",$N$10&\"-\"&T803&\"-\"&V803,B803=\"Actividad sin participación\",$N$10&\"-\"&T803&\"-\"&V803,B803=\"\",\"\")","v":""},null,null,null,null,null,null,null,null,null,null,null,null,null,null,null,null,{"$f":"COUNTIFS($B$24:B803,\"Producto \")","v":0},false,779]
[null,null,{"$f":"_xlfn.IFS(B804=\"Producto \",$N$10&\"-\"&T805,B804=\"Actividad Propia\",$N$10&\"-\"&T804&\"-\"&V804,B804=\"Actividad sin participación\",$N$10&\"-\"&T804&\"-\"&V804,B804=\"\",\"\")","v":""},null,null,null,null,null,null,null,null,null,null,null,null,null,null,null,null,{"$f":"COUNTIFS($B$24:B804,\"Producto \")","v":0},false,780]
[null,null,{"$f":"_xlfn.IFS(B805=\"Producto \",$N$10&\"-\"&T806,B805=\"Actividad Propia\",$N$10&\"-\"&T805&\"-\"&V805,B805=\"Actividad sin participación\",$N$10&\"-\"&T805&\"-\"&V805,B805=\"\",\"\")","v":""},null,null,null,null,null,null,null,null,null,null,null,null,null,null,null,null,{"$f":"COUNTIFS($B$24:B805,\"Producto \")","v":0},false,781]
[null,null,{"$f":"_xlfn.IFS(B806=\"Producto \",$N$10&\"-\"&T807,B806=\"Actividad Propia\",$N$10&\"-\"&T806&\"-\"&V806,B806=\"Actividad sin participación\",$N$10&\"-\"&T806&\"-\"&V806,B806=\"\",\"\")","v":""},null,null,null,null,null,null,null,null,null,null,null,null,null,null,null,null,{"$f":"COUNTIFS($B$24:B806,\"Producto \")","v":0},false,782]
[null,null,{"$f":"_xlfn.IFS(B807=\"Producto \",$N$10&\"-\"&T808,B807=\"Actividad Propia\",$N$10&\"-\"&T807&\"-\"&V807,B807=\"Actividad sin participación\",$N$10&\"-\"&T807&\"-\"&V807,B807=\"\",\"\")","v":""},null,null,null,null,null,null,null,null,null,null,null,null,null,null,null,null,{"$f":"COUNTIFS($B$24:B807,\"Producto \")","v":0},false,783]
[null,null,{"$f":"_xlfn.IFS(B808=\"Producto \",$N$10&\"-\"&T809,B808=\"Actividad Propia\",$N$10&\"-\"&T808&\"-\"&V808,B808=\"Actividad sin participación\",$N$10&\"-\"&T808&\"-\"&V808,B808=\"\",\"\")","v":""},null,null,null,null,null,null,null,null,null,null,null,null,null,null,null,null,{"$f":"COUNTIFS($B$24:B808,\"Producto \")","v":0},false,784]
[null,null,{"$f":"_xlfn.IFS(B809=\"Producto \",$N$10&\"-\"&T810,B809=\"Actividad Propia\",$N$10&\"-\"&T809&\"-\"&V809,B809=\"Actividad sin participación\",$N$10&\"-\"&T809&\"-\"&V809,B809=\"\",\"\")","v":""},null,null,null,null,null,null,null,null,null,null,null,null,null,null,null,null,{"$f":"COUNTIFS($B$24:B809,\"Producto \")","v":0},false,785]
[null,null,{"$f":"_xlfn.IFS(B810=\"Producto \",$N$10&\"-\"&T811,B810=\"Actividad Propia\",$N$10&\"-\"&T810&\"-\"&V810,B810=\"Actividad sin participación\",$N$10&\"-\"&T810&\"-\"&V810,B810=\"\",\"\")","v":""},null,null,null,null,null,null,null,null,null,null,null,null,null,null,null,null,{"$f":"COUNTIFS($B$24:B810,\"Producto \")","v":0},false,786]
[null,null,{"$f":"_xlfn.IFS(B811=\"Producto \",$N$10&\"-\"&T812,B811=\"Actividad Propia\",$N$10&\"-\"&T811&\"-\"&V811,B811=\"Actividad sin participación\",$N$10&\"-\"&T811&\"-\"&V811,B811=\"\",\"\")","v":""},null,null,null,null,null,null,null,null,null,null,null,null,null,null,null,null,{"$f":"COUNTIFS($B$24:B811,\"Producto \")","v":0},false,787]
[null,null,{"$f":"_xlfn.IFS(B812=\"Producto \",$N$10&\"-\"&T813,B812=\"Actividad Propia\",$N$10&\"-\"&T812&\"-\"&V812,B812=\"Actividad sin participación\",$N$10&\"-\"&T812&\"-\"&V812,B812=\"\",\"\")","v":""},null,null,null,null,null,null,null,null,null,null,null,null,null,null,null,null,{"$f":"COUNTIFS($B$24:B812,\"Producto \")","v":0},false,788]
[null,null,{"$f":"_xlfn.IFS(B813=\"Producto \",$N$10&\"-\"&T814,B813=\"Actividad Propia\",$N$10&\"-\"&T813&\"-\"&V813,B813=\"Actividad sin participación\",$N$10&\"-\"&T813&\"-\"&V813,B813=\"\",\"\")","v":""},null,null,null,null,null,null,null,null,null,null,null,null,null,null,null,null,{"$f":"COUNTIFS($B$24:B813,\"Producto \")","v":0},false,789]
[null,null,{"$f":"_xlfn.IFS(B814=\"Producto \",$N$10&\"-\"&T815,B814=\"Actividad Propia\",$N$10&\"-\"&T814&\"-\"&V814,B814=\"Actividad sin participación\",$N$10&\"-\"&T814&\"-\"&V814,B814=\"\",\"\")","v":""},null,null,null,null,null,null,null,null,null,null,null,null,null,null,null,null,{"$f":"COUNTIFS($B$24:B814,\"Producto \")","v":0},false,790]
[null,null,{"$f":"_xlfn.IFS(B815=\"Producto \",$N$10&\"-\"&T816,B815=\"Actividad Propia\",$N$10&\"-\"&T815&\"-\"&V815,B815=\"Actividad sin participación\",$N$10&\"-\"&T815&\"-\"&V815,B815=\"\",\"\")","v":""},null,null,null,null,null,null,null,null,null,null,null,null,null,null,null,null,{"$f":"COUNTIFS($B$24:B815,\"Producto \")","v":0},false,791]
[null,null,{"$f":"_xlfn.IFS(B816=\"Producto \",$N$10&\"-\"&T817,B816=\"Actividad Propia\",$N$10&\"-\"&T816&\"-\"&V816,B816=\"Actividad sin participación\",$N$10&\"-\"&T816&\"-\"&V816,B816=\"\",\"\")","v":""},null,null,null,null,null,null,null,null,null,null,null,null,null,null,null,null,{"$f":"COUNTIFS($B$24:B816,\"Producto \")","v":0},false,792]
[null,null,{"$f":"_xlfn.IFS(B817=\"Producto \",$N$10&\"-\"&T818,B817=\"Actividad Propia\",$N$10&\"-\"&T817&\"-\"&V817,B817=\"Actividad sin participación\",$N$10&\"-\"&T817&\"-\"&V817,B817=\"\",\"\")","v":""},null,null,null,null,null,null,null,null,null,null,null,null,null,null,null,null,{"$f":"COUNTIFS($B$24:B817,\"Producto \")","v":0},false,793]
[null,null,{"$f":"_xlfn.IFS(B818=\"Producto \",$N$10&\"-\"&T819,B818=\"Actividad Propia\",$N$10&\"-\"&T818&\"-\"&V818,B818=\"Actividad sin participación\",$N$10&\"-\"&T818&\"-\"&V818,B818=\"\",\"\")","v":""},null,null,null,null,null,null,null,null,null,null,null,null,null,null,null,null,{"$f":"COUNTIFS($B$24:B818,\"Producto \")","v":0},false,794]
[null,null,{"$f":"_xlfn.IFS(B819=\"Producto \",$N$10&\"-\"&T820,B819=\"Actividad Propia\",$N$10&\"-\"&T819&\"-\"&V819,B819=\"Actividad sin participación\",$N$10&\"-\"&T819&\"-\"&V819,B819=\"\",\"\")","v":""},null,null,null,null,null,null,null,null,null,null,null,null,null,null,null,null,{"$f":"COUNTIFS($B$24:B819,\"Producto \")","v":0},false,795]
[null,null,{"$f":"_xlfn.IFS(B820=\"Producto \",$N$10&\"-\"&T821,B820=\"Actividad Propia\",$N$10&\"-\"&T820&\"-\"&V820,B820=\"Actividad sin participación\",$N$10&\"-\"&T820&\"-\"&V820,B820=\"\",\"\")","v":""},null,null,null,null,null,null,null,null,null,null,null,null,null,null,null,null,{"$f":"COUNTIFS($B$24:B820,\"Producto \")","v":0},false,796]
[null,null,{"$f":"_xlfn.IFS(B821=\"Producto \",$N$10&\"-\"&T822,B821=\"Actividad Propia\",$N$10&\"-\"&T821&\"-\"&V821,B821=\"Actividad sin participación\",$N$10&\"-\"&T821&\"-\"&V821,B821=\"\",\"\")","v":""},null,null,null,null,null,null,null,null,null,null,null,null,null,null,null,null,{"$f":"COUNTIFS($B$24:B821,\"Producto \")","v":0},false,797]
[null,null,{"$f":"_xlfn.IFS(B822=\"Producto \",$N$10&\"-\"&T823,B822=\"Actividad Propia\",$N$10&\"-\"&T822&\"-\"&V822,B822=\"Actividad sin participación\",$N$10&\"-\"&T822&\"-\"&V822,B822=\"\",\"\")","v":""},null,null,null,null,null,null,null,null,null,null,null,null,null,null,null,null,{"$f":"COUNTIFS($B$24:B822,\"Producto \")","v":0},false,798]
[null,null,{"$f":"_xlfn.IFS(B823=\"Producto \",$N$10&\"-\"&T824,B823=\"Actividad Propia\",$N$10&\"-\"&T823&\"-\"&V823,B823=\"Actividad sin participación\",$N$10&\"-\"&T823&\"-\"&V823,B823=\"\",\"\")","v":""},null,null,null,null,null,null,null,null,null,null,null,null,null,null,null,null,{"$f":"COUNTIFS($B$24:B823,\"Producto \")","v":0},false,799]
[null,null,{"$f":"_xlfn.IFS(B824=\"Producto \",$N$10&\"-\"&T825,B824=\"Actividad Propia\",$N$10&\"-\"&T824&\"-\"&V824,B824=\"Actividad sin participación\",$N$10&\"-\"&T824&\"-\"&V824,B824=\"\",\"\")","v":""},null,null,null,null,null,null,null,null,null,null,null,null,null,null,null,null,{"$f":"COUNTIFS($B$24:B824,\"Producto \")","v":0},false,800]
[null,null,{"$f":"_xlfn.IFS(B825=\"Producto \",$N$10&\"-\"&T826,B825=\"Actividad Propia\",$N$10&\"-\"&T825&\"-\"&V825,B825=\"Actividad sin participación\",$N$10&\"-\"&T825&\"-\"&V825,B825=\"\",\"\")","v":""},null,null,null,null,null,null,null,null,null,null,null,null,null,null,null,null,{"$f":"COUNTIFS($B$24:B825,\"Producto \")","v":0},false,801]
[null,null,{"$f":"_xlfn.IFS(B826=\"Producto \",$N$10&\"-\"&T827,B826=\"Actividad Propia\",$N$10&\"-\"&T826&\"-\"&V826,B826=\"Actividad sin participación\",$N$10&\"-\"&T826&\"-\"&V826,B826=\"\",\"\")","v":""},null,null,null,null,null,null,null,null,null,null,null,null,null,null,null,null,{"$f":"COUNTIFS($B$24:B826,\"Producto \")","v":0},false,802]
[null,null,{"$f":"_xlfn.IFS(B827=\"Producto \",$N$10&\"-\"&T828,B827=\"Actividad Propia\",$N$10&\"-\"&T827&\"-\"&V827,B827=\"Actividad sin participación\",$N$10&\"-\"&T827&\"-\"&V827,B827=\"\",\"\")","v":""},null,null,null,null,null,null,null,null,null,null,null,null,null,null,null,null,{"$f":"COUNTIFS($B$24:B827,\"Producto \")","v":0},false,803]
[null,null,{"$f":"_xlfn.IFS(B828=\"Producto \",$N$10&\"-\"&T829,B828=\"Actividad Propia\",$N$10&\"-\"&T828&\"-\"&V828,B828=\"Actividad sin participación\",$N$10&\"-\"&T828&\"-\"&V828,B828=\"\",\"\")","v":""},null,null,null,null,null,null,null,null,null,null,null,null,null,null,null,null,{"$f":"COUNTIFS($B$24:B828,\"Producto \")","v":0},false,804]
[null,null,{"$f":"_xlfn.IFS(B829=\"Producto \",$N$10&\"-\"&T830,B829=\"Actividad Propia\",$N$10&\"-\"&T829&\"-\"&V829,B829=\"Actividad sin participación\",$N$10&\"-\"&T829&\"-\"&V829,B829=\"\",\"\")","v":""},null,null,null,null,null,null,null,null,null,null,null,null,null,null,null,null,{"$f":"COUNTIFS($B$24:B829,\"Producto \")","v":0},false,805]
[null,null,{"$f":"_xlfn.IFS(B830=\"Producto \",$N$10&\"-\"&T831,B830=\"Actividad Propia\",$N$10&\"-\"&T830&\"-\"&V830,B830=\"Actividad sin participación\",$N$10&\"-\"&T830&\"-\"&V830,B830=\"\",\"\")","v":""},null,null,null,null,null,null,null,null,null,null,null,null,null,null,null,null,{"$f":"COUNTIFS($B$24:B830,\"Producto \")","v":0},false,806]
[null,null,{"$f":"_xlfn.IFS(B831=\"Producto \",$N$10&\"-\"&T832,B831=\"Actividad Propia\",$N$10&\"-\"&T831&\"-\"&V831,B831=\"Actividad sin participación\",$N$10&\"-\"&T831&\"-\"&V831,B831=\"\",\"\")","v":""},null,null,null,null,null,null,null,null,null,null,null,null,null,null,null,null,{"$f":"COUNTIFS($B$24:B831,\"Producto \")","v":0},false,807]
[null,null,{"$f":"_xlfn.IFS(B832=\"Producto \",$N$10&\"-\"&T833,B832=\"Actividad Propia\",$N$10&\"-\"&T832&\"-\"&V832,B832=\"Actividad sin participación\",$N$10&\"-\"&T832&\"-\"&V832,B832=\"\",\"\")","v":""},null,null,null,null,null,null,null,null,null,null,null,null,null,null,null,null,{"$f":"COUNTIFS($B$24:B832,\"Producto \")","v":0},false,808]
[null,null,{"$f":"_xlfn.IFS(B833=\"Producto \",$N$10&\"-\"&T834,B833=\"Actividad Propia\",$N$10&\"-\"&T833&\"-\"&V833,B833=\"Actividad sin participación\",$N$10&\"-\"&T833&\"-\"&V833,B833=\"\",\"\")","v":""},null,null,null,null,null,null,null,null,null,null,null,null,null,null,null,null,{"$f":"COUNTIFS($B$24:B833,\"Producto \")","v":0},false,809]
[null,null,{"$f":"_xlfn.IFS(B834=\"Producto \",$N$10&\"-\"&T835,B834=\"Actividad Propia\",$N$10&\"-\"&T834&\"-\"&V834,B834=\"Actividad sin participación\",$N$10&\"-\"&T834&\"-\"&V834,B834=\"\",\"\")","v":""},null,null,null,null,null,null,null,null,null,null,null,null,null,null,null,null,{"$f":"COUNTIFS($B$24:B834,\"Producto \")","v":0},false,810]
[null,null,{"$f":"_xlfn.IFS(B835=\"Producto \",$N$10&\"-\"&T836,B835=\"Actividad Propia\",$N$10&\"-\"&T835&\"-\"&V835,B835=\"Actividad sin participación\",$N$10&\"-\"&T835&\"-\"&V835,B835=\"\",\"\")","v":""},null,null,null,null,null,null,null,null,null,null,null,null,null,null,null,null,{"$f":"COUNTIFS($B$24:B835,\"Producto \")","v":0},false,811]
[null,null,{"$f":"_xlfn.IFS(B836=\"Producto \",$N$10&\"-\"&T837,B836=\"Actividad Propia\",$N$10&\"-\"&T836&\"-\"&V836,B836=\"Actividad sin participación\",$N$10&\"-\"&T836&\"-\"&V836,B836=\"\",\"\")","v":""},null,null,null,null,null,null,null,null,null,null,null,null,null,null,null,null,{"$f":"COUNTIFS($B$24:B836,\"Producto \")","v":0},false,812]
[null,null,{"$f":"_xlfn.IFS(B837=\"Producto \",$N$10&\"-\"&T838,B837=\"Actividad Propia\",$N$10&\"-\"&T837&\"-\"&V837,B837=\"Actividad sin participación\",$N$10&\"-\"&T837&\"-\"&V837,B837=\"\",\"\")","v":""},null,null,null,null,null,null,null,null,null,null,null,null,null,null,null,null,{"$f":"COUNTIFS($B$24:B837,\"Producto \")","v":0},false,813]
[null,null,{"$f":"_xlfn.IFS(B838=\"Producto \",$N$10&\"-\"&T839,B838=\"Actividad Propia\",$N$10&\"-\"&T838&\"-\"&V838,B838=\"Actividad sin participación\",$N$10&\"-\"&T838&\"-\"&V838,B838=\"\",\"\")","v":""},null,null,null,null,null,null,null,null,null,null,null,null,null,null,null,null,{"$f":"COUNTIFS($B$24:B838,\"Producto \")","v":0},false,814]
[null,null,{"$f":"_xlfn.IFS(B839=\"Producto \",$N$10&\"-\"&T840,B839=\"Actividad Propia\",$N$10&\"-\"&T839&\"-\"&V839,B839=\"Actividad sin participación\",$N$10&\"-\"&T839&\"-\"&V839,B839=\"\",\"\")","v":""},null,null,null,null,null,null,null,null,null,null,null,null,null,null,null,null,{"$f":"COUNTIFS($B$24:B839,\"Producto \")","v":0},false,815]
[null,null,{"$f":"_xlfn.IFS(B840=\"Producto \",$N$10&\"-\"&T841,B840=\"Actividad Propia\",$N$10&\"-\"&T840&\"-\"&V840,B840=\"Actividad sin participación\",$N$10&\"-\"&T840&\"-\"&V840,B840=\"\",\"\")","v":""},null,null,null,null,null,null,null,null,null,null,null,null,null,null,null,null,{"$f":"COUNTIFS($B$24:B840,\"Producto \")","v":0},false,816]
[null,null,{"$f":"_xlfn.IFS(B841=\"Producto \",$N$10&\"-\"&T842,B841=\"Actividad Propia\",$N$10&\"-\"&T841&\"-\"&V841,B841=\"Actividad sin participación\",$N$10&\"-\"&T841&\"-\"&V841,B841=\"\",\"\")","v":""},null,null,null,null,null,null,null,null,null,null,null,null,null,null,null,null,{"$f":"COUNTIFS($B$24:B841,\"Producto \")","v":0},false,817]
[null,null,{"$f":"_xlfn.IFS(B842=\"Producto \",$N$10&\"-\"&T843,B842=\"Actividad Propia\",$N$10&\"-\"&T842&\"-\"&V842,B842=\"Actividad sin participación\",$N$10&\"-\"&T842&\"-\"&V842,B842=\"\",\"\")","v":""},null,null,null,null,null,null,null,null,null,null,null,null,null,null,null,null,{"$f":"COUNTIFS($B$24:B842,\"Producto \")","v":0},false,818]
[null,null,{"$f":"_xlfn.IFS(B843=\"Producto \",$N$10&\"-\"&T844,B843=\"Actividad Propia\",$N$10&\"-\"&T843&\"-\"&V843,B843=\"Actividad sin participación\",$N$10&\"-\"&T843&\"-\"&V843,B843=\"\",\"\")","v":""},null,null,null,null,null,null,null,null,null,null,null,null,null,null,null,null,{"$f":"COUNTIFS($B$24:B843,\"Producto \")","v":0},false,819]
[null,null,{"$f":"_xlfn.IFS(B844=\"Producto \",$N$10&\"-\"&T845,B844=\"Actividad Propia\",$N$10&\"-\"&T844&\"-\"&V844,B844=\"Actividad sin participación\",$N$10&\"-\"&T844&\"-\"&V844,B844=\"\",\"\")","v":""},null,null,null,null,null,null,null,null,null,null,null,null,null,null,null,null,{"$f":"COUNTIFS($B$24:B844,\"Producto \")","v":0},false,820]
[null,null,{"$f":"_xlfn.IFS(B845=\"Producto \",$N$10&\"-\"&T846,B845=\"Actividad Propia\",$N$10&\"-\"&T845&\"-\"&V845,B845=\"Actividad sin participación\",$N$10&\"-\"&T845&\"-\"&V845,B845=\"\",\"\")","v":""},null,null,null,null,null,null,null,null,null,null,null,null,null,null,null,null,{"$f":"COUNTIFS($B$24:B845,\"Producto \")","v":0},false,821]
[null,null,{"$f":"_xlfn.IFS(B846=\"Producto \",$N$10&\"-\"&T847,B846=\"Actividad Propia\",$N$10&\"-\"&T846&\"-\"&V846,B846=\"Actividad sin participación\",$N$10&\"-\"&T846&\"-\"&V846,B846=\"\",\"\")","v":""},null,null,null,null,null,null,null,null,null,null,null,null,null,null,null,null,{"$f":"COUNTIFS($B$24:B846,\"Producto \")","v":0},false,822]
[null,null,{"$f":"_xlfn.IFS(B847=\"Producto \",$N$10&\"-\"&T848,B847=\"Actividad Propia\",$N$10&\"-\"&T847&\"-\"&V847,B847=\"Actividad sin participación\",$N$10&\"-\"&T847&\"-\"&V847,B847=\"\",\"\")","v":""},null,null,null,null,null,null,null,null,null,null,null,null,null,null,null,null,{"$f":"COUNTIFS($B$24:B847,\"Producto \")","v":0},false,823]
[null,null,{"$f":"_xlfn.IFS(B848=\"Producto \",$N$10&\"-\"&T849,B848=\"Actividad Propia\",$N$10&\"-\"&T848&\"-\"&V848,B848=\"Actividad sin participación\",$N$10&\"-\"&T848&\"-\"&V848,B848=\"\",\"\")","v":""},null,null,null,null,null,null,null,null,null,null,null,null,null,null,null,null,{"$f":"COUNTIFS($B$24:B848,\"Producto \")","v":0},false,824]
[null,null,{"$f":"_xlfn.IFS(B849=\"Producto \",$N$10&\"-\"&T850,B849=\"Actividad Propia\",$N$10&\"-\"&T849&\"-\"&V849,B849=\"Actividad sin participación\",$N$10&\"-\"&T849&\"-\"&V849,B849=\"\",\"\")","v":""},null,null,null,null,null,null,null,null,null,null,null,null,null,null,null,null,{"$f":"COUNTIFS($B$24:B849,\"Producto \")","v":0},false,825]
[null,null,{"$f":"_xlfn.IFS(B850=\"Producto \",$N$10&\"-\"&T851,B850=\"Actividad Propia\",$N$10&\"-\"&T850&\"-\"&V850,B850=\"Actividad sin participación\",$N$10&\"-\"&T850&\"-\"&V850,B850=\"\",\"\")","v":""},null,null,null,null,null,null,null,null,null,null,null,null,null,null,null,null,{"$f":"COUNTIFS($B$24:B850,\"Producto \")","v":0},false,826]
[null,null,{"$f":"_xlfn.IFS(B851=\"Producto \",$N$10&\"-\"&T852,B851=\"Actividad Propia\",$N$10&\"-\"&T851&\"-\"&V851,B851=\"Actividad sin participación\",$N$10&\"-\"&T851&\"-\"&V851,B851=\"\",\"\")","v":""},null,null,null,null,null,null,null,null,null,null,null,null,null,null,null,null,{"$f":"COUNTIFS($B$24:B851,\"Producto \")","v":0},false,827]
[null,null,{"$f":"_xlfn.IFS(B852=\"Producto \",$N$10&\"-\"&T853,B852=\"Actividad Propia\",$N$10&\"-\"&T852&\"-\"&V852,B852=\"Actividad sin participación\",$N$10&\"-\"&T852&\"-\"&V852,B852=\"\",\"\")","v":""},null,null,null,null,null,null,null,null,null,null,null,null,null,null,null,null,{"$f":"COUNTIFS($B$24:B852,\"Producto \")","v":0},false,828]
[null,null,{"$f":"_xlfn.IFS(B853=\"Producto \",$N$10&\"-\"&T854,B853=\"Actividad Propia\",$N$10&\"-\"&T853&\"-\"&V853,B853=\"Actividad sin participación\",$N$10&\"-\"&T853&\"-\"&V853,B853=\"\",\"\")","v":""},null,null,null,null,null,null,null,null,null,null,null,null,null,null,null,null,{"$f":"COUNTIFS($B$24:B853,\"Producto \")","v":0},false,829]
[null,null,{"$f":"_xlfn.IFS(B854=\"Producto \",$N$10&\"-\"&T855,B854=\"Actividad Propia\",$N$10&\"-\"&T854&\"-\"&V854,B854=\"Actividad sin participación\",$N$10&\"-\"&T854&\"-\"&V854,B854=\"\",\"\")","v":""},null,null,null,null,null,null,null,null,null,null,null,null,null,null,null,null,{"$f":"COUNTIFS($B$24:B854,\"Producto \")","v":0},false,830]
[null,null,{"$f":"_xlfn.IFS(B855=\"Producto \",$N$10&\"-\"&T856,B855=\"Actividad Propia\",$N$10&\"-\"&T855&\"-\"&V855,B855=\"Actividad sin participación\",$N$10&\"-\"&T855&\"-\"&V855,B855=\"\",\"\")","v":""},null,null,null,null,null,null,null,null,null,null,null,null,null,null,null,null,{"$f":"COUNTIFS($B$24:B855,\"Producto \")","v":0},false,831]
[null,null,{"$f":"_xlfn.IFS(B856=\"Producto \",$N$10&\"-\"&T857,B856=\"Actividad Propia\",$N$10&\"-\"&T856&\"-\"&V856,B856=\"Actividad sin participación\",$N$10&\"-\"&T856&\"-\"&V856,B856=\"\",\"\")","v":""},null,null,null,null,null,null,null,null,null,null,null,null,null,null,null,null,{"$f":"COUNTIFS($B$24:B856,\"Producto \")","v":0},false,832]
[null,null,{"$f":"_xlfn.IFS(B857=\"Producto \",$N$10&\"-\"&T858,B857=\"Actividad Propia\",$N$10&\"-\"&T857&\"-\"&V857,B857=\"Actividad sin participación\",$N$10&\"-\"&T857&\"-\"&V857,B857=\"\",\"\")","v":""},null,null,null,null,null,null,null,null,null,null,null,null,null,null,null,null,{"$f":"COUNTIFS($B$24:B857,\"Producto \")","v":0},{"$f":"IF(B856=\"Producto \",C856&\"-\"&V857)","v":false},{"$f":"IF(B856=\"Producto \",1,V856+1)","v":833}]
[null,null,{"$f":"_xlfn.IFS(B858=\"Producto \",$N$10&\"-\"&T859,B858=\"Actividad Propia\",$N$10&\"-\"&T858&\"-\"&V858,B858=\"Actividad sin participación\",$N$10&\"-\"&T858&\"-\"&V858,B858=\"\",\"\")","v":""},null,null,null,null,null,null,null,null,null,null,null,null,null,null,null,null,{"$f":"COUNTIFS($B$24:B858,\"Producto \")","v":0},false,834]
[null,null,{"$f":"_xlfn.IFS(B859=\"Producto \",$N$10&\"-\"&T860,B859=\"Actividad Propia\",$N$10&\"-\"&T859&\"-\"&V859,B859=\"Actividad sin participación\",$N$10&\"-\"&T859&\"-\"&V859,B859=\"\",\"\")","v":""},null,null,null,null,null,null,null,null,null,null,null,null,null,null,null,null,{"$f":"COUNTIFS($B$24:B859,\"Producto \")","v":0},false,835]
[null,null,{"$f":"_xlfn.IFS(B860=\"Producto \",$N$10&\"-\"&T861,B860=\"Actividad Propia\",$N$10&\"-\"&T860&\"-\"&V860,B860=\"Actividad sin participación\",$N$10&\"-\"&T860&\"-\"&V860,B860=\"\",\"\")","v":""},null,null,null,null,null,null,null,null,null,null,null,null,null,null,null,null,{"$f":"COUNTIFS($B$24:B860,\"Producto \")","v":0},false,836]
[null,null,{"$f":"_xlfn.IFS(B861=\"Producto \",$N$10&\"-\"&T862,B861=\"Actividad Propia\",$N$10&\"-\"&T861&\"-\"&V861,B861=\"Actividad sin participación\",$N$10&\"-\"&T861&\"-\"&V861,B861=\"\",\"\")","v":""},null,null,null,null,null,null,null,null,null,null,null,null,null,null,null,null,{"$f":"COUNTIFS($B$24:B861,\"Producto \")","v":0},false,837]
[null,null,{"$f":"_xlfn.IFS(B862=\"Producto \",$N$10&\"-\"&T863,B862=\"Actividad Propia\",$N$10&\"-\"&T862&\"-\"&V862,B862=\"Actividad sin participación\",$N$10&\"-\"&T862&\"-\"&V862,B862=\"\",\"\")","v":""},null,null,null,null,null,null,null,null,null,null,null,null,null,null,null,null,{"$f":"COUNTIFS($B$24:B862,\"Producto \")","v":0},false,838]
[null,null,{"$f":"_xlfn.IFS(B863=\"Producto \",$N$10&\"-\"&T864,B863=\"Actividad Propia\",$N$10&\"-\"&T863&\"-\"&V863,B863=\"Actividad sin participación\",$N$10&\"-\"&T863&\"-\"&V863,B863=\"\",\"\")","v":""},null,null,null,null,null,null,null,null,null,null,null,null,null,null,null,null,{"$f":"COUNTIFS($B$24:B863,\"Producto \")","v":0},false,839]
[null,null,{"$f":"_xlfn.IFS(B864=\"Producto \",$N$10&\"-\"&T865,B864=\"Actividad Propia\",$N$10&\"-\"&T864&\"-\"&V864,B864=\"Actividad sin participación\",$N$10&\"-\"&T864&\"-\"&V864,B864=\"\",\"\")","v":""},null,null,null,null,null,null,null,null,null,null,null,null,null,null,null,null,{"$f":"COUNTIFS($B$24:B864,\"Producto \")","v":0},false,840]
[null,null,{"$f":"_xlfn.IFS(B865=\"Producto \",$N$10&\"-\"&T866,B865=\"Actividad Propia\",$N$10&\"-\"&T865&\"-\"&V865,B865=\"Actividad sin participación\",$N$10&\"-\"&T865&\"-\"&V865,B865=\"\",\"\")","v":""},null,null,null,null,null,null,null,null,null,null,null,null,null,null,null,null,{"$f":"COUNTIFS($B$24:B865,\"Producto \")","v":0},false,841]
[null,null,{"$f":"_xlfn.IFS(B866=\"Producto \",$N$10&\"-\"&T867,B866=\"Actividad Propia\",$N$10&\"-\"&T866&\"-\"&V866,B866=\"Actividad sin participación\",$N$10&\"-\"&T866&\"-\"&V866,B866=\"\",\"\")","v":""},null,null,null,null,null,null,null,null,null,null,null,null,null,null,null,null,{"$f":"COUNTIFS($B$24:B866,\"Producto \")","v":0},false,842]
[null,null,{"$f":"_xlfn.IFS(B867=\"Producto \",$N$10&\"-\"&T868,B867=\"Actividad Propia\",$N$10&\"-\"&T867&\"-\"&V867,B867=\"Actividad sin participación\",$N$10&\"-\"&T867&\"-\"&V867,B867=\"\",\"\")","v":""},null,null,null,null,null,null,null,null,null,null,null,null,null,null,null,null,{"$f":"COUNTIFS($B$24:B867,\"Producto \")","v":0},false,843]
[null,null,{"$f":"_xlfn.IFS(B868=\"Producto \",$N$10&\"-\"&T869,B868=\"Actividad Propia\",$N$10&\"-\"&T868&\"-\"&V868,B868=\"Actividad sin participación\",$N$10&\"-\"&T868&\"-\"&V868,B868=\"\",\"\")","v":""},null,null,null,null,null,null,null,null,null,null,null,null,null,null,null,null,{"$f":"COUNTIFS($B$24:B868,\"Producto \")","v":0},false,844]
[null,null,{"$f":"_xlfn.IFS(B869=\"Producto \",$N$10&\"-\"&T870,B869=\"Actividad Propia\",$N$10&\"-\"&T869&\"-\"&V869,B869=\"Actividad sin participación\",$N$10&\"-\"&T869&\"-\"&V869,B869=\"\",\"\")","v":""},null,null,null,null,null,null,null,null,null,null,null,null,null,null,null,null,{"$f":"COUNTIFS($B$24:B869,\"Producto \")","v":0},false,845]
[null,null,{"$f":"_xlfn.IFS(B870=\"Producto \",$N$10&\"-\"&T871,B870=\"Actividad Propia\",$N$10&\"-\"&T870&\"-\"&V870,B870=\"Actividad sin participación\",$N$10&\"-\"&T870&\"-\"&V870,B870=\"\",\"\")","v":""},null,null,null,null,null,null,null,null,null,null,null,null,null,null,null,null,{"$f":"COUNTIFS($B$24:B870,\"Producto \")","v":0},false,846]
[null,null,{"$f":"_xlfn.IFS(B871=\"Producto \",$N$10&\"-\"&T872,B871=\"Actividad Propia\",$N$10&\"-\"&T871&\"-\"&V871,B871=\"Actividad sin participación\",$N$10&\"-\"&T871&\"-\"&V871,B871=\"\",\"\")","v":""},null,null,null,null,null,null,null,null,null,null,null,null,null,null,null,null,{"$f":"COUNTIFS($B$24:B871,\"Producto \")","v":0},false,847]
[null,null,{"$f":"_xlfn.IFS(B872=\"Producto \",$N$10&\"-\"&T873,B872=\"Actividad Propia\",$N$10&\"-\"&T872&\"-\"&V872,B872=\"Actividad sin participación\",$N$10&\"-\"&T872&\"-\"&V872,B872=\"\",\"\")","v":""},null,null,null,null,null,null,null,null,null,null,null,null,null,null,null,null,{"$f":"COUNTIFS($B$24:B872,\"Producto \")","v":0},false,848]
[null,null,{"$f":"_xlfn.IFS(B873=\"Producto \",$N$10&\"-\"&T874,B873=\"Actividad Propia\",$N$10&\"-\"&T873&\"-\"&V873,B873=\"Actividad sin participación\",$N$10&\"-\"&T873&\"-\"&V873,B873=\"\",\"\")","v":""},null,null,null,null,null,null,null,null,null,null,null,null,null,null,null,null,{"$f":"COUNTIFS($B$24:B873,\"Producto \")","v":0},false,849]
[null,null,{"$f":"_xlfn.IFS(B874=\"Producto \",$N$10&\"-\"&T875,B874=\"Actividad Propia\",$N$10&\"-\"&T874&\"-\"&V874,B874=\"Actividad sin participación\",$N$10&\"-\"&T874&\"-\"&V874,B874=\"\",\"\")","v":""},null,null,null,null,null,null,null,null,null,null,null,null,null,null,null,null,{"$f":"COUNTIFS($B$24:B874,\"Producto \")","v":0},false,850]
[null,null,{"$f":"_xlfn.IFS(B875=\"Producto \",$N$10&\"-\"&T876,B875=\"Actividad Propia\",$N$10&\"-\"&T875&\"-\"&V875,B875=\"Actividad sin participación\",$N$10&\"-\"&T875&\"-\"&V875,B875=\"\",\"\")","v":""},null,null,null,null,null,null,null,null,null,null,null,null,null,null,null,null,{"$f":"COUNTIFS($B$24:B875,\"Producto \")","v":0},false,851]
[null,null,{"$f":"_xlfn.IFS(B876=\"Producto \",$N$10&\"-\"&T877,B876=\"Actividad Propia\",$N$10&\"-\"&T876&\"-\"&V876,B876=\"Actividad sin participación\",$N$10&\"-\"&T876&\"-\"&V876,B876=\"\",\"\")","v":""},null,null,null,null,null,null,null,null,null,null,null,null,null,null,null,null,{"$f":"COUNTIFS($B$24:B876,\"Producto \")","v":0},false,852]
[null,null,{"$f":"_xlfn.IFS(B877=\"Producto \",$N$10&\"-\"&T878,B877=\"Actividad Propia\",$N$10&\"-\"&T877&\"-\"&V877,B877=\"Actividad sin participación\",$N$10&\"-\"&T877&\"-\"&V877,B877=\"\",\"\")","v":""},null,null,null,null,null,null,null,null,null,null,null,null,null,null,null,null,{"$f":"COUNTIFS($B$24:B877,\"Producto \")","v":0},false,853]
[null,null,{"$f":"_xlfn.IFS(B878=\"Producto \",$N$10&\"-\"&T879,B878=\"Actividad Propia\",$N$10&\"-\"&T878&\"-\"&V878,B878=\"Actividad sin participación\",$N$10&\"-\"&T878&\"-\"&V878,B878=\"\",\"\")","v":""},null,null,null,null,null,null,null,null,null,null,null,null,null,null,null,null,{"$f":"COUNTIFS($B$24:B878,\"Producto \")","v":0},false,854]
[null,null,{"$f":"_xlfn.IFS(B879=\"Producto \",$N$10&\"-\"&T880,B879=\"Actividad Propia\",$N$10&\"-\"&T879&\"-\"&V879,B879=\"Actividad sin participación\",$N$10&\"-\"&T879&\"-\"&V879,B879=\"\",\"\")","v":""},null,null,null,null,null,null,null,null,null,null,null,null,null,null,null,null,{"$f":"COUNTIFS($B$24:B879,\"Producto \")","v":0},false,855]
[null,null,{"$f":"_xlfn.IFS(B880=\"Producto \",$N$10&\"-\"&T881,B880=\"Actividad Propia\",$N$10&\"-\"&T880&\"-\"&V880,B880=\"Actividad sin participación\",$N$10&\"-\"&T880&\"-\"&V880,B880=\"\",\"\")","v":""},null,null,null,null,null,null,null,null,null,null,null,null,null,null,null,null,{"$f":"COUNTIFS($B$24:B880,\"Producto \")","v":0},false,856]
[null,null,{"$f":"_xlfn.IFS(B881=\"Producto \",$N$10&\"-\"&T882,B881=\"Actividad Propia\",$N$10&\"-\"&T881&\"-\"&V881,B881=\"Actividad sin participación\",$N$10&\"-\"&T881&\"-\"&V881,B881=\"\",\"\")","v":""},null,null,null,null,null,null,null,null,null,null,null,null,null,null,null,null,{"$f":"COUNTIFS($B$24:B881,\"Producto \")","v":0},false,857]
[null,null,{"$f":"_xlfn.IFS(B882=\"Producto \",$N$10&\"-\"&T883,B882=\"Actividad Propia\",$N$10&\"-\"&T882&\"-\"&V882,B882=\"Actividad sin participación\",$N$10&\"-\"&T882&\"-\"&V882,B882=\"\",\"\")","v":""},null,null,null,null,null,null,null,null,null,null,null,null,null,null,null,null,{"$f":"COUNTIFS($B$24:B882,\"Producto \")","v":0},false,858]
[null,null,{"$f":"_xlfn.IFS(B883=\"Producto \",$N$10&\"-\"&T884,B883=\"Actividad Propia\",$N$10&\"-\"&T883&\"-\"&V883,B883=\"Actividad sin participación\",$N$10&\"-\"&T883&\"-\"&V883,B883=\"\",\"\")","v":""},null,null,null,null,null,null,null,null,null,null,null,null,null,null,null,null,{"$f":"COUNTIFS($B$24:B883,\"Producto \")","v":0},false,859]
[null,null,{"$f":"_xlfn.IFS(B884=\"Producto \",$N$10&\"-\"&T885,B884=\"Actividad Propia\",$N$10&\"-\"&T884&\"-\"&V884,B884=\"Actividad sin participación\",$N$10&\"-\"&T884&\"-\"&V884,B884=\"\",\"\")","v":""},null,null,null,null,null,null,null,null,null,null,null,null,null,null,null,null,{"$f":"COUNTIFS($B$24:B884,\"Producto \")","v":0},false,860]
[null,null,{"$f":"_xlfn.IFS(B885=\"Producto \",$N$10&\"-\"&T886,B885=\"Actividad Propia\",$N$10&\"-\"&T885&\"-\"&V885,B885=\"Actividad sin participación\",$N$10&\"-\"&T885&\"-\"&V885,B885=\"\",\"\")","v":""},null,null,null,null,null,null,null,null,null,null,null,null,null,null,null,null,{"$f":"COUNTIFS($B$24:B885,\"Producto \")","v":0},false,861]
[null,null,{"$f":"_xlfn.IFS(B886=\"Producto \",$N$10&\"-\"&T887,B886=\"Actividad Propia\",$N$10&\"-\"&T886&\"-\"&V886,B886=\"Actividad sin participación\",$N$10&\"-\"&T886&\"-\"&V886,B886=\"\",\"\")","v":""},null,null,null,null,null,null,null,null,null,null,null,null,null,null,null,null,{"$f":"COUNTIFS($B$24:B886,\"Producto \")","v":0},false,862]
[null,null,{"$f":"_xlfn.IFS(B887=\"Producto \",$N$10&\"-\"&T888,B887=\"Actividad Propia\",$N$10&\"-\"&T887&\"-\"&V887,B887=\"Actividad sin participación\",$N$10&\"-\"&T887&\"-\"&V887,B887=\"\",\"\")","v":""},null,null,null,null,null,null,null,null,null,null,null,null,null,null,null,null,{"$f":"COUNTIFS($B$24:B887,\"Producto \")","v":0},false,863]
[null,null,{"$f":"_xlfn.IFS(B888=\"Producto \",$N$10&\"-\"&T889,B888=\"Actividad Propia\",$N$10&\"-\"&T888&\"-\"&V888,B888=\"Actividad sin participación\",$N$10&\"-\"&T888&\"-\"&V888,B888=\"\",\"\")","v":""},null,null,null,null,null,null,null,null,null,null,null,null,null,null,null,null,{"$f":"COUNTIFS($B$24:B888,\"Producto \")","v":0},false,864]
[null,null,{"$f":"_xlfn.IFS(B889=\"Producto \",$N$10&\"-\"&T890,B889=\"Actividad Propia\",$N$10&\"-\"&T889&\"-\"&V889,B889=\"Actividad sin participación\",$N$10&\"-\"&T889&\"-\"&V889,B889=\"\",\"\")","v":""},null,null,null,null,null,null,null,null,null,null,null,null,null,null,null,null,{"$f":"COUNTIFS($B$24:B889,\"Producto \")","v":0},false,865]
[null,null,{"$f":"_xlfn.IFS(B890=\"Producto \",$N$10&\"-\"&T891,B890=\"Actividad Propia\",$N$10&\"-\"&T890&\"-\"&V890,B890=\"Actividad sin participación\",$N$10&\"-\"&T890&\"-\"&V890,B890=\"\",\"\")","v":""},null,null,null,null,null,null,null,null,null,null,null,null,null,null,null,null,{"$f":"COUNTIFS($B$24:B890,\"Producto \")","v":0},false,866]
[null,null,{"$f":"_xlfn.IFS(B891=\"Producto \",$N$10&\"-\"&T892,B891=\"Actividad Propia\",$N$10&\"-\"&T891&\"-\"&V891,B891=\"Actividad sin participación\",$N$10&\"-\"&T891&\"-\"&V891,B891=\"\",\"\")","v":""},null,null,null,null,null,null,null,null,null,null,null,null,null,null,null,null,{"$f":"COUNTIFS($B$24:B891,\"Producto \")","v":0},false,867]
[null,null,{"$f":"_xlfn.IFS(B892=\"Producto \",$N$10&\"-\"&T893,B892=\"Actividad Propia\",$N$10&\"-\"&T892&\"-\"&V892,B892=\"Actividad sin participación\",$N$10&\"-\"&T892&\"-\"&V892,B892=\"\",\"\")","v":""},null,null,null,null,null,null,null,null,null,null,null,null,null,null,null,null,{"$f":"COUNTIFS($B$24:B892,\"Producto \")","v":0},false,868]
[null,null,{"$f":"_xlfn.IFS(B893=\"Producto \",$N$10&\"-\"&T894,B893=\"Actividad Propia\",$N$10&\"-\"&T893&\"-\"&V893,B893=\"Actividad sin participación\",$N$10&\"-\"&T893&\"-\"&V893,B893=\"\",\"\")","v":""},null,null,null,null,null,null,null,null,null,null,null,null,null,null,null,null,{"$f":"COUNTIFS($B$24:B893,\"Producto \")","v":0},false,869]
[null,null,{"$f":"_xlfn.IFS(B894=\"Producto \",$N$10&\"-\"&T895,B894=\"Actividad Propia\",$N$10&\"-\"&T894&\"-\"&V894,B894=\"Actividad sin participación\",$N$10&\"-\"&T894&\"-\"&V894,B894=\"\",\"\")","v":""},null,null,null,null,null,null,null,null,null,null,null,null,null,null,null,null,{"$f":"COUNTIFS($B$24:B894,\"Producto \")","v":0},false,870]
[null,null,{"$f":"_xlfn.IFS(B895=\"Producto \",$N$10&\"-\"&T896,B895=\"Actividad Propia\",$N$10&\"-\"&T895&\"-\"&V895,B895=\"Actividad sin participación\",$N$10&\"-\"&T895&\"-\"&V895,B895=\"\",\"\")","v":""},null,null,null,null,null,null,null,null,null,null,null,null,null,null,null,null,{"$f":"COUNTIFS($B$24:B895,\"Producto \")","v":0},false,871]
[null,null,{"$f":"_xlfn.IFS(B896=\"Producto \",$N$10&\"-\"&T897,B896=\"Actividad Propia\",$N$10&\"-\"&T896&\"-\"&V896,B896=\"Actividad sin participación\",$N$10&\"-\"&T896&\"-\"&V896,B896=\"\",\"\")","v":""},null,null,null,null,null,null,null,null,null,null,null,null,null,null,null,null,{"$f":"COUNTIFS($B$24:B896,\"Producto \")","v":0},false,872]
[null,null,{"$f":"_xlfn.IFS(B897=\"Producto \",$N$10&\"-\"&T898,B897=\"Actividad Propia\",$N$10&\"-\"&T897&\"-\"&V897,B897=\"Actividad sin participación\",$N$10&\"-\"&T897&\"-\"&V897,B897=\"\",\"\")","v":""},null,null,null,null,null,null,null,null,null,null,null,null,null,null,null,null,{"$f":"COUNTIFS($B$24:B897,\"Producto \")","v":0},false,873]
[null,null,{"$f":"_xlfn.IFS(B898=\"Producto \",$N$10&\"-\"&T899,B898=\"Actividad Propia\",$N$10&\"-\"&T898&\"-\"&V898,B898=\"Actividad sin participación\",$N$10&\"-\"&T898&\"-\"&V898,B898=\"\",\"\")","v":""},null,null,null,null,null,null,null,null,null,null,null,null,null,null,null,null,{"$f":"COUNTIFS($B$24:B898,\"Producto \")","v":0},false,874]
[null,null,{"$f":"_xlfn.IFS(B899=\"Producto \",$N$10&\"-\"&T900,B899=\"Actividad Propia\",$N$10&\"-\"&T899&\"-\"&V899,B899=\"Actividad sin participación\",$N$10&\"-\"&T899&\"-\"&V899,B899=\"\",\"\")","v":""},null,null,null,null,null,null,null,null,null,null,null,null,null,null,null,null,{"$f":"COUNTIFS($B$24:B899,\"Producto \")","v":0},false,875]
[null,null,{"$f":"_xlfn.IFS(B900=\"Producto \",$N$10&\"-\"&T901,B900=\"Actividad Propia\",$N$10&\"-\"&T900&\"-\"&V900,B900=\"Actividad sin participación\",$N$10&\"-\"&T900&\"-\"&V900,B900=\"\",\"\")","v":""},null,null,null,null,null,null,null,null,null,null,null,null,null,null,null,null,{"$f":"COUNTIFS($B$24:B900,\"Producto \")","v":0},false,876]
[null,null,{"$f":"_xlfn.IFS(B901=\"Producto \",$N$10&\"-\"&T902,B901=\"Actividad Propia\",$N$10&\"-\"&T901&\"-\"&V901,B901=\"Actividad sin participación\",$N$10&\"-\"&T901&\"-\"&V901,B901=\"\",\"\")","v":""},null,null,null,null,null,null,null,null,null,null,null,null,null,null,null,null,{"$f":"COUNTIFS($B$24:B901,\"Producto \")","v":0},false,877]
[null,null,{"$f":"_xlfn.IFS(B902=\"Producto \",$N$10&\"-\"&T903,B902=\"Actividad Propia\",$N$10&\"-\"&T902&\"-\"&V902,B902=\"Actividad sin participación\",$N$10&\"-\"&T902&\"-\"&V902,B902=\"\",\"\")","v":""},null,null,null,null,null,null,null,null,null,null,null,null,null,null,null,null,{"$f":"COUNTIFS($B$24:B902,\"Producto \")","v":0},false,878]
[null,null,{"$f":"_xlfn.IFS(B903=\"Producto \",$N$10&\"-\"&T904,B903=\"Actividad Propia\",$N$10&\"-\"&T903&\"-\"&V903,B903=\"Actividad sin participación\",$N$10&\"-\"&T903&\"-\"&V903,B903=\"\",\"\")","v":""},null,null,null,null,null,null,null,null,null,null,null,null,null,null,null,null,{"$f":"COUNTIFS($B$24:B903,\"Producto \")","v":0},false,879]
[null,null,{"$f":"_xlfn.IFS(B904=\"Producto \",$N$10&\"-\"&T905,B904=\"Actividad Propia\",$N$10&\"-\"&T904&\"-\"&V904,B904=\"Actividad sin participación\",$N$10&\"-\"&T904&\"-\"&V904,B904=\"\",\"\")","v":""},null,null,null,null,null,null,null,null,null,null,null,null,null,null,null,null,{"$f":"COUNTIFS($B$24:B904,\"Producto \")","v":0},false,880]
[null,null,{"$f":"_xlfn.IFS(B905=\"Producto \",$N$10&\"-\"&T906,B905=\"Actividad Propia\",$N$10&\"-\"&T905&\"-\"&V905,B905=\"Actividad sin participación\",$N$10&\"-\"&T905&\"-\"&V905,B905=\"\",\"\")","v":""},null,null,null,null,null,null,null,null,null,null,null,null,null,null,null,null,{"$f":"COUNTIFS($B$24:B905,\"Producto \")","v":0},false,881]
[null,null,{"$f":"_xlfn.IFS(B906=\"Producto \",$N$10&\"-\"&T907,B906=\"Actividad Propia\",$N$10&\"-\"&T906&\"-\"&V906,B906=\"Actividad sin participación\",$N$10&\"-\"&T906&\"-\"&V906,B906=\"\",\"\")","v":""},null,null,null,null,null,null,null,null,null,null,null,null,null,null,null,null,{"$f":"COUNTIFS($B$24:B906,\"Producto \")","v":0},false,882]
[null,null,{"$f":"_xlfn.IFS(B907=\"Producto \",$N$10&\"-\"&T908,B907=\"Actividad Propia\",$N$10&\"-\"&T907&\"-\"&V907,B907=\"Actividad sin participación\",$N$10&\"-\"&T907&\"-\"&V907,B907=\"\",\"\")","v":""},null,null,null,null,null,null,null,null,null,null,null,null,null,null,null,null,{"$f":"COUNTIFS($B$24:B907,\"Producto \")","v":0},false,883]
[null,null,{"$f":"_xlfn.IFS(B908=\"Producto \",$N$10&\"-\"&T909,B908=\"Actividad Propia\",$N$10&\"-\"&T908&\"-\"&V908,B908=\"Actividad sin participación\",$N$10&\"-\"&T908&\"-\"&V908,B908=\"\",\"\")","v":""},null,null,null,null,null,null,null,null,null,null,null,null,null,null,null,null,{"$f":"COUNTIFS($B$24:B908,\"Producto \")","v":0},false,884]
[null,null,{"$f":"_xlfn.IFS(B909=\"Producto \",$N$10&\"-\"&T910,B909=\"Actividad Propia\",$N$10&\"-\"&T909&\"-\"&V909,B909=\"Actividad sin participación\",$N$10&\"-\"&T909&\"-\"&V909,B909=\"\",\"\")","v":""},null,null,null,null,null,null,null,null,null,null,null,null,null,null,null,null,{"$f":"COUNTIFS($B$24:B909,\"Producto \")","v":0},false,885]
[null,null,{"$f":"_xlfn.IFS(B910=\"Producto \",$N$10&\"-\"&T911,B910=\"Actividad Propia\",$N$10&\"-\"&T910&\"-\"&V910,B910=\"Actividad sin participación\",$N$10&\"-\"&T910&\"-\"&V910,B910=\"\",\"\")","v":""},null,null,null,null,null,null,null,null,null,null,null,null,null,null,null,null,{"$f":"COUNTIFS($B$24:B910,\"Producto \")","v":0},false,886]
[null,null,{"$f":"_xlfn.IFS(B911=\"Producto \",$N$10&\"-\"&T912,B911=\"Actividad Propia\",$N$10&\"-\"&T911&\"-\"&V911,B911=\"Actividad sin participación\",$N$10&\"-\"&T911&\"-\"&V911,B911=\"\",\"\")","v":""},null,null,null,null,null,null,null,null,null,null,null,null,null,null,null,null,{"$f":"COUNTIFS($B$24:B911,\"Producto \")","v":0},false,887]
[null,null,{"$f":"_xlfn.IFS(B912=\"Producto \",$N$10&\"-\"&T913,B912=\"Actividad Propia\",$N$10&\"-\"&T912&\"-\"&V912,B912=\"Actividad sin participación\",$N$10&\"-\"&T912&\"-\"&V912,B912=\"\",\"\")","v":""},null,null,null,null,null,null,null,null,null,null,null,null,null,null,null,null,{"$f":"COUNTIFS($B$24:B912,\"Producto \")","v":0},false,888]
[null,null,{"$f":"_xlfn.IFS(B913=\"Producto \",$N$10&\"-\"&T914,B913=\"Actividad Propia\",$N$10&\"-\"&T913&\"-\"&V913,B913=\"Actividad sin participación\",$N$10&\"-\"&T913&\"-\"&V913,B913=\"\",\"\")","v":""},null,null,null,null,null,null,null,null,null,null,null,null,null,null,null,null,{"$f":"COUNTIFS($B$24:B913,\"Producto \")","v":0},false,889]
[null,null,{"$f":"_xlfn.IFS(B914=\"Producto \",$N$10&\"-\"&T915,B914=\"Actividad Propia\",$N$10&\"-\"&T914&\"-\"&V914,B914=\"Actividad sin participación\",$N$10&\"-\"&T914&\"-\"&V914,B914=\"\",\"\")","v":""},null,null,null,null,null,null,null,null,null,null,null,null,null,null,null,null,{"$f":"COUNTIFS($B$24:B914,\"Producto \")","v":0},false,890]
[null,null,{"$f":"_xlfn.IFS(B915=\"Producto \",$N$10&\"-\"&T916,B915=\"Actividad Propia\",$N$10&\"-\"&T915&\"-\"&V915,B915=\"Actividad sin participación\",$N$10&\"-\"&T915&\"-\"&V915,B915=\"\",\"\")","v":""},null,null,null,null,null,null,null,null,null,null,null,null,null,null,null,null,{"$f":"COUNTIFS($B$24:B915,\"Producto \")","v":0},false,891]
[null,null,{"$f":"_xlfn.IFS(B916=\"Producto \",$N$10&\"-\"&T917,B916=\"Actividad Propia\",$N$10&\"-\"&T916&\"-\"&V916,B916=\"Actividad sin participación\",$N$10&\"-\"&T916&\"-\"&V916,B916=\"\",\"\")","v":""},null,null,null,null,null,null,null,null,null,null,null,null,null,null,null,null,{"$f":"COUNTIFS($B$24:B916,\"Producto \")","v":0},false,892]
[null,null,{"$f":"_xlfn.IFS(B917=\"Producto \",$N$10&\"-\"&T918,B917=\"Actividad Propia\",$N$10&\"-\"&T917&\"-\"&V917,B917=\"Actividad sin participación\",$N$10&\"-\"&T917&\"-\"&V917,B917=\"\",\"\")","v":""},null,null,null,null,null,null,null,null,null,null,null,null,null,null,null,null,{"$f":"COUNTIFS($B$24:B917,\"Producto \")","v":0},false,893]
[null,null,{"$f":"_xlfn.IFS(B918=\"Producto \",$N$10&\"-\"&T919,B918=\"Actividad Propia\",$N$10&\"-\"&T918&\"-\"&V918,B918=\"Actividad sin participación\",$N$10&\"-\"&T918&\"-\"&V918,B918=\"\",\"\")","v":""},null,null,null,null,null,null,null,null,null,null,null,null,null,null,null,null,{"$f":"COUNTIFS($B$24:B918,\"Producto \")","v":0},false,894]
[null,null,{"$f":"_xlfn.IFS(B919=\"Producto \",$N$10&\"-\"&T920,B919=\"Actividad Propia\",$N$10&\"-\"&T919&\"-\"&V919,B919=\"Actividad sin participación\",$N$10&\"-\"&T919&\"-\"&V919,B919=\"\",\"\")","v":""},null,null,null,null,null,null,null,null,null,null,null,null,null,null,null,null,{"$f":"COUNTIFS($B$24:B919,\"Producto \")","v":0},false,895]
[null,null,{"$f":"_xlfn.IFS(B920=\"Producto \",$N$10&\"-\"&T921,B920=\"Actividad Propia\",$N$10&\"-\"&T920&\"-\"&V920,B920=\"Actividad sin participación\",$N$10&\"-\"&T920&\"-\"&V920,B920=\"\",\"\")","v":""},null,null,null,null,null,null,null,null,null,null,null,null,null,null,null,null,{"$f":"COUNTIFS($B$24:B920,\"Producto \")","v":0},false,896]
[null,null,{"$f":"_xlfn.IFS(B921=\"Producto \",$N$10&\"-\"&T922,B921=\"Actividad Propia\",$N$10&\"-\"&T921&\"-\"&V921,B921=\"Actividad sin participación\",$N$10&\"-\"&T921&\"-\"&V921,B921=\"\",\"\")","v":""},null,null,null,null,null,null,null,null,null,null,null,null,null,null,null,null,{"$f":"COUNTIFS($B$24:B921,\"Producto \")","v":0},{"$f":"IF(B920=\"Producto \",C920&\"-\"&V921)","v":false},{"$f":"IF(B920=\"Producto \",1,V920+1)","v":897}]
[null,null,{"$f":"_xlfn.IFS(B922=\"Producto \",$N$10&\"-\"&T923,B922=\"Actividad Propia\",$N$10&\"-\"&T922&\"-\"&V922,B922=\"Actividad sin participación\",$N$10&\"-\"&T922&\"-\"&V922,B922=\"\",\"\")","v":""},null,null,null,null,null,null,null,null,null,null,null,null,null,null,null,null,{"$f":"COUNTIFS($B$24:B922,\"Producto \")","v":0},false,898]
[null,null,{"$f":"_xlfn.IFS(B923=\"Producto \",$N$10&\"-\"&T924,B923=\"Actividad Propia\",$N$10&\"-\"&T923&\"-\"&V923,B923=\"Actividad sin participación\",$N$10&\"-\"&T923&\"-\"&V923,B923=\"\",\"\")","v":""},null,null,null,null,null,null,null,null,null,null,null,null,null,null,null,null,{"$f":"COUNTIFS($B$24:B923,\"Producto \")","v":0},false,899]
[null,null,{"$f":"_xlfn.IFS(B924=\"Producto \",$N$10&\"-\"&T925,B924=\"Actividad Propia\",$N$10&\"-\"&T924&\"-\"&V924,B924=\"Actividad sin participación\",$N$10&\"-\"&T924&\"-\"&V924,B924=\"\",\"\")","v":""},null,null,null,null,null,null,null,null,null,null,null,null,null,null,null,null,{"$f":"COUNTIFS($B$24:B924,\"Producto \")","v":0},false,900]
[null,null,{"$f":"_xlfn.IFS(B925=\"Producto \",$N$10&\"-\"&T926,B925=\"Actividad Propia\",$N$10&\"-\"&T925&\"-\"&V925,B925=\"Actividad sin participación\",$N$10&\"-\"&T925&\"-\"&V925,B925=\"\",\"\")","v":""},null,null,null,null,null,null,null,null,null,null,null,null,null,null,null,null,{"$f":"COUNTIFS($B$24:B925,\"Producto \")","v":0},false,901]
[null,null,{"$f":"_xlfn.IFS(B926=\"Producto \",$N$10&\"-\"&T927,B926=\"Actividad Propia\",$N$10&\"-\"&T926&\"-\"&V926,B926=\"Actividad sin participación\",$N$10&\"-\"&T926&\"-\"&V926,B926=\"\",\"\")","v":""},null,null,null,null,null,null,null,null,null,null,null,null,null,null,null,null,{"$f":"COUNTIFS($B$24:B926,\"Producto \")","v":0},false,902]
[null,null,{"$f":"_xlfn.IFS(B927=\"Producto \",$N$10&\"-\"&T928,B927=\"Actividad Propia\",$N$10&\"-\"&T927&\"-\"&V927,B927=\"Actividad sin participación\",$N$10&\"-\"&T927&\"-\"&V927,B927=\"\",\"\")","v":""},null,null,null,null,null,null,null,null,null,null,null,null,null,null,null,null,{"$f":"COUNTIFS($B$24:B927,\"Producto \")","v":0},false,903]
[null,null,{"$f":"_xlfn.IFS(B928=\"Producto \",$N$10&\"-\"&T929,B928=\"Actividad Propia\",$N$10&\"-\"&T928&\"-\"&V928,B928=\"Actividad sin participación\",$N$10&\"-\"&T928&\"-\"&V928,B928=\"\",\"\")","v":""},null,null,null,null,null,null,null,null,null,null,null,null,null,null,null,null,{"$f":"COUNTIFS($B$24:B928,\"Producto \")","v":0},false,904]
[null,null,{"$f":"_xlfn.IFS(B929=\"Producto \",$N$10&\"-\"&T930,B929=\"Actividad Propia\",$N$10&\"-\"&T929&\"-\"&V929,B929=\"Actividad sin participación\",$N$10&\"-\"&T929&\"-\"&V929,B929=\"\",\"\")","v":""},null,null,null,null,null,null,null,null,null,null,null,null,null,null,null,null,{"$f":"COUNTIFS($B$24:B929,\"Producto \")","v":0},false,905]
[null,null,{"$f":"_xlfn.IFS(B930=\"Producto \",$N$10&\"-\"&T931,B930=\"Actividad Propia\",$N$10&\"-\"&T930&\"-\"&V930,B930=\"Actividad sin participación\",$N$10&\"-\"&T930&\"-\"&V930,B930=\"\",\"\")","v":""},null,null,null,null,null,null,null,null,null,null,null,null,null,null,null,null,{"$f":"COUNTIFS($B$24:B930,\"Producto \")","v":0},false,906]
[null,null,{"$f":"_xlfn.IFS(B931=\"Producto \",$N$10&\"-\"&T932,B931=\"Actividad Propia\",$N$10&\"-\"&T931&\"-\"&V931,B931=\"Actividad sin participación\",$N$10&\"-\"&T931&\"-\"&V931,B931=\"\",\"\")","v":""},null,null,null,null,null,null,null,null,null,null,null,null,null,null,null,null,{"$f":"COUNTIFS($B$24:B931,\"Producto \")","v":0},false,907]
[null,null,{"$f":"_xlfn.IFS(B932=\"Producto \",$N$10&\"-\"&T933,B932=\"Actividad Propia\",$N$10&\"-\"&T932&\"-\"&V932,B932=\"Actividad sin participación\",$N$10&\"-\"&T932&\"-\"&V932,B932=\"\",\"\")","v":""},null,null,null,null,null,null,null,null,null,null,null,null,null,null,null,null,{"$f":"COUNTIFS($B$24:B932,\"Producto \")","v":0},false,908]
[null,null,{"$f":"_xlfn.IFS(B933=\"Producto \",$N$10&\"-\"&T934,B933=\"Actividad Propia\",$N$10&\"-\"&T933&\"-\"&V933,B933=\"Actividad sin participación\",$N$10&\"-\"&T933&\"-\"&V933,B933=\"\",\"\")","v":""},null,null,null,null,null,null,null,null,null,null,null,null,null,null,null,null,{"$f":"COUNTIFS($B$24:B933,\"Producto \")","v":0},false,909]
[null,null,{"$f":"_xlfn.IFS(B934=\"Producto \",$N$10&\"-\"&T935,B934=\"Actividad Propia\",$N$10&\"-\"&T934&\"-\"&V934,B934=\"Actividad sin participación\",$N$10&\"-\"&T934&\"-\"&V934,B934=\"\",\"\")","v":""},null,null,null,null,null,null,null,null,null,null,null,null,null,null,null,null,{"$f":"COUNTIFS($B$24:B934,\"Producto \")","v":0},false,910]
[null,null,{"$f":"_xlfn.IFS(B935=\"Producto \",$N$10&\"-\"&T936,B935=\"Actividad Propia\",$N$10&\"-\"&T935&\"-\"&V935,B935=\"Actividad sin participación\",$N$10&\"-\"&T935&\"-\"&V935,B935=\"\",\"\")","v":""},null,null,null,null,null,null,null,null,null,null,null,null,null,null,null,null,{"$f":"COUNTIFS($B$24:B935,\"Producto \")","v":0},false,911]
[null,null,{"$f":"_xlfn.IFS(B936=\"Producto \",$N$10&\"-\"&T937,B936=\"Actividad Propia\",$N$10&\"-\"&T936&\"-\"&V936,B936=\"Actividad sin participación\",$N$10&\"-\"&T936&\"-\"&V936,B936=\"\",\"\")","v":""},null,null,null,null,null,null,null,null,null,null,null,null,null,null,null,null,{"$f":"COUNTIFS($B$24:B936,\"Producto \")","v":0},false,912]
[null,null,{"$f":"_xlfn.IFS(B937=\"Producto \",$N$10&\"-\"&T938,B937=\"Actividad Propia\",$N$10&\"-\"&T937&\"-\"&V937,B937=\"Actividad sin participación\",$N$10&\"-\"&T937&\"-\"&V937,B937=\"\",\"\")","v":""},null,null,null,null,null,null,null,null,null,null,null,null,null,null,null,null,{"$f":"COUNTIFS($B$24:B937,\"Producto \")","v":0},false,913]
[null,null,{"$f":"_xlfn.IFS(B938=\"Producto \",$N$10&\"-\"&T939,B938=\"Actividad Propia\",$N$10&\"-\"&T938&\"-\"&V938,B938=\"Actividad sin participación\",$N$10&\"-\"&T938&\"-\"&V938,B938=\"\",\"\")","v":""},null,null,null,null,null,null,null,null,null,null,null,null,null,null,null,null,{"$f":"COUNTIFS($B$24:B938,\"Producto \")","v":0},false,914]
[null,null,{"$f":"_xlfn.IFS(B939=\"Producto \",$N$10&\"-\"&T940,B939=\"Actividad Propia\",$N$10&\"-\"&T939&\"-\"&V939,B939=\"Actividad sin participación\",$N$10&\"-\"&T939&\"-\"&V939,B939=\"\",\"\")","v":""},null,null,null,null,null,null,null,null,null,null,null,null,null,null,null,null,{"$f":"COUNTIFS($B$24:B939,\"Producto \")","v":0},false,915]
[null,null,{"$f":"_xlfn.IFS(B940=\"Producto \",$N$10&\"-\"&T941,B940=\"Actividad Propia\",$N$10&\"-\"&T940&\"-\"&V940,B940=\"Actividad sin participación\",$N$10&\"-\"&T940&\"-\"&V940,B940=\"\",\"\")","v":""},null,null,null,null,null,null,null,null,null,null,null,null,null,null,null,null,{"$f":"COUNTIFS($B$24:B940,\"Producto \")","v":0},false,916]
[null,null,{"$f":"_xlfn.IFS(B941=\"Producto \",$N$10&\"-\"&T942,B941=\"Actividad Propia\",$N$10&\"-\"&T941&\"-\"&V941,B941=\"Actividad sin participación\",$N$10&\"-\"&T941&\"-\"&V941,B941=\"\",\"\")","v":""},null,null,null,null,null,null,null,null,null,null,null,null,null,null,null,null,{"$f":"COUNTIFS($B$24:B941,\"Producto \")","v":0},false,917]
[null,null,{"$f":"_xlfn.IFS(B942=\"Producto \",$N$10&\"-\"&T943,B942=\"Actividad Propia\",$N$10&\"-\"&T942&\"-\"&V942,B942=\"Actividad sin participación\",$N$10&\"-\"&T942&\"-\"&V942,B942=\"\",\"\")","v":""},null,null,null,null,null,null,null,null,null,null,null,null,null,null,null,null,{"$f":"COUNTIFS($B$24:B942,\"Producto \")","v":0},false,918]
[null,null,{"$f":"_xlfn.IFS(B943=\"Producto \",$N$10&\"-\"&T944,B943=\"Actividad Propia\",$N$10&\"-\"&T943&\"-\"&V943,B943=\"Actividad sin participación\",$N$10&\"-\"&T943&\"-\"&V943,B943=\"\",\"\")","v":""},null,null,null,null,null,null,null,null,null,null,null,null,null,null,null,null,{"$f":"COUNTIFS($B$24:B943,\"Producto \")","v":0},false,919]
[null,null,{"$f":"_xlfn.IFS(B944=\"Producto \",$N$10&\"-\"&T945,B944=\"Actividad Propia\",$N$10&\"-\"&T944&\"-\"&V944,B944=\"Actividad sin participación\",$N$10&\"-\"&T944&\"-\"&V944,B944=\"\",\"\")","v":""},null,null,null,null,null,null,null,null,null,null,null,null,null,null,null,null,{"$f":"COUNTIFS($B$24:B944,\"Producto \")","v":0},false,920]
[null,null,{"$f":"_xlfn.IFS(B945=\"Producto \",$N$10&\"-\"&T946,B945=\"Actividad Propia\",$N$10&\"-\"&T945&\"-\"&V945,B945=\"Actividad sin participación\",$N$10&\"-\"&T945&\"-\"&V945,B945=\"\",\"\")","v":""},null,null,null,null,null,null,null,null,null,null,null,null,null,null,null,null,{"$f":"COUNTIFS($B$24:B945,\"Producto \")","v":0},false,921]
[null,null,{"$f":"_xlfn.IFS(B946=\"Producto \",$N$10&\"-\"&T947,B946=\"Actividad Propia\",$N$10&\"-\"&T946&\"-\"&V946,B946=\"Actividad sin participación\",$N$10&\"-\"&T946&\"-\"&V946,B946=\"\",\"\")","v":""},null,null,null,null,null,null,null,null,null,null,null,null,null,null,null,null,{"$f":"COUNTIFS($B$24:B946,\"Producto \")","v":0},false,922]
[null,null,{"$f":"_xlfn.IFS(B947=\"Producto \",$N$10&\"-\"&T948,B947=\"Actividad Propia\",$N$10&\"-\"&T947&\"-\"&V947,B947=\"Actividad sin participación\",$N$10&\"-\"&T947&\"-\"&V947,B947=\"\",\"\")","v":""},null,null,null,null,null,null,null,null,null,null,null,null,null,null,null,null,{"$f":"COUNTIFS($B$24:B947,\"Producto \")","v":0},false,923]
[null,null,{"$f":"_xlfn.IFS(B948=\"Producto \",$N$10&\"-\"&T949,B948=\"Actividad Propia\",$N$10&\"-\"&T948&\"-\"&V948,B948=\"Actividad sin participación\",$N$10&\"-\"&T948&\"-\"&V948,B948=\"\",\"\")","v":""},null,null,null,null,null,null,null,null,null,null,null,null,null,null,null,null,{"$f":"COUNTIFS($B$24:B948,\"Producto \")","v":0},false,924]
[null,null,{"$f":"_xlfn.IFS(B949=\"Producto \",$N$10&\"-\"&T950,B949=\"Actividad Propia\",$N$10&\"-\"&T949&\"-\"&V949,B949=\"Actividad sin participación\",$N$10&\"-\"&T949&\"-\"&V949,B949=\"\",\"\")","v":""},null,null,null,null,null,null,null,null,null,null,null,null,null,null,null,null,{"$f":"COUNTIFS($B$24:B949,\"Producto \")","v":0},false,925]
[null,null,{"$f":"_xlfn.IFS(B950=\"Producto \",$N$10&\"-\"&T951,B950=\"Actividad Propia\",$N$10&\"-\"&T950&\"-\"&V950,B950=\"Actividad sin participación\",$N$10&\"-\"&T950&\"-\"&V950,B950=\"\",\"\")","v":""},null,null,null,null,null,null,null,null,null,null,null,null,null,null,null,null,{"$f":"COUNTIFS($B$24:B950,\"Producto \")","v":0},false,926]
[null,null,{"$f":"_xlfn.IFS(B951=\"Producto \",$N$10&\"-\"&T952,B951=\"Actividad Propia\",$N$10&\"-\"&T951&\"-\"&V951,B951=\"Actividad sin participación\",$N$10&\"-\"&T951&\"-\"&V951,B951=\"\",\"\")","v":""},null,null,null,null,null,null,null,null,null,null,null,null,null,null,null,null,{"$f":"COUNTIFS($B$24:B951,\"Producto \")","v":0},false,927]
[null,null,{"$f":"_xlfn.IFS(B952=\"Producto \",$N$10&\"-\"&T953,B952=\"Actividad Propia\",$N$10&\"-\"&T952&\"-\"&V952,B952=\"Actividad sin participación\",$N$10&\"-\"&T952&\"-\"&V952,B952=\"\",\"\")","v":""},null,null,null,null,null,null,null,null,null,null,null,null,null,null,null,null,{"$f":"COUNTIFS($B$24:B952,\"Producto \")","v":0},false,928]
[null,null,{"$f":"_xlfn.IFS(B953=\"Producto \",$N$10&\"-\"&T954,B953=\"Actividad Propia\",$N$10&\"-\"&T953&\"-\"&V953,B953=\"Actividad sin participación\",$N$10&\"-\"&T953&\"-\"&V953,B953=\"\",\"\")","v":""},null,null,null,null,null,null,null,null,null,null,null,null,null,null,null,null,{"$f":"COUNTIFS($B$24:B953,\"Producto \")","v":0},false,929]
[null,null,{"$f":"_xlfn.IFS(B954=\"Producto \",$N$10&\"-\"&T955,B954=\"Actividad Propia\",$N$10&\"-\"&T954&\"-\"&V954,B954=\"Actividad sin participación\",$N$10&\"-\"&T954&\"-\"&V954,B954=\"\",\"\")","v":""},null,null,null,null,null,null,null,null,null,null,null,null,null,null,null,null,{"$f":"COUNTIFS($B$24:B954,\"Producto \")","v":0},false,930]
[null,null,{"$f":"_xlfn.IFS(B955=\"Producto \",$N$10&\"-\"&T956,B955=\"Actividad Propia\",$N$10&\"-\"&T955&\"-\"&V955,B955=\"Actividad sin participación\",$N$10&\"-\"&T955&\"-\"&V955,B955=\"\",\"\")","v":""},null,null,null,null,null,null,null,null,null,null,null,null,null,null,null,null,{"$f":"COUNTIFS($B$24:B955,\"Producto \")","v":0},false,931]
[null,null,{"$f":"_xlfn.IFS(B956=\"Producto \",$N$10&\"-\"&T957,B956=\"Actividad Propia\",$N$10&\"-\"&T956&\"-\"&V956,B956=\"Actividad sin participación\",$N$10&\"-\"&T956&\"-\"&V956,B956=\"\",\"\")","v":""},null,null,null,null,null,null,null,null,null,null,null,null,null,null,null,null,{"$f":"COUNTIFS($B$24:B956,\"Producto \")","v":0},false,932]
[null,null,{"$f":"_xlfn.IFS(B957=\"Producto \",$N$10&\"-\"&T958,B957=\"Actividad Propia\",$N$10&\"-\"&T957&\"-\"&V957,B957=\"Actividad sin participación\",$N$10&\"-\"&T957&\"-\"&V957,B957=\"\",\"\")","v":""},null,null,null,null,null,null,null,null,null,null,null,null,null,null,null,null,{"$f":"COUNTIFS($B$24:B957,\"Producto \")","v":0},false,933]
[null,null,{"$f":"_xlfn.IFS(B958=\"Producto \",$N$10&\"-\"&T959,B958=\"Actividad Propia\",$N$10&\"-\"&T958&\"-\"&V958,B958=\"Actividad sin participación\",$N$10&\"-\"&T958&\"-\"&V958,B958=\"\",\"\")","v":""},null,null,null,null,null,null,null,null,null,null,null,null,null,null,null,null,{"$f":"COUNTIFS($B$24:B958,\"Producto \")","v":0},false,934]
[null,null,{"$f":"_xlfn.IFS(B959=\"Producto \",$N$10&\"-\"&T960,B959=\"Actividad Propia\",$N$10&\"-\"&T959&\"-\"&V959,B959=\"Actividad sin participación\",$N$10&\"-\"&T959&\"-\"&V959,B959=\"\",\"\")","v":""},null,null,null,null,null,null,null,null,null,null,null,null,null,null,null,null,{"$f":"COUNTIFS($B$24:B959,\"Producto \")","v":0},false,935]
[null,null,{"$f":"_xlfn.IFS(B960=\"Producto \",$N$10&\"-\"&T961,B960=\"Actividad Propia\",$N$10&\"-\"&T960&\"-\"&V960,B960=\"Actividad sin participación\",$N$10&\"-\"&T960&\"-\"&V960,B960=\"\",\"\")","v":""},null,null,null,null,null,null,null,null,null,null,null,null,null,null,null,null,{"$f":"COUNTIFS($B$24:B960,\"Producto \")","v":0},false,936]
[null,null,{"$f":"_xlfn.IFS(B961=\"Producto \",$N$10&\"-\"&T962,B961=\"Actividad Propia\",$N$10&\"-\"&T961&\"-\"&V961,B961=\"Actividad sin participación\",$N$10&\"-\"&T961&\"-\"&V961,B961=\"\",\"\")","v":""},null,null,null,null,null,null,null,null,null,null,null,null,null,null,null,null,{"$f":"COUNTIFS($B$24:B961,\"Producto \")","v":0},false,937]
[null,null,{"$f":"_xlfn.IFS(B962=\"Producto \",$N$10&\"-\"&T963,B962=\"Actividad Propia\",$N$10&\"-\"&T962&\"-\"&V962,B962=\"Actividad sin participación\",$N$10&\"-\"&T962&\"-\"&V962,B962=\"\",\"\")","v":""},null,null,null,null,null,null,null,null,null,null,null,null,null,null,null,null,{"$f":"COUNTIFS($B$24:B962,\"Producto \")","v":0},false,938]
[null,null,{"$f":"_xlfn.IFS(B963=\"Producto \",$N$10&\"-\"&T964,B963=\"Actividad Propia\",$N$10&\"-\"&T963&\"-\"&V963,B963=\"Actividad sin participación\",$N$10&\"-\"&T963&\"-\"&V963,B963=\"\",\"\")","v":""},null,null,null,null,null,null,null,null,null,null,null,null,null,null,null,null,{"$f":"COUNTIFS($B$24:B963,\"Producto \")","v":0},false,939]
[null,null,{"$f":"_xlfn.IFS(B964=\"Producto \",$N$10&\"-\"&T965,B964=\"Actividad Propia\",$N$10&\"-\"&T964&\"-\"&V964,B964=\"Actividad sin participación\",$N$10&\"-\"&T964&\"-\"&V964,B964=\"\",\"\")","v":""},null,null,null,null,null,null,null,null,null,null,null,null,null,null,null,null,{"$f":"COUNTIFS($B$24:B964,\"Producto \")","v":0},false,940]
[null,null,{"$f":"_xlfn.IFS(B965=\"Producto \",$N$10&\"-\"&T966,B965=\"Actividad Propia\",$N$10&\"-\"&T965&\"-\"&V965,B965=\"Actividad sin participación\",$N$10&\"-\"&T965&\"-\"&V965,B965=\"\",\"\")","v":""},null,null,null,null,null,null,null,null,null,null,null,null,null,null,null,null,{"$f":"COUNTIFS($B$24:B965,\"Producto \")","v":0},false,941]
[null,null,{"$f":"_xlfn.IFS(B966=\"Producto \",$N$10&\"-\"&T967,B966=\"Actividad Propia\",$N$10&\"-\"&T966&\"-\"&V966,B966=\"Actividad sin participación\",$N$10&\"-\"&T966&\"-\"&V966,B966=\"\",\"\")","v":""},null,null,null,null,null,null,null,null,null,null,null,null,null,null,null,null,{"$f":"COUNTIFS($B$24:B966,\"Producto \")","v":0},false,942]
[null,null,{"$f":"_xlfn.IFS(B967=\"Producto \",$N$10&\"-\"&T968,B967=\"Actividad Propia\",$N$10&\"-\"&T967&\"-\"&V967,B967=\"Actividad sin participación\",$N$10&\"-\"&T967&\"-\"&V967,B967=\"\",\"\")","v":""},null,null,null,null,null,null,null,null,null,null,null,null,null,null,null,null,{"$f":"COUNTIFS($B$24:B967,\"Producto \")","v":0},false,943]
[null,null,{"$f":"_xlfn.IFS(B968=\"Producto \",$N$10&\"-\"&T969,B968=\"Actividad Propia\",$N$10&\"-\"&T968&\"-\"&V968,B968=\"Actividad sin participación\",$N$10&\"-\"&T968&\"-\"&V968,B968=\"\",\"\")","v":""},null,null,null,null,null,null,null,null,null,null,null,null,null,null,null,null,{"$f":"COUNTIFS($B$24:B968,\"Producto \")","v":0},false,944]
[null,null,{"$f":"_xlfn.IFS(B969=\"Producto \",$N$10&\"-\"&T970,B969=\"Actividad Propia\",$N$10&\"-\"&T969&\"-\"&V969,B969=\"Actividad sin participación\",$N$10&\"-\"&T969&\"-\"&V969,B969=\"\",\"\")","v":""},null,null,null,null,null,null,null,null,null,null,null,null,null,null,null,null,{"$f":"COUNTIFS($B$24:B969,\"Producto \")","v":0},false,945]
[null,null,{"$f":"_xlfn.IFS(B970=\"Producto \",$N$10&\"-\"&T971,B970=\"Actividad Propia\",$N$10&\"-\"&T970&\"-\"&V970,B970=\"Actividad sin participación\",$N$10&\"-\"&T970&\"-\"&V970,B970=\"\",\"\")","v":""},null,null,null,null,null,null,null,null,null,null,null,null,null,null,null,null,{"$f":"COUNTIFS($B$24:B970,\"Producto \")","v":0},false,946]
[null,null,{"$f":"_xlfn.IFS(B971=\"Producto \",$N$10&\"-\"&T972,B971=\"Actividad Propia\",$N$10&\"-\"&T971&\"-\"&V971,B971=\"Actividad sin participación\",$N$10&\"-\"&T971&\"-\"&V971,B971=\"\",\"\")","v":""},null,null,null,null,null,null,null,null,null,null,null,null,null,null,null,null,{"$f":"COUNTIFS($B$24:B971,\"Producto \")","v":0},false,947]
[null,null,{"$f":"_xlfn.IFS(B972=\"Producto \",$N$10&\"-\"&T973,B972=\"Actividad Propia\",$N$10&\"-\"&T972&\"-\"&V972,B972=\"Actividad sin participación\",$N$10&\"-\"&T972&\"-\"&V972,B972=\"\",\"\")","v":""},null,null,null,null,null,null,null,null,null,null,null,null,null,null,null,null,{"$f":"COUNTIFS($B$24:B972,\"Producto \")","v":0},false,948]
[null,null,{"$f":"_xlfn.IFS(B973=\"Producto \",$N$10&\"-\"&T974,B973=\"Actividad Propia\",$N$10&\"-\"&T973&\"-\"&V973,B973=\"Actividad sin participación\",$N$10&\"-\"&T973&\"-\"&V973,B973=\"\",\"\")","v":""},null,null,null,null,null,null,null,null,null,null,null,null,null,null,null,null,{"$f":"COUNTIFS($B$24:B973,\"Producto \")","v":0},false,949]
[null,null,{"$f":"_xlfn.IFS(B974=\"Producto \",$N$10&\"-\"&T975,B974=\"Actividad Propia\",$N$10&\"-\"&T974&\"-\"&V974,B974=\"Actividad sin participación\",$N$10&\"-\"&T974&\"-\"&V974,B974=\"\",\"\")","v":""},null,null,null,null,null,null,null,null,null,null,null,null,null,null,null,null,{"$f":"COUNTIFS($B$24:B974,\"Producto \")","v":0},false,950]
[null,null,{"$f":"_xlfn.IFS(B975=\"Producto \",$N$10&\"-\"&T976,B975=\"Actividad Propia\",$N$10&\"-\"&T975&\"-\"&V975,B975=\"Actividad sin participación\",$N$10&\"-\"&T975&\"-\"&V975,B975=\"\",\"\")","v":""},null,null,null,null,null,null,null,null,null,null,null,null,null,null,null,null,{"$f":"COUNTIFS($B$24:B975,\"Producto \")","v":0},false,951]
[null,null,{"$f":"_xlfn.IFS(B976=\"Producto \",$N$10&\"-\"&T977,B976=\"Actividad Propia\",$N$10&\"-\"&T976&\"-\"&V976,B976=\"Actividad sin participación\",$N$10&\"-\"&T976&\"-\"&V976,B976=\"\",\"\")","v":""},null,null,null,null,null,null,null,null,null,null,null,null,null,null,null,null,{"$f":"COUNTIFS($B$24:B976,\"Producto \")","v":0},false,952]
[null,null,{"$f":"_xlfn.IFS(B977=\"Producto \",$N$10&\"-\"&T978,B977=\"Actividad Propia\",$N$10&\"-\"&T977&\"-\"&V977,B977=\"Actividad sin participación\",$N$10&\"-\"&T977&\"-\"&V977,B977=\"\",\"\")","v":""},null,null,null,null,null,null,null,null,null,null,null,null,null,null,null,null,{"$f":"COUNTIFS($B$24:B977,\"Producto \")","v":0},false,953]
[null,null,{"$f":"_xlfn.IFS(B978=\"Producto \",$N$10&\"-\"&T979,B978=\"Actividad Propia\",$N$10&\"-\"&T978&\"-\"&V978,B978=\"Actividad sin participación\",$N$10&\"-\"&T978&\"-\"&V978,B978=\"\",\"\")","v":""},null,null,null,null,null,null,null,null,null,null,null,null,null,null,null,null,{"$f":"COUNTIFS($B$24:B978,\"Producto \")","v":0},false,954]
[null,null,{"$f":"_xlfn.IFS(B979=\"Producto \",$N$10&\"-\"&T980,B979=\"Actividad Propia\",$N$10&\"-\"&T979&\"-\"&V979,B979=\"Actividad sin participación\",$N$10&\"-\"&T979&\"-\"&V979,B979=\"\",\"\")","v":""},null,null,null,null,null,null,null,null,null,null,null,null,null,null,null,null,{"$f":"COUNTIFS($B$24:B979,\"Producto \")","v":0},false,955]
[null,null,{"$f":"_xlfn.IFS(B980=\"Producto \",$N$10&\"-\"&T981,B980=\"Actividad Propia\",$N$10&\"-\"&T980&\"-\"&V980,B980=\"Actividad sin participación\",$N$10&\"-\"&T980&\"-\"&V980,B980=\"\",\"\")","v":""},null,null,null,null,null,null,null,null,null,null,null,null,null,null,null,null,{"$f":"COUNTIFS($B$24:B980,\"Producto \")","v":0},false,956]
[null,null,{"$f":"_xlfn.IFS(B981=\"Producto \",$N$10&\"-\"&T982,B981=\"Actividad Propia\",$N$10&\"-\"&T981&\"-\"&V981,B981=\"Actividad sin participación\",$N$10&\"-\"&T981&\"-\"&V981,B981=\"\",\"\")","v":""},null,null,null,null,null,null,null,null,null,null,null,null,null,null,null,null,{"$f":"COUNTIFS($B$24:B981,\"Producto \")","v":0},false,957]
[null,null,{"$f":"_xlfn.IFS(B982=\"Producto \",$N$10&\"-\"&T983,B982=\"Actividad Propia\",$N$10&\"-\"&T982&\"-\"&V982,B982=\"Actividad sin participación\",$N$10&\"-\"&T982&\"-\"&V982,B982=\"\",\"\")","v":""},null,null,null,null,null,null,null,null,null,null,null,null,null,null,null,null,{"$f":"COUNTIFS($B$24:B982,\"Producto \")","v":0},false,958]
[null,null,{"$f":"_xlfn.IFS(B983=\"Producto \",$N$10&\"-\"&T984,B983=\"Actividad Propia\",$N$10&\"-\"&T983&\"-\"&V983,B983=\"Actividad sin participación\",$N$10&\"-\"&T983&\"-\"&V983,B983=\"\",\"\")","v":""},null,null,null,null,null,null,null,null,null,null,null,null,null,null,null,null,{"$f":"COUNTIFS($B$24:B983,\"Producto \")","v":0},false,959]
[null,null,{"$f":"_xlfn.IFS(B984=\"Producto \",$N$10&\"-\"&T985,B984=\"Actividad Propia\",$N$10&\"-\"&T984&\"-\"&V984,B984=\"Actividad sin participación\",$N$10&\"-\"&T984&\"-\"&V984,B984=\"\",\"\")","v":""},null,null,null,null,null,null,null,null,null,null,null,null,null,null,null,null,{"$f":"COUNTIFS($B$24:B984,\"Producto \")","v":0},false,960]
[null,null,{"$f":"_xlfn.IFS(B985=\"Producto \",$N$10&\"-\"&T986,B985=\"Actividad Propia\",$N$10&\"-\"&T985&\"-\"&V985,B985=\"Actividad sin participación\",$N$10&\"-\"&T985&\"-\"&V985,B985=\"\",\"\")","v":""},null,null,null,null,null,null,null,null,null,null,null,null,null,null,null,null,{"$f":"COUNTIFS($B$24:B985,\"Producto \")","v":0},{"$f":"IF(B984=\"Producto \",C984&\"-\"&V985)","v":false},{"$f":"IF(B984=\"Producto \",1,V984+1)","v":961}]
[null,null,{"$f":"_xlfn.IFS(B986=\"Producto \",$N$10&\"-\"&T987,B986=\"Actividad Propia\",$N$10&\"-\"&T986&\"-\"&V986,B986=\"Actividad sin participación\",$N$10&\"-\"&T986&\"-\"&V986,B986=\"\",\"\")","v":""},null,null,null,null,null,null,null,null,null,null,null,null,null,null,null,null,{"$f":"COUNTIFS($B$24:B986,\"Producto \")","v":0},false,962]
[null,null,{"$f":"_xlfn.IFS(B987=\"Producto \",$N$10&\"-\"&T988,B987=\"Actividad Propia\",$N$10&\"-\"&T987&\"-\"&V987,B987=\"Actividad sin participación\",$N$10&\"-\"&T987&\"-\"&V987,B987=\"\",\"\")","v":""},null,null,null,null,null,null,null,null,null,null,null,null,null,null,null,null,{"$f":"COUNTIFS($B$24:B987,\"Producto \")","v":0},false,963]
[null,null,{"$f":"_xlfn.IFS(B988=\"Producto \",$N$10&\"-\"&T989,B988=\"Actividad Propia\",$N$10&\"-\"&T988&\"-\"&V988,B988=\"Actividad sin participación\",$N$10&\"-\"&T988&\"-\"&V988,B988=\"\",\"\")","v":""},null,null,null,null,null,null,null,null,null,null,null,null,null,null,null,null,{"$f":"COUNTIFS($B$24:B988,\"Producto \")","v":0},false,964]
[null,null,{"$f":"_xlfn.IFS(B989=\"Producto \",$N$10&\"-\"&T990,B989=\"Actividad Propia\",$N$10&\"-\"&T989&\"-\"&V989,B989=\"Actividad sin participación\",$N$10&\"-\"&T989&\"-\"&V989,B989=\"\",\"\")","v":""},null,null,null,null,null,null,null,null,null,null,null,null,null,null,null,null,{"$f":"COUNTIFS($B$24:B989,\"Producto \")","v":0},false,965]
[null,null,{"$f":"_xlfn.IFS(B990=\"Producto \",$N$10&\"-\"&T991,B990=\"Actividad Propia\",$N$10&\"-\"&T990&\"-\"&V990,B990=\"Actividad sin participación\",$N$10&\"-\"&T990&\"-\"&V990,B990=\"\",\"\")","v":""},null,null,null,null,null,null,null,null,null,null,null,null,null,null,null,null,{"$f":"COUNTIFS($B$24:B990,\"Producto \")","v":0},false,966]
[null,null,{"$f":"_xlfn.IFS(B991=\"Producto \",$N$10&\"-\"&T992,B991=\"Actividad Propia\",$N$10&\"-\"&T991&\"-\"&V991,B991=\"Actividad sin participación\",$N$10&\"-\"&T991&\"-\"&V991,B991=\"\",\"\")","v":""},null,null,null,null,null,null,null,null,null,null,null,null,null,null,null,null,{"$f":"COUNTIFS($B$24:B991,\"Producto \")","v":0},false,967]
[null,null,{"$f":"_xlfn.IFS(B992=\"Producto \",$N$10&\"-\"&T993,B992=\"Actividad Propia\",$N$10&\"-\"&T992&\"-\"&V992,B992=\"Actividad sin participación\",$N$10&\"-\"&T992&\"-\"&V992,B992=\"\",\"\")","v":""},null,null,null,null,null,null,null,null,null,null,null,null,null,null,null,null,{"$f":"COUNTIFS($B$24:B992,\"Producto \")","v":0},false,968]
[null,null,{"$f":"_xlfn.IFS(B993=\"Producto \",$N$10&\"-\"&T994,B993=\"Actividad Propia\",$N$10&\"-\"&T993&\"-\"&V993,B993=\"Actividad sin participación\",$N$10&\"-\"&T993&\"-\"&V993,B993=\"\",\"\")","v":""},null,null,null,null,null,null,null,null,null,null,null,null,null,null,null,null,{"$f":"COUNTIFS($B$24:B993,\"Producto \")","v":0},false,969]
[null,null,{"$f":"_xlfn.IFS(B994=\"Producto \",$N$10&\"-\"&T995,B994=\"Actividad Propia\",$N$10&\"-\"&T994&\"-\"&V994,B994=\"Actividad sin participación\",$N$10&\"-\"&T994&\"-\"&V994,B994=\"\",\"\")","v":""},null,null,null,null,null,null,null,null,null,null,null,null,null,null,null,null,{"$f":"COUNTIFS($B$24:B994,\"Producto \")","v":0},false,970]
[null,null,{"$f":"_xlfn.IFS(B995=\"Producto \",$N$10&\"-\"&T996,B995=\"Actividad Propia\",$N$10&\"-\"&T995&\"-\"&V995,B995=\"Actividad sin participación\",$N$10&\"-\"&T995&\"-\"&V995,B995=\"\",\"\")","v":""},null,null,null,null,null,null,null,null,null,null,null,null,null,null,null,null,{"$f":"COUNTIFS($B$24:B995,\"Producto \")","v":0},false,971]
[null,null,{"$f":"_xlfn.IFS(B996=\"Producto \",$N$10&\"-\"&T997,B996=\"Actividad Propia\",$N$10&\"-\"&T996&\"-\"&V996,B996=\"Actividad sin participación\",$N$10&\"-\"&T996&\"-\"&V996,B996=\"\",\"\")","v":""},null,null,null,null,null,null,null,null,null,null,null,null,null,null,null,null,{"$f":"COUNTIFS($B$24:B996,\"Producto \")","v":0},false,972]
[null,null,{"$f":"_xlfn.IFS(B997=\"Producto \",$N$10&\"-\"&T998,B997=\"Actividad Propia\",$N$10&\"-\"&T997&\"-\"&V997,B997=\"Actividad sin participación\",$N$10&\"-\"&T997&\"-\"&V997,B997=\"\",\"\")","v":""},null,null,null,null,null,null,null,null,null,null,null,null,null,null,null,null,{"$f":"COUNTIFS($B$24:B997,\"Producto \")","v":0},false,973]
[null,null,{"$f":"_xlfn.IFS(B998=\"Producto \",$N$10&\"-\"&T999,B998=\"Actividad Propia\",$N$10&\"-\"&T998&\"-\"&V998,B998=\"Actividad sin participación\",$N$10&\"-\"&T998&\"-\"&V998,B998=\"\",\"\")","v":""},null,null,null,null,null,null,null,null,null,null,null,null,null,null,null,null,{"$f":"COUNTIFS($B$24:B998,\"Producto \")","v":0},false,974]
[null,null,{"$f":"_xlfn.IFS(B999=\"Producto \",$N$10&\"-\"&T1000,B999=\"Actividad Propia\",$N$10&\"-\"&T999&\"-\"&V999,B999=\"Actividad sin participación\",$N$10&\"-\"&T999&\"-\"&V999,B999=\"\",\"\")","v":""},null,null,null,null,null,null,null,null,null,null,null,null,null,null,null,null,{"$f":"COUNTIFS($B$24:B999,\"Producto \")","v":0},false,975]
[null,null,{"$f":"_xlfn.IFS(B1000=\"Producto \",$N$10&\"-\"&T1001,B1000=\"Actividad Propia\",$N$10&\"-\"&T1000&\"-\"&V1000,B1000=\"Actividad sin participación\",$N$10&\"-\"&T1000&\"-\"&V1000,B1000=\"\",\"\")","v":""},null,null,null,null,null,null,null,null,null,null,null,null,null,null,null,null,{"$f":"COUNTIFS($B$24:B1000,\"Producto \")","v":0},false,976]
[null,null,{"$f":"_xlfn.IFS(B1001=\"Producto \",$N$10&\"-\"&T1002,B1001=\"Actividad Propia\",$N$10&\"-\"&T1001&\"-\"&V1001,B1001=\"Actividad sin participación\",$N$10&\"-\"&T1001&\"-\"&V1001,B1001=\"\",\"\")","v":""},null,null,null,null,null,null,null,null,null,null,null,null,null,null,null,null,{"$f":"COUNTIFS($B$24:B1001,\"Producto \")","v":0},false,977]

{"sheet":"LISTAS","index":1,"n_rows":247,"n_cols":12,"rows_kept":247,"cut":false,"hidden":true,"merged":[[11,0,11,2]]}
["Oficina Asesora Jurídica","Oficina de Control Interno","Oficina Asesora de Planeación","Oficina de Servicios al Consumidor y de Apoyo Empresarial","Oficina de Tecnología e Informática","Secretaría General","Delegatura para la protección del Consumidor","Delegatura para la Protección de Datos","Delegatura para el Control y Verificación de Reglamentos Técnicos y Metrología Legal  ","Delegatura para Asuntos  Jurisdiccionales","Delegatura para la Propiedad Industrial","Delegatura para la Protección de la Competencia"]
["Grupo de Trabajo Cobro Coactivo",null,"Grupo de Trabajo de Estudios Económicos","Grupo de Atención al Ciudadano",null,"Grupo de Trabajo de Administración de Personal","Grupo de trabajo de Apoyo a la Red Nacional de Protección al Consumidor",null,null,null,"Grupo de Trabajo de Vía Gubernativa "]
["Grupo de Trabajo Gestión Judicial",null,"Grupo de Trabajo de Asuntos Internacionales","Grupo de Formación",null,"Grupo de Trabajo de Desarrollo del Talento Humano","Dirección de Investigaciones de Protección al Consumidor      ",null,null,null,"Grupo de Trabajo de Centro de Información Tecnológica y Apoyo a la Gestión de Propiedad Industrial - CIGEPI"]
["Grupo de Trabajo de Regulación",null,null,"Grupo de Comunicación",null,"Grupo de Trabajo de Control Disciplinario Interno","Dirección de Investigaciones de Protección de Usuarios de Servicios de Comunicaciones ",null,null,null,"Dirección de Signos Distintivos"]
[null,null,null,null,null,"Grupo de Trabajo de Notificaciones y Certificaciones",null,null,null,null,"Dirección de  Nuevas Creaciones"]
[null,null,null,null,null,"Grupo de Trabajo de Gestión Documental y Archivo"]
[null,null,null,null,null,"Grupo de Trabajo de Servicios Administrativos y Recursos Físicos"]
[null,null,null,null,null,"Grupo de Trabajo  Contratación"]
[null,null,null,null,null,"Dirección  Financiera"]
["GRUPO1","GRUPO2","GRUPO3","GRUPO4","GRUPO5","GRUPO6","GRUPO7","GRUPO8","GRUPO9","GRUPO10","GRUPO11","GRUPO12"]
[]
["Fórmula para generación de rangos:",null,null,{"$f":"+HLOOKUP('FORMULACIÓN '!$N$6,LISTAS!A1:L10,10,0)","v":{"$error":"#N/A"}}]
[]
["DEPENDENCIAS","código"]
["Oficina Asesora Jurídica",10]
["Grupo de Trabajo Cobro Coactivo",11]
["Gestión de Trabajo Gestión Judicial",60]
["Grupo de Trabajo de Regulación",12]
["Oficina de Control Interno",50]
["Oficina Asesora de Planeación",30]
["Grupo de Trabajo de Estudios Económicos",37]
["Grupo de Trabajo de Asuntos Internacionales",38]
["Oficina de Servicios al Consumidor y de Apoyo Empresarial",70]
["Grupo de Atención al Ciudadano",72]
["Grupo de Formación",71]
["Grupo de Comunicación",73]
["Oficina de Tecnología e Informática",20]
["Secretaría General",100]
["Grupo de Trabajo de Administración de Personal",111]
["Grupo de Trabajo de Desarrollo del Talento Humano",117]
["Grupo de Trabajo de Control Disciplinario Interno",103]
["Grupo de Trabajo de Notificaciones y Certificaciones",104]
["Grupo de Trabajo de Gestión Documental y Archivo",141]
["Grupo de Trabajo de Servicios Administrativos y Recursos Físicos",142]
["Grupo de Trabajo  Contratación",105]
["Dirección  Financiera",130]
["Delegatura para la protección del Consumidor",3000]
["Grupo de trabajo de Apoyo a la Red Nacional de Protección al Consumidor",3003]
["Dirección de Investigaciones de Protección al Consumidor      ",3100]
["Dirección de Investigaciones de Protección de Usuarios de Servicios de Comunicaciones ",3200]
["Delegatura para la Protección de Datos",7000]
["Delegatura para el Control y Verificación de Reglamentos Técnicos y Metrología Legal  ",6000]
["Delegatura para Asuntos  Jurisdiccionales",4000]
["Delegatura para la Propiedad Industrial",2000]
["Grupo de Trabajo de Vía Gubernativa ",2003]
["Grupo de Trabajo de Centro de Información Tecnológica y Apoyo a la Gestión de Propiedad Industrial - CIGEPI",2023]
["Dirección de Signos Distintivos",2010]
["Dirección de  Nuevas Creaciones",2020]
["Delegatura para la Protección de la Competencia",1000]
["Dirección de Cámaras de Comercio",1020]
["N/A"]
["ASESOR OAP"]
["Sandra Elizabeth Tovar"]
["Nathalia Cortes Maya"]
["Erick Salomon Chavez"]
["Mery Melguizo "]
["Carolina castillo"]
["Oficina Asesora Jurídica"]
["Grupo de Trabajo Cobro Coactivo"]
["Gestión de Trabajo Gestión Judicial"]
["Grupo de Trabajo de Regulación"]
["Oficina de Control Interno"]
["Oficina Asesora de Planeación"]
["Grupo de Trabajo de Estudios Económicos"]
["Grupo de Trabajo de Asuntos Internacionales"]
["Oficina de Servicios al Consumidor y de Apoyo Empresarial"]
["Grupo de Atención al Ciudadano"]
["Grupo de Formación"]
["Grupo de Comunicación"]
["Oficina de Tecnología e Informática"]
["Secretaría General"]
["Grupo de Trabajo de Administración de Personal"]
["Grupo de Trabajo de Desarrollo del Talento Humano"]
["Grupo de Trabajo de Control Disciplinario Interno"]
["Grupo de Trabajo de Notificaciones y Certificaciones"]
["Grupo de Trabajo de Gestión Documental y Archivo"]
["Grupo de Trabajo de Servicios Administrativos y Recursos Físicos"]
["Grupo de Trabajo  Contratación"]
["Dirección  Financiera"]
["Delegatura para la protección del Consumidor"]
["Grupo de trabajo de Apoyo a la Red Nacional de Protección al Consumidor"]
["Dirección de Investigaciones de Protección al Consumidor      "]
["Dirección de Investigaciones de Protección de Usuarios de Servicios de Comunicaciones "]
["Delegatura para la Protección de Datos"]
["Delegatura para el Control y Verificación de Reglamentos Técnicos y Metrología Legal  "]
["Delegatura para Asuntos  Jurisdiccionales"]
["Delegatura para la Propiedad Industrial"]
["Grupo de Trabajo de Vía Gubernativa "]
["Grupo de Trabajo de Centro de Información Tecnológica y Apoyo a la Gestión de Propiedad Industrial - CIGEPI"]
["Dirección de Signos Distintivos"]
["Dirección de  Nuevas Creaciones"]
["Delegatura para la Protección de la Competencia"]
["Dirección de Cámaras de Comercio"]
[]
[]
[]
[]
["Objetivos Estratégicos ","Estrategias"]
["Fortalecer los servicios de formación y divulgación de los derechos y deberes de ciudadanos y empresarios.","Mantener el carácter técnico de la Entidad y su alineación con el PND y los estándares internacionales"]
["Adoptar las mejores prácticas en materia de participación y servicio al ciudadano.","Diseñar e implementar una estrategia que fortalezca la analítica de datos institucional para la toma de decisiones y la prestación de servicios"]
["Afianzar el modelo de Empresa Familiarmente Responsable","Establecer alianzas para la cooperación con comunidades académicas"]
["Fortalecer los programas de fomento de la propiedad industrial que promuevan la consolidación de estos derechos como activos empresariales y el uso de la información contenida en los documentos de patentes como base para nuevos desarrollos.","Analizar la presencia institucional en las regiones del país"]
["Fortalecer los programas de prevención en materia de infracciones al estatuto del consumidor, protección de datos personales y el régimen de libre competencia económica, sin perjuicio de los procesos y actuaciones sancionatorias.","Diversificar los canales de atención a las regiones, para fortalecer la cobertura nacional de los servicios de la Entidad"]
["Fortalecer procesos de analítica institucional para la toma de decisiones","Gestionar convenios de capacitación"]
["Generar la cultura de gestión del conocimiento y la innovación","Desplegar toda la capacidad técnica y tecnológica de la Entidad para ponerla al servicio de los usuarios internos y externos "]
["Implementar las mejores prácticas en materia de gestión documental","Establecer programas de oferta de los servicios de la SIC enfocados a la economía social, turismo y reindustrialización con enfoque en cobertura nacional"]
["Mejorar la eficiencia en el gasto público","Potenciar el reconocimiento de la SIC a nivel Internacional y Nacional"]
["Mejorar la infraestructura, uso y aprovechamiento de las tecnologías de la información.","Mejorar las herramientas tecnológicas de la Entidad"]
["Mejorar la oportunidad y calidad en la atención de trámites y servicios dirigidos a usuarios, empresarios, ciudadanos y demás grupos de interés a través de la implementación de herramientas tecnológicas.","Implementar metodologías para la aplicación de buenas prácticas internacionales en el contexto nacional"]
["N/A","Ampliar la oferta Institucional de formación a niños, niñas, adolescentes y jóvenes "]
[null,"Mejorar la atención y nuestro relacionamiento con los usuarios para consolidar la oferta institucional de servicios con enfoque en las regiones más apartadas del país"]
[null,"Incrementar las actividades de difusión y pedagogía en el marco de las funciones de la SIC, para empoderar a usuarios y consumidores. "]
[null,"Adelantar las acciones necesarias con los organismos competentes para ampliar la planta de personal y actualizar sus funciones, perfiles y estructura"]
["INSUMOS","Implementar estrategias para diversificar los canales de atención y conversatorios regionales, enfocados en ciudadanos vulnerables de otras regiones del país"]
["1-Datos principales  del Programa de Gobierno","Aumentar la asignación presupuestal para mejorar, cambiar o actualizar el sistema de trámites de la entidad"]
["2-Analítica Institucional - Estadísticas","Aumentar la presencia institucional con la población vulnerable"]
["3-Sistema Estadistico Nacional - Indicares Relevantes","Aprovechar la capacidad técnica de la SIC para aumentar su posicionamiento en medio de nuevas orientaciones Políticas "]
["4-Caracterización Grupos de Valor","Fortalecer e implementar herramientas tecnológicas para identificar y atender las nuevas demandas que están surgiendo en la ciudadanía"]
["5-CONPES","Optimizar los recursos presupuestales de la SIC, procurando una distribución eficiente en el marco de las políticas de austeridad del Gobierno Nacional"]
["6-Plan Estratégico de Tecnologías de la Información","Preparar la capacidad tecnológica de la Entidad frente a un probable incremento en la demanda de los servicios de la SIC"]
["7-Ejecución Presupuestal 2022","Incentivar a los empresarios en la implementación de estrategias preventivas para la protección de los consumidores"]
["8-Modelo Integrado de Planeación y Gestión ","Diseñar estrategias dirigidas a aumentar la confianza y posicionamiento los grupos de interés "]
["9-Gestión de riesgos","Fortalecer la capacidad de procesamiento de tramites a partir de softwares de fabrica externos"]
["10-Indicadores","Asignar de manera eficiente el capital humano a la demanda de servicios de acuerdo con las necesidades crecientes, objetivos y metas de la entidad"]
["11-Producto no conforme","Fortalecer al talento humano en el conocimiento de cada una de las funciones que ejercen las áreas de la entidad"]
["12-Planes de mejoramiento","Establecer programas preventivos dentro de la gama de servicios que presta la entidad"]
["13-Experiencia SIC","N/A"]
["14-PQRS"]
["15-Resultados de la encuesta trámites 2022"]
["16-TrÁmites y OPAS"]
["17-Rendición de cuentas e inrome del congreso"]
["18-Documentación "]
["19-N/A"]
[]
[]
[]
["Fuente de Financiación"]
["  1» Fortalecimiento de la atención y promoción de trámites y servicios en el marco del sistema de propiedad industrial a nivel  nacional"]
["  2» Fortalecimiento de la función de inspección, control y vigilancia de la superintendencia de industria y comercio en el marco del subsistema nacional de calidad, el régimen de control de precios y el sector valuatorio a nivel  nacional"]
["  3»Fortalecimiento de la función jurisdiccional de la superintendencia de industria y comercio a nivel  nacional"]
["  4»Fortalecimiento de la protección de datos personales a nivel  nacional"]
["  5»Fortalecimiento del régimen de protección de la libre competencia económica en los mercados a nivel  nacional"]
["  6»Fortalecimiento del sistema de atención al ciudadano de la superintendencia de industria y comercio a nivel  nacional"]
["  7»Incremento de la cobertura de los servicios de la red nacional de protección al consumidor en el territorio  nacional"]
["  8» Mejoramiento de los sistemas de información y servicios tecnológicos de la superintendencia de industria y comercio en el territorio  nacional"]
[" 9» Mejoramiento en la calidad de la gestión estratégica de la superintendencia de industria y comercio a nivel  nacional"]
[" 10» Mejoramiento en la ejecución de las funciones asignadas en materia de protección al consumidor a nivel  nacional"]
["  11» Funcionamiento"]
["N/A"]
[]
[]
["MIPG"]
[" 1. Planeación Institucional"]
[" 2. Gestión presupuestal y eficiencia del gasto público"]
[" 3. Compras y Contratación Pública "]
[" 4. Talento humano"]
[" 5. Integridad"]
[" 6. Transparencia, acceso a la información pública y lucha contra la corrupción"]
[" 7. Fortalecimiento organizacional y simplificación de procesos"]
[" 8. Servicio al ciudadano"]
[" 9. Participación ciudadana en la gestión pública"]
[" 10. Racionalización de trámites"]
[" 11.Gobierno digital"]
[" 12. Seguridad digital"]
[" 13.Defensa jurídica"]
[" 14. Mejora normativa"]
[" 15.Gestión del conocimiento y la innovación"]
[" 16.Gestión documental"]
[" 17.Gestión de la información estadística"]
[" 18. Seguimiento y evaluación del desempeño institucional"]
[" 19. Control interno"]
["N/A"]
[]
[]
[]
[]
[]
[]
[]
[]
[]
["Áreas Responsables"]
[{"$f":"\"»\"&B183&\"-\"&C183","v":"»10-Oficina Asesora Jurídica"},10,"Oficina Asesora Jurídica"]
[{"$f":"\"»\"&B184&\"-\"&C184","v":"»11-Grupo de Trabajo Cobro Coactivo"},11,"Grupo de Trabajo Cobro Coactivo"]
["»12-Grupo de Trabajo de Regulación",12,"Grupo de Trabajo de Regulación"]
["»20-Oficina de Tecnología e Informática",20,"Oficina de Tecnología e Informática"]
["»30-Oficina Asesora de Planeación",30,"Oficina Asesora de Planeación"]
["»37-Grupo de Trabajo de Estudios Económicos",37,"Grupo de Trabajo de Estudios Económicos"]
["»38-Grupo de Trabajo de Asuntos Internacionales",38,"Grupo de Trabajo de Asuntos Internacionales"]
["»50-Oficina de Control Interno",50,"Oficina de Control Interno"]
["»60-Grupo de Trabajo Gestión Judicial",60,"Grupo de Trabajo Gestión Judicial"]
["»71-Grupo de Formación",71,"Grupo de Formación"]
["»72-Grupo de Atención al Ciudadano",72,"Grupo de Atención al Ciudadano"]
["»73-Grupo de Comunicación",73,"Grupo de Comunicación"]
["»100-Secretaría General",100,"Secretaría General"]
["»103-Grupo de Trabajo de Control Disciplinario Interno",103,"Grupo de Trabajo de Control Disciplinario Interno"]
["»104-Grupo de Trabajo de Notificaciones y Certificaciones",104,"Grupo de Trabajo de Notificaciones y Certificaciones"]
["»105-Grupo de Trabajo  Contratación",105,"Grupo de Trabajo  Contratación"]
["»111-Grupo de Trabajo de Administración de Personal",111,"Grupo de Trabajo de Administración de Personal"]
["»117-Grupo de Trabajo de Desarrollo del Talento Humano",117,"Grupo de Trabajo de Desarrollo del Talento Humano"]
["»130-Dirección  Financiera",130,"Dirección  Financiera"]
["»141-Grupo de Trabajo de Gestión Documental y Archivo",141,"Grupo de Trabajo de Gestión Documental y Archivo"]
["»142-Grupo de Trabajo de Servicios Administrativos y Recursos Físicos",142,"Grupo de Trabajo de Servicios Administrativos y Recursos Físicos"]
["»1000-Delegatura para la Protección de la Competencia",1000,"Delegatura para la Protección de la Competencia"]
["»2000-Delegatura para la Propiedad Industrial",2000,"Delegatura para la Propiedad Industrial"]
["»2010-Dirección de Signos Distintivos",2010,"Dirección de Signos Distintivos"]
["»2020-Dirección de  Nuevas Creaciones",2020,"Dirección de  Nuevas Creaciones"]
["»2023-Grupo de Trabajo de Centro de Información Tecnológica y Apoyo a la Gestión de Propiedad Industrial - CIGEPI",2023,"Grupo de Trabajo de Centro de Información Tecnológica y Apoyo a la Gestión de Propiedad Industrial - CIGEPI"]
["»3000-Delegatura para la protección del Consumidor",3000,"Delegatura para la protección del Consumidor"]
["»3003-Grupo de trabajo de Apoyo a la Red Nacional de Protección al Consumidor",3003,"Grupo de trabajo de Apoyo a la Red Nacional de Protección al Consumidor"]
["»3100-Dirección de Investigaciones de Protección al Consumidor      ",3100,"Dirección de Investigaciones de Protección al Consumidor      "]
["»3200-Dirección de Investigaciones de Protección de Usuarios de Servicios de Comunicaciones ",3200,"Dirección de Investigaciones de Protección de Usuarios de Servicios de Comunicaciones "]
["»4000-Delegatura para Asuntos  Jurisdiccionales",4000,"Delegatura para Asuntos  Jurisdiccionales"]
["»6000-Delegatura para el Control y Verificación de Reglamentos Técnicos y Metrología Legal  ",6000,"Delegatura para el Control y Verificación de Reglamentos Técnicos y Metrología Legal  "]
["»7000-Delegatura para la Protección de Datos",7000,"Delegatura para la Protección de Datos"]
[]
[]
[]
[]
[]
[]
["Asociación a Planes"]
[" 1- Plan Anual de Adquisiciones",1,{"$f":"\" \"&B223&\"-\"&A223","v":" 1- 1- Plan Anual de Adquisiciones"}]
[" 2- Gasto público ",2,{"$f":"\" \"&B224&\"-\"&A224","v":" 2- 2- Gasto público "}]
[" 3- Plan Estratégico de TH (PETH)",3," 3- 3- Plan Estratégico de TH (PETH)"]
[" 4- Vacantes",4," 4- 4- Vacantes"]
[" 5- Previsión RH",5," 5- 5- Previsión RH"]
[" 6- Plan Institucional de Capacitación (PIC)",6," 6- 6- Plan Institucional de Capacitación (PIC)"]
[" 7- Incentivos",7," 7- 7- Incentivos"]
[" 8- Seguridad y Salud en el Trabajo (SYST)",8," 8- 8- Seguridad y Salud en el Trabajo (SYST)"]
[" 9-PTEP - Gestión Integral del riesgo de corrupción",9," 9- 9-PTEP - Gestión Integral del riesgo de corrupción"]
[" 10-PTEP - Redes institucionales y canales de denuncia",10," 10- 10-PTEP - Redes institucionales y canales de denuncia"]
[" 11-PTEP - Legalidad e integridad",11," 11- 11-PTEP - Legalidad e integridad"]
[" 12-PTEP - Iniciativas adicionales",12," 12- 12-PTEP - Iniciativas adicionales"]
[" 13-PTEP - Participación ciudadana y rendición de cuentas",13," 13- 13-PTEP - Participación ciudadana y rendición de cuentas"]
[" 14-PTEP - Transparencia y acceso a la información ",14," 14- 14-PTEP - Transparencia y acceso a la información "]
[" 15-PTEP - Estado abierto",15," 15- 15-PTEP - Estado abierto"]
[" 16- Participación Ciudadana ",16," 16- 16- Participación Ciudadana "]
[" 17- Plan Estratégico de Tecnologías de la Información",17," 17- 17- Plan Estratégico de Tecnologías de la Información"]
[" 18- Mantenimiento Servicio Tecnológico",18," 18- 18- Mantenimiento Servicio Tecnológico"]
[" 18- Conservación  Documental ",19," 19- 18- Conservación  Documental "]
[" 20- Preservación Digital",20," 20- 20- Preservación Digital"]
[" 21- Riesgos de Seguridad y privacidad de la Información",21," 21- 21- Riesgos de Seguridad y privacidad de la Información"]
[" 22- Seguridad y Privacidad de la Información",22," 22- 22- Seguridad y Privacidad de la Información"]
[" 23- Plan Institucional de Archivos (PINAR)"]
[" 24- Austeridad y G Ambiental "]
["N/A"]